Workbook

Sheet Cover
C2: Gas Transmission Tariff Model
C3: Northern Ireland Gas Transmission Tariffs
C7: Model developed to illustrate the Utility Regulator's proposals for the introduction of entry charges into the Postalised system.
C8: Therefore, it is subject to change and it does not provide any indication as to future tariffs.
C9: See 'Consultation on the introduction of entry charges into the Northern Ireland postalised regime for gas' published on the Utility Regulator website on 16th October 2014

Sheet Contents
A1: Gas Transmission Tariffs Model v0_1a - UR inputs!A1.xlsx | B1: =Title_Model -> Gas Transmission Tariff Model
B2: Contents
C5: TABLE OF CONTENTS
C7: Worksheet name | D7: Description
B8: 1 | C8: Cover | D8: Cover sheet
B9: =B8+1 -> 2 | C9: =$B$2 -> Contents | D9: Contents page
B10: =B9+1 -> 3 | C10: INPUT|UR | D10: UR’s assumptions.
B11: 4 | C11: INPUT|Auction | D11: Auction prices by product and by month
B12: 5 | C12: INPUT|Vols | D12: Forecast and actual volumes for 2014/15
B13: 6 | C13: INPUT|Vols+1 | D13: Actual volumes for 2015/16
B14: =B12+1 -> 6 | C14: CALC|Revalloc | D14: Allocates the forecast required revenue (Forecast Required Revenue) and allowed required revenue (Actual Required Revenue) and using the entry/exit and capacity/commodity splits
B15: =B14+1 -> 7 | C15: CALC|Com | D15: This tab calculates the forecast and year end exit commodity tariff
B16: 8 | C16: CALC|Cap | D16: This tab calculates the forecast and year end capacity tariffs using the forecast and actual volumes, the forecast and actual revenue requirements and the interruptible price multiplier
B17: 9 | C17: CALC|Debt | D17: This tab calculates the monthly debt payments by transporter
B18: 10 | C18: CALC|ShipInv | D18: This tab produces invoices for each month in the Gas Year by shipper
B19: 11 | C19: CALC|Rec | D19: This tab calculates the Post payments and the bullet reconciliation payments
B20: 12 | C20: CALC|PTL licence | D20: This tab calculates the PTL supplemental payments
B21: 13 | C21: CALC¦Dist | D21: This tab calculates the pot distribution payments
B22: 14 | C22: CALC|Termination | D22: This tab calculates the termination payments
B23: 15 | C23: OUTPUT|Outputs | D23: This tab reproduces forecast and actual prices, debt payments, reconciliations and cashflow data from the calculations tabs
C26: worked example data | D26: Where a cell is highlighted, this denotes the data that is used in the worked example.

Sheet INPUT|UR
B1: =Title_Model -> Gas Transmission Tariff Model
B2: INPUT|UR | I2: All values in this sheet are in nominal terms
B4: Heading | C4: Item | D4: Unit | E4: Comments | G4: Constant | AD4: Time series total | AF4: Error check
B6: Current year
C8: Current gas year starts in | E8: Enter the year in the October of which the gas year begins | G8: 2013
B10: Revenue requirements
C12: Forecast Required Revenue 14/15
C13: BGE | D13: £ | G13: 18263239
C14: PTL | D14: £ | G14: 20162771
C15: BGTL | D15: £ | G15: 7040850
C16: West | D16: £ | G16: 0
C17: Total | D17: £ | G17: =SUM(G13:G16) -> 45466860
C18: Forecast Required Revenue 15/16
C19: BGE | D19: £
C20: PTL | D20: £
C21: BGTL | D21: £
C22: West | D22: £
C24: Actual Required Revenue 14/15
C25: BGE | D25: £ | G25: 18263239
C26: PTL | D26: £ | G26: 20162771
C27: BGTL | D27: £ | G27: 7040850
C28: West | D28: £ | G28: 0
C29: Total | D29: £ | G29: =SUM(G25:G28) -> 45466860
B31: Entry/exit and capacity/commodity splits
C33: CAPACITY/COMMODITY SPLIT
C34: Capacity proportion | D34: % | G34: 0.75
C35: Commodity proportion | D35: % | E35: 1-exit capacity proportion | G35: =1-G34 -> 0.25
C36: Commodity cap | D36: % | G36: 0.15
B38: Seasonal factors for short-term seasonal entry capacity products
I39: Oct | J39: Nov | K39: Dec | L39: Jan | M39: Feb | N39: Mar | O39: Apr | P39: May | Q39: Jun | R39: Jul | S39: Aug | T39: Sep
I40: =CONCATENATE(I39,"-",$G$8-2000) -> Oct-13 | J40: =CONCATENATE(J39,"-",$G$8-2000) -> Nov-13 | K40: Dec-13 | L40: =CONCATENATE(L39,"-",$G$8-1999) -> Jan-14 | M40: =CONCATENATE(M39,"-",$G$8-1999) -> Feb-14 | N40: Mar-14 | O40: Apr-14 | P40: May-14 | Q40: Jun-14 | R40: Jul-14 | S40: Aug-14 | T40: Sep-14
C41: Seasonal Factors | D41: # | I41: 1 | J41: 1 | K41: 1 | L41: 1.5 | M41: 1.5 | N41: 1.5 | O41: 1.25 | P41: 1.25 | Q41: 1.25 | R41: 1 | S41: 1 | T41: 1
B43: Multipliers for entry capacity products
C45: Annual | D45: # | E45: By assumption, this is always 1 | G45: 1
C46: Quarterly | D46: # | E46: Ratio to annual price | G46: 1.1
C47: Monthly | D47: # | E47: Ratio to annual price | G47: 1.2
C48: Daily | D48: # | E48: Ratio to annual price | G48: 1.3
C49: Within day | D49: # | E49: Ratio to annual price | G49: 1.4
C50: Interruptible | D50: # | E50: Ratio to annual price | G50: 1.1
I53: Oct | J53: Nov | K53: Dec | L53: Jan | M53: Feb | N53: Mar | O53: Apr | P53: May | Q53: Jun | R53: Jul | S53: Aug | T53: Sep
I54: =CONCATENATE(I53,"-",$G$8-2000) -> Oct-13 | J54: =CONCATENATE(J53,"-",$G$8-2000) -> Nov-13 | K54: Dec-13 | L54: =CONCATENATE(L53,"-",$G$8-1999) -> Jan-14 | M54: =CONCATENATE(M53,"-",$G$8-1999) -> Feb-14 | N54: Mar-14 | O54: Apr-14 | P54: May-14 | Q54: Jun-14 | R54: Jul-14 | S54: Aug-14 | T54: Sep-14
C55: Seasonal Factors | D55: # | I55: 0.0066 | J55: 0.0066 | K55: 0.0118 | L55: 0.0206 | M55: 0.0235 | N55: 0.0176 | O55: 0.0066 | P55: 0.004 | Q55: 0.004 | R55: 0.004 | S55: 0.004 | T55: 0.004
B57: Multipliers for exit capacity products
C59: Annual | D59: # | E59: By assumption, this is always 1 | G59: 1
C60: Interruptible | D60: # | E60: Ratio to annual price | G60: 1
B62: Days by quarter, month and year
C64: =CONCATENATE(G8,"/",G8-1999) -> 2013/14 | H64: Year | I64: =CONCATENATE("Q4-",G8-2000) -> Q4-13 | J64: =CONCATENATE("Q1-",G8-1999) -> Q1-14 | K64: =CONCATENATE("Q2-",G8-1999) -> Q2-14 | L64: =CONCATENATE("Q3-",G8-1999) -> Q3-14 | M64: =I40 -> Oct-13 | N64: Nov-13 | O64: Dec-13 | P64: Jan-14 | Q64: Feb-14 | R64: Mar-14 | S64: Apr-14 | T64: May-14 | U64: Jun-14 | V64: Jul-14 | W64: Aug-14 | X64: Sep-14
C65: Year | D65: # | H65: =SUM(I66:L66) -> 365
C66: Quarter | D66: # | I66: =SUM(M67:O67) -> 92 | J66: =SUM(P67:R67) -> 90 | K66: =SUM(S67:U67) -> 91 | L66: =SUM(V67:X67) -> 92
C67: Month | D67: # | E67: The only number in this row which it should ever be necessary to change is February, which, in the gas year 2015/16, will have 29 days | M67: 31 | N67: 30 | O67: 31 | P67: 31 | Q67: 28 | R67: 31 | S67: 30 | T67: 31 | U67: 30 | V67: 31 | W67: 31 | X67: 30
C68: 2015/16 | I68: Q4 15 | J68: Q1 16 | K68: Q2 16 | L68: Q3 16 | M68: 2015-10-01 | N68: =M68+31 -> 2015-11-01 | O68: =N68+31 -> 2015-12-02 | P68: 2016-01-02 | Q68: 2016-02-02 | R68: 2016-03-04 | S68: 2016-04-04 | T68: 2016-05-05 | U68: 2016-06-05 | V68: 2016-07-06 | W68: 2016-08-06 | X68: 2016-09-06
C69: Year | H69: =SUM(I70:L70) -> 366
C70: Quarter | I70: =SUM(M71:O71) -> 92 | J70: =SUM(P71:R71) -> 91 | K70: =SUM(S71:U71) -> 91 | L70: =SUM(V71:X71) -> 92
C71: Month | M71: 31 | N71: 30 | O71: 31 | P71: 31 | Q71: 29 | R71: 31 | S71: 30 | T71: 31 | U71: 30 | V71: 31 | W71: 31 | X71: 30
B73: Entry and exit volume variation factors
C75: Entry capacity variation factor | D75: % | E75: UR assumption | G75: 0
C76: Entry commodity variation factor | D76: % | E76: UR assumption | G76: 0
C77: Exit capacity variation factor | D77: % | E77: UR assumption | G77: 0
C78: Exit commodity variation factor | D78: % | E78: UR assumption | G78: 0
B80: Termination payments (TPs) by shipper
E81: This is the list of shippers which is reproduced throughout the model. A new shipper's name should be input here.
E82: Check these headings with UR | G82: TSO used | I82: =CONCATENATE("Ag ", C64, " Current Gas Year TP") -> Ag 2013/14 Current Gas Year TP | J82: TP Paid in by Due Date | K82: Current Gas Year TPs Invoiced | L82: Future Gas Years TPs Invoiced
C83: Shipper 1 | D83: £ | E83: Zero by assumption | G83: PTL
C84: Shipper 2 | D84: £ | E84: Zero by assumption | G84: BGTL
C85: Shipper 3 | D85: £ | E85: Zero by assumption | G85: BGE
C86: Shipper 4 | D86: £ | E86: Zero by assumption | G86: PTL
C87: Shipper 5 | D87: £ | E87: Zero by assumption | G87: BGTL
C88: Shipper 6 | D88: £ | E88: Zero by assumption | G88: BGE
C89: Shipper 7 | D89: £ | E89: Zero by assumption | G89: PTL
C90: Shipper 8 | D90: £ | E90: Zero by assumption | G90: BGTL
C91: Shipper 9 | D91: £ | E91: Zero by assumption | G91: BGE
C92: Shipper 10 | D92: £ | E92: Zero by assumption | G92: PTL
C93: Shipper 11 | D93: £ | E93: Zero by assumption | G93: BGTL
C94: Shipper 12 | D94: £ | E94: Zero by assumption | G94: BGE
C95: Shipper 13 | D95: £ | E95: Zero by assumption | G95: PTL
C96: Shipper 14 | D96: £ | E96: Zero by assumption | G96: PTL
C97: Shipper 15 | D97: £ | E97: Zero by assumption | G97: West
C98: Shipper 16 | D98: £ | E98: Zero by assumption | G98: West
C99: Shipper 17 | D99: £ | E99: Zero by assumption | G99: West
C100: Shipper 18 | D100: £ | E100: Zero by assumption | G100: West
C101: Shipper 19 | D101: £ | E101: Zero by assumption | G101: West
C102: Shipper 20 | D102: £ | E102: Zero by assumption | G102: West
B104: VAT
C106: VAT | D106: % | G106: 0.2
B108: Debt payment inputs
I110: =I40 -> Oct-13 | J110: Nov-13 | K110: Dec-13 | L110: Jan-14 | M110: Feb-14 | N110: Mar-14 | O110: Apr-14 | P110: May-14 | Q110: Jun-14 | R110: Jul-14 | S110: Aug-14 | T110: Sep-14
C111: LIBOR | D111: % | G111: 0.06
C112: Debt payment cap | D112: % | G112: 0.1
C113: Non-payments notified to PSA in previous month | D113: £
C114: Non-Payments to date (incl this month) | D114: £
C115: Debt Payments invoiced (incl interest) | D115: £
C116: Interest on Previous Debt Payments | D116: £
C117: Recoveries to date | D117: £
C119: PAYMENTS BY SHIPPERS BY MONTH
C120: AMOUNT PAID BY SHIPPERS (BY DUE DATE)
C121: =C83 -> Shipper 1 | D121: £ | I121: 0 | J121: 0 | K121: 0 | L121: 0 | M121: 0 | N121: 0 | O121: 0 | P121: 0 | Q121: 0 | R121: 0 | S121: 0 | T121: 0
C122: =C84 -> Shipper 2 | D122: £ | I122: 0 | J122: 0 | K122: 0 | L122: 0 | M122: 0 | N122: 0 | O122: 0 | P122: 0 | Q122: 0 | R122: 0 | S122: 0 | T122: 0
C123: Shipper 3 | D123: £ | I123: 0 | J123: 0 | K123: 0 | L123: 0 | M123: 0 | N123: 0 | O123: 0 | P123: 0 | Q123: 0 | R123: 0 | S123: 0 | T123: 0
C124: Shipper 4 | D124: £ | I124: 0 | J124: 0 | K124: 0 | L124: 0 | M124: 0 | N124: 0 | O124: 0 | P124: 0 | Q124: 0 | R124: 0 | S124: 0 | T124: 0
C125: Shipper 5 | D125: £ | I125: 0 | J125: 0 | K125: 0 | L125: 0 | M125: 0 | N125: 0 | O125: 0 | P125: 0 | Q125: 0 | R125: 0 | S125: 0 | T125: 0
C126: Shipper 6 | D126: £ | I126: 0 | J126: 0 | K126: 0 | L126: 0 | M126: 0 | N126: 0 | O126: 0 | P126: 0 | Q126: 0 | R126: 0 | S126: 0 | T126: 0
C127: Shipper 7 | D127: £ | I127: 0 | J127: 0 | K127: 0 | L127: 0 | M127: 0 | N127: 0 | O127: 0 | P127: 0 | Q127: 0 | R127: 0 | S127: 0 | T127: 0
C128: Shipper 8 | D128: £ | I128: 0 | J128: 0 | K128: 0 | L128: 0 | M128: 0 | N128: 0 | O128: 0 | P128: 0 | Q128: 0 | R128: 0 | S128: 0 | T128: 0
C129: Shipper 9 | D129: £ | I129: 0 | J129: 0 | K129: 0 | L129: 0 | M129: 0 | N129: 0 | O129: 0 | P129: 0 | Q129: 0 | R129: 0 | S129: 0 | T129: 0
C130: Shipper 10 | D130: £ | I130: 0 | J130: 0 | K130: 0 | L130: 0 | M130: 0 | N130: 0 | O130: 0 | P130: 0 | Q130: 0 | R130: 0 | S130: 0 | T130: 0
C131: Shipper 11 | D131: £ | I131: 0 | J131: 0 | K131: 0 | L131: 0 | M131: 0 | N131: 0 | O131: 0 | P131: 0 | Q131: 0 | R131: 0 | S131: 0 | T131: 0
C132: Shipper 12 | D132: £ | I132: 0 | J132: 0 | K132: 0 | L132: 0 | M132: 0 | N132: 0 | O132: 0 | P132: 0 | Q132: 0 | R132: 0 | S132: 0 | T132: 0
C133: Shipper 13 | D133: £ | I133: 0 | J133: 0 | K133: 0 | L133: 0 | M133: 0 | N133: 0 | O133: 0 | P133: 0 | Q133: 0 | R133: 0 | S133: 0 | T133: 0
C134: Shipper 14 | D134: £ | I134: 0 | J134: 0 | K134: 0 | L134: 0 | M134: 0 | N134: 0 | O134: 0 | P134: 0 | Q134: 0 | R134: 0 | S134: 0 | T134: 0
C135: Shipper 15 | D135: £ | I135: 0 | J135: 0 | K135: 0 | L135: 0 | M135: 0 | N135: 0 | O135: 0 | P135: 0 | Q135: 0 | R135: 0 | S135: 0 | T135: 0
C136: Shipper 16 | D136: £ | I136: 0 | J136: 0 | K136: 0 | L136: 0 | M136: 0 | N136: 0 | O136: 0 | P136: 0 | Q136: 0 | R136: 0 | S136: 0 | T136: 0
C137: Shipper 17 | D137: £ | I137: 0 | J137: 0 | K137: 0 | L137: 0 | M137: 0 | N137: 0 | O137: 0 | P137: 0 | Q137: 0 | R137: 0 | S137: 0 | T137: 0
C138: Shipper 18 | D138: £ | I138: 0 | J138: 0 | K138: 0 | L138: 0 | M138: 0 | N138: 0 | O138: 0 | P138: 0 | Q138: 0 | R138: 0 | S138: 0 | T138: 0
C139: Shipper 19 | D139: £ | I139: 0 | J139: 0 | K139: 0 | L139: 0 | M139: 0 | N139: 0 | O139: 0 | P139: 0 | Q139: 0 | R139: 0 | S139: 0 | T139: 0
C140: Shipper 20 | D140: £ | I140: 0 | J140: 0 | K140: 0 | L140: 0 | M140: 0 | N140: 0 | O140: 0 | P140: 0 | Q140: 0 | R140: 0 | S140: 0 | T140: 0
C142: AMOUNT PAID BY SHIPPERS BY SECOND DUE DATE
C143: =C121 -> Shipper 1 | D143: =D121 -> £
C144: =C122 -> Shipper 2 | D144: £
C145: Shipper 3 | D145: £
C146: Shipper 4 | D146: £
C147: Shipper 5 | D147: £
C148: Shipper 6 | D148: £
C149: Shipper 7 | D149: £
C150: Shipper 8 | D150: £
C151: Shipper 9 | D151: £
C152: Shipper 10 | D152: £
C153: Shipper 11 | D153: £
C154: Shipper 12 | D154: £
C155: Shipper 13 | D155: £
C156: Shipper 14 | D156: £
C157: Shipper 15 | D157: £
C158: Shipper 16 | D158: £
C159: Shipper 17 | D159: £
C160: Shipper 18 | D160: £
C161: Shipper 19 | D161: £
C162: Shipper 20 | D162: £
C164: TMPT INVOICE FOR MONTH BEFORE START OF GAS YEAR
C165: =C143 -> Shipper 1 | D165: =D143 -> £
C166: =C144 -> Shipper 2 | D166: £
C167: =C145 -> Shipper 3 | D167: £
C168: =C146 -> Shipper 4 | D168: £
C169: =C147 -> Shipper 5 | D169: £
C170: =C148 -> Shipper 6 | D170: £
C171: =C149 -> Shipper 7 | D171: £
C172: =C150 -> Shipper 8 | D172: £
C173: =C151 -> Shipper 9 | D173: £
C174: =C152 -> Shipper 10 | D174: £
C175: =C153 -> Shipper 11 | D175: £
C176: =C154 -> Shipper 12 | D176: £
C177: =C155 -> Shipper 13 | D177: £
C178: =C156 -> Shipper 14 | D178: £
C179: =C157 -> Shipper 15 | D179: £
C180: =C158 -> Shipper 16 | D180: £
C181: =C159 -> Shipper 17 | D181: £
C182: =C160 -> Shipper 18 | D182: £
C183: =C161 -> Shipper 19 | D183: £
C184: =C162 -> Shipper 20 | D184: £
C186: INTEREST ON LATE TPMT PAYMENTS
C187: =C165 -> Shipper 1 | D187: =D165 -> £
C188: =C166 -> Shipper 2 | D188: £
C189: Shipper 3 | D189: £
C190: Shipper 4 | D190: £
C191: Shipper 5 | D191: £
C192: Shipper 6 | D192: £
C193: Shipper 7 | D193: £
C194: Shipper 8 | D194: £
C195: Shipper 9 | D195: £
C196: Shipper 10 | D196: £
C197: Shipper 11 | D197: £
C198: Shipper 12 | D198: £
C199: Shipper 13 | D199: £
C200: Shipper 14 | D200: £
C201: Shipper 15 | D201: £
C202: Shipper 16 | D202: £
C203: Shipper 17 | D203: £
C204: Shipper 18 | D204: £
C205: Shipper 19 | D205: £
C206: Shipper 20 | D206: £
C208: INTEREST ON LATE DP PAYMENTS
I209: =I110 -> Oct-13 | J209: =J110 -> Nov-13 | K209: Dec-13 | L209: Jan-14 | M209: Feb-14 | N209: Mar-14 | O209: Apr-14 | P209: May-14 | Q209: Jun-14 | R209: Jul-14 | S209: Aug-14 | T209: Sep-14
C210: =C187 -> Shipper 1 | D210: =D187 -> £
C211: =C188 -> Shipper 2 | D211: £
C212: =C189 -> Shipper 3 | D212: £
C213: =C190 -> Shipper 4 | D213: £
C214: =C191 -> Shipper 5 | D214: £
C215: =C192 -> Shipper 6 | D215: £
C216: =C193 -> Shipper 7 | D216: £
C217: =C194 -> Shipper 8 | D217: £
C218: =C195 -> Shipper 9 | D218: £
C219: =C196 -> Shipper 10 | D219: £
C220: =C197 -> Shipper 11 | D220: £
C221: =C198 -> Shipper 12 | D221: £
C222: =C199 -> Shipper 13 | D222: £
C223: =C200 -> Shipper 14 | D223: £
C224: =C201 -> Shipper 15 | D224: £
C225: =C202 -> Shipper 16 | D225: £
C226: =C203 -> Shipper 17 | D226: £
C227: =C204 -> Shipper 18 | D227: £
C228: =C205 -> Shipper 19 | D228: £
C229: =C206 -> Shipper 20 | D229: £
... 53 more rows

Sheet INPUT|Vols
B1: =Title_Model -> Gas Transmission Tariff Model
B2: INPUT|Vols
B4: Heading | C4: Item | D4: Unit | E4: Comments
B6: ENTRY COMMODITY (forecast and actual) by shipper | G6: Annual | I6: ='INPUT|UR'!I40 -> Oct-13 | J6: ='INPUT|UR'!J40 -> Nov-13 | K6: ='INPUT|UR'!K40 -> Dec-13 | L6: ='INPUT|UR'!L40 -> Jan-14 | M6: ='INPUT|UR'!M40 -> Feb-14 | N6: ='INPUT|UR'!N40 -> Mar-14 | O6: ='INPUT|UR'!O40 -> Apr-14 | P6: ='INPUT|UR'!P40 -> May-14 | Q6: ='INPUT|UR'!Q40 -> Jun-14 | R6: ='INPUT|UR'!R40 -> Jul-14 | S6: ='INPUT|UR'!S40 -> Aug-14 | T6: ='INPUT|UR'!T40 -> Sep-14
G7: Forecast | I7: Actuals
C9: ='INPUT|UR'!C83 -> Shipper 1 | D9: kWh | G9: 0 | I9: =$G$13/12 -> 0 | J9: 0 | K9: 0 | L9: 0 | M9: 0 | N9: 0 | O9: 0 | P9: 0 | Q9: 0 | R9: 0 | S9: 0 | T9: 0
C10: ='INPUT|UR'!C84 -> Shipper 2 | D10: kWh | G10: 0 | I10: 0 | J10: 0 | K10: 0 | L10: 0 | M10: 0 | N10: 0 | O10: 0 | P10: 0 | Q10: 0 | R10: 0 | S10: 0 | T10: 0
C11: ='INPUT|UR'!C85 -> Shipper 3 | D11: kWh | G11: 0 | I11: 0 | J11: 0 | K11: 0 | L11: 0 | M11: 0 | N11: 0 | O11: 0 | P11: 0 | Q11: 0 | R11: 0 | S11: 0 | T11: 0
C12: ='INPUT|UR'!C86 -> Shipper 4 | D12: kWh | G12: 0 | I12: 0 | J12: 0 | K12: 0 | L12: 0 | M12: 0 | N12: 0 | O12: 0 | P12: 0 | Q12: 0 | R12: 0 | S12: 0 | T12: 0
C13: ='INPUT|UR'!C87 -> Shipper 5 | D13: kWh | G13: 0 | I13: =$G$13/12 -> 0 | J13: 0 | K13: 0 | L13: 0 | M13: 0 | N13: 0 | O13: 0 | P13: 0 | Q13: 0 | R13: 0 | S13: 0 | T13: 0
C14: ='INPUT|UR'!C88 -> Shipper 6 | D14: kWh | G14: 0 | I14: =$G$14/12 -> 0 | J14: 0 | K14: 0 | L14: 0 | M14: 0 | N14: 0 | O14: 0 | P14: 0 | Q14: 0 | R14: 0 | S14: 0 | T14: 0
C15: ='INPUT|UR'!C89 -> Shipper 7 | D15: kWh | G15: 0 | I15: =$G$15/12 -> 0 | J15: 0 | K15: 0 | L15: 0 | M15: 0 | N15: 0 | O15: 0 | P15: 0 | Q15: 0 | R15: 0 | S15: 0 | T15: 0
C16: ='INPUT|UR'!C90 -> Shipper 8 | D16: kWh | G16: 0 | I16: =$G$16/12 -> 0 | J16: 0 | K16: 0 | L16: 0 | M16: 0 | N16: 0 | O16: 0 | P16: 0 | Q16: 0 | R16: 0 | S16: 0 | T16: 0
C17: ='INPUT|UR'!C91 -> Shipper 9 | D17: kWh | G17: 0 | I17: =$G$17/12 -> 0 | J17: 0 | K17: 0 | L17: 0 | M17: 0 | N17: 0 | O17: 0 | P17: 0 | Q17: 0 | R17: 0 | S17: 0 | T17: 0
C18: ='INPUT|UR'!C92 -> Shipper 10 | D18: kWh
C19: ='INPUT|UR'!C93 -> Shipper 11 | D19: kWh
C20: ='INPUT|UR'!C94 -> Shipper 12 | D20: kWh
C21: ='INPUT|UR'!C95 -> Shipper 13 | D21: kWh
C22: ='INPUT|UR'!C96 -> Shipper 14 | D22: kWh
C23: ='INPUT|UR'!C97 -> Shipper 15 | D23: kWh
C24: ='INPUT|UR'!C98 -> Shipper 16 | D24: kWh
C25: ='INPUT|UR'!C99 -> Shipper 17 | D25: kWh
C26: ='INPUT|UR'!C100 -> Shipper 18 | D26: kWh
C27: ='INPUT|UR'!C101 -> Shipper 19 | D27: kWh
C28: ='INPUT|UR'!C102 -> Shipper 20 | D28: kWh
B30: MOFFAT ENTRY CAPACITY (forecast and actual) by product by shipper | I30: ='INPUT|UR'!I64 -> Q4-13 | J30: ='INPUT|UR'!J64 -> Q1-14 | K30: ='INPUT|UR'!K64 -> Q2-14 | L30: ='INPUT|UR'!L64 -> Q3-14 | N30: =I6 -> Oct-13 | O30: =J6 -> Nov-13 | P30: Dec-13 | Q30: Jan-14 | R30: Feb-14 | S30: Mar-14 | T30: Apr-14 | U30: May-14 | V30: Jun-14 | W30: Jul-14 | X30: Aug-14 | Y30: Sep-14
G31: Forecast | I31: Forecast | N31: Forecast | AA31: Actual
C32: ='INPUT|UR'!C83 -> Shipper 1 | AA32: Oct | AB32: Nov | AC32: Dec | AD32: Jan | AE32: Feb | AF32: Mar | AG32: Apr | AH32: May | AI32: Jun | AJ32: Jul | AK32: Aug | AL32: Sep
C33: Annual capacity | D33: peak kWh/day | G33: 25000000 | AA33: =G33/12 -> 2083333.333 | AB33: =AA33 -> 2083333.333 | AC33: =AB33 -> 2083333.333 | AD33: 2083333.333 | AE33: 2083333.333 | AF33: 2083333.333 | AG33: 2083333.333 | AH33: 2083333.333 | AI33: 2083333.333 | AJ33: 2083333.333 | AK33: 2083333.333 | AL33: 2083333.333
C34: Quarterly capacity | D34: peak kWh/day | I34: 4000000 | J34: 5000000 | K34: 2000000 | L34: 0 | AA34: =I34/3 -> 1333333.333 | AB34: =AA34 -> 1333333.333 | AC34: =AB34 -> 1333333.333 | AD34: =J34/3 -> 1666666.667 | AE34: =AD34 -> 1666666.667 | AF34: =AE34 -> 1666666.667 | AG34: =K34/3 -> 666666.6667 | AH34: =AG34 -> 666666.6667 | AI34: =AH34 -> 666666.6667 | AJ34: =AG34 -> 666666.6667 | AK34: =AJ34 -> 666666.6667 | AL34: =AK34 -> 666666.6667
C35: Monthly capacity | D35: peak kWh/day | N35: 0 | O35: 0 | P35: 0 | Q35: 0 | R35: 0 | S35: 0 | T35: 0 | U35: 0 | V35: 0 | W35: 0 | X35: 0 | Y35: 0 | AA35: =N35 -> 0 | AB35: 0 | AC35: 0 | AD35: 0 | AE35: 0 | AF35: 0 | AG35: 0 | AH35: 0 | AI35: 0 | AJ35: 0 | AK35: 0 | AL35: 0
C36: Daily capacity | D36: peak kWh/day | N36: 0 | O36: 0 | P36: 0 | Q36: 0 | R36: 0 | S36: 0 | T36: 0 | U36: 0 | V36: 0 | W36: 0 | X36: 0 | Y36: 0 | AA36: 0 | AB36: 0 | AC36: 0 | AD36: 0 | AE36: 0 | AF36: 0 | AG36: 0 | AH36: 0 | AI36: 0 | AJ36: 0 | AK36: 0 | AL36: 0
C37: Within-day capacity | D37: peak kWh/day | N37: 0 | O37: 0 | P37: 0 | Q37: 0 | R37: 0 | S37: 0 | T37: 0 | U37: 0 | V37: 0 | W37: 0 | X37: 0 | Y37: 0 | AA37: 0 | AB37: 0 | AC37: 0 | AD37: 0 | AE37: 0 | AF37: 0 | AG37: 0 | AH37: 0 | AI37: 0 | AJ37: 0 | AK37: 0 | AL37: 0
C38: Actual interruptible capacity | D38: peak kWh/day | N38: 0 | O38: 0 | P38: 0 | Q38: 0 | R38: 0 | S38: 0 | T38: 0 | U38: 0 | V38: 0 | W38: 0 | X38: 0 | Y38: 0 | AA38: 0 | AB38: 0 | AC38: 0 | AD38: 0 | AE38: 0 | AF38: 0 | AG38: 0 | AH38: 0 | AI38: 0 | AJ38: 0 | AK38: 0 | AL38: 0
C40: ='INPUT|UR'!C84 -> Shipper 2
C41: Annual capacity | D41: peak kWh/day | G41: 20000000 | AA41: =G41/12 -> 1666666.667 | AB41: =AA41 -> 1666666.667 | AC41: 1666666.667 | AD41: 1666666.667 | AE41: 1666666.667 | AF41: 1666666.667 | AG41: 1666666.667 | AH41: 1666666.667 | AI41: 1666666.667 | AJ41: 1666666.667 | AK41: 1666666.667 | AL41: 1666666.667
C42: Quarterly capacity | D42: peak kWh/day | I42: 5000000 | J42: 5000000 | K42: 5000000 | L42: 5000000 | AA42: =I42/3 -> 1666666.667 | AB42: =AA42 -> 1666666.667 | AC42: =AB42 -> 1666666.667 | AD42: =J42/3 -> 1666666.667 | AE42: =AD42 -> 1666666.667 | AF42: =AE42 -> 1666666.667 | AG42: =K42/3 -> 1666666.667 | AH42: =AG42 -> 1666666.667 | AI42: =AH42 -> 1666666.667 | AJ42: =L42/3 -> 1666666.667 | AK42: =AJ42 -> 1666666.667 | AL42: =AK42 -> 1666666.667
C43: Monthly capacity | D43: peak kWh/day | N43: 0 | O43: 0 | P43: 0 | Q43: 0 | R43: 0 | S43: 0 | T43: 0 | U43: 0 | V43: 0 | W43: 0 | X43: 0 | Y43: 0 | AA43: =N43 -> 0 | AB43: 0 | AC43: 0 | AD43: 0 | AE43: 0 | AF43: 0 | AG43: 0 | AH43: 0 | AI43: 0 | AJ43: 0 | AK43: 0 | AL43: 0
C44: Daily capacity | D44: peak kWh/day | N44: 0 | O44: 0 | P44: 0 | Q44: 0 | R44: 0 | S44: 0 | T44: 0 | U44: 0 | V44: 0 | W44: 0 | X44: 0 | Y44: 0 | AA44: 0 | AB44: 0 | AC44: 0 | AD44: 0 | AE44: 0 | AF44: 0 | AG44: 0 | AH44: 0 | AI44: 0 | AJ44: 0 | AK44: 0 | AL44: 0
C45: Within-day capacity | D45: peak kWh/day | N45: 0 | O45: 0 | P45: 0 | Q45: 0 | R45: 0 | S45: 0 | T45: 0 | U45: 0 | V45: 0 | W45: 0 | X45: 0 | Y45: 0 | AA45: 0 | AB45: 0 | AC45: 0 | AD45: 0 | AE45: 0 | AF45: 0 | AG45: 0 | AH45: 0 | AI45: 0 | AJ45: 0 | AK45: 0 | AL45: 0
C46: Actual interruptible capacity | D46: peak kWh/day | N46: 0 | O46: 0 | P46: 0 | Q46: 0 | R46: 0 | S46: 0 | T46: 0 | U46: 0 | V46: 0 | W46: 0 | X46: 0 | Y46: 0 | AA46: 0 | AB46: 0 | AC46: 0 | AD46: 0 | AE46: 0 | AF46: 0 | AG46: 0 | AH46: 0 | AI46: 0 | AJ46: 0 | AK46: 0 | AL46: 0
C48: ='INPUT|UR'!C85 -> Shipper 3
C49: Annual capacity | D49: peak kWh/day | G49: 0 | AA49: 0 | AB49: 0 | AC49: 0 | AD49: 0 | AE49: 0 | AF49: 0 | AG49: 0 | AH49: 0 | AI49: 0 | AJ49: 0 | AK49: 0 | AL49: 0
C50: Quarterly capacity | D50: peak kWh/day | I50: 0 | J50: 0 | K50: 0 | L50: 0 | AA50: 0 | AB50: 0 | AC50: 0 | AD50: 0 | AE50: 0 | AF50: 0 | AG50: 0 | AH50: 0 | AI50: 0 | AJ50: 0 | AK50: 0 | AL50: 0
C51: Monthly capacity | D51: peak kWh/day | N51: 0 | O51: 0 | P51: 0 | Q51: 0 | R51: 0 | S51: 0 | T51: 0 | U51: 0 | V51: 0 | W51: 0 | X51: 0 | Y51: 0 | AA51: 0 | AB51: 0 | AC51: 0 | AD51: 0 | AE51: 0 | AF51: 0 | AG51: 0 | AH51: 0 | AI51: 0 | AJ51: 0 | AK51: 0 | AL51: 0
C52: Daily capacity | D52: peak kWh/day | N52: 0 | O52: 0 | P52: 0 | Q52: 0 | R52: 0 | S52: 0 | T52: 0 | U52: 0 | V52: 0 | W52: 0 | X52: 0 | Y52: 0 | AA52: 0 | AB52: 0 | AC52: 0 | AD52: 0 | AE52: 0 | AF52: 0 | AG52: 0 | AH52: 0 | AI52: 0 | AJ52: 0 | AK52: 0 | AL52: 0
C53: Within-day capacity | D53: peak kWh/day | N53: 0 | O53: 0 | P53: 0 | Q53: 0 | R53: 0 | S53: 0 | T53: 0 | U53: 0 | V53: 0 | W53: 0 | X53: 0 | Y53: 0 | AA53: 0 | AB53: 0 | AC53: 0 | AD53: 0 | AE53: 0 | AF53: 0 | AG53: 0 | AH53: 0 | AI53: 0 | AJ53: 0 | AK53: 0 | AL53: 0
C54: Actual interruptible capacity | D54: peak kWh/day | N54: 0 | O54: 0 | P54: 0 | Q54: 0 | R54: 0 | S54: 0 | T54: 0 | U54: 0 | V54: 0 | W54: 0 | X54: 0 | Y54: 0 | AA54: 0 | AB54: 0 | AC54: 0 | AD54: 0 | AE54: 0 | AF54: 0 | AG54: 0 | AH54: 0 | AI54: 0 | AJ54: 0 | AK54: 0 | AL54: 0
C56: ='INPUT|UR'!C86 -> Shipper 4
C57: Annual capacity | D57: peak kWh/day | G57: 18766000 | AA57: =G57/12 -> 1563833.333 | AB57: =AA57 -> 1563833.333 | AC57: 1563833.333 | AD57: 1563833.333 | AE57: 1563833.333 | AF57: 1563833.333 | AG57: 1563833.333 | AH57: 1563833.333 | AI57: 1563833.333 | AJ57: 1563833.333 | AK57: 1563833.333 | AL57: 1563833.333
C58: Quarterly capacity | D58: peak kWh/day | I58: 0 | J58: 0 | K58: 0 | L58: 0 | AA58: 0 | AB58: 0 | AC58: 0 | AD58: 0 | AE58: 0 | AF58: 0 | AG58: 0 | AH58: 0 | AI58: 0 | AJ58: 0 | AK58: 0 | AL58: 0
C59: Monthly capacity | D59: peak kWh/day | N59: 0 | O59: 0 | P59: 0 | Q59: 0 | R59: 0 | S59: 0 | T59: 0 | U59: 0 | V59: 0 | W59: 0 | X59: 0 | Y59: 0 | AA59: 0 | AB59: 0 | AC59: 0 | AD59: 0 | AE59: 0 | AF59: 0 | AG59: 0 | AH59: 0 | AI59: 0 | AJ59: 0 | AK59: 0 | AL59: 0
C60: Daily capacity | D60: peak kWh/day | N60: 0 | O60: 0 | P60: 0 | Q60: 0 | R60: 0 | S60: 0 | T60: 0 | U60: 0 | V60: 0 | W60: 0 | X60: 0 | Y60: 0 | AA60: 0 | AB60: 0 | AC60: 0 | AD60: 0 | AE60: 0 | AF60: 0 | AG60: 0 | AH60: 0 | AI60: 0 | AJ60: 0 | AK60: 0 | AL60: 0
C61: Within-day capacity | D61: peak kWh/day | N61: 0 | O61: 0 | P61: 0 | Q61: 0 | R61: 0 | S61: 0 | T61: 0 | U61: 0 | V61: 0 | W61: 0 | X61: 0 | Y61: 0 | AA61: 0 | AB61: 0 | AC61: 0 | AD61: 0 | AE61: 0 | AF61: 0 | AG61: 0 | AH61: 0 | AI61: 0 | AJ61: 0 | AK61: 0 | AL61: 0
C62: Actual interruptible capacity | D62: peak kWh/day | N62: 0 | O62: 0 | P62: 0 | Q62: 0 | R62: 0 | S62: 0 | T62: 0 | U62: 0 | V62: 0 | W62: 0 | X62: 0 | Y62: 0 | AA62: 0 | AB62: 0 | AC62: 0 | AD62: 0 | AE62: 0 | AF62: 0 | AG62: 0 | AH62: 0 | AI62: 0 | AJ62: 0 | AK62: 0 | AL62: 0
C64: ='INPUT|UR'!C87 -> Shipper 5
C65: Annual capacity | D65: peak kWh/day | G65: 0 | AA65: ='CALC|Cap'!$G$63/12 -> 0 | AB65: ='CALC|Cap'!$G$63/12 -> 0 | AC65: ='CALC|Cap'!$G$63/12 -> 0 | AD65: ='CALC|Cap'!$G$63/12 -> 0 | AE65: ='CALC|Cap'!$G$63/12 -> 0 | AF65: ='CALC|Cap'!$G$63/12 -> 0 | AG65: ='CALC|Cap'!$G$63/12 -> 0 | AH65: ='CALC|Cap'!$G$63/12 -> 0 | AI65: ='CALC|Cap'!$G$63/12 -> 0 | AJ65: ='CALC|Cap'!$G$63/12 -> 0 | AK65: ='CALC|Cap'!$G$63/12 -> 0 | AL65: ='CALC|Cap'!$G$63/12 -> 0
C66: Quarterly capacity | D66: peak kWh/day | I66: 0 | J66: 0 | K66: 0 | L66: 0 | AA66: 0 | AB66: 0 | AC66: 0 | AD66: 0 | AE66: 0 | AF66: 0 | AG66: 0 | AH66: 0 | AI66: 0 | AJ66: 0 | AK66: 0 | AL66: 0
C67: Monthly capacity | D67: peak kWh/day | N67: 0 | O67: 0 | P67: 0 | Q67: 0 | R67: 0 | S67: 0 | T67: 0 | U67: 0 | V67: 0 | W67: 0 | X67: 0 | Y67: 0 | AA67: 0 | AB67: 0 | AC67: 0 | AD67: 0 | AE67: 0 | AF67: 0 | AG67: 0 | AH67: 0 | AI67: 0 | AJ67: 0 | AK67: 0 | AL67: 0
C68: Daily capacity | D68: peak kWh/day | N68: 0 | O68: 0 | P68: 0 | Q68: 0 | R68: 0 | S68: 0 | T68: 0 | U68: 0 | V68: 0 | W68: 0 | X68: 0 | Y68: 0 | AA68: 0 | AB68: 0 | AC68: 0 | AD68: 0 | AE68: 0 | AF68: 0 | AG68: 0 | AH68: 0 | AI68: 0 | AJ68: 0 | AK68: 0 | AL68: 0
C69: Within-day capacity | D69: peak kWh/day | N69: 0 | O69: 0 | P69: 0 | Q69: 0 | R69: 0 | S69: 0 | T69: 0 | U69: 0 | V69: 0 | W69: 0 | X69: 0 | Y69: 0 | AA69: 0 | AB69: 0 | AC69: 0 | AD69: 0 | AE69: 0 | AF69: 0 | AG69: 0 | AH69: 0 | AI69: 0 | AJ69: 0 | AK69: 0 | AL69: 0
C70: Actual interruptible capacity | D70: peak kWh/day | N70: 0 | O70: 0 | P70: 0 | Q70: 0 | R70: 0 | S70: 0 | T70: 0 | U70: 0 | V70: 0 | W70: 0 | X70: 0 | Y70: 0 | AA70: 0 | AB70: 0 | AC70: 0 | AD70: 0 | AE70: 0 | AF70: 0 | AG70: 0 | AH70: 0 | AI70: 0 | AJ70: 0 | AK70: 0 | AL70: 0
C72: ='INPUT|UR'!C88 -> Shipper 6
C73: Annual capacity | D73: peak kWh/day | G73: 0 | AA73: ='CALC|Cap'!$G$71/12 -> 0 | AB73: ='CALC|Cap'!$G$71/12 -> 0 | AC73: ='CALC|Cap'!$G$71/12 -> 0 | AD73: ='CALC|Cap'!$G$71/12 -> 0 | AE73: ='CALC|Cap'!$G$71/12 -> 0 | AF73: ='CALC|Cap'!$G$71/12 -> 0 | AG73: ='CALC|Cap'!$G$71/12 -> 0 | AH73: ='CALC|Cap'!$G$71/12 -> 0 | AI73: ='CALC|Cap'!$G$71/12 -> 0 | AJ73: ='CALC|Cap'!$G$71/12 -> 0 | AK73: ='CALC|Cap'!$G$71/12 -> 0 | AL73: ='CALC|Cap'!$G$71/12 -> 0
C74: Quarterly capacity | D74: peak kWh/day | I74: 0 | J74: 0 | K74: 0 | L74: 0 | AA74: 0 | AB74: 0 | AC74: 0 | AD74: 0 | AE74: 0 | AF74: 0 | AG74: 0 | AH74: 0 | AI74: 0 | AJ74: 0 | AK74: 0 | AL74: 0
C75: Monthly capacity | D75: peak kWh/day | N75: 0 | O75: 0 | P75: 0 | Q75: 0 | R75: 0 | S75: 0 | T75: 0 | U75: 0 | V75: 0 | W75: 0 | X75: 0 | Y75: 0 | AA75: 0 | AB75: 0 | AC75: 0 | AD75: 0 | AE75: 0 | AF75: 0 | AG75: 0 | AH75: 0 | AI75: 0 | AJ75: 0 | AK75: 0 | AL75: 0
C76: Daily capacity | D76: peak kWh/day | N76: 0 | O76: 0 | P76: 0 | Q76: 0 | R76: 0 | S76: 0 | T76: 0 | U76: 0 | V76: 0 | W76: 0 | X76: 0 | Y76: 0 | AA76: 0 | AB76: 0 | AC76: 0 | AD76: 0 | AE76: 0 | AF76: 0 | AG76: 0 | AH76: 0 | AI76: 0 | AJ76: 0 | AK76: 0 | AL76: 0
C77: Within-day capacity | D77: peak kWh/day | N77: 0 | O77: 0 | P77: 0 | Q77: 0 | R77: 0 | S77: 0 | T77: 0 | U77: 0 | V77: 0 | W77: 0 | X77: 0 | Y77: 0 | AA77: 0 | AB77: 0 | AC77: 0 | AD77: 0 | AE77: 0 | AF77: 0 | AG77: 0 | AH77: 0 | AI77: 0 | AJ77: 0 | AK77: 0 | AL77: 0
C78: Actual interruptible capacity | D78: peak kWh/day | N78: 0 | O78: 0 | P78: 0 | Q78: 0 | R78: 0 | S78: 0 | T78: 0 | U78: 0 | V78: 0 | W78: 0 | X78: 0 | Y78: 0 | AA78: 0 | AB78: 0 | AC78: 0 | AD78: 0 | AE78: 0 | AF78: 0 | AG78: 0 | AH78: 0 | AI78: 0 | AJ78: 0 | AK78: 0 | AL78: 0
C80: ='INPUT|UR'!C89 -> Shipper 7
C81: Annual capacity | D81: peak kWh/day | G81: 0 | AA81: ='CALC|Cap'!$G$79/12 -> 0 | AB81: ='CALC|Cap'!$G$79/12 -> 0 | AC81: ='CALC|Cap'!$G$79/12 -> 0 | AD81: ='CALC|Cap'!$G$79/12 -> 0 | AE81: ='CALC|Cap'!$G$79/12 -> 0 | AF81: ='CALC|Cap'!$G$79/12 -> 0 | AG81: ='CALC|Cap'!$G$79/12 -> 0 | AH81: ='CALC|Cap'!$G$79/12 -> 0 | AI81: ='CALC|Cap'!$G$79/12 -> 0 | AJ81: ='CALC|Cap'!$G$79/12 -> 0 | AK81: ='CALC|Cap'!$G$79/12 -> 0 | AL81: ='CALC|Cap'!$G$79/12 -> 0
C82: Quarterly capacity | D82: peak kWh/day | I82: 0 | J82: 0 | K82: 0 | L82: 0 | AA82: 0 | AB82: 0 | AC82: 0 | AD82: 0 | AE82: 0 | AF82: 0 | AG82: 0 | AH82: 0 | AI82: 0 | AJ82: 0 | AK82: 0 | AL82: 0
C83: Monthly capacity | D83: peak kWh/day | N83: 0 | O83: 0 | P83: 0 | Q83: 0 | R83: 0 | S83: 0 | T83: 0 | U83: 0 | V83: 0 | W83: 0 | X83: 0 | Y83: 0 | AA83: 0 | AB83: 0 | AC83: 0 | AD83: 0 | AE83: 0 | AF83: 0 | AG83: 0 | AH83: 0 | AI83: 0 | AJ83: 0 | AK83: 0 | AL83: 0
C84: Daily capacity | D84: peak kWh/day | N84: 0 | O84: 0 | P84: 0 | Q84: 0 | R84: 0 | S84: 0 | T84: 0 | U84: 0 | V84: 0 | W84: 0 | X84: 0 | Y84: 0 | AA84: 0 | AB84: 0 | AC84: 0 | AD84: 0 | AE84: 0 | AF84: 0 | AG84: 0 | AH84: 0 | AI84: 0 | AJ84: 0 | AK84: 0 | AL84: 0
C85: Within-day capacity | D85: peak kWh/day | N85: 0 | O85: 0 | P85: 0 | Q85: 0 | R85: 0 | S85: 0 | T85: 0 | U85: 0 | V85: 0 | W85: 0 | X85: 0 | Y85: 0 | AA85: 0 | AB85: 0 | AC85: 0 | AD85: 0 | AE85: 0 | AF85: 0 | AG85: 0 | AH85: 0 | AI85: 0 | AJ85: 0 | AK85: 0 | AL85: 0
C86: Actual interruptible capacity | D86: peak kWh/day | N86: 0 | O86: 0 | P86: 0 | Q86: 0 | R86: 0 | S86: 0 | T86: 0 | U86: 0 | V86: 0 | W86: 0 | X86: 0 | Y86: 0 | AA86: 0 | AB86: 0 | AC86: 0 | AD86: 0 | AE86: 0 | AF86: 0 | AG86: 0 | AH86: 0 | AI86: 0 | AJ86: 0 | AK86: 0 | AL86: 0
C88: ='INPUT|UR'!C90 -> Shipper 8
C89: Annual capacity | D89: peak kWh/day | G89: 0 | AA89: 0 | AB89: 0 | AC89: 0 | AD89: 0 | AE89: 0 | AF89: 0 | AG89: 0 | AH89: 0 | AI89: 0 | AJ89: 0 | AK89: 0 | AL89: 0
C90: Quarterly capacity | D90: peak kWh/day | I90: 0 | J90: 0 | K90: 0 | L90: 0 | AA90: 0 | AB90: 0 | AC90: 0 | AD90: 0 | AE90: 0 | AF90: 0 | AG90: 0 | AH90: 0 | AI90: 0 | AJ90: 0 | AK90: 0 | AL90: 0
C91: Monthly capacity | D91: peak kWh/day | N91: 0 | O91: 0 | P91: 0 | Q91: 0 | R91: 0 | S91: 0 | T91: 0 | U91: 0 | V91: 0 | W91: 0 | X91: 0 | Y91: 0 | AA91: 0 | AB91: 0 | AC91: 0 | AD91: 0 | AE91: 0 | AF91: 0 | AG91: 0 | AH91: 0 | AI91: 0 | AJ91: 0 | AK91: 0 | AL91: 0
C92: Daily capacity | D92: peak kWh/day | N92: 0 | O92: 0 | P92: 0 | Q92: 0 | R92: 0 | S92: 0 | T92: 0 | U92: 0 | V92: 0 | W92: 0 | X92: 0 | Y92: 0 | AA92: 0 | AB92: 0 | AC92: 0 | AD92: 0 | AE92: 0 | AF92: 0 | AG92: 0 | AH92: 0 | AI92: 0 | AJ92: 0 | AK92: 0 | AL92: 0
C93: Within-day capacity | D93: peak kWh/day | N93: 0 | O93: 0 | P93: 0 | Q93: 0 | R93: 0 | S93: 0 | T93: 0 | U93: 0 | V93: 0 | W93: 0 | X93: 0 | Y93: 0 | AA93: 0 | AB93: 0 | AC93: 0 | AD93: 0 | AE93: 0 | AF93: 0 | AG93: 0 | AH93: 0 | AI93: 0 | AJ93: 0 | AK93: 0 | AL93: 0
C94: Actual interruptible capacity | D94: peak kWh/day | N94: 0 | O94: 0 | P94: 0 | Q94: 0 | R94: 0 | S94: 0 | T94: 0 | U94: 0 | V94: 0 | W94: 0 | X94: 0 | Y94: 0 | AA94: 0 | AB94: 0 | AC94: 0 | AD94: 0 | AE94: 0 | AF94: 0 | AG94: 0 | AH94: 0 | AI94: 0 | AJ94: 0 | AK94: 0 | AL94: 0
C96: ='INPUT|UR'!C91 -> Shipper 9
C97: Annual capacity | D97: peak kWh/day | G97: 0 | AA97: 0 | AB97: 0 | AC97: 0 | AD97: 0 | AE97: 0 | AF97: 0 | AG97: 0 | AH97: 0 | AI97: 0 | AJ97: 0 | AK97: 0 | AL97: 0
C98: Quarterly capacity | D98: peak kWh/day | I98: 0 | J98: 0 | K98: 0 | L98: 0 | AA98: 0 | AB98: 0 | AC98: 0 | AD98: 0 | AE98: 0 | AF98: 0 | AG98: 0 | AH98: 0 | AI98: 0 | AJ98: 0 | AK98: 0 | AL98: 0
C99: Monthly capacity | D99: peak kWh/day | N99: 0 | O99: 0 | P99: 0 | Q99: 0 | R99: 0 | S99: 0 | T99: 0 | U99: 0 | V99: 0 | W99: 0 | X99: 0 | Y99: 0 | AA99: 0 | AB99: 0 | AC99: 0 | AD99: 0 | AE99: 0 | AF99: 0 | AG99: 0 | AH99: 0 | AI99: 0 | AJ99: 0 | AK99: 0 | AL99: 0
C100: Daily capacity | D100: peak kWh/day | N100: 0 | O100: 0 | P100: 0 | Q100: 0 | R100: 0 | S100: 0 | T100: 0 | U100: 0 | V100: 0 | W100: 0 | X100: 0 | Y100: 0 | AA100: 0 | AB100: 0 | AC100: 0 | AD100: 0 | AE100: 0 | AF100: 0 | AG100: 0 | AH100: 0 | AI100: 0 | AJ100: 0 | AK100: 0 | AL100: 0
C101: Within-day capacity | D101: peak kWh/day | N101: 0 | O101: 0 | P101: 0 | Q101: 0 | R101: 0 | S101: 0 | T101: 0 | U101: 0 | V101: 0 | W101: 0 | X101: 0 | Y101: 0 | AA101: 0 | AB101: 0 | AC101: 0 | AD101: 0 | AE101: 0 | AF101: 0 | AG101: 0 | AH101: 0 | AI101: 0 | AJ101: 0 | AK101: 0 | AL101: 0
C102: Actual interruptible capacity | D102: peak kWh/day | N102: 0 | O102: 0 | P102: 0 | Q102: 0 | R102: 0 | S102: 0 | T102: 0 | U102: 0 | V102: 0 | W102: 0 | X102: 0 | Y102: 0 | AA102: 0 | AB102: 0 | AC102: 0 | AD102: 0 | AE102: 0 | AF102: 0 | AG102: 0 | AH102: 0 | AI102: 0 | AJ102: 0 | AK102: 0 | AL102: 0
C104: ='INPUT|UR'!C92 -> Shipper 10
C105: Annual capacity | D105: peak kWh/day | G105: 0 | AA105: 0 | AB105: 0 | AC105: 0 | AD105: 0 | AE105: 0 | AF105: 0 | AG105: 0 | AH105: 0 | AI105: 0 | AJ105: 0 | AK105: 0 | AL105: 0
C106: Quarterly capacity | D106: peak kWh/day | I106: 0 | J106: 0 | K106: 0 | L106: 0 | AA106: 0 | AB106: 0 | AC106: 0 | AD106: 0 | AE106: 0 | AF106: 0 | AG106: 0 | AH106: 0 | AI106: 0 | AJ106: 0 | AK106: 0 | AL106: 0
C107: Monthly capacity | D107: peak kWh/day | N107: 0 | O107: 0 | P107: 0 | Q107: 0 | R107: 0 | S107: 0 | T107: 0 | U107: 0 | V107: 0 | W107: 0 | X107: 0 | Y107: 0 | AA107: 0 | AB107: 0 | AC107: 0 | AD107: 0 | AE107: 0 | AF107: 0 | AG107: 0 | AH107: 0 | AI107: 0 | AJ107: 0 | AK107: 0 | AL107: 0
C108: Daily capacity | D108: peak kWh/day | N108: 0 | O108: 0 | P108: 0 | Q108: 0 | R108: 0 | S108: 0 | T108: 0 | U108: 0 | V108: 0 | W108: 0 | X108: 0 | Y108: 0 | AA108: 0 | AB108: 0 | AC108: 0 | AD108: 0 | AE108: 0 | AF108: 0 | AG108: 0 | AH108: 0 | AI108: 0 | AJ108: 0 | AK108: 0 | AL108: 0
C109: Within-day capacity | D109: peak kWh/day | N109: 0 | O109: 0 | P109: 0 | Q109: 0 | R109: 0 | S109: 0 | T109: 0 | U109: 0 | V109: 0 | W109: 0 | X109: 0 | Y109: 0 | AA109: 0 | AB109: 0 | AC109: 0 | AD109: 0 | AE109: 0 | AF109: 0 | AG109: 0 | AH109: 0 | AI109: 0 | AJ109: 0 | AK109: 0 | AL109: 0
C110: Actual interruptible capacity | D110: peak kWh/day | N110: 0 | O110: 0 | P110: 0 | Q110: 0 | R110: 0 | S110: 0 | T110: 0 | U110: 0 | V110: 0 | W110: 0 | X110: 0 | Y110: 0 | AA110: 0 | AB110: 0 | AC110: 0 | AD110: 0 | AE110: 0 | AF110: 0 | AG110: 0 | AH110: 0 | AI110: 0 | AJ110: 0 | AK110: 0 | AL110: 0
C112: ='INPUT|UR'!C93 -> Shipper 11
C113: Annual capacity | D113: peak kWh/day | G113: 0 | AA113: 0 | AB113: 0 | AC113: 0 | AD113: 0 | AE113: 0 | AF113: 0 | AG113: 0 | AH113: 0 | AI113: 0 | AJ113: 0 | AK113: 0 | AL113: 0
C114: Quarterly capacity | D114: peak kWh/day | I114: 0 | J114: 0 | K114: 0 | L114: 0 | AA114: 0 | AB114: 0 | AC114: 0 | AD114: 0 | AE114: 0 | AF114: 0 | AG114: 0 | AH114: 0 | AI114: 0 | AJ114: 0 | AK114: 0 | AL114: 0
C115: Monthly capacity | D115: peak kWh/day | N115: 0 | O115: 0 | P115: 0 | Q115: 0 | R115: 0 | S115: 0 | T115: 0 | U115: 0 | V115: 0 | W115: 0 | X115: 0 | Y115: 0 | AA115: 0 | AB115: 0 | AC115: 0 | AD115: 0 | AE115: 0 | AF115: 0 | AG115: 0 | AH115: 0 | AI115: 0 | AJ115: 0 | AK115: 0 | AL115: 0
C116: Daily capacity | D116: peak kWh/day | N116: 0 | O116: 0 | P116: 0 | Q116: 0 | R116: 0 | S116: 0 | T116: 0 | U116: 0 | V116: 0 | W116: 0 | X116: 0 | Y116: 0 | AA116: 0 | AB116: 0 | AC116: 0 | AD116: 0 | AE116: 0 | AF116: 0 | AG116: 0 | AH116: 0 | AI116: 0 | AJ116: 0 | AK116: 0 | AL116: 0
C117: Within-day capacity | D117: peak kWh/day | N117: 0 | O117: 0 | P117: 0 | Q117: 0 | R117: 0 | S117: 0 | T117: 0 | U117: 0 | V117: 0 | W117: 0 | X117: 0 | Y117: 0 | AA117: 0 | AB117: 0 | AC117: 0 | AD117: 0 | AE117: 0 | AF117: 0 | AG117: 0 | AH117: 0 | AI117: 0 | AJ117: 0 | AK117: 0 | AL117: 0
C118: Actual interruptible capacity | D118: peak kWh/day | N118: 0 | O118: 0 | P118: 0 | Q118: 0 | R118: 0 | S118: 0 | T118: 0 | U118: 0 | V118: 0 | W118: 0 | X118: 0 | Y118: 0 | AA118: 0 | AB118: 0 | AC118: 0 | AD118: 0 | AE118: 0 | AF118: 0 | AG118: 0 | AH118: 0 | AI118: 0 | AJ118: 0 | AK118: 0 | AL118: 0
C120: ='INPUT|UR'!C94 -> Shipper 12
C121: Annual capacity | D121: peak kWh/day | G121: 0 | AA121: 0 | AB121: 0 | AC121: 0 | AD121: 0 | AE121: 0 | AF121: 0 | AG121: 0 | AH121: 0 | AI121: 0 | AJ121: 0 | AK121: 0 | AL121: 0
C122: Quarterly capacity | D122: peak kWh/day | I122: 0 | J122: 0 | K122: 0 | L122: 0 | AA122: 0 | AB122: 0 | AC122: 0 | AD122: 0 | AE122: 0 | AF122: 0 | AG122: 0 | AH122: 0 | AI122: 0 | AJ122: 0 | AK122: 0 | AL122: 0
C123: Monthly capacity | D123: peak kWh/day | N123: 0 | O123: 0 | P123: 0 | Q123: 0 | R123: 0 | S123: 0 | T123: 0 | U123: 0 | V123: 0 | W123: 0 | X123: 0 | Y123: 0 | AA123: 0 | AB123: 0 | AC123: 0 | AD123: 0 | AE123: 0 | AF123: 0 | AG123: 0 | AH123: 0 | AI123: 0 | AJ123: 0 | AK123: 0 | AL123: 0
C124: Daily capacity | D124: peak kWh/day | N124: 0 | O124: 0 | P124: 0 | Q124: 0 | R124: 0 | S124: 0 | T124: 0 | U124: 0 | V124: 0 | W124: 0 | X124: 0 | Y124: 0 | AA124: 0 | AB124: 0 | AC124: 0 | AD124: 0 | AE124: 0 | AF124: 0 | AG124: 0 | AH124: 0 | AI124: 0 | AJ124: 0 | AK124: 0 | AL124: 0
C125: Within-day capacity | D125: peak kWh/day | N125: 0 | O125: 0 | P125: 0 | Q125: 0 | R125: 0 | S125: 0 | T125: 0 | U125: 0 | V125: 0 | W125: 0 | X125: 0 | Y125: 0 | AA125: 0 | AB125: 0 | AC125: 0 | AD125: 0 | AE125: 0 | AF125: 0 | AG125: 0 | AH125: 0 | AI125: 0 | AJ125: 0 | AK125: 0 | AL125: 0
C126: Actual interruptible capacity | D126: peak kWh/day | N126: 0 | O126: 0 | P126: 0 | Q126: 0 | R126: 0 | S126: 0 | T126: 0 | U126: 0 | V126: 0 | W126: 0 | X126: 0 | Y126: 0 | AA126: 0 | AB126: 0 | AC126: 0 | AD126: 0 | AE126: 0 | AF126: 0 | AG126: 0 | AH126: 0 | AI126: 0 | AJ126: 0 | AK126: 0 | AL126: 0
C128: ='INPUT|UR'!C95 -> Shipper 13
C129: Annual capacity | D129: peak kWh/day | G129: 0 | AA129: 0 | AB129: 0 | AC129: 0 | AD129: 0 | AE129: 0 | AF129: 0 | AG129: 0 | AH129: 0 | AI129: 0 | AJ129: 0 | AK129: 0 | AL129: 0
C130: Quarterly capacity | D130: peak kWh/day | I130: 0 | J130: 0 | K130: 0 | L130: 0 | AA130: 0 | AB130: 0 | AC130: 0 | AD130: 0 | AE130: 0 | AF130: 0 | AG130: 0 | AH130: 0 | AI130: 0 | AJ130: 0 | AK130: 0 | AL130: 0
C131: Monthly capacity | D131: peak kWh/day | N131: 0 | O131: 0 | P131: 0 | Q131: 0 | R131: 0 | S131: 0 | T131: 0 | U131: 0 | V131: 0 | W131: 0 | X131: 0 | Y131: 0 | AA131: 0 | AB131: 0 | AC131: 0 | AD131: 0 | AE131: 0 | AF131: 0 | AG131: 0 | AH131: 0 | AI131: 0 | AJ131: 0 | AK131: 0 | AL131: 0
C132: Daily capacity | D132: peak kWh/day | N132: 0 | O132: 0 | P132: 0 | Q132: 0 | R132: 0 | S132: 0 | T132: 0 | U132: 0 | V132: 0 | W132: 0 | X132: 0 | Y132: 0 | AA132: 0 | AB132: 0 | AC132: 0 | AD132: 0 | AE132: 0 | AF132: 0 | AG132: 0 | AH132: 0 | AI132: 0 | AJ132: 0 | AK132: 0 | AL132: 0
C133: Within-day capacity | D133: peak kWh/day | N133: 0 | O133: 0 | P133: 0 | Q133: 0 | R133: 0 | S133: 0 | T133: 0 | U133: 0 | V133: 0 | W133: 0 | X133: 0 | Y133: 0 | AA133: 0 | AB133: 0 | AC133: 0 | AD133: 0 | AE133: 0 | AF133: 0 | AG133: 0 | AH133: 0 | AI133: 0 | AJ133: 0 | AK133: 0 | AL133: 0
C134: Actual interruptible capacity | D134: peak kWh/day | N134: 0 | O134: 0 | P134: 0 | Q134: 0 | R134: 0 | S134: 0 | T134: 0 | U134: 0 | V134: 0 | W134: 0 | X134: 0 | Y134: 0 | AA134: 0 | AB134: 0 | AC134: 0 | AD134: 0 | AE134: 0 | AF134: 0 | AG134: 0 | AH134: 0 | AI134: 0 | AJ134: 0 | AK134: 0 | AL134: 0
C136: ='INPUT|UR'!C96 -> Shipper 14
C137: Annual capacity | D137: peak kWh/day | AA137: 0 | AB137: 0 | AC137: 0 | AD137: 0 | AE137: 0 | AF137: 0 | AG137: 0 | AH137: 0 | AI137: 0 | AJ137: 0 | AK137: 0 | AL137: 0
C138: Quarterly capacity | D138: peak kWh/day | AA138: 0 | AB138: 0 | AC138: 0 | AD138: 0 | AE138: 0 | AF138: 0 | AG138: 0 | AH138: 0 | AI138: 0 | AJ138: 0 | AK138: 0 | AL138: 0
C139: Monthly capacity | D139: peak kWh/day | AA139: 0 | AB139: 0 | AC139: 0 | AD139: 0 | AE139: 0 | AF139: 0 | AG139: 0 | AH139: 0 | AI139: 0 | AJ139: 0 | AK139: 0 | AL139: 0
C140: Daily capacity | D140: peak kWh/day | AA140: 0 | AB140: 0 | AC140: 0 | AD140: 0 | AE140: 0 | AF140: 0 | AG140: 0 | AH140: 0 | AI140: 0 | AJ140: 0 | AK140: 0 | AL140: 0
C141: Within-day capacity | D141: peak kWh/day | AA141: 0 | AB141: 0 | AC141: 0 | AD141: 0 | AE141: 0 | AF141: 0 | AG141: 0 | AH141: 0 | AI141: 0 | AJ141: 0 | AK141: 0 | AL141: 0
C142: Actual interruptible capacity | D142: peak kWh/day | AA142: 0 | AB142: 0 | AC142: 0 | AD142: 0 | AE142: 0 | AF142: 0 | AG142: 0 | AH142: 0 | AI142: 0 | AJ142: 0 | AK142: 0 | AL142: 0
C144: ='INPUT|UR'!C97 -> Shipper 15
C145: Annual capacity | D145: peak kWh/day
C146: Quarterly capacity | D146: peak kWh/day
C147: Monthly capacity | D147: peak kWh/day
C148: Daily capacity | D148: peak kWh/day
C149: Within-day capacity | D149: peak kWh/day
C150: Actual interruptible capacity | D150: peak kWh/day
C152: ='INPUT|UR'!C98 -> Shipper 16
C153: Annual capacity | D153: peak kWh/day
C154: Quarterly capacity | D154: peak kWh/day
C155: Monthly capacity | D155: peak kWh/day
C156: Daily capacity | D156: peak kWh/day
C157: Within-day capacity | D157: peak kWh/day
C158: Actual interruptible capacity | D158: peak kWh/day
C160: ='INPUT|UR'!C99 -> Shipper 17
C161: Annual capacity | D161: peak kWh/day
C162: Quarterly capacity | D162: peak kWh/day
C163: Monthly capacity | D163: peak kWh/day
C164: Daily capacity | D164: peak kWh/day
C165: Within-day capacity | D165: peak kWh/day
C166: Actual interruptible capacity | D166: peak kWh/day
C168: ='INPUT|UR'!C100 -> Shipper 18
C169: Annual capacity | D169: peak kWh/day
C170: Quarterly capacity | D170: peak kWh/day
C171: Monthly capacity | D171: peak kWh/day
C172: Daily capacity | D172: peak kWh/day
C173: Within-day capacity | D173: peak kWh/day
C174: Actual interruptible capacity | D174: peak kWh/day
C176: ='INPUT|UR'!C101 -> Shipper 19
C177: Annual capacity | D177: peak kWh/day
C178: Quarterly capacity | D178: peak kWh/day
C179: Monthly capacity | D179: peak kWh/day
C180: Daily capacity | D180: peak kWh/day
C181: Within-day capacity | D181: peak kWh/day
C182: Actual interruptible capacity | D182: peak kWh/day
C184: ='INPUT|UR'!C102 -> Shipper 20
C185: Annual capacity | D185: peak kWh/day
C186: Quarterly capacity | D186: peak kWh/day
C187: Monthly capacity | D187: peak kWh/day
C188: Daily capacity | D188: peak kWh/day
C189: Within-day capacity | D189: peak kWh/day
C190: Actual interruptible capacity | D190: peak kWh/day
B192: GORMANSTON ENTRY CAPACITY (forecast and actual) by product by shipper | I192: ='INPUT|UR'!I64 -> Q4-13 | J192: ='INPUT|UR'!J64 -> Q1-14 | K192: ='INPUT|UR'!K64 -> Q2-14 | L192: ='INPUT|UR'!L64 -> Q3-14 | N192: =I6 -> Oct-13 | O192: =J6 -> Nov-13 | P192: Dec-13 | Q192: Jan-14 | R192: Feb-14 | S192: Mar-14 | T192: Apr-14 | U192: May-14 | V192: Jun-14 | W192: Jul-14 | X192: Aug-14 | Y192: Sep-14
G193: Forecast | I193: Forecast | N193: Forecast | AA193: Actual
C194: =C32 -> Shipper 1 | AA194: Oct | AB194: Nov | AC194: Dec | AD194: Jan | AE194: Feb | AF194: Mar | AG194: Apr | AH194: May | AI194: Jun | AJ194: Jul | AK194: Aug | AL194: Sep
C195: Annual capacity | D195: peak kWh/day | G195: 0 | AA195: =G195/12 -> 0 | AB195: =AA195 -> 0 | AC195: 0 | AD195: 0 | AE195: 0 | AF195: 0 | AG195: 0 | AH195: 0 | AI195: 0 | AJ195: 0 | AK195: 0 | AL195: 0
C196: Quarterly capacity | D196: peak kWh/day | I196: 0 | J196: 0 | K196: 0 | L196: 0 | AA196: =I196/3 -> 0 | AB196: =AA196 -> 0 | AC196: =AB196 -> 0 | AD196: =J196/3 -> 0 | AE196: =AD196 -> 0 | AF196: =AE196 -> 0 | AG196: =K196/3 -> 0 | AH196: =AG196 -> 0 | AI196: =AH196 -> 0 | AJ196: =L196/3 -> 0 | AK196: =AJ196 -> 0 | AL196: =AK196 -> 0
C197: Monthly capacity | D197: peak kWh/day | N197: 0 | O197: 0 | P197: 0 | Q197: 0 | R197: 0 | S197: 0 | T197: 0 | U197: 0 | V197: 0 | W197: 0 | X197: 0 | Y197: 0 | AA197: =N197 -> 0 | AB197: 0 | AC197: 0 | AD197: 0 | AE197: 0 | AF197: 0 | AG197: 0 | AH197: 0 | AI197: 0 | AJ197: 0 | AK197: 0 | AL197: 0
C198: Daily capacity | D198: peak kWh/day | N198: 0 | O198: 0 | P198: 0 | Q198: 0 | R198: 0 | S198: 0 | T198: 0 | U198: 0 | V198: 0 | W198: 0 | X198: 0 | Y198: 0 | AA198: 0 | AB198: 0 | AC198: 0 | AD198: 0 | AE198: 0 | AF198: 0 | AG198: 0 | AH198: 0 | AI198: 0 | AJ198: 0 | AK198: 0 | AL198: 0
C199: Within-day capacity | D199: peak kWh/day | N199: 0 | O199: 0 | P199: 0 | Q199: 0 | R199: 0 | S199: 0 | T199: 0 | U199: 0 | V199: 0 | W199: 0 | X199: 0 | Y199: 0 | AA199: 0 | AB199: 0 | AC199: 0 | AD199: 0 | AE199: 0 | AF199: 0 | AG199: 0 | AH199: 0 | AI199: 0 | AJ199: 0 | AK199: 0 | AL199: 0
C200: Actual interruptible capacity | D200: peak kWh/day | N200: 0 | O200: 0 | P200: 0 | Q200: 0 | R200: 0 | S200: 0 | T200: 0 | U200: 0 | V200: 0 | W200: 0 | X200: 0 | Y200: 0 | AA200: 0 | AB200: 0 | AC200: 0 | AD200: 0 | AE200: 0 | AF200: 0 | AG200: 0 | AH200: 0 | AI200: 0 | AJ200: 0 | AK200: 0 | AL200: 0
C202: =C40 -> Shipper 2
C203: Annual capacity | D203: peak kWh/day | G203: 0 | AA203: 0 | AB203: =AA203 -> 0 | AC203: 0 | AD203: 0 | AE203: 0 | AF203: 0 | AG203: 0 | AH203: 0 | AI203: 0 | AJ203: 0 | AK203: 0 | AL203: 0
C204: Quarterly capacity | D204: peak kWh/day | I204: 0 | J204: 0 | K204: 0 | L204: 0 | AA204: 0 | AB204: =AA204 -> 0 | AC204: =AB204 -> 0 | AD204: 0 | AE204: =AD204 -> 0 | AF204: =AE204 -> 0 | AG204: 0 | AH204: =AG204 -> 0 | AI204: =AH204 -> 0 | AJ204: 0 | AK204: =AJ204 -> 0 | AL204: =AK204 -> 0
C205: Monthly capacity | D205: peak kWh/day | N205: 0 | O205: 0 | P205: 0 | Q205: 0 | R205: 0 | S205: 0 | T205: 0 | U205: 0 | V205: 0 | W205: 0 | X205: 0 | Y205: 0 | AA205: 0 | AB205: 0 | AC205: =P205 -> 0 | AD205: 0 | AE205: 0 | AF205: 0 | AG205: 0 | AH205: 0 | AI205: 0 | AJ205: 0 | AK205: 0 | AL205: 0
C206: Daily capacity | D206: peak kWh/day | N206: 0 | O206: 0 | P206: 0 | Q206: 0 | R206: 0 | S206: 0 | T206: 0 | U206: 0 | V206: 0 | W206: 0 | X206: 0 | Y206: 0 | AA206: 0 | AB206: 0 | AC206: 0 | AD206: 0 | AE206: 0 | AF206: 0 | AG206: 0 | AH206: 0 | AI206: 0 | AJ206: 0 | AK206: 0 | AL206: 0
C207: Within-day capacity | D207: peak kWh/day | N207: 0 | O207: 0 | P207: 0 | Q207: 0 | R207: 0 | S207: 0 | T207: 0 | U207: 0 | V207: 0 | W207: 0 | X207: 0 | Y207: 0 | AA207: 0 | AB207: 0 | AC207: 0 | AD207: 0 | AE207: 0 | AF207: 0 | AG207: 0 | AH207: 0 | AI207: 0 | AJ207: 0 | AK207: 0 | AL207: 0
C208: Actual interruptible capacity | D208: peak kWh/day | N208: 0 | O208: 0 | P208: 0 | Q208: 0 | R208: 0 | S208: 0 | T208: 0 | U208: 0 | V208: 0 | W208: 0 | X208: 0 | Y208: 0 | AA208: 0 | AB208: 0 | AC208: 0 | AD208: 0 | AE208: 0 | AF208: 0 | AG208: 0 | AH208: 0 | AI208: 0 | AJ208: 0 | AK208: 0 | AL208: 0
C210: =C48 -> Shipper 3
C211: Annual capacity | D211: peak kWh/day | G211: 0 | AA211: 0 | AB211: 0 | AC211: 0 | AD211: 0 | AE211: 0 | AF211: 0 | AG211: 0 | AH211: 0 | AI211: 0 | AJ211: 0 | AK211: 0 | AL211: 0
C212: Quarterly capacity | D212: peak kWh/day | I212: 0 | J212: 0 | K212: 0 | L212: 0 | AA212: 0 | AB212: 0 | AC212: 0 | AD212: 0 | AE212: 0 | AF212: 0 | AG212: 0 | AH212: 0 | AI212: 0 | AJ212: 0 | AK212: 0 | AL212: 0
C213: Monthly capacity | D213: peak kWh/day | N213: 0 | O213: 0 | P213: 0 | Q213: 0 | R213: 0 | S213: 0 | T213: 0 | U213: 0 | V213: 0 | W213: 0 | X213: 0 | Y213: 0 | AA213: 0 | AB213: 0 | AC213: 0 | AD213: 0 | AE213: 0 | AF213: 0 | AG213: 0 | AH213: 0 | AI213: 0 | AJ213: 0 | AK213: 0 | AL213: 0
C214: Daily capacity | D214: peak kWh/day | N214: 0 | O214: 0 | P214: 0 | Q214: 0 | R214: 0 | S214: 0 | T214: 0 | U214: 0 | V214: 0 | W214: 0 | X214: 0 | Y214: 0 | AA214: 0 | AB214: 0 | AC214: 0 | AD214: 0 | AE214: 0 | AF214: 0 | AG214: 0 | AH214: 0 | AI214: 0 | AJ214: 0 | AK214: 0 | AL214: 0
C215: Within-day capacity | D215: peak kWh/day | N215: 0 | O215: 0 | P215: 0 | Q215: 0 | R215: 0 | S215: 0 | T215: 0 | U215: 0 | V215: 0 | W215: 0 | X215: 0 | Y215: 0 | AA215: 0 | AB215: 0 | AC215: 0 | AD215: 0 | AE215: 0 | AF215: 0 | AG215: 0 | AH215: 0 | AI215: 0 | AJ215: 0 | AK215: 0 | AL215: 0
C216: Actual interruptible capacity | D216: peak kWh/day | N216: 0 | O216: 0 | P216: 0 | Q216: 0 | R216: 0 | S216: 0 | T216: 0 | U216: 0 | V216: 0 | W216: 0 | X216: 0 | Y216: 0 | AA216: 0 | AB216: 0 | AC216: 0 | AD216: 0 | AE216: 0 | AF216: 0 | AG216: 0 | AH216: 0 | AI216: 0 | AJ216: 0 | AK216: 0 | AL216: 0
C218: =C56 -> Shipper 4
C219: Annual capacity | D219: peak kWh/day | G219: 0 | AA219: =G219/12 -> 0 | AB219: =AA219 -> 0 | AC219: 0 | AD219: 0 | AE219: 0 | AF219: 0 | AG219: 0 | AH219: 0 | AI219: 0 | AJ219: 0 | AK219: 0 | AL219: 0
C220: Quarterly capacity | D220: peak kWh/day | I220: 0 | J220: 0 | K220: 0 | L220: 0 | AA220: 0 | AB220: 0 | AC220: 0 | AD220: 0 | AE220: 0 | AF220: 0 | AG220: 0 | AH220: 0 | AI220: 0 | AJ220: 0 | AK220: 0 | AL220: 0
C221: Monthly capacity | D221: peak kWh/day | N221: 0 | O221: 0 | P221: 0 | Q221: 0 | R221: 0 | S221: 0 | T221: 0 | U221: 0 | V221: 0 | W221: 0 | X221: 0 | Y221: 0 | AA221: 0 | AB221: 0 | AC221: 0 | AD221: 0 | AE221: 0 | AF221: 0 | AG221: 0 | AH221: 0 | AI221: 0 | AJ221: 0 | AK221: 0 | AL221: 0
C222: Daily capacity | D222: peak kWh/day | N222: 0 | O222: 0 | P222: 0 | Q222: 0 | R222: 0 | S222: 0 | T222: 0 | U222: 0 | V222: 0 | W222: 0 | X222: 0 | Y222: 0 | AA222: 0 | AB222: 0 | AC222: 0 | AD222: 0 | AE222: 0 | AF222: 0 | AG222: 0 | AH222: 0 | AI222: 0 | AJ222: 0 | AK222: 0 | AL222: 0
C223: Within-day capacity | D223: peak kWh/day | N223: 0 | O223: 0 | P223: 0 | Q223: 0 | R223: 0 | S223: 0 | T223: 0 | U223: 0 | V223: 0 | W223: 0 | X223: 0 | Y223: 0 | AA223: 0 | AB223: 0 | AC223: 0 | AD223: 0 | AE223: 0 | AF223: 0 | AG223: 0 | AH223: 0 | AI223: 0 | AJ223: 0 | AK223: 0 | AL223: 0
C224: Actual interruptible capacity | D224: peak kWh/day | N224: 0 | O224: 0 | P224: 0 | Q224: 0 | R224: 0 | S224: 0 | T224: 0 | U224: 0 | V224: 0 | W224: 0 | X224: 0 | Y224: 0 | AA224: 0 | AB224: 0 | AC224: 0 | AD224: 0 | AE224: 0 | AF224: 0 | AG224: 0 | AH224: 0 | AI224: 0 | AJ224: 0 | AK224: 0 | AL224: 0
C226: =C64 -> Shipper 5
C227: Annual capacity | D227: peak kWh/day | G227: 0 | AA227: ='CALC|Cap'!$G$63/12 -> 0 | AB227: ='CALC|Cap'!$G$63/12 -> 0 | AC227: ='CALC|Cap'!$G$63/12 -> 0 | AD227: ='CALC|Cap'!$G$63/12 -> 0 | AE227: ='CALC|Cap'!$G$63/12 -> 0 | AF227: ='CALC|Cap'!$G$63/12 -> 0 | AG227: ='CALC|Cap'!$G$63/12 -> 0 | AH227: ='CALC|Cap'!$G$63/12 -> 0 | AI227: ='CALC|Cap'!$G$63/12 -> 0 | AJ227: ='CALC|Cap'!$G$63/12 -> 0 | AK227: ='CALC|Cap'!$G$63/12 -> 0 | AL227: ='CALC|Cap'!$G$63/12 -> 0
C228: Quarterly capacity | D228: peak kWh/day | I228: 0 | J228: 0 | K228: 0 | L228: 0 | AA228: 0 | AB228: 0 | AC228: 0 | AD228: 0 | AE228: 0 | AF228: 0 | AG228: 0 | AH228: 0 | AI228: 0 | AJ228: 0 | AK228: 0 | AL228: 0
... 196 more rows

Sheet INPUT|Vols+1 (hidden)
B1: =Title_Model -> Gas Transmission Tariff Model
B2: INPUT|Vols+1
B4: Heading | C4: Item | D4: Unit | E4: Comments | I4: =CONCATENATE('INPUT|UR'!I39,"-",'INPUT|UR'!$G$8-1999) -> Oct-14 | J4: =CONCATENATE('INPUT|UR'!J39,"-",'INPUT|UR'!$G$8-1999) -> Nov-14 | K4: =CONCATENATE('INPUT|UR'!K39,"-",'INPUT|UR'!$G$8-1999) -> Dec-14 | L4: =CONCATENATE('INPUT|UR'!L39,"-",'INPUT|UR'!$G$8-1999) -> Jan-14 | M4: =CONCATENATE('INPUT|UR'!M39,"-",'INPUT|UR'!$G$8-1999) -> Feb-14 | N4: =CONCATENATE('INPUT|UR'!N39,"-",'INPUT|UR'!$G$8-1999) -> Mar-14 | O4: =CONCATENATE('INPUT|UR'!O39,"-",'INPUT|UR'!$G$8-1999) -> Apr-14 | P4: =CONCATENATE('INPUT|UR'!P39,"-",'INPUT|UR'!$G$8-1999) -> May-14 | Q4: =CONCATENATE('INPUT|UR'!Q39,"-",'INPUT|UR'!$G$8-1999) -> Jun-14 | R4: =CONCATENATE('INPUT|UR'!R39,"-",'INPUT|UR'!$G$8-1999) -> Jul-14 | S4: =CONCATENATE('INPUT|UR'!S39,"-",'INPUT|UR'!$G$8-1999) -> Aug-14 | T4: =CONCATENATE('INPUT|UR'!T39,"-",'INPUT|UR'!$G$8-1999) -> Sep-14
B6: Volumes - entry commodity by shipper
G7: Forecast 15/16
E8: Do we need to calculate the forecast year+1 prices? | G8: Annual
C9: ='INPUT|Vols'!C9 -> Shipper 1
C10: Quantity | D10: kWh
C12: ='INPUT|Vols'!C10 -> Shipper 2
C13: Quantity | D13: kWh | G13: 0
C15: ='INPUT|Vols'!C11 -> Shipper 3
C16: Quantity | D16: kWh | G16: 0
C18: ='INPUT|Vols'!C12 -> Shipper 4
C19: Quantity | D19: kWh | G19: 0
C21: ='INPUT|Vols'!C13 -> Shipper 5
C22: Quantity | D22: kWh | G22: 0
C24: ='INPUT|Vols'!C14 -> Shipper 6
C25: Quantity | D25: kWh | G25: 0
C27: ='INPUT|Vols'!C15 -> Shipper 7
C28: Quantity | D28: kWh | G28: 0
C30: ='INPUT|Vols'!C16 -> Shipper 8
C31: Quantity | D31: kWh | G31: 0
C33: ='INPUT|Vols'!C17 -> Shipper 9
C34: Quantity | D34: kWh | G34: 0
C36: ='INPUT|Vols'!C18 -> Shipper 10
C37: Quantity | D37: kWh | G37: 0
C39: ='INPUT|Vols'!C19 -> Shipper 11
C40: Quantity | D40: kWh | G40: 0
C42: ='INPUT|Vols'!C20 -> Shipper 12
C43: Quantity | D43: kWh | G43: 0
C45: ='INPUT|Vols'!C21 -> Shipper 13
C46: Quantity | D46: kWh | G46: 0
C48: ='INPUT|Vols'!C22 -> Shipper 14
C49: Quantity | D49: kWh
C51: ='INPUT|Vols'!C23 -> Shipper 15
C52: Quantity | D52: kWh
C54: ='INPUT|Vols'!C24 -> Shipper 16
C55: Quantity | D55: kWh
C57: ='INPUT|Vols'!C25 -> Shipper 17
C58: Quantity | D58: kWh
C60: ='INPUT|Vols'!C26 -> Shipper 18
C61: Quantity | D61: kWh
C63: ='INPUT|Vols'!C27 -> Shipper 19
C64: Quantity | D64: kWh
C66: Shipper 20
C67: Quantity | D67: kWh
B69: Entry capacity by product by shipper
I70: Forecast
C71: =C9 -> Shipper 1
C72: Annual capacity | D72: peak kWh/day | G72: 0
C73: Quarterly capacity | D73: peak kWh/day | G73: 0
C74: Monthly capacity | D74: peak kWh/day | I74: 0 | J74: 0 | K74: 0 | L74: 0 | M74: 0 | N74: 0 | O74: 0 | P74: 0 | Q74: 0 | R74: 0 | S74: 0 | T74: 0
C75: Daily capacity | D75: peak kWh/day | I75: 0 | J75: 0 | K75: 0 | L75: 0 | M75: 0 | N75: 0 | O75: 0 | P75: 0 | Q75: 0 | R75: 0 | S75: 0 | T75: 0
C76: Within-day capacity | D76: peak kWh/day | I76: 0 | J76: 0 | K76: 0 | L76: 0 | M76: 0 | N76: 0 | O76: 0 | P76: 0 | Q76: 0 | R76: 0 | S76: 0 | T76: 0
C77: Actual interruptible capacity | D77: peak kWh/day | G77: 0
C79: =C12 -> Shipper 2
C80: Annual capacity | D80: peak kWh/day | G80: 0
C81: Quarterly capacity | D81: peak kWh/day | G81: 0
C82: Monthly capacity | D82: peak kWh/day | I82: 0 | J82: 0 | K82: 0 | L82: 0 | M82: 0 | N82: 0 | O82: 0 | P82: 0 | Q82: 0 | R82: 0 | S82: 0 | T82: 0
C83: Daily capacity | D83: peak kWh/day | I83: 0 | J83: 0 | K83: 0 | L83: 0 | M83: 0 | N83: 0 | O83: 0 | P83: 0 | Q83: 0 | R83: 0 | S83: 0 | T83: 0
C84: Within-day capacity | D84: peak kWh/day | I84: 0 | J84: 0 | K84: 0 | L84: 0 | M84: 0 | N84: 0 | O84: 0 | P84: 0 | Q84: 0 | R84: 0 | S84: 0 | T84: 0
C85: Actual interruptible capacity | D85: peak kWh/day | G85: 0
C87: =C15 -> Shipper 3
C88: Annual capacity | D88: peak kWh/day | G88: 0
C89: Quarterly capacity | D89: peak kWh/day | G89: 0
C90: Monthly capacity | D90: peak kWh/day | I90: 0 | J90: 0 | K90: 0 | L90: 0 | M90: 0 | N90: 0 | O90: 0 | P90: 0 | Q90: 0 | R90: 0 | S90: 0 | T90: 0
C91: Daily capacity | D91: peak kWh/day | I91: 0 | J91: 0 | K91: 0 | L91: 0 | M91: 0 | N91: 0 | O91: 0 | P91: 0 | Q91: 0 | R91: 0 | S91: 0 | T91: 0
C92: Within-day capacity | D92: peak kWh/day | I92: 0 | J92: 0 | K92: 0 | L92: 0 | M92: 0 | N92: 0 | O92: 0 | P92: 0 | Q92: 0 | R92: 0 | S92: 0 | T92: 0
C93: Actual interruptible capacity | D93: peak kWh/day | G93: 0
C95: =C18 -> Shipper 4
C96: Annual capacity | D96: peak kWh/day | G96: 0
C97: Quarterly capacity | D97: peak kWh/day | G97: 0
C98: Monthly capacity | D98: peak kWh/day | I98: 0 | J98: 0 | K98: 0 | L98: 0 | M98: 0 | N98: 0 | O98: 0 | P98: 0 | Q98: 0 | R98: 0 | S98: 0 | T98: 0
C99: Daily capacity | D99: peak kWh/day | I99: 0 | J99: 0 | K99: 0 | L99: 0 | M99: 0 | N99: 0 | O99: 0 | P99: 0 | Q99: 0 | R99: 0 | S99: 0 | T99: 0
C100: Within-day capacity | D100: peak kWh/day | I100: 0 | J100: 0 | K100: 0 | L100: 0 | M100: 0 | N100: 0 | O100: 0 | P100: 0 | Q100: 0 | R100: 0 | S100: 0 | T100: 0
C101: Actual interruptible capacity | D101: peak kWh/day | G101: 0
C103: =C21 -> Shipper 5
C104: Annual capacity | D104: peak kWh/day | G104: 0
C105: Quarterly capacity | D105: peak kWh/day | G105: 0
C106: Monthly capacity | D106: peak kWh/day | I106: 0 | J106: 0 | K106: 0 | L106: 0 | M106: 0 | N106: 0 | O106: 0 | P106: 0 | Q106: 0 | R106: 0 | S106: 0 | T106: 0
C107: Daily capacity | D107: peak kWh/day | I107: 0 | J107: 0 | K107: 0 | L107: 0 | M107: 0 | N107: 0 | O107: 0 | P107: 0 | Q107: 0 | R107: 0 | S107: 0 | T107: 0
C108: Within-day capacity | D108: peak kWh/day | I108: 0 | J108: 0 | K108: 0 | L108: 0 | M108: 0 | N108: 0 | O108: 0 | P108: 0 | Q108: 0 | R108: 0 | S108: 0 | T108: 0
C109: Actual interruptible capacity | D109: peak kWh/day | G109: 0
C111: =C24 -> Shipper 6
C112: Annual capacity | D112: peak kWh/day | G112: 0
C113: Quarterly capacity | D113: peak kWh/day | G113: 0
C114: Monthly capacity | D114: peak kWh/day | I114: 0 | J114: 0 | K114: 0 | L114: 0 | M114: 0 | N114: 0 | O114: 0 | P114: 0 | Q114: 0 | R114: 0 | S114: 0 | T114: 0
C115: Daily capacity | D115: peak kWh/day | I115: 0 | J115: 0 | K115: 0 | L115: 0 | M115: 0 | N115: 0 | O115: 0 | P115: 0 | Q115: 0 | R115: 0 | S115: 0 | T115: 0
C116: Within-day capacity | D116: peak kWh/day | I116: 0 | J116: 0 | K116: 0 | L116: 0 | M116: 0 | N116: 0 | O116: 0 | P116: 0 | Q116: 0 | R116: 0 | S116: 0 | T116: 0
C117: Actual interruptible capacity | D117: peak kWh/day | G117: 0
C119: =C27 -> Shipper 7
C120: Annual capacity | D120: peak kWh/day | G120: 0
C121: Quarterly capacity | D121: peak kWh/day | G121: 0
C122: Monthly capacity | D122: peak kWh/day | I122: 0 | J122: 0 | K122: 0 | L122: 0 | M122: 0 | N122: 0 | O122: 0 | P122: 0 | Q122: 0 | R122: 0 | S122: 0 | T122: 0
C123: Daily capacity | D123: peak kWh/day | I123: 0 | J123: 0 | K123: 0 | L123: 0 | M123: 0 | N123: 0 | O123: 0 | P123: 0 | Q123: 0 | R123: 0 | S123: 0 | T123: 0
C124: Within-day capacity | D124: peak kWh/day | I124: 0 | J124: 0 | K124: 0 | L124: 0 | M124: 0 | N124: 0 | O124: 0 | P124: 0 | Q124: 0 | R124: 0 | S124: 0 | T124: 0
C125: Actual interruptible capacity | D125: peak kWh/day | G125: 0
C127: =C30 -> Shipper 8
C128: Annual capacity | D128: peak kWh/day | G128: 0
C129: Quarterly capacity | D129: peak kWh/day | G129: 0
C130: Monthly capacity | D130: peak kWh/day | I130: 0 | J130: 0 | K130: 0 | L130: 0 | M130: 0 | N130: 0 | O130: 0 | P130: 0 | Q130: 0 | R130: 0 | S130: 0 | T130: 0
C131: Daily capacity | D131: peak kWh/day | I131: 0 | J131: 0 | K131: 0 | L131: 0 | M131: 0 | N131: 0 | O131: 0 | P131: 0 | Q131: 0 | R131: 0 | S131: 0 | T131: 0
C132: Within-day capacity | D132: peak kWh/day | I132: 0 | J132: 0 | K132: 0 | L132: 0 | M132: 0 | N132: 0 | O132: 0 | P132: 0 | Q132: 0 | R132: 0 | S132: 0 | T132: 0
C133: Actual interruptible capacity | D133: peak kWh/day | G133: 0
C135: =C33 -> Shipper 9
C136: Annual capacity | D136: peak kWh/day | G136: 0
C137: Quarterly capacity | D137: peak kWh/day | G137: 0
C138: Monthly capacity | D138: peak kWh/day | I138: 0 | J138: 0 | K138: 0 | L138: 0 | M138: 0 | N138: 0 | O138: 0 | P138: 0 | Q138: 0 | R138: 0 | S138: 0 | T138: 0
C139: Daily capacity | D139: peak kWh/day | I139: 0 | J139: 0 | K139: 0 | L139: 0 | M139: 0 | N139: 0 | O139: 0 | P139: 0 | Q139: 0 | R139: 0 | S139: 0 | T139: 0
C140: Within-day capacity | D140: peak kWh/day | I140: 0 | J140: 0 | K140: 0 | L140: 0 | M140: 0 | N140: 0 | O140: 0 | P140: 0 | Q140: 0 | R140: 0 | S140: 0 | T140: 0
C141: Actual interruptible capacity | D141: peak kWh/day | G141: 0
C143: =C36 -> Shipper 10
C144: Annual capacity | D144: peak kWh/day | G144: 0
C145: Quarterly capacity | D145: peak kWh/day | G145: 0
C146: Monthly capacity | D146: peak kWh/day | I146: 0 | J146: 0 | K146: 0 | L146: 0 | M146: 0 | N146: 0 | O146: 0 | P146: 0 | Q146: 0 | R146: 0 | S146: 0 | T146: 0
C147: Daily capacity | D147: peak kWh/day | I147: 0 | J147: 0 | K147: 0 | L147: 0 | M147: 0 | N147: 0 | O147: 0 | P147: 0 | Q147: 0 | R147: 0 | S147: 0 | T147: 0
C148: Within-day capacity | D148: peak kWh/day | I148: 0 | J148: 0 | K148: 0 | L148: 0 | M148: 0 | N148: 0 | O148: 0 | P148: 0 | Q148: 0 | R148: 0 | S148: 0 | T148: 0
C149: Actual interruptible capacity | D149: peak kWh/day | G149: 0
C151: =C39 -> Shipper 11
C152: Annual capacity | D152: peak kWh/day | G152: 0
C153: Quarterly capacity | D153: peak kWh/day | G153: 0
C154: Monthly capacity | D154: peak kWh/day | I154: 0 | J154: 0 | K154: 0 | L154: 0 | M154: 0 | N154: 0 | O154: 0 | P154: 0 | Q154: 0 | R154: 0 | S154: 0 | T154: 0
C155: Daily capacity | D155: peak kWh/day | I155: 0 | J155: 0 | K155: 0 | L155: 0 | M155: 0 | N155: 0 | O155: 0 | P155: 0 | Q155: 0 | R155: 0 | S155: 0 | T155: 0
C156: Within-day capacity | D156: peak kWh/day | I156: 0 | J156: 0 | K156: 0 | L156: 0 | M156: 0 | N156: 0 | O156: 0 | P156: 0 | Q156: 0 | R156: 0 | S156: 0 | T156: 0
C157: Actual interruptible capacity | D157: peak kWh/day | G157: 0
C159: =C42 -> Shipper 12
C160: Annual capacity | D160: peak kWh/day | G160: 0
C161: Quarterly capacity | D161: peak kWh/day | G161: 0
C162: Monthly capacity | D162: peak kWh/day | I162: 0 | J162: 0 | K162: 0 | L162: 0 | M162: 0 | N162: 0 | O162: 0 | P162: 0 | Q162: 0 | R162: 0 | S162: 0 | T162: 0
C163: Daily capacity | D163: peak kWh/day | I163: 0 | J163: 0 | K163: 0 | L163: 0 | M163: 0 | N163: 0 | O163: 0 | P163: 0 | Q163: 0 | R163: 0 | S163: 0 | T163: 0
C164: Within-day capacity | D164: peak kWh/day | I164: 0 | J164: 0 | K164: 0 | L164: 0 | M164: 0 | N164: 0 | O164: 0 | P164: 0 | Q164: 0 | R164: 0 | S164: 0 | T164: 0
C165: Actual interruptible capacity | D165: peak kWh/day | G165: 0
C167: =C45 -> Shipper 13
C168: Annual capacity | D168: peak kWh/day | G168: 0
C169: Quarterly capacity | D169: peak kWh/day | G169: 0
C170: Monthly capacity | D170: peak kWh/day | I170: 0 | J170: 0 | K170: 0 | L170: 0 | M170: 0 | N170: 0 | O170: 0 | P170: 0 | Q170: 0 | R170: 0 | S170: 0 | T170: 0
C171: Daily capacity | D171: peak kWh/day | I171: 0 | J171: 0 | K171: 0 | L171: 0 | M171: 0 | N171: 0 | O171: 0 | P171: 0 | Q171: 0 | R171: 0 | S171: 0 | T171: 0
C172: Within-day capacity | D172: peak kWh/day | I172: 0 | J172: 0 | K172: 0 | L172: 0 | M172: 0 | N172: 0 | O172: 0 | P172: 0 | Q172: 0 | R172: 0 | S172: 0 | T172: 0
C173: Actual interruptible capacity | D173: peak kWh/day | G173: 0
C175: =C48 -> Shipper 14
C176: Annual capacity | D176: peak kWh/day
C177: Quarterly capacity | D177: peak kWh/day
C178: Monthly capacity | D178: peak kWh/day | I178: 0 | J178: 0 | K178: 0 | L178: 0 | M178: 0 | N178: 0 | O178: 0 | P178: 0 | Q178: 0 | R178: 0 | S178: 0 | T178: 0
C179: Daily capacity | D179: peak kWh/day | I179: 0 | J179: 0 | K179: 0 | L179: 0 | M179: 0 | N179: 0 | O179: 0 | P179: 0 | Q179: 0 | R179: 0 | S179: 0 | T179: 0
C180: Within-day capacity | D180: peak kWh/day | I180: 0 | J180: 0 | K180: 0 | L180: 0 | M180: 0 | N180: 0 | O180: 0 | P180: 0 | Q180: 0 | R180: 0 | S180: 0 | T180: 0
C181: Actual interruptible capacity | D181: peak kWh/day
C183: =C51 -> Shipper 15
C184: Annual capacity | D184: peak kWh/day
C185: Quarterly capacity | D185: peak kWh/day
C186: Monthly capacity | D186: peak kWh/day
C187: Daily capacity | D187: peak kWh/day
C188: Within-day capacity | D188: peak kWh/day
C189: Actual interruptible capacity | D189: peak kWh/day
C191: =C54 -> Shipper 16
C192: Annual capacity | D192: peak kWh/day
C193: Quarterly capacity | D193: peak kWh/day
C194: Monthly capacity | D194: peak kWh/day
C195: Daily capacity | D195: peak kWh/day
C196: Within-day capacity | D196: peak kWh/day
C197: Actual interruptible capacity | D197: peak kWh/day
C199: =C57 -> Shipper 17
C200: Annual capacity | D200: peak kWh/day
C201: Quarterly capacity | D201: peak kWh/day
C202: Monthly capacity | D202: peak kWh/day
C203: Daily capacity | D203: peak kWh/day
C204: Within-day capacity | D204: peak kWh/day
C205: Actual interruptible capacity | D205: peak kWh/day
C207: =C60 -> Shipper 18
C208: Annual capacity | D208: peak kWh/day
C209: Quarterly capacity | D209: peak kWh/day
C210: Monthly capacity | D210: peak kWh/day
C211: Daily capacity | D211: peak kWh/day
C212: Within-day capacity | D212: peak kWh/day
C213: Actual interruptible capacity | D213: peak kWh/day
C215: =C63 -> Shipper 19
C216: Annual capacity | D216: peak kWh/day
C217: Quarterly capacity | D217: peak kWh/day
C218: Monthly capacity | D218: peak kWh/day
C219: Daily capacity | D219: peak kWh/day
C220: Within-day capacity | D220: peak kWh/day
C221: Actual interruptible capacity | D221: peak kWh/day
C223: =C66 -> Shipper 20
C224: Annual capacity | D224: peak kWh/day
C225: Quarterly capacity | D225: peak kWh/day
C226: Monthly capacity | D226: peak kWh/day
C227: Daily capacity | D227: peak kWh/day
C228: Within-day capacity | D228: peak kWh/day
C229: Actual interruptible capacity | D229: peak kWh/day
B231: Actual volumes - exit commodity by shipper
G232: Forecast
C233: =C9 -> Shipper 1
C234: Quantity | D234: kWh | G234: 0
C236: =C12 -> Shipper 2
C237: Quantity | D237: kWh | G237: 0
C239: =C15 -> Shipper 3
C240: Quantity | D240: kWh | G240: 0
C242: =C18 -> Shipper 4
C243: Quantity | D243: kWh | G243: 0
C245: =C21 -> Shipper 5
C246: Quantity | D246: kWh | G246: 0
... 112 more rows

Sheet CALC|Revalloc
B1: =Title_Model -> Gas Transmission Tariff Model
B2: CALC|Revalloc | I2: All values in this sheet are in real terms (exclude inflation)
B4: Heading | C4: Item | D4: Unit | E4: Comments | G4: =Gasyear -> 2013/14
B6: Calculation of total Forecast Required Revenue
C8: Forecast Required Revenue | I8: 2015/16
C9: BGE | D9: £ | G9: ='INPUT|UR'!G13 -> 18263239 | I9: ='INPUT|UR'!G19 -> 0
C10: PTL | D10: £ | G10: ='INPUT|UR'!G14 -> 20162771 | I10: ='INPUT|UR'!G20 -> 0
C11: BGTL | D11: £ | G11: ='INPUT|UR'!G15 -> 7040850 | I11: ='INPUT|UR'!G21 -> 0
C12: West | D12: £ | G12: ='INPUT|UR'!G16 -> 0 | I12: ='INPUT|UR'!G22 -> 0
C13: Total | D13: £ | G13: =SUM(G9:G12) -> 45466860 | I13: =SUM(I9:I12) -> 0
B15: Allocation of total Forecast Required Revenue revenue requirements by capacity/commodity
C17: Capacity Forecast Required Revenue | D17: £ | G17: =G13*'INPUT|UR'!G34 -> 34100145
C18: Commodity Forecast Required Revenue | D18: £ | G18: =G13-G17 -> 11366715
C19: Check | G19: =IF(G18+G17=G13,"OK","NO") -> OK
B21: Allocation of total Actual Required Revenue revenue requirements by capacity/commodity
C23: Capacity Actual Required Revenue | D23: £ | G23: ='INPUT|UR'!$G$29*'INPUT|UR'!G34 -> 34100145
C24: Commodity Actual Required Revenue | D24: £ | G24: ='INPUT|UR'!$G$29*'INPUT|UR'!G35 -> 11366715
C25: Check | G25: =IF(G24+G23=G13,"OK","NO") -> OK

Sheet CALC|Com
B1: =Title_Model -> Gas Transmission Tariff Model
B2: CALC|Com
B4: Heading | C4: Item | D4: Unit | E4: Comments | G4: =Gasyear -> 2013/14
B6: Calculation of forecast commodity charge
C8: CALCULATION OF FORECAST COMMODITY CHARGE
C9: Total forecast exit commodity volumes | D9: kWh | G9: =SUM('INPUT|Vols'!G357:G376) -> 16077975847
C10: Total modified forecast exit commodity volumes | D10: kWh | G10: =G9*(1+'INPUT|UR'!G78) -> 16077975847
C11: Total commodity Forecast Required Revenue | D11: £ | G11: ='CALC|Revalloc'!G18 -> 11366715
C12: Forecast commodity charge at exit | D12: £/kWh | G12: =G11/G10 -> 0.0007069742552
C13: Rounded forecast commodity charge | D13: £/kWh | G13: =ROUND(G12,7) -> 0.000707
B15: Calculation of year-end commodity charge
C17: CALCULATION OF YEAR-END COMMODITY CHARGE
C18: Total year-end exit commodity volumes | D18: kWh | G18: =SUM('INPUT|Vols'!I357:T357,'INPUT|Vols'!I358:T358,'INPUT|Vols'!I359:T359,'INPUT|Vols'!I360:T360,'INPUT|Vols'!I361:T361,'INPUT|Vols'!I362:T362,'INPUT|Vols'!I363:T363,'INPUT|Vols'!I364:T364,'INPUT|Vols'!I365:T365,'INPUT|Vols'!I366:T366,'INPUT|Vols'!I367:T367,'INPUT|Vols'!I368:T368,'INPUT|Vols'!I369:T369,'INPUT|Vols'!I371:T371,'INPUT|Vols'!I372:T372,'INPUT|Vols'!I373:T373,'INPUT|Vols'!I374:T374,'INPUT|Vols'!I375:T375,'INPUT|Vols'!I376:T376) -> 14569901000
C19: Total modified year-end exit commodity volumes | D19: kWh | G19: =G18*(1+'INPUT|UR'!G78) -> 14569901000
C20: Total commodity Actual Required Revenue | D20: £ | G20: ='CALC|Revalloc'!G24 -> 11366715
C21: Year-end commodity charge at exit | D21: £/kWh | G21: =G20/(G19) -> 0.0007801504622
C22: Rounded year-end commodity charge | D22: £/kWh | G22: =ROUND(G21,7) -> 0.0007802

Sheet CALC|Cap
A1: =Title_Model -> Gas Transmission Tariff Model
A2: CALC|Cap
B4: Heading | C4: Item | D4: Unit | E4: Comments | G4: =Gasyear -> 2013/14 | I4: ='INPUT|UR'!I64 -> Q4-13 | J4: ='INPUT|UR'!J64 -> Q1-14 | K4: ='INPUT|UR'!K64 -> Q2-14 | L4: ='INPUT|UR'!L64 -> Q3-14 | N4: ='INPUT|UR'!M64 -> Oct-13 | O4: ='INPUT|UR'!N64 -> Nov-13 | P4: ='INPUT|UR'!O64 -> Dec-13 | Q4: ='INPUT|UR'!P64 -> Jan-14 | R4: ='INPUT|UR'!Q64 -> Feb-14 | S4: ='INPUT|UR'!R64 -> Mar-14 | T4: ='INPUT|UR'!S64 -> Apr-14 | U4: ='INPUT|UR'!T64 -> May-14 | V4: ='INPUT|UR'!U64 -> Jun-14 | W4: ='INPUT|UR'!V64 -> Jul-14 | X4: ='INPUT|UR'!W64 -> Aug-14 | Y4: ='INPUT|UR'!X64 -> Sep-14 | AA4: =N4 -> Oct-13 | AB4: =O4 -> Nov-13 | AC4: Dec-13 | AD4: Jan-14 | AE4: Feb-14 | AF4: Mar-14 | AG4: Apr-14 | AH4: May-14 | AI4: Jun-14 | AJ4: Jul-14 | AK4: Aug-14 | AL4: Sep-14
B6: Calculation of product weightings
C8: ENTRY CAPACITY TIME FACTORS
C9: Annual | D9: # | G9: ='INPUT|UR'!H65/'INPUT|UR'!$H$65 -> 1
C10: Quarterly | D10: # | I10: ='INPUT|UR'!I66/'INPUT|UR'!$H$65 -> 0.2520547945 | J10: ='INPUT|UR'!J66/'INPUT|UR'!$H$65 -> 0.2465753425 | K10: ='INPUT|UR'!K66/'INPUT|UR'!$H$65 -> 0.2493150685 | L10: ='INPUT|UR'!L66/'INPUT|UR'!$H$65 -> 0.2520547945
C11: Monthly | D11: # | N11: ='INPUT|UR'!M$67/'INPUT|UR'!$H$65 -> 0.08493150685 | O11: ='INPUT|UR'!N$67/'INPUT|UR'!$H$65 -> 0.08219178082 | P11: ='INPUT|UR'!O$67/'INPUT|UR'!$H$65 -> 0.08493150685 | Q11: ='INPUT|UR'!P$67/'INPUT|UR'!$H$65 -> 0.08493150685 | R11: ='INPUT|UR'!Q$67/'INPUT|UR'!$H$65 -> 0.07671232877 | S11: ='INPUT|UR'!R$67/'INPUT|UR'!$H$65 -> 0.08493150685 | T11: ='INPUT|UR'!S$67/'INPUT|UR'!$H$65 -> 0.08219178082 | U11: ='INPUT|UR'!T$67/'INPUT|UR'!$H$65 -> 0.08493150685 | V11: ='INPUT|UR'!U$67/'INPUT|UR'!$H$65 -> 0.08219178082 | W11: ='INPUT|UR'!V$67/'INPUT|UR'!$H$65 -> 0.08493150685 | X11: ='INPUT|UR'!W$67/'INPUT|UR'!$H$65 -> 0.08493150685 | Y11: ='INPUT|UR'!X$67/'INPUT|UR'!$H$65 -> 0.08219178082
C12: Daily | D12: # | N12: =1/'INPUT|UR'!$H$65 -> 0.002739726027 | O12: =1/'INPUT|UR'!$H$65 -> 0.002739726027 | P12: =1/'INPUT|UR'!$H$65 -> 0.002739726027 | Q12: =1/'INPUT|UR'!$H$65 -> 0.002739726027 | R12: =1/'INPUT|UR'!$H$65 -> 0.002739726027 | S12: =1/'INPUT|UR'!$H$65 -> 0.002739726027 | T12: =1/'INPUT|UR'!$H$65 -> 0.002739726027 | U12: =1/'INPUT|UR'!$H$65 -> 0.002739726027 | V12: =1/'INPUT|UR'!$H$65 -> 0.002739726027 | W12: =1/'INPUT|UR'!$H$65 -> 0.002739726027 | X12: =1/'INPUT|UR'!$H$65 -> 0.002739726027 | Y12: =1/'INPUT|UR'!$H$65 -> 0.002739726027
C13: Within-day | D13: # | N13: =1/'INPUT|UR'!$H$65 -> 0.002739726027 | O13: =1/'INPUT|UR'!$H$65 -> 0.002739726027 | P13: =1/'INPUT|UR'!$H$65 -> 0.002739726027 | Q13: =1/'INPUT|UR'!$H$65 -> 0.002739726027 | R13: =1/'INPUT|UR'!$H$65 -> 0.002739726027 | S13: =1/'INPUT|UR'!$H$65 -> 0.002739726027 | T13: =1/'INPUT|UR'!$H$65 -> 0.002739726027 | U13: =1/'INPUT|UR'!$H$65 -> 0.002739726027 | V13: =1/'INPUT|UR'!$H$65 -> 0.002739726027 | W13: =1/'INPUT|UR'!$H$65 -> 0.002739726027 | X13: =1/'INPUT|UR'!$H$65 -> 0.002739726027 | Y13: =1/'INPUT|UR'!$H$65 -> 0.002739726027
C14: Interruptible | D14: # | N14: =1/'INPUT|UR'!$H$65 -> 0.002739726027 | O14: =1/'INPUT|UR'!$H$65 -> 0.002739726027 | P14: =1/'INPUT|UR'!$H$65 -> 0.002739726027 | Q14: =1/'INPUT|UR'!$H$65 -> 0.002739726027 | R14: =1/'INPUT|UR'!$H$65 -> 0.002739726027 | S14: =1/'INPUT|UR'!$H$65 -> 0.002739726027 | T14: =1/'INPUT|UR'!$H$65 -> 0.002739726027 | U14: =1/'INPUT|UR'!$H$65 -> 0.002739726027 | V14: =1/'INPUT|UR'!$H$65 -> 0.002739726027 | W14: =1/'INPUT|UR'!$H$65 -> 0.002739726027 | X14: =1/'INPUT|UR'!$H$65 -> 0.002739726027 | Y14: =1/'INPUT|UR'!$H$65 -> 0.002739726027
C16: ENTRY CAPACITY PRODUCT OF SEASONAL FACTORS, MULTIPLIERS, TIME FACTORS
C17: Annual | D17: # | G17: ='INPUT|UR'!G45*G9 -> 1
C18: Quarterly | D18: # | I18: ='INPUT|UR'!G46*I10*SUMPRODUCT('INPUT|UR'!I41:K41,'INPUT|UR'!M67:O67)/'INPUT|UR'!I66 -> 0.277260274 | J18: ='INPUT|UR'!G46*J10*SUMPRODUCT('INPUT|UR'!L41:N41,'INPUT|UR'!P67:R67)/'INPUT|UR'!J66 -> 0.4068493151 | K18: ='INPUT|UR'!G46*K10*SUMPRODUCT('INPUT|UR'!O41:Q41,'INPUT|UR'!S67:U67)/'INPUT|UR'!K66 -> 0.3428082192 | L18: ='INPUT|UR'!G46*L10*SUMPRODUCT('INPUT|UR'!R41:T41,'INPUT|UR'!V67:X67)/'INPUT|UR'!L66 -> 0.277260274
C19: Monthly | D19: # | N19: ='INPUT|UR'!$G$47*'INPUT|UR'!I41*N11 -> 0.1019178082 | O19: ='INPUT|UR'!$G$47*'INPUT|UR'!J41*O11 -> 0.09863013699 | P19: ='INPUT|UR'!$G$47*'INPUT|UR'!K41*P11 -> 0.1019178082 | Q19: ='INPUT|UR'!$G$47*'INPUT|UR'!L41*Q11 -> 0.1528767123 | R19: ='INPUT|UR'!$G$47*'INPUT|UR'!M41*R11 -> 0.1380821918 | S19: ='INPUT|UR'!$G$47*'INPUT|UR'!N41*S11 -> 0.1528767123 | T19: ='INPUT|UR'!$G$47*'INPUT|UR'!O41*T11 -> 0.1232876712 | U19: ='INPUT|UR'!$G$47*'INPUT|UR'!P41*U11 -> 0.1273972603 | V19: ='INPUT|UR'!$G$47*'INPUT|UR'!Q41*V11 -> 0.1232876712 | W19: ='INPUT|UR'!$G$47*'INPUT|UR'!R41*W11 -> 0.1019178082 | X19: ='INPUT|UR'!$G$47*'INPUT|UR'!S41*X11 -> 0.1019178082 | Y19: ='INPUT|UR'!$G$47*'INPUT|UR'!T41*Y11 -> 0.09863013699
C20: Daily | D20: # | N20: ='INPUT|UR'!$G$48*'INPUT|UR'!I41*N12 -> 0.003561643836 | O20: ='INPUT|UR'!$G$48*'INPUT|UR'!J41*O12 -> 0.003561643836 | P20: ='INPUT|UR'!$G$48*'INPUT|UR'!K41*P12 -> 0.003561643836 | Q20: ='INPUT|UR'!$G$48*'INPUT|UR'!L41*Q12 -> 0.005342465753 | R20: ='INPUT|UR'!$G$48*'INPUT|UR'!M41*R12 -> 0.005342465753 | S20: ='INPUT|UR'!$G$48*'INPUT|UR'!N41*S12 -> 0.005342465753 | T20: ='INPUT|UR'!$G$48*'INPUT|UR'!O41*T12 -> 0.004452054795 | U20: ='INPUT|UR'!$G$48*'INPUT|UR'!P41*U12 -> 0.004452054795 | V20: ='INPUT|UR'!$G$48*'INPUT|UR'!Q41*V12 -> 0.004452054795 | W20: ='INPUT|UR'!$G$48*'INPUT|UR'!R41*W12 -> 0.003561643836 | X20: ='INPUT|UR'!$G$48*'INPUT|UR'!S41*X12 -> 0.003561643836 | Y20: ='INPUT|UR'!$G$48*'INPUT|UR'!T41*Y12 -> 0.003561643836
C21: Within-day | D21: # | N21: ='INPUT|UR'!$G$49*'INPUT|UR'!I41*N13 -> 0.003835616438 | O21: ='INPUT|UR'!$G$49*'INPUT|UR'!J41*O13 -> 0.003835616438 | P21: ='INPUT|UR'!$G$49*'INPUT|UR'!K41*P13 -> 0.003835616438 | Q21: ='INPUT|UR'!$G$49*'INPUT|UR'!L41*Q13 -> 0.005753424658 | R21: ='INPUT|UR'!$G$49*'INPUT|UR'!M41*R13 -> 0.005753424658 | S21: ='INPUT|UR'!$G$49*'INPUT|UR'!N41*S13 -> 0.005753424658 | T21: ='INPUT|UR'!$G$49*'INPUT|UR'!O41*T13 -> 0.004794520548 | U21: ='INPUT|UR'!$G$49*'INPUT|UR'!P41*U13 -> 0.004794520548 | V21: ='INPUT|UR'!$G$49*'INPUT|UR'!Q41*V13 -> 0.004794520548 | W21: ='INPUT|UR'!$G$49*'INPUT|UR'!R41*W13 -> 0.003835616438 | X21: ='INPUT|UR'!$G$49*'INPUT|UR'!S41*X13 -> 0.003835616438 | Y21: ='INPUT|UR'!$G$49*'INPUT|UR'!T41*Y13 -> 0.003835616438
C22: Interruptible | D22: # | N22: ='INPUT|UR'!$G$50*'INPUT|UR'!I41*N14 -> 0.00301369863 | O22: ='INPUT|UR'!$G$50*'INPUT|UR'!J41*O14 -> 0.00301369863 | P22: ='INPUT|UR'!$G$50*'INPUT|UR'!K41*P14 -> 0.00301369863 | Q22: ='INPUT|UR'!$G$50*'INPUT|UR'!L41*Q14 -> 0.004520547945 | R22: ='INPUT|UR'!$G$50*'INPUT|UR'!M41*R14 -> 0.004520547945 | S22: ='INPUT|UR'!$G$50*'INPUT|UR'!N41*S14 -> 0.004520547945 | T22: ='INPUT|UR'!$G$50*'INPUT|UR'!O41*T14 -> 0.003767123288 | U22: ='INPUT|UR'!$G$50*'INPUT|UR'!P41*U14 -> 0.003767123288 | V22: ='INPUT|UR'!$G$50*'INPUT|UR'!Q41*V14 -> 0.003767123288 | W22: ='INPUT|UR'!$G$50*'INPUT|UR'!R41*W14 -> 0.00301369863 | X22: ='INPUT|UR'!$G$50*'INPUT|UR'!S41*X14 -> 0.00301369863 | Y22: ='INPUT|UR'!$G$50*'INPUT|UR'!T41*Y14 -> 0.00301369863
C24: EXIT CAPACITY PRODUCT OF SEASONAL FACTORS, MULTIPLIERS, TIME FACTORS
C25: Annual seasonal factor | D25: # | G25: ='INPUT|UR'!H65/'INPUT|UR'!$H$65 -> 1
C26: Interruptible seasonal factors | D26: # | N26: ='INPUT|UR'!I55 -> 0.0066 | O26: ='INPUT|UR'!J55 -> 0.0066 | P26: ='INPUT|UR'!K55 -> 0.0118 | Q26: ='INPUT|UR'!L55 -> 0.0206 | R26: ='INPUT|UR'!M55 -> 0.0235 | S26: ='INPUT|UR'!N55 -> 0.0176 | T26: ='INPUT|UR'!O55 -> 0.0066 | U26: ='INPUT|UR'!P55 -> 0.004 | V26: ='INPUT|UR'!Q55 -> 0.004 | W26: ='INPUT|UR'!R55 -> 0.004 | X26: ='INPUT|UR'!S55 -> 0.004 | Y26: ='INPUT|UR'!T55 -> 0.004
B28: Modified total entry capacity (forecast and actual) by product by shipper | I28: ='INPUT|UR'!I64 -> Q4-13 | J28: ='INPUT|UR'!J64 -> Q1-14 | K28: ='INPUT|UR'!K64 -> Q2-14 | L28: ='INPUT|UR'!L64 -> Q3-14 | N28: ='INPUT|UR'!I40 -> Oct-13 | O28: ='INPUT|UR'!J40 -> Nov-13 | P28: ='INPUT|UR'!K40 -> Dec-13 | Q28: ='INPUT|UR'!L40 -> Jan-14 | R28: ='INPUT|UR'!M40 -> Feb-14 | S28: ='INPUT|UR'!N40 -> Mar-14 | T28: ='INPUT|UR'!O40 -> Apr-14 | U28: ='INPUT|UR'!P40 -> May-14 | V28: ='INPUT|UR'!Q40 -> Jun-14 | W28: ='INPUT|UR'!R40 -> Jul-14 | X28: ='INPUT|UR'!S40 -> Aug-14 | Y28: ='INPUT|UR'!T40 -> Sep-14 | AA28: =N28 -> Oct-13 | AB28: =O28 -> Nov-13 | AC28: Dec-13 | AD28: Jan-14 | AE28: Feb-14 | AF28: Mar-14 | AG28: Apr-14 | AH28: May-14 | AI28: Jun-14 | AJ28: Jul-14 | AK28: Aug-14 | AL28: Sep-14
G29: Forecast | I29: Forecast | N29: Forecast | AA29: Actual
C30: ='INPUT|Vols'!C9 -> Shipper 1
C31: Annual capacity | D31: peak kWh/day | G31: =('INPUT|Vols'!G195+'INPUT|Vols'!G33)*(1+'INPUT|UR'!$G$75) -> 25000000 | AA31: =('INPUT|Vols'!AA195+'INPUT|Vols'!AA33)*(1+'INPUT|UR'!$G$75) -> 2083333.333 | AB31: =('INPUT|Vols'!AB195+'INPUT|Vols'!AB33)*(1+'INPUT|UR'!$G$75) -> 2083333.333 | AC31: =('INPUT|Vols'!AC195+'INPUT|Vols'!AC33)*(1+'INPUT|UR'!$G$75) -> 2083333.333 | AD31: =('INPUT|Vols'!AD195+'INPUT|Vols'!AD33)*(1+'INPUT|UR'!$G$75) -> 2083333.333 | AE31: =('INPUT|Vols'!AE195+'INPUT|Vols'!AE33)*(1+'INPUT|UR'!$G$75) -> 2083333.333 | AF31: =('INPUT|Vols'!AF195+'INPUT|Vols'!AF33)*(1+'INPUT|UR'!$G$75) -> 2083333.333 | AG31: =('INPUT|Vols'!AG195+'INPUT|Vols'!AG33)*(1+'INPUT|UR'!$G$75) -> 2083333.333 | AH31: =('INPUT|Vols'!AH195+'INPUT|Vols'!AH33)*(1+'INPUT|UR'!$G$75) -> 2083333.333 | AI31: =('INPUT|Vols'!AI195+'INPUT|Vols'!AI33)*(1+'INPUT|UR'!$G$75) -> 2083333.333 | AJ31: =('INPUT|Vols'!AJ195+'INPUT|Vols'!AJ33)*(1+'INPUT|UR'!$G$75) -> 2083333.333 | AK31: =('INPUT|Vols'!AK195+'INPUT|Vols'!AK33)*(1+'INPUT|UR'!$G$75) -> 2083333.333 | AL31: =('INPUT|Vols'!AL195+'INPUT|Vols'!AL33)*(1+'INPUT|UR'!$G$75) -> 2083333.333
C32: Quarterly capacity | D32: peak kWh/day | I32: =('INPUT|Vols'!I196+'INPUT|Vols'!I34)*(1+'INPUT|UR'!$G$75) -> 4000000 | J32: =('INPUT|Vols'!J196+'INPUT|Vols'!J34)*(1+'INPUT|UR'!$G$75) -> 5000000 | K32: =('INPUT|Vols'!K196+'INPUT|Vols'!K34)*(1+'INPUT|UR'!$G$75) -> 2000000 | L32: =('INPUT|Vols'!L196+'INPUT|Vols'!L34)*(1+'INPUT|UR'!$G$75) -> 0 | AA32: =('INPUT|Vols'!AA196+'INPUT|Vols'!AA34)*(1+'INPUT|UR'!$G$75) -> 1333333.333 | AB32: =('INPUT|Vols'!AB196+'INPUT|Vols'!AB34)*(1+'INPUT|UR'!$G$75) -> 1333333.333 | AC32: =('INPUT|Vols'!AC196+'INPUT|Vols'!AC34)*(1+'INPUT|UR'!$G$75) -> 1333333.333 | AD32: =('INPUT|Vols'!AD196+'INPUT|Vols'!AD34)*(1+'INPUT|UR'!$G$75) -> 1666666.667 | AE32: =('INPUT|Vols'!AE196+'INPUT|Vols'!AE34)*(1+'INPUT|UR'!$G$75) -> 1666666.667 | AF32: =('INPUT|Vols'!AF196+'INPUT|Vols'!AF34)*(1+'INPUT|UR'!$G$75) -> 1666666.667 | AG32: =('INPUT|Vols'!AG196+'INPUT|Vols'!AG34)*(1+'INPUT|UR'!$G$75) -> 666666.6667 | AH32: =('INPUT|Vols'!AH196+'INPUT|Vols'!AH34)*(1+'INPUT|UR'!$G$75) -> 666666.6667 | AI32: =('INPUT|Vols'!AI196+'INPUT|Vols'!AI34)*(1+'INPUT|UR'!$G$75) -> 666666.6667 | AJ32: =('INPUT|Vols'!AJ196+'INPUT|Vols'!AJ34)*(1+'INPUT|UR'!$G$75) -> 666666.6667 | AK32: =('INPUT|Vols'!AK196+'INPUT|Vols'!AK34)*(1+'INPUT|UR'!$G$75) -> 666666.6667 | AL32: =('INPUT|Vols'!AL196+'INPUT|Vols'!AL34)*(1+'INPUT|UR'!$G$75) -> 666666.6667
C33: Monthly capacity | D33: peak kWh/day | N33: =('INPUT|Vols'!N197+'INPUT|Vols'!N35)*(1+'INPUT|UR'!$G$75) -> 0 | O33: =('INPUT|Vols'!O197+'INPUT|Vols'!O35)*(1+'INPUT|UR'!$G$75) -> 0 | P33: =('INPUT|Vols'!P197+'INPUT|Vols'!P35)*(1+'INPUT|UR'!$G$75) -> 0 | Q33: =('INPUT|Vols'!Q197+'INPUT|Vols'!Q35)*(1+'INPUT|UR'!$G$75) -> 0 | R33: =('INPUT|Vols'!R197+'INPUT|Vols'!R35)*(1+'INPUT|UR'!$G$75) -> 0 | S33: =('INPUT|Vols'!S197+'INPUT|Vols'!S35)*(1+'INPUT|UR'!$G$75) -> 0 | T33: =('INPUT|Vols'!T197+'INPUT|Vols'!T35)*(1+'INPUT|UR'!$G$75) -> 0 | U33: =('INPUT|Vols'!U197+'INPUT|Vols'!U35)*(1+'INPUT|UR'!$G$75) -> 0 | V33: =('INPUT|Vols'!V197+'INPUT|Vols'!V35)*(1+'INPUT|UR'!$G$75) -> 0 | W33: =('INPUT|Vols'!W197+'INPUT|Vols'!W35)*(1+'INPUT|UR'!$G$75) -> 0 | X33: =('INPUT|Vols'!X197+'INPUT|Vols'!X35)*(1+'INPUT|UR'!$G$75) -> 0 | Y33: =('INPUT|Vols'!Y197+'INPUT|Vols'!Y35)*(1+'INPUT|UR'!$G$75) -> 0 | AA33: =('INPUT|Vols'!AA197+'INPUT|Vols'!AA35)*(1+'INPUT|UR'!$G$75) -> 0 | AB33: =('INPUT|Vols'!AB197+'INPUT|Vols'!AB35)*(1+'INPUT|UR'!$G$75) -> 0 | AC33: =('INPUT|Vols'!AC197+'INPUT|Vols'!AC35)*(1+'INPUT|UR'!$G$75) -> 0 | AD33: =('INPUT|Vols'!AD197+'INPUT|Vols'!AD35)*(1+'INPUT|UR'!$G$75) -> 0 | AE33: =('INPUT|Vols'!AE197+'INPUT|Vols'!AE35)*(1+'INPUT|UR'!$G$75) -> 0 | AF33: =('INPUT|Vols'!AF197+'INPUT|Vols'!AF35)*(1+'INPUT|UR'!$G$75) -> 0 | AG33: =('INPUT|Vols'!AG197+'INPUT|Vols'!AG35)*(1+'INPUT|UR'!$G$75) -> 0 | AH33: =('INPUT|Vols'!AH197+'INPUT|Vols'!AH35)*(1+'INPUT|UR'!$G$75) -> 0 | AI33: =('INPUT|Vols'!AI197+'INPUT|Vols'!AI35)*(1+'INPUT|UR'!$G$75) -> 0 | AJ33: =('INPUT|Vols'!AJ197+'INPUT|Vols'!AJ35)*(1+'INPUT|UR'!$G$75) -> 0 | AK33: =('INPUT|Vols'!AK197+'INPUT|Vols'!AK35)*(1+'INPUT|UR'!$G$75) -> 0 | AL33: =('INPUT|Vols'!AL197+'INPUT|Vols'!AL35)*(1+'INPUT|UR'!$G$75) -> 0
C34: Daily capacity | D34: peak kWh/day | N34: =('INPUT|Vols'!N198+'INPUT|Vols'!N36)*(1+'INPUT|UR'!$G$75) -> 0 | O34: =('INPUT|Vols'!O198+'INPUT|Vols'!O36)*(1+'INPUT|UR'!$G$75) -> 0 | P34: =('INPUT|Vols'!P198+'INPUT|Vols'!P36)*(1+'INPUT|UR'!$G$75) -> 0 | Q34: =('INPUT|Vols'!Q198+'INPUT|Vols'!Q36)*(1+'INPUT|UR'!$G$75) -> 0 | R34: =('INPUT|Vols'!R198+'INPUT|Vols'!R36)*(1+'INPUT|UR'!$G$75) -> 0 | S34: =('INPUT|Vols'!S198+'INPUT|Vols'!S36)*(1+'INPUT|UR'!$G$75) -> 0 | T34: =('INPUT|Vols'!T198+'INPUT|Vols'!T36)*(1+'INPUT|UR'!$G$75) -> 0 | U34: =('INPUT|Vols'!U198+'INPUT|Vols'!U36)*(1+'INPUT|UR'!$G$75) -> 0 | V34: =('INPUT|Vols'!V198+'INPUT|Vols'!V36)*(1+'INPUT|UR'!$G$75) -> 0 | W34: =('INPUT|Vols'!W198+'INPUT|Vols'!W36)*(1+'INPUT|UR'!$G$75) -> 0 | X34: =('INPUT|Vols'!X198+'INPUT|Vols'!X36)*(1+'INPUT|UR'!$G$75) -> 0 | Y34: =('INPUT|Vols'!Y198+'INPUT|Vols'!Y36)*(1+'INPUT|UR'!$G$75) -> 0 | AA34: =('INPUT|Vols'!AA198+'INPUT|Vols'!AA36)*(1+'INPUT|UR'!$G$75) -> 0 | AB34: =('INPUT|Vols'!AB198+'INPUT|Vols'!AB36)*(1+'INPUT|UR'!$G$75) -> 0 | AC34: =('INPUT|Vols'!AC198+'INPUT|Vols'!AC36)*(1+'INPUT|UR'!$G$75) -> 0 | AD34: =('INPUT|Vols'!AD198+'INPUT|Vols'!AD36)*(1+'INPUT|UR'!$G$75) -> 0 | AE34: =('INPUT|Vols'!AE198+'INPUT|Vols'!AE36)*(1+'INPUT|UR'!$G$75) -> 0 | AF34: =('INPUT|Vols'!AF198+'INPUT|Vols'!AF36)*(1+'INPUT|UR'!$G$75) -> 0 | AG34: =('INPUT|Vols'!AG198+'INPUT|Vols'!AG36)*(1+'INPUT|UR'!$G$75) -> 0 | AH34: =('INPUT|Vols'!AH198+'INPUT|Vols'!AH36)*(1+'INPUT|UR'!$G$75) -> 0 | AI34: =('INPUT|Vols'!AI198+'INPUT|Vols'!AI36)*(1+'INPUT|UR'!$G$75) -> 0 | AJ34: =('INPUT|Vols'!AJ198+'INPUT|Vols'!AJ36)*(1+'INPUT|UR'!$G$75) -> 0 | AK34: =('INPUT|Vols'!AK198+'INPUT|Vols'!AK36)*(1+'INPUT|UR'!$G$75) -> 0 | AL34: =('INPUT|Vols'!AL198+'INPUT|Vols'!AL36)*(1+'INPUT|UR'!$G$75) -> 0
C35: Within-day capacity | D35: peak kWh/day | N35: =('INPUT|Vols'!N199+'INPUT|Vols'!N37)*(1+'INPUT|UR'!$G$75) -> 0 | O35: =('INPUT|Vols'!O199+'INPUT|Vols'!O37)*(1+'INPUT|UR'!$G$75) -> 0 | P35: =('INPUT|Vols'!P199+'INPUT|Vols'!P37)*(1+'INPUT|UR'!$G$75) -> 0 | Q35: =('INPUT|Vols'!Q199+'INPUT|Vols'!Q37)*(1+'INPUT|UR'!$G$75) -> 0 | R35: =('INPUT|Vols'!R199+'INPUT|Vols'!R37)*(1+'INPUT|UR'!$G$75) -> 0 | S35: =('INPUT|Vols'!S199+'INPUT|Vols'!S37)*(1+'INPUT|UR'!$G$75) -> 0 | T35: =('INPUT|Vols'!T199+'INPUT|Vols'!T37)*(1+'INPUT|UR'!$G$75) -> 0 | U35: =('INPUT|Vols'!U199+'INPUT|Vols'!U37)*(1+'INPUT|UR'!$G$75) -> 0 | V35: =('INPUT|Vols'!V199+'INPUT|Vols'!V37)*(1+'INPUT|UR'!$G$75) -> 0 | W35: =('INPUT|Vols'!W199+'INPUT|Vols'!W37)*(1+'INPUT|UR'!$G$75) -> 0 | X35: =('INPUT|Vols'!X199+'INPUT|Vols'!X37)*(1+'INPUT|UR'!$G$75) -> 0 | Y35: =('INPUT|Vols'!Y199+'INPUT|Vols'!Y37)*(1+'INPUT|UR'!$G$75) -> 0 | AA35: =('INPUT|Vols'!AA199+'INPUT|Vols'!AA37)*(1+'INPUT|UR'!$G$75) -> 0 | AB35: =('INPUT|Vols'!AB199+'INPUT|Vols'!AB37)*(1+'INPUT|UR'!$G$75) -> 0 | AC35: =('INPUT|Vols'!AC199+'INPUT|Vols'!AC37)*(1+'INPUT|UR'!$G$75) -> 0 | AD35: =('INPUT|Vols'!AD199+'INPUT|Vols'!AD37)*(1+'INPUT|UR'!$G$75) -> 0 | AE35: =('INPUT|Vols'!AE199+'INPUT|Vols'!AE37)*(1+'INPUT|UR'!$G$75) -> 0 | AF35: =('INPUT|Vols'!AF199+'INPUT|Vols'!AF37)*(1+'INPUT|UR'!$G$75) -> 0 | AG35: =('INPUT|Vols'!AG199+'INPUT|Vols'!AG37)*(1+'INPUT|UR'!$G$75) -> 0 | AH35: =('INPUT|Vols'!AH199+'INPUT|Vols'!AH37)*(1+'INPUT|UR'!$G$75) -> 0 | AI35: =('INPUT|Vols'!AI199+'INPUT|Vols'!AI37)*(1+'INPUT|UR'!$G$75) -> 0 | AJ35: =('INPUT|Vols'!AJ199+'INPUT|Vols'!AJ37)*(1+'INPUT|UR'!$G$75) -> 0 | AK35: =('INPUT|Vols'!AK199+'INPUT|Vols'!AK37)*(1+'INPUT|UR'!$G$75) -> 0 | AL35: =('INPUT|Vols'!AL199+'INPUT|Vols'!AL37)*(1+'INPUT|UR'!$G$75) -> 0
C36: Actual interruptible capacity | D36: peak kWh/day | N36: =('INPUT|Vols'!N200+'INPUT|Vols'!N38)*(1+'INPUT|UR'!$G$75) -> 0 | O36: =('INPUT|Vols'!O200+'INPUT|Vols'!O38)*(1+'INPUT|UR'!$G$75) -> 0 | P36: =('INPUT|Vols'!P200+'INPUT|Vols'!P38)*(1+'INPUT|UR'!$G$75) -> 0 | Q36: =('INPUT|Vols'!Q200+'INPUT|Vols'!Q38)*(1+'INPUT|UR'!$G$75) -> 0 | R36: =('INPUT|Vols'!R200+'INPUT|Vols'!R38)*(1+'INPUT|UR'!$G$75) -> 0 | S36: =('INPUT|Vols'!S200+'INPUT|Vols'!S38)*(1+'INPUT|UR'!$G$75) -> 0 | T36: =('INPUT|Vols'!T200+'INPUT|Vols'!T38)*(1+'INPUT|UR'!$G$75) -> 0 | U36: =('INPUT|Vols'!U200+'INPUT|Vols'!U38)*(1+'INPUT|UR'!$G$75) -> 0 | V36: =('INPUT|Vols'!V200+'INPUT|Vols'!V38)*(1+'INPUT|UR'!$G$75) -> 0 | W36: =('INPUT|Vols'!W200+'INPUT|Vols'!W38)*(1+'INPUT|UR'!$G$75) -> 0 | X36: =('INPUT|Vols'!X200+'INPUT|Vols'!X38)*(1+'INPUT|UR'!$G$75) -> 0 | Y36: =('INPUT|Vols'!Y200+'INPUT|Vols'!Y38)*(1+'INPUT|UR'!$G$75) -> 0 | AA36: =('INPUT|Vols'!AA200+'INPUT|Vols'!AA38)*(1+'INPUT|UR'!$G$75) -> 0 | AB36: =('INPUT|Vols'!AB200+'INPUT|Vols'!AB38)*(1+'INPUT|UR'!$G$75) -> 0 | AC36: =('INPUT|Vols'!AC200+'INPUT|Vols'!AC38)*(1+'INPUT|UR'!$G$75) -> 0 | AD36: =('INPUT|Vols'!AD200+'INPUT|Vols'!AD38)*(1+'INPUT|UR'!$G$75) -> 0 | AE36: =('INPUT|Vols'!AE200+'INPUT|Vols'!AE38)*(1+'INPUT|UR'!$G$75) -> 0 | AF36: =('INPUT|Vols'!AF200+'INPUT|Vols'!AF38)*(1+'INPUT|UR'!$G$75) -> 0 | AG36: =('INPUT|Vols'!AG200+'INPUT|Vols'!AG38)*(1+'INPUT|UR'!$G$75) -> 0 | AH36: =('INPUT|Vols'!AH200+'INPUT|Vols'!AH38)*(1+'INPUT|UR'!$G$75) -> 0 | AI36: =('INPUT|Vols'!AI200+'INPUT|Vols'!AI38)*(1+'INPUT|UR'!$G$75) -> 0 | AJ36: =('INPUT|Vols'!AJ200+'INPUT|Vols'!AJ38)*(1+'INPUT|UR'!$G$75) -> 0 | AK36: =('INPUT|Vols'!AK200+'INPUT|Vols'!AK38)*(1+'INPUT|UR'!$G$75) -> 0 | AL36: =('INPUT|Vols'!AL200+'INPUT|Vols'!AL38)*(1+'INPUT|UR'!$G$75) -> 0
C38: ='INPUT|Vols'!C10 -> Shipper 2
C39: Annual capacity | D39: peak kWh/day | G39: =('INPUT|Vols'!G203+'INPUT|Vols'!G41)*(1+'INPUT|UR'!$G$75) -> 20000000 | AA39: =('INPUT|Vols'!AA203+'INPUT|Vols'!AA41)*(1+'INPUT|UR'!$G$75) -> 1666666.667 | AB39: =('INPUT|Vols'!AB203+'INPUT|Vols'!AB41)*(1+'INPUT|UR'!$G$75) -> 1666666.667 | AC39: =('INPUT|Vols'!AC203+'INPUT|Vols'!AC41)*(1+'INPUT|UR'!$G$75) -> 1666666.667 | AD39: =('INPUT|Vols'!AD203+'INPUT|Vols'!AD41)*(1+'INPUT|UR'!$G$75) -> 1666666.667 | AE39: =('INPUT|Vols'!AE203+'INPUT|Vols'!AE41)*(1+'INPUT|UR'!$G$75) -> 1666666.667 | AF39: =('INPUT|Vols'!AF203+'INPUT|Vols'!AF41)*(1+'INPUT|UR'!$G$75) -> 1666666.667 | AG39: =('INPUT|Vols'!AG203+'INPUT|Vols'!AG41)*(1+'INPUT|UR'!$G$75) -> 1666666.667 | AH39: =('INPUT|Vols'!AH203+'INPUT|Vols'!AH41)*(1+'INPUT|UR'!$G$75) -> 1666666.667 | AI39: =('INPUT|Vols'!AI203+'INPUT|Vols'!AI41)*(1+'INPUT|UR'!$G$75) -> 1666666.667 | AJ39: =('INPUT|Vols'!AJ203+'INPUT|Vols'!AJ41)*(1+'INPUT|UR'!$G$75) -> 1666666.667 | AK39: =('INPUT|Vols'!AK203+'INPUT|Vols'!AK41)*(1+'INPUT|UR'!$G$75) -> 1666666.667 | AL39: =('INPUT|Vols'!AL203+'INPUT|Vols'!AL41)*(1+'INPUT|UR'!$G$75) -> 1666666.667
C40: Quarterly capacity | D40: peak kWh/day | I40: =('INPUT|Vols'!I204+'INPUT|Vols'!I42)*(1+'INPUT|UR'!$G$75) -> 5000000 | J40: =('INPUT|Vols'!J204+'INPUT|Vols'!J42)*(1+'INPUT|UR'!$G$75) -> 5000000 | K40: =('INPUT|Vols'!K204+'INPUT|Vols'!K42)*(1+'INPUT|UR'!$G$75) -> 5000000 | L40: =('INPUT|Vols'!L204+'INPUT|Vols'!L42)*(1+'INPUT|UR'!$G$75) -> 5000000 | AA40: =('INPUT|Vols'!AA204+'INPUT|Vols'!AA42)*(1+'INPUT|UR'!$G$75) -> 1666666.667 | AB40: =('INPUT|Vols'!AB204+'INPUT|Vols'!AB42)*(1+'INPUT|UR'!$G$75) -> 1666666.667 | AC40: =('INPUT|Vols'!AC204+'INPUT|Vols'!AC42)*(1+'INPUT|UR'!$G$75) -> 1666666.667 | AD40: =('INPUT|Vols'!AD204+'INPUT|Vols'!AD42)*(1+'INPUT|UR'!$G$75) -> 1666666.667 | AE40: =('INPUT|Vols'!AE204+'INPUT|Vols'!AE42)*(1+'INPUT|UR'!$G$75) -> 1666666.667 | AF40: =('INPUT|Vols'!AF204+'INPUT|Vols'!AF42)*(1+'INPUT|UR'!$G$75) -> 1666666.667 | AG40: =('INPUT|Vols'!AG204+'INPUT|Vols'!AG42)*(1+'INPUT|UR'!$G$75) -> 1666666.667 | AH40: =('INPUT|Vols'!AH204+'INPUT|Vols'!AH42)*(1+'INPUT|UR'!$G$75) -> 1666666.667 | AI40: =('INPUT|Vols'!AI204+'INPUT|Vols'!AI42)*(1+'INPUT|UR'!$G$75) -> 1666666.667 | AJ40: =('INPUT|Vols'!AJ204+'INPUT|Vols'!AJ42)*(1+'INPUT|UR'!$G$75) -> 1666666.667 | AK40: =('INPUT|Vols'!AK204+'INPUT|Vols'!AK42)*(1+'INPUT|UR'!$G$75) -> 1666666.667 | AL40: =('INPUT|Vols'!AL204+'INPUT|Vols'!AL42)*(1+'INPUT|UR'!$G$75) -> 1666666.667
C41: Monthly capacity | D41: peak kWh/day | N41: =('INPUT|Vols'!N205+'INPUT|Vols'!N43)*(1+'INPUT|UR'!$G$75) -> 0 | O41: =('INPUT|Vols'!O205+'INPUT|Vols'!O43)*(1+'INPUT|UR'!$G$75) -> 0 | P41: =('INPUT|Vols'!P205+'INPUT|Vols'!P43)*(1+'INPUT|UR'!$G$75) -> 0 | Q41: =('INPUT|Vols'!Q205+'INPUT|Vols'!Q43)*(1+'INPUT|UR'!$G$75) -> 0 | R41: =('INPUT|Vols'!R205+'INPUT|Vols'!R43)*(1+'INPUT|UR'!$G$75) -> 0 | S41: =('INPUT|Vols'!S205+'INPUT|Vols'!S43)*(1+'INPUT|UR'!$G$75) -> 0 | T41: =('INPUT|Vols'!T205+'INPUT|Vols'!T43)*(1+'INPUT|UR'!$G$75) -> 0 | U41: =('INPUT|Vols'!U205+'INPUT|Vols'!U43)*(1+'INPUT|UR'!$G$75) -> 0 | V41: =('INPUT|Vols'!V205+'INPUT|Vols'!V43)*(1+'INPUT|UR'!$G$75) -> 0 | W41: =('INPUT|Vols'!W205+'INPUT|Vols'!W43)*(1+'INPUT|UR'!$G$75) -> 0 | X41: =('INPUT|Vols'!X205+'INPUT|Vols'!X43)*(1+'INPUT|UR'!$G$75) -> 0 | Y41: =('INPUT|Vols'!Y205+'INPUT|Vols'!Y43)*(1+'INPUT|UR'!$G$75) -> 0 | AA41: =('INPUT|Vols'!AA205+'INPUT|Vols'!AA43)*(1+'INPUT|UR'!$G$75) -> 0 | AB41: =('INPUT|Vols'!AB205+'INPUT|Vols'!AB43)*(1+'INPUT|UR'!$G$75) -> 0 | AC41: =('INPUT|Vols'!AC205+'INPUT|Vols'!AC43)*(1+'INPUT|UR'!$G$75) -> 0 | AD41: =('INPUT|Vols'!AD205+'INPUT|Vols'!AD43)*(1+'INPUT|UR'!$G$75) -> 0 | AE41: =('INPUT|Vols'!AE205+'INPUT|Vols'!AE43)*(1+'INPUT|UR'!$G$75) -> 0 | AF41: =('INPUT|Vols'!AF205+'INPUT|Vols'!AF43)*(1+'INPUT|UR'!$G$75) -> 0 | AG41: =('INPUT|Vols'!AG205+'INPUT|Vols'!AG43)*(1+'INPUT|UR'!$G$75) -> 0 | AH41: =('INPUT|Vols'!AH205+'INPUT|Vols'!AH43)*(1+'INPUT|UR'!$G$75) -> 0 | AI41: =('INPUT|Vols'!AI205+'INPUT|Vols'!AI43)*(1+'INPUT|UR'!$G$75) -> 0 | AJ41: =('INPUT|Vols'!AJ205+'INPUT|Vols'!AJ43)*(1+'INPUT|UR'!$G$75) -> 0 | AK41: =('INPUT|Vols'!AK205+'INPUT|Vols'!AK43)*(1+'INPUT|UR'!$G$75) -> 0 | AL41: =('INPUT|Vols'!AL205+'INPUT|Vols'!AL43)*(1+'INPUT|UR'!$G$75) -> 0
C42: Daily capacity | D42: peak kWh/day | N42: =('INPUT|Vols'!N206+'INPUT|Vols'!N44)*(1+'INPUT|UR'!$G$75) -> 0 | O42: =('INPUT|Vols'!O206+'INPUT|Vols'!O44)*(1+'INPUT|UR'!$G$75) -> 0 | P42: =('INPUT|Vols'!P206+'INPUT|Vols'!P44)*(1+'INPUT|UR'!$G$75) -> 0 | Q42: =('INPUT|Vols'!Q206+'INPUT|Vols'!Q44)*(1+'INPUT|UR'!$G$75) -> 0 | R42: =('INPUT|Vols'!R206+'INPUT|Vols'!R44)*(1+'INPUT|UR'!$G$75) -> 0 | S42: =('INPUT|Vols'!S206+'INPUT|Vols'!S44)*(1+'INPUT|UR'!$G$75) -> 0 | T42: =('INPUT|Vols'!T206+'INPUT|Vols'!T44)*(1+'INPUT|UR'!$G$75) -> 0 | U42: =('INPUT|Vols'!U206+'INPUT|Vols'!U44)*(1+'INPUT|UR'!$G$75) -> 0 | V42: =('INPUT|Vols'!V206+'INPUT|Vols'!V44)*(1+'INPUT|UR'!$G$75) -> 0 | W42: =('INPUT|Vols'!W206+'INPUT|Vols'!W44)*(1+'INPUT|UR'!$G$75) -> 0 | X42: =('INPUT|Vols'!X206+'INPUT|Vols'!X44)*(1+'INPUT|UR'!$G$75) -> 0 | Y42: =('INPUT|Vols'!Y206+'INPUT|Vols'!Y44)*(1+'INPUT|UR'!$G$75) -> 0 | AA42: =('INPUT|Vols'!AA206+'INPUT|Vols'!AA44)*(1+'INPUT|UR'!$G$75) -> 0 | AB42: =('INPUT|Vols'!AB206+'INPUT|Vols'!AB44)*(1+'INPUT|UR'!$G$75) -> 0 | AC42: =('INPUT|Vols'!AC206+'INPUT|Vols'!AC44)*(1+'INPUT|UR'!$G$75) -> 0 | AD42: =('INPUT|Vols'!AD206+'INPUT|Vols'!AD44)*(1+'INPUT|UR'!$G$75) -> 0 | AE42: =('INPUT|Vols'!AE206+'INPUT|Vols'!AE44)*(1+'INPUT|UR'!$G$75) -> 0 | AF42: =('INPUT|Vols'!AF206+'INPUT|Vols'!AF44)*(1+'INPUT|UR'!$G$75) -> 0 | AG42: =('INPUT|Vols'!AG206+'INPUT|Vols'!AG44)*(1+'INPUT|UR'!$G$75) -> 0 | AH42: =('INPUT|Vols'!AH206+'INPUT|Vols'!AH44)*(1+'INPUT|UR'!$G$75) -> 0 | AI42: =('INPUT|Vols'!AI206+'INPUT|Vols'!AI44)*(1+'INPUT|UR'!$G$75) -> 0 | AJ42: =('INPUT|Vols'!AJ206+'INPUT|Vols'!AJ44)*(1+'INPUT|UR'!$G$75) -> 0 | AK42: =('INPUT|Vols'!AK206+'INPUT|Vols'!AK44)*(1+'INPUT|UR'!$G$75) -> 0 | AL42: =('INPUT|Vols'!AL206+'INPUT|Vols'!AL44)*(1+'INPUT|UR'!$G$75) -> 0
C43: Within-day capacity | D43: peak kWh/day | N43: =('INPUT|Vols'!N207+'INPUT|Vols'!N45)*(1+'INPUT|UR'!$G$75) -> 0 | O43: =('INPUT|Vols'!O207+'INPUT|Vols'!O45)*(1+'INPUT|UR'!$G$75) -> 0 | P43: =('INPUT|Vols'!P207+'INPUT|Vols'!P45)*(1+'INPUT|UR'!$G$75) -> 0 | Q43: =('INPUT|Vols'!Q207+'INPUT|Vols'!Q45)*(1+'INPUT|UR'!$G$75) -> 0 | R43: =('INPUT|Vols'!R207+'INPUT|Vols'!R45)*(1+'INPUT|UR'!$G$75) -> 0 | S43: =('INPUT|Vols'!S207+'INPUT|Vols'!S45)*(1+'INPUT|UR'!$G$75) -> 0 | T43: =('INPUT|Vols'!T207+'INPUT|Vols'!T45)*(1+'INPUT|UR'!$G$75) -> 0 | U43: =('INPUT|Vols'!U207+'INPUT|Vols'!U45)*(1+'INPUT|UR'!$G$75) -> 0 | V43: =('INPUT|Vols'!V207+'INPUT|Vols'!V45)*(1+'INPUT|UR'!$G$75) -> 0 | W43: =('INPUT|Vols'!W207+'INPUT|Vols'!W45)*(1+'INPUT|UR'!$G$75) -> 0 | X43: =('INPUT|Vols'!X207+'INPUT|Vols'!X45)*(1+'INPUT|UR'!$G$75) -> 0 | Y43: =('INPUT|Vols'!Y207+'INPUT|Vols'!Y45)*(1+'INPUT|UR'!$G$75) -> 0 | AA43: =('INPUT|Vols'!AA207+'INPUT|Vols'!AA45)*(1+'INPUT|UR'!$G$75) -> 0 | AB43: =('INPUT|Vols'!AB207+'INPUT|Vols'!AB45)*(1+'INPUT|UR'!$G$75) -> 0 | AC43: =('INPUT|Vols'!AC207+'INPUT|Vols'!AC45)*(1+'INPUT|UR'!$G$75) -> 0 | AD43: =('INPUT|Vols'!AD207+'INPUT|Vols'!AD45)*(1+'INPUT|UR'!$G$75) -> 0 | AE43: =('INPUT|Vols'!AE207+'INPUT|Vols'!AE45)*(1+'INPUT|UR'!$G$75) -> 0 | AF43: =('INPUT|Vols'!AF207+'INPUT|Vols'!AF45)*(1+'INPUT|UR'!$G$75) -> 0 | AG43: =('INPUT|Vols'!AG207+'INPUT|Vols'!AG45)*(1+'INPUT|UR'!$G$75) -> 0 | AH43: =('INPUT|Vols'!AH207+'INPUT|Vols'!AH45)*(1+'INPUT|UR'!$G$75) -> 0 | AI43: =('INPUT|Vols'!AI207+'INPUT|Vols'!AI45)*(1+'INPUT|UR'!$G$75) -> 0 | AJ43: =('INPUT|Vols'!AJ207+'INPUT|Vols'!AJ45)*(1+'INPUT|UR'!$G$75) -> 0 | AK43: =('INPUT|Vols'!AK207+'INPUT|Vols'!AK45)*(1+'INPUT|UR'!$G$75) -> 0 | AL43: =('INPUT|Vols'!AL207+'INPUT|Vols'!AL45)*(1+'INPUT|UR'!$G$75) -> 0
C44: Actual interruptible capacity | D44: peak kWh/day | N44: =('INPUT|Vols'!N208+'INPUT|Vols'!N46)*(1+'INPUT|UR'!$G$75) -> 0 | O44: =('INPUT|Vols'!O208+'INPUT|Vols'!O46)*(1+'INPUT|UR'!$G$75) -> 0 | P44: =('INPUT|Vols'!P208+'INPUT|Vols'!P46)*(1+'INPUT|UR'!$G$75) -> 0 | Q44: =('INPUT|Vols'!Q208+'INPUT|Vols'!Q46)*(1+'INPUT|UR'!$G$75) -> 0 | R44: =('INPUT|Vols'!R208+'INPUT|Vols'!R46)*(1+'INPUT|UR'!$G$75) -> 0 | S44: =('INPUT|Vols'!S208+'INPUT|Vols'!S46)*(1+'INPUT|UR'!$G$75) -> 0 | T44: =('INPUT|Vols'!T208+'INPUT|Vols'!T46)*(1+'INPUT|UR'!$G$75) -> 0 | U44: =('INPUT|Vols'!U208+'INPUT|Vols'!U46)*(1+'INPUT|UR'!$G$75) -> 0 | V44: =('INPUT|Vols'!V208+'INPUT|Vols'!V46)*(1+'INPUT|UR'!$G$75) -> 0 | W44: =('INPUT|Vols'!W208+'INPUT|Vols'!W46)*(1+'INPUT|UR'!$G$75) -> 0 | X44: =('INPUT|Vols'!X208+'INPUT|Vols'!X46)*(1+'INPUT|UR'!$G$75) -> 0 | Y44: =('INPUT|Vols'!Y208+'INPUT|Vols'!Y46)*(1+'INPUT|UR'!$G$75) -> 0 | AA44: =('INPUT|Vols'!AA208+'INPUT|Vols'!AA46)*(1+'INPUT|UR'!$G$75) -> 0 | AB44: =('INPUT|Vols'!AB208+'INPUT|Vols'!AB46)*(1+'INPUT|UR'!$G$75) -> 0 | AC44: =('INPUT|Vols'!AC208+'INPUT|Vols'!AC46)*(1+'INPUT|UR'!$G$75) -> 0 | AD44: =('INPUT|Vols'!AD208+'INPUT|Vols'!AD46)*(1+'INPUT|UR'!$G$75) -> 0 | AE44: =('INPUT|Vols'!AE208+'INPUT|Vols'!AE46)*(1+'INPUT|UR'!$G$75) -> 0 | AF44: =('INPUT|Vols'!AF208+'INPUT|Vols'!AF46)*(1+'INPUT|UR'!$G$75) -> 0 | AG44: =('INPUT|Vols'!AG208+'INPUT|Vols'!AG46)*(1+'INPUT|UR'!$G$75) -> 0 | AH44: =('INPUT|Vols'!AH208+'INPUT|Vols'!AH46)*(1+'INPUT|UR'!$G$75) -> 0 | AI44: =('INPUT|Vols'!AI208+'INPUT|Vols'!AI46)*(1+'INPUT|UR'!$G$75) -> 0 | AJ44: =('INPUT|Vols'!AJ208+'INPUT|Vols'!AJ46)*(1+'INPUT|UR'!$G$75) -> 0 | AK44: =('INPUT|Vols'!AK208+'INPUT|Vols'!AK46)*(1+'INPUT|UR'!$G$75) -> 0 | AL44: =('INPUT|Vols'!AL208+'INPUT|Vols'!AL46)*(1+'INPUT|UR'!$G$75) -> 0
C46: ='INPUT|Vols'!C11 -> Shipper 3
C47: Annual capacity | D47: peak kWh/day | G47: =('INPUT|Vols'!G211+'INPUT|Vols'!G49)*(1+'INPUT|UR'!$G$75) -> 0 | AA47: =('INPUT|Vols'!AA211+'INPUT|Vols'!AA49)*(1+'INPUT|UR'!$G$75) -> 0 | AB47: =('INPUT|Vols'!AB211+'INPUT|Vols'!AB49)*(1+'INPUT|UR'!$G$75) -> 0 | AC47: =('INPUT|Vols'!AC211+'INPUT|Vols'!AC49)*(1+'INPUT|UR'!$G$75) -> 0 | AD47: =('INPUT|Vols'!AD211+'INPUT|Vols'!AD49)*(1+'INPUT|UR'!$G$75) -> 0 | AE47: =('INPUT|Vols'!AE211+'INPUT|Vols'!AE49)*(1+'INPUT|UR'!$G$75) -> 0 | AF47: =('INPUT|Vols'!AF211+'INPUT|Vols'!AF49)*(1+'INPUT|UR'!$G$75) -> 0 | AG47: =('INPUT|Vols'!AG211+'INPUT|Vols'!AG49)*(1+'INPUT|UR'!$G$75) -> 0 | AH47: =('INPUT|Vols'!AH211+'INPUT|Vols'!AH49)*(1+'INPUT|UR'!$G$75) -> 0 | AI47: =('INPUT|Vols'!AI211+'INPUT|Vols'!AI49)*(1+'INPUT|UR'!$G$75) -> 0 | AJ47: =('INPUT|Vols'!AJ211+'INPUT|Vols'!AJ49)*(1+'INPUT|UR'!$G$75) -> 0 | AK47: =('INPUT|Vols'!AK211+'INPUT|Vols'!AK49)*(1+'INPUT|UR'!$G$75) -> 0 | AL47: =('INPUT|Vols'!AL211+'INPUT|Vols'!AL49)*(1+'INPUT|UR'!$G$75) -> 0
C48: Quarterly capacity | D48: peak kWh/day | I48: =('INPUT|Vols'!I212+'INPUT|Vols'!I50)*(1+'INPUT|UR'!$G$75) -> 0 | J48: =('INPUT|Vols'!J212+'INPUT|Vols'!J50)*(1+'INPUT|UR'!$G$75) -> 0 | K48: =('INPUT|Vols'!K212+'INPUT|Vols'!K50)*(1+'INPUT|UR'!$G$75) -> 0 | L48: =('INPUT|Vols'!L212+'INPUT|Vols'!L50)*(1+'INPUT|UR'!$G$75) -> 0 | AA48: =('INPUT|Vols'!AA212+'INPUT|Vols'!AA50)*(1+'INPUT|UR'!$G$75) -> 0 | AB48: =('INPUT|Vols'!AB212+'INPUT|Vols'!AB50)*(1+'INPUT|UR'!$G$75) -> 0 | AC48: =('INPUT|Vols'!AC212+'INPUT|Vols'!AC50)*(1+'INPUT|UR'!$G$75) -> 0 | AD48: =('INPUT|Vols'!AD212+'INPUT|Vols'!AD50)*(1+'INPUT|UR'!$G$75) -> 0 | AE48: =('INPUT|Vols'!AE212+'INPUT|Vols'!AE50)*(1+'INPUT|UR'!$G$75) -> 0 | AF48: =('INPUT|Vols'!AF212+'INPUT|Vols'!AF50)*(1+'INPUT|UR'!$G$75) -> 0 | AG48: =('INPUT|Vols'!AG212+'INPUT|Vols'!AG50)*(1+'INPUT|UR'!$G$75) -> 0 | AH48: =('INPUT|Vols'!AH212+'INPUT|Vols'!AH50)*(1+'INPUT|UR'!$G$75) -> 0 | AI48: =('INPUT|Vols'!AI212+'INPUT|Vols'!AI50)*(1+'INPUT|UR'!$G$75) -> 0 | AJ48: =('INPUT|Vols'!AJ212+'INPUT|Vols'!AJ50)*(1+'INPUT|UR'!$G$75) -> 0 | AK48: =('INPUT|Vols'!AK212+'INPUT|Vols'!AK50)*(1+'INPUT|UR'!$G$75) -> 0 | AL48: =('INPUT|Vols'!AL212+'INPUT|Vols'!AL50)*(1+'INPUT|UR'!$G$75) -> 0
C49: Monthly capacity | D49: peak kWh/day | N49: =('INPUT|Vols'!N213+'INPUT|Vols'!N51)*(1+'INPUT|UR'!$G$75) -> 0 | O49: =('INPUT|Vols'!O213+'INPUT|Vols'!O51)*(1+'INPUT|UR'!$G$75) -> 0 | P49: =('INPUT|Vols'!P213+'INPUT|Vols'!P51)*(1+'INPUT|UR'!$G$75) -> 0 | Q49: =('INPUT|Vols'!Q213+'INPUT|Vols'!Q51)*(1+'INPUT|UR'!$G$75) -> 0 | R49: =('INPUT|Vols'!R213+'INPUT|Vols'!R51)*(1+'INPUT|UR'!$G$75) -> 0 | S49: =('INPUT|Vols'!S213+'INPUT|Vols'!S51)*(1+'INPUT|UR'!$G$75) -> 0 | T49: =('INPUT|Vols'!T213+'INPUT|Vols'!T51)*(1+'INPUT|UR'!$G$75) -> 0 | U49: =('INPUT|Vols'!U213+'INPUT|Vols'!U51)*(1+'INPUT|UR'!$G$75) -> 0 | V49: =('INPUT|Vols'!V213+'INPUT|Vols'!V51)*(1+'INPUT|UR'!$G$75) -> 0 | W49: =('INPUT|Vols'!W213+'INPUT|Vols'!W51)*(1+'INPUT|UR'!$G$75) -> 0 | X49: =('INPUT|Vols'!X213+'INPUT|Vols'!X51)*(1+'INPUT|UR'!$G$75) -> 0 | Y49: =('INPUT|Vols'!Y213+'INPUT|Vols'!Y51)*(1+'INPUT|UR'!$G$75) -> 0 | AA49: =('INPUT|Vols'!AA213+'INPUT|Vols'!AA51)*(1+'INPUT|UR'!$G$75) -> 0 | AB49: =('INPUT|Vols'!AB213+'INPUT|Vols'!AB51)*(1+'INPUT|UR'!$G$75) -> 0 | AC49: =('INPUT|Vols'!AC213+'INPUT|Vols'!AC51)*(1+'INPUT|UR'!$G$75) -> 0 | AD49: =('INPUT|Vols'!AD213+'INPUT|Vols'!AD51)*(1+'INPUT|UR'!$G$75) -> 0 | AE49: =('INPUT|Vols'!AE213+'INPUT|Vols'!AE51)*(1+'INPUT|UR'!$G$75) -> 0 | AF49: =('INPUT|Vols'!AF213+'INPUT|Vols'!AF51)*(1+'INPUT|UR'!$G$75) -> 0 | AG49: =('INPUT|Vols'!AG213+'INPUT|Vols'!AG51)*(1+'INPUT|UR'!$G$75) -> 0 | AH49: =('INPUT|Vols'!AH213+'INPUT|Vols'!AH51)*(1+'INPUT|UR'!$G$75) -> 0 | AI49: =('INPUT|Vols'!AI213+'INPUT|Vols'!AI51)*(1+'INPUT|UR'!$G$75) -> 0 | AJ49: =('INPUT|Vols'!AJ213+'INPUT|Vols'!AJ51)*(1+'INPUT|UR'!$G$75) -> 0 | AK49: =('INPUT|Vols'!AK213+'INPUT|Vols'!AK51)*(1+'INPUT|UR'!$G$75) -> 0 | AL49: =('INPUT|Vols'!AL213+'INPUT|Vols'!AL51)*(1+'INPUT|UR'!$G$75) -> 0
C50: Daily capacity | D50: peak kWh/day | N50: =('INPUT|Vols'!N214+'INPUT|Vols'!N52)*(1+'INPUT|UR'!$G$75) -> 0 | O50: =('INPUT|Vols'!O214+'INPUT|Vols'!O52)*(1+'INPUT|UR'!$G$75) -> 0 | P50: =('INPUT|Vols'!P214+'INPUT|Vols'!P52)*(1+'INPUT|UR'!$G$75) -> 0 | Q50: =('INPUT|Vols'!Q214+'INPUT|Vols'!Q52)*(1+'INPUT|UR'!$G$75) -> 0 | R50: =('INPUT|Vols'!R214+'INPUT|Vols'!R52)*(1+'INPUT|UR'!$G$75) -> 0 | S50: =('INPUT|Vols'!S214+'INPUT|Vols'!S52)*(1+'INPUT|UR'!$G$75) -> 0 | T50: =('INPUT|Vols'!T214+'INPUT|Vols'!T52)*(1+'INPUT|UR'!$G$75) -> 0 | U50: =('INPUT|Vols'!U214+'INPUT|Vols'!U52)*(1+'INPUT|UR'!$G$75) -> 0 | V50: =('INPUT|Vols'!V214+'INPUT|Vols'!V52)*(1+'INPUT|UR'!$G$75) -> 0 | W50: =('INPUT|Vols'!W214+'INPUT|Vols'!W52)*(1+'INPUT|UR'!$G$75) -> 0 | X50: =('INPUT|Vols'!X214+'INPUT|Vols'!X52)*(1+'INPUT|UR'!$G$75) -> 0 | Y50: =('INPUT|Vols'!Y214+'INPUT|Vols'!Y52)*(1+'INPUT|UR'!$G$75) -> 0 | AA50: =('INPUT|Vols'!AA214+'INPUT|Vols'!AA52)*(1+'INPUT|UR'!$G$75) -> 0 | AB50: =('INPUT|Vols'!AB214+'INPUT|Vols'!AB52)*(1+'INPUT|UR'!$G$75) -> 0 | AC50: =('INPUT|Vols'!AC214+'INPUT|Vols'!AC52)*(1+'INPUT|UR'!$G$75) -> 0 | AD50: =('INPUT|Vols'!AD214+'INPUT|Vols'!AD52)*(1+'INPUT|UR'!$G$75) -> 0 | AE50: =('INPUT|Vols'!AE214+'INPUT|Vols'!AE52)*(1+'INPUT|UR'!$G$75) -> 0 | AF50: =('INPUT|Vols'!AF214+'INPUT|Vols'!AF52)*(1+'INPUT|UR'!$G$75) -> 0 | AG50: =('INPUT|Vols'!AG214+'INPUT|Vols'!AG52)*(1+'INPUT|UR'!$G$75) -> 0 | AH50: =('INPUT|Vols'!AH214+'INPUT|Vols'!AH52)*(1+'INPUT|UR'!$G$75) -> 0 | AI50: =('INPUT|Vols'!AI214+'INPUT|Vols'!AI52)*(1+'INPUT|UR'!$G$75) -> 0 | AJ50: =('INPUT|Vols'!AJ214+'INPUT|Vols'!AJ52)*(1+'INPUT|UR'!$G$75) -> 0 | AK50: =('INPUT|Vols'!AK214+'INPUT|Vols'!AK52)*(1+'INPUT|UR'!$G$75) -> 0 | AL50: =('INPUT|Vols'!AL214+'INPUT|Vols'!AL52)*(1+'INPUT|UR'!$G$75) -> 0
C51: Within-day capacity | D51: peak kWh/day | N51: =('INPUT|Vols'!N215+'INPUT|Vols'!N53)*(1+'INPUT|UR'!$G$75) -> 0 | O51: =('INPUT|Vols'!O215+'INPUT|Vols'!O53)*(1+'INPUT|UR'!$G$75) -> 0 | P51: =('INPUT|Vols'!P215+'INPUT|Vols'!P53)*(1+'INPUT|UR'!$G$75) -> 0 | Q51: =('INPUT|Vols'!Q215+'INPUT|Vols'!Q53)*(1+'INPUT|UR'!$G$75) -> 0 | R51: =('INPUT|Vols'!R215+'INPUT|Vols'!R53)*(1+'INPUT|UR'!$G$75) -> 0 | S51: =('INPUT|Vols'!S215+'INPUT|Vols'!S53)*(1+'INPUT|UR'!$G$75) -> 0 | T51: =('INPUT|Vols'!T215+'INPUT|Vols'!T53)*(1+'INPUT|UR'!$G$75) -> 0 | U51: =('INPUT|Vols'!U215+'INPUT|Vols'!U53)*(1+'INPUT|UR'!$G$75) -> 0 | V51: =('INPUT|Vols'!V215+'INPUT|Vols'!V53)*(1+'INPUT|UR'!$G$75) -> 0 | W51: =('INPUT|Vols'!W215+'INPUT|Vols'!W53)*(1+'INPUT|UR'!$G$75) -> 0 | X51: =('INPUT|Vols'!X215+'INPUT|Vols'!X53)*(1+'INPUT|UR'!$G$75) -> 0 | Y51: =('INPUT|Vols'!Y215+'INPUT|Vols'!Y53)*(1+'INPUT|UR'!$G$75) -> 0 | AA51: =('INPUT|Vols'!AA215+'INPUT|Vols'!AA53)*(1+'INPUT|UR'!$G$75) -> 0 | AB51: =('INPUT|Vols'!AB215+'INPUT|Vols'!AB53)*(1+'INPUT|UR'!$G$75) -> 0 | AC51: =('INPUT|Vols'!AC215+'INPUT|Vols'!AC53)*(1+'INPUT|UR'!$G$75) -> 0 | AD51: =('INPUT|Vols'!AD215+'INPUT|Vols'!AD53)*(1+'INPUT|UR'!$G$75) -> 0 | AE51: =('INPUT|Vols'!AE215+'INPUT|Vols'!AE53)*(1+'INPUT|UR'!$G$75) -> 0 | AF51: =('INPUT|Vols'!AF215+'INPUT|Vols'!AF53)*(1+'INPUT|UR'!$G$75) -> 0 | AG51: =('INPUT|Vols'!AG215+'INPUT|Vols'!AG53)*(1+'INPUT|UR'!$G$75) -> 0 | AH51: =('INPUT|Vols'!AH215+'INPUT|Vols'!AH53)*(1+'INPUT|UR'!$G$75) -> 0 | AI51: =('INPUT|Vols'!AI215+'INPUT|Vols'!AI53)*(1+'INPUT|UR'!$G$75) -> 0 | AJ51: =('INPUT|Vols'!AJ215+'INPUT|Vols'!AJ53)*(1+'INPUT|UR'!$G$75) -> 0 | AK51: =('INPUT|Vols'!AK215+'INPUT|Vols'!AK53)*(1+'INPUT|UR'!$G$75) -> 0 | AL51: =('INPUT|Vols'!AL215+'INPUT|Vols'!AL53)*(1+'INPUT|UR'!$G$75) -> 0
C52: Actual interruptible capacity | D52: peak kWh/day | N52: =('INPUT|Vols'!N216+'INPUT|Vols'!N54)*(1+'INPUT|UR'!$G$75) -> 0 | O52: =('INPUT|Vols'!O216+'INPUT|Vols'!O54)*(1+'INPUT|UR'!$G$75) -> 0 | P52: =('INPUT|Vols'!P216+'INPUT|Vols'!P54)*(1+'INPUT|UR'!$G$75) -> 0 | Q52: =('INPUT|Vols'!Q216+'INPUT|Vols'!Q54)*(1+'INPUT|UR'!$G$75) -> 0 | R52: =('INPUT|Vols'!R216+'INPUT|Vols'!R54)*(1+'INPUT|UR'!$G$75) -> 0 | S52: =('INPUT|Vols'!S216+'INPUT|Vols'!S54)*(1+'INPUT|UR'!$G$75) -> 0 | T52: =('INPUT|Vols'!T216+'INPUT|Vols'!T54)*(1+'INPUT|UR'!$G$75) -> 0 | U52: =('INPUT|Vols'!U216+'INPUT|Vols'!U54)*(1+'INPUT|UR'!$G$75) -> 0 | V52: =('INPUT|Vols'!V216+'INPUT|Vols'!V54)*(1+'INPUT|UR'!$G$75) -> 0 | W52: =('INPUT|Vols'!W216+'INPUT|Vols'!W54)*(1+'INPUT|UR'!$G$75) -> 0 | X52: =('INPUT|Vols'!X216+'INPUT|Vols'!X54)*(1+'INPUT|UR'!$G$75) -> 0 | Y52: =('INPUT|Vols'!Y216+'INPUT|Vols'!Y54)*(1+'INPUT|UR'!$G$75) -> 0 | AA52: =('INPUT|Vols'!AA216+'INPUT|Vols'!AA54)*(1+'INPUT|UR'!$G$75) -> 0 | AB52: =('INPUT|Vols'!AB216+'INPUT|Vols'!AB54)*(1+'INPUT|UR'!$G$75) -> 0 | AC52: =('INPUT|Vols'!AC216+'INPUT|Vols'!AC54)*(1+'INPUT|UR'!$G$75) -> 0 | AD52: =('INPUT|Vols'!AD216+'INPUT|Vols'!AD54)*(1+'INPUT|UR'!$G$75) -> 0 | AE52: =('INPUT|Vols'!AE216+'INPUT|Vols'!AE54)*(1+'INPUT|UR'!$G$75) -> 0 | AF52: =('INPUT|Vols'!AF216+'INPUT|Vols'!AF54)*(1+'INPUT|UR'!$G$75) -> 0 | AG52: =('INPUT|Vols'!AG216+'INPUT|Vols'!AG54)*(1+'INPUT|UR'!$G$75) -> 0 | AH52: =('INPUT|Vols'!AH216+'INPUT|Vols'!AH54)*(1+'INPUT|UR'!$G$75) -> 0 | AI52: =('INPUT|Vols'!AI216+'INPUT|Vols'!AI54)*(1+'INPUT|UR'!$G$75) -> 0 | AJ52: =('INPUT|Vols'!AJ216+'INPUT|Vols'!AJ54)*(1+'INPUT|UR'!$G$75) -> 0 | AK52: =('INPUT|Vols'!AK216+'INPUT|Vols'!AK54)*(1+'INPUT|UR'!$G$75) -> 0 | AL52: =('INPUT|Vols'!AL216+'INPUT|Vols'!AL54)*(1+'INPUT|UR'!$G$75) -> 0
C54: ='INPUT|Vols'!C12 -> Shipper 4
C55: Annual capacity | D55: peak kWh/day | G55: =('INPUT|Vols'!G219+'INPUT|Vols'!G57)*(1+'INPUT|UR'!$G$75) -> 18766000 | AA55: =('INPUT|Vols'!AA219+'INPUT|Vols'!AA57)*(1+'INPUT|UR'!$G$75) -> 1563833.333 | AB55: =('INPUT|Vols'!AB219+'INPUT|Vols'!AB57)*(1+'INPUT|UR'!$G$75) -> 1563833.333 | AC55: =('INPUT|Vols'!AC219+'INPUT|Vols'!AC57)*(1+'INPUT|UR'!$G$75) -> 1563833.333 | AD55: =('INPUT|Vols'!AD219+'INPUT|Vols'!AD57)*(1+'INPUT|UR'!$G$75) -> 1563833.333 | AE55: =('INPUT|Vols'!AE219+'INPUT|Vols'!AE57)*(1+'INPUT|UR'!$G$75) -> 1563833.333 | AF55: =('INPUT|Vols'!AF219+'INPUT|Vols'!AF57)*(1+'INPUT|UR'!$G$75) -> 1563833.333 | AG55: =('INPUT|Vols'!AG219+'INPUT|Vols'!AG57)*(1+'INPUT|UR'!$G$75) -> 1563833.333 | AH55: =('INPUT|Vols'!AH219+'INPUT|Vols'!AH57)*(1+'INPUT|UR'!$G$75) -> 1563833.333 | AI55: =('INPUT|Vols'!AI219+'INPUT|Vols'!AI57)*(1+'INPUT|UR'!$G$75) -> 1563833.333 | AJ55: =('INPUT|Vols'!AJ219+'INPUT|Vols'!AJ57)*(1+'INPUT|UR'!$G$75) -> 1563833.333 | AK55: =('INPUT|Vols'!AK219+'INPUT|Vols'!AK57)*(1+'INPUT|UR'!$G$75) -> 1563833.333 | AL55: =('INPUT|Vols'!AL219+'INPUT|Vols'!AL57)*(1+'INPUT|UR'!$G$75) -> 1563833.333
C56: Quarterly capacity | D56: peak kWh/day | I56: =('INPUT|Vols'!I220+'INPUT|Vols'!I58)*(1+'INPUT|UR'!$G$75) -> 0 | J56: =('INPUT|Vols'!J220+'INPUT|Vols'!J58)*(1+'INPUT|UR'!$G$75) -> 0 | K56: =('INPUT|Vols'!K220+'INPUT|Vols'!K58)*(1+'INPUT|UR'!$G$75) -> 0 | L56: =('INPUT|Vols'!L220+'INPUT|Vols'!L58)*(1+'INPUT|UR'!$G$75) -> 0 | AA56: =('INPUT|Vols'!AA220+'INPUT|Vols'!AA58)*(1+'INPUT|UR'!$G$75) -> 0 | AB56: =('INPUT|Vols'!AB220+'INPUT|Vols'!AB58)*(1+'INPUT|UR'!$G$75) -> 0 | AC56: =('INPUT|Vols'!AC220+'INPUT|Vols'!AC58)*(1+'INPUT|UR'!$G$75) -> 0 | AD56: =('INPUT|Vols'!AD220+'INPUT|Vols'!AD58)*(1+'INPUT|UR'!$G$75) -> 0 | AE56: =('INPUT|Vols'!AE220+'INPUT|Vols'!AE58)*(1+'INPUT|UR'!$G$75) -> 0 | AF56: =('INPUT|Vols'!AF220+'INPUT|Vols'!AF58)*(1+'INPUT|UR'!$G$75) -> 0 | AG56: =('INPUT|Vols'!AG220+'INPUT|Vols'!AG58)*(1+'INPUT|UR'!$G$75) -> 0 | AH56: =('INPUT|Vols'!AH220+'INPUT|Vols'!AH58)*(1+'INPUT|UR'!$G$75) -> 0 | AI56: =('INPUT|Vols'!AI220+'INPUT|Vols'!AI58)*(1+'INPUT|UR'!$G$75) -> 0 | AJ56: =('INPUT|Vols'!AJ220+'INPUT|Vols'!AJ58)*(1+'INPUT|UR'!$G$75) -> 0 | AK56: =('INPUT|Vols'!AK220+'INPUT|Vols'!AK58)*(1+'INPUT|UR'!$G$75) -> 0 | AL56: =('INPUT|Vols'!AL220+'INPUT|Vols'!AL58)*(1+'INPUT|UR'!$G$75) -> 0
C57: Monthly capacity | D57: peak kWh/day | N57: =('INPUT|Vols'!N221+'INPUT|Vols'!N59)*(1+'INPUT|UR'!$G$75) -> 0 | O57: =('INPUT|Vols'!O221+'INPUT|Vols'!O59)*(1+'INPUT|UR'!$G$75) -> 0 | P57: =('INPUT|Vols'!P221+'INPUT|Vols'!P59)*(1+'INPUT|UR'!$G$75) -> 0 | Q57: =('INPUT|Vols'!Q221+'INPUT|Vols'!Q59)*(1+'INPUT|UR'!$G$75) -> 0 | R57: =('INPUT|Vols'!R221+'INPUT|Vols'!R59)*(1+'INPUT|UR'!$G$75) -> 0 | S57: =('INPUT|Vols'!S221+'INPUT|Vols'!S59)*(1+'INPUT|UR'!$G$75) -> 0 | T57: =('INPUT|Vols'!T221+'INPUT|Vols'!T59)*(1+'INPUT|UR'!$G$75) -> 0 | U57: =('INPUT|Vols'!U221+'INPUT|Vols'!U59)*(1+'INPUT|UR'!$G$75) -> 0 | V57: =('INPUT|Vols'!V221+'INPUT|Vols'!V59)*(1+'INPUT|UR'!$G$75) -> 0 | W57: =('INPUT|Vols'!W221+'INPUT|Vols'!W59)*(1+'INPUT|UR'!$G$75) -> 0 | X57: =('INPUT|Vols'!X221+'INPUT|Vols'!X59)*(1+'INPUT|UR'!$G$75) -> 0 | Y57: =('INPUT|Vols'!Y221+'INPUT|Vols'!Y59)*(1+'INPUT|UR'!$G$75) -> 0 | AA57: =('INPUT|Vols'!AA221+'INPUT|Vols'!AA59)*(1+'INPUT|UR'!$G$75) -> 0 | AB57: =('INPUT|Vols'!AB221+'INPUT|Vols'!AB59)*(1+'INPUT|UR'!$G$75) -> 0 | AC57: =('INPUT|Vols'!AC221+'INPUT|Vols'!AC59)*(1+'INPUT|UR'!$G$75) -> 0 | AD57: =('INPUT|Vols'!AD221+'INPUT|Vols'!AD59)*(1+'INPUT|UR'!$G$75) -> 0 | AE57: =('INPUT|Vols'!AE221+'INPUT|Vols'!AE59)*(1+'INPUT|UR'!$G$75) -> 0 | AF57: =('INPUT|Vols'!AF221+'INPUT|Vols'!AF59)*(1+'INPUT|UR'!$G$75) -> 0 | AG57: =('INPUT|Vols'!AG221+'INPUT|Vols'!AG59)*(1+'INPUT|UR'!$G$75) -> 0 | AH57: =('INPUT|Vols'!AH221+'INPUT|Vols'!AH59)*(1+'INPUT|UR'!$G$75) -> 0 | AI57: =('INPUT|Vols'!AI221+'INPUT|Vols'!AI59)*(1+'INPUT|UR'!$G$75) -> 0 | AJ57: =('INPUT|Vols'!AJ221+'INPUT|Vols'!AJ59)*(1+'INPUT|UR'!$G$75) -> 0 | AK57: =('INPUT|Vols'!AK221+'INPUT|Vols'!AK59)*(1+'INPUT|UR'!$G$75) -> 0 | AL57: =('INPUT|Vols'!AL221+'INPUT|Vols'!AL59)*(1+'INPUT|UR'!$G$75) -> 0
C58: Daily capacity | D58: peak kWh/day | N58: =('INPUT|Vols'!N222+'INPUT|Vols'!N60)*(1+'INPUT|UR'!$G$75) -> 0 | O58: =('INPUT|Vols'!O222+'INPUT|Vols'!O60)*(1+'INPUT|UR'!$G$75) -> 0 | P58: =('INPUT|Vols'!P222+'INPUT|Vols'!P60)*(1+'INPUT|UR'!$G$75) -> 0 | Q58: =('INPUT|Vols'!Q222+'INPUT|Vols'!Q60)*(1+'INPUT|UR'!$G$75) -> 0 | R58: =('INPUT|Vols'!R222+'INPUT|Vols'!R60)*(1+'INPUT|UR'!$G$75) -> 0 | S58: =('INPUT|Vols'!S222+'INPUT|Vols'!S60)*(1+'INPUT|UR'!$G$75) -> 0 | T58: =('INPUT|Vols'!T222+'INPUT|Vols'!T60)*(1+'INPUT|UR'!$G$75) -> 0 | U58: =('INPUT|Vols'!U222+'INPUT|Vols'!U60)*(1+'INPUT|UR'!$G$75) -> 0 | V58: =('INPUT|Vols'!V222+'INPUT|Vols'!V60)*(1+'INPUT|UR'!$G$75) -> 0 | W58: =('INPUT|Vols'!W222+'INPUT|Vols'!W60)*(1+'INPUT|UR'!$G$75) -> 0 | X58: =('INPUT|Vols'!X222+'INPUT|Vols'!X60)*(1+'INPUT|UR'!$G$75) -> 0 | Y58: =('INPUT|Vols'!Y222+'INPUT|Vols'!Y60)*(1+'INPUT|UR'!$G$75) -> 0 | AA58: =('INPUT|Vols'!AA222+'INPUT|Vols'!AA60)*(1+'INPUT|UR'!$G$75) -> 0 | AB58: =('INPUT|Vols'!AB222+'INPUT|Vols'!AB60)*(1+'INPUT|UR'!$G$75) -> 0 | AC58: =('INPUT|Vols'!AC222+'INPUT|Vols'!AC60)*(1+'INPUT|UR'!$G$75) -> 0 | AD58: =('INPUT|Vols'!AD222+'INPUT|Vols'!AD60)*(1+'INPUT|UR'!$G$75) -> 0 | AE58: =('INPUT|Vols'!AE222+'INPUT|Vols'!AE60)*(1+'INPUT|UR'!$G$75) -> 0 | AF58: =('INPUT|Vols'!AF222+'INPUT|Vols'!AF60)*(1+'INPUT|UR'!$G$75) -> 0 | AG58: =('INPUT|Vols'!AG222+'INPUT|Vols'!AG60)*(1+'INPUT|UR'!$G$75) -> 0 | AH58: =('INPUT|Vols'!AH222+'INPUT|Vols'!AH60)*(1+'INPUT|UR'!$G$75) -> 0 | AI58: =('INPUT|Vols'!AI222+'INPUT|Vols'!AI60)*(1+'INPUT|UR'!$G$75) -> 0 | AJ58: =('INPUT|Vols'!AJ222+'INPUT|Vols'!AJ60)*(1+'INPUT|UR'!$G$75) -> 0 | AK58: =('INPUT|Vols'!AK222+'INPUT|Vols'!AK60)*(1+'INPUT|UR'!$G$75) -> 0 | AL58: =('INPUT|Vols'!AL222+'INPUT|Vols'!AL60)*(1+'INPUT|UR'!$G$75) -> 0
C59: Within-day capacity | D59: peak kWh/day | N59: =('INPUT|Vols'!N223+'INPUT|Vols'!N61)*(1+'INPUT|UR'!$G$75) -> 0 | O59: =('INPUT|Vols'!O223+'INPUT|Vols'!O61)*(1+'INPUT|UR'!$G$75) -> 0 | P59: =('INPUT|Vols'!P223+'INPUT|Vols'!P61)*(1+'INPUT|UR'!$G$75) -> 0 | Q59: =('INPUT|Vols'!Q223+'INPUT|Vols'!Q61)*(1+'INPUT|UR'!$G$75) -> 0 | R59: =('INPUT|Vols'!R223+'INPUT|Vols'!R61)*(1+'INPUT|UR'!$G$75) -> 0 | S59: =('INPUT|Vols'!S223+'INPUT|Vols'!S61)*(1+'INPUT|UR'!$G$75) -> 0 | T59: =('INPUT|Vols'!T223+'INPUT|Vols'!T61)*(1+'INPUT|UR'!$G$75) -> 0 | U59: =('INPUT|Vols'!U223+'INPUT|Vols'!U61)*(1+'INPUT|UR'!$G$75) -> 0 | V59: =('INPUT|Vols'!V223+'INPUT|Vols'!V61)*(1+'INPUT|UR'!$G$75) -> 0 | W59: =('INPUT|Vols'!W223+'INPUT|Vols'!W61)*(1+'INPUT|UR'!$G$75) -> 0 | X59: =('INPUT|Vols'!X223+'INPUT|Vols'!X61)*(1+'INPUT|UR'!$G$75) -> 0 | Y59: =('INPUT|Vols'!Y223+'INPUT|Vols'!Y61)*(1+'INPUT|UR'!$G$75) -> 0 | AA59: =('INPUT|Vols'!AA223+'INPUT|Vols'!AA61)*(1+'INPUT|UR'!$G$75) -> 0 | AB59: =('INPUT|Vols'!AB223+'INPUT|Vols'!AB61)*(1+'INPUT|UR'!$G$75) -> 0 | AC59: =('INPUT|Vols'!AC223+'INPUT|Vols'!AC61)*(1+'INPUT|UR'!$G$75) -> 0 | AD59: =('INPUT|Vols'!AD223+'INPUT|Vols'!AD61)*(1+'INPUT|UR'!$G$75) -> 0 | AE59: =('INPUT|Vols'!AE223+'INPUT|Vols'!AE61)*(1+'INPUT|UR'!$G$75) -> 0 | AF59: =('INPUT|Vols'!AF223+'INPUT|Vols'!AF61)*(1+'INPUT|UR'!$G$75) -> 0 | AG59: =('INPUT|Vols'!AG223+'INPUT|Vols'!AG61)*(1+'INPUT|UR'!$G$75) -> 0 | AH59: =('INPUT|Vols'!AH223+'INPUT|Vols'!AH61)*(1+'INPUT|UR'!$G$75) -> 0 | AI59: =('INPUT|Vols'!AI223+'INPUT|Vols'!AI61)*(1+'INPUT|UR'!$G$75) -> 0 | AJ59: =('INPUT|Vols'!AJ223+'INPUT|Vols'!AJ61)*(1+'INPUT|UR'!$G$75) -> 0 | AK59: =('INPUT|Vols'!AK223+'INPUT|Vols'!AK61)*(1+'INPUT|UR'!$G$75) -> 0 | AL59: =('INPUT|Vols'!AL223+'INPUT|Vols'!AL61)*(1+'INPUT|UR'!$G$75) -> 0
C60: Actual interruptible capacity | D60: peak kWh/day | N60: =('INPUT|Vols'!N224+'INPUT|Vols'!N62)*(1+'INPUT|UR'!$G$75) -> 0 | O60: =('INPUT|Vols'!O224+'INPUT|Vols'!O62)*(1+'INPUT|UR'!$G$75) -> 0 | P60: =('INPUT|Vols'!P224+'INPUT|Vols'!P62)*(1+'INPUT|UR'!$G$75) -> 0 | Q60: =('INPUT|Vols'!Q224+'INPUT|Vols'!Q62)*(1+'INPUT|UR'!$G$75) -> 0 | R60: =('INPUT|Vols'!R224+'INPUT|Vols'!R62)*(1+'INPUT|UR'!$G$75) -> 0 | S60: =('INPUT|Vols'!S224+'INPUT|Vols'!S62)*(1+'INPUT|UR'!$G$75) -> 0 | T60: =('INPUT|Vols'!T224+'INPUT|Vols'!T62)*(1+'INPUT|UR'!$G$75) -> 0 | U60: =('INPUT|Vols'!U224+'INPUT|Vols'!U62)*(1+'INPUT|UR'!$G$75) -> 0 | V60: =('INPUT|Vols'!V224+'INPUT|Vols'!V62)*(1+'INPUT|UR'!$G$75) -> 0 | W60: =('INPUT|Vols'!W224+'INPUT|Vols'!W62)*(1+'INPUT|UR'!$G$75) -> 0 | X60: =('INPUT|Vols'!X224+'INPUT|Vols'!X62)*(1+'INPUT|UR'!$G$75) -> 0 | Y60: =('INPUT|Vols'!Y224+'INPUT|Vols'!Y62)*(1+'INPUT|UR'!$G$75) -> 0 | AA60: =('INPUT|Vols'!AA224+'INPUT|Vols'!AA62)*(1+'INPUT|UR'!$G$75) -> 0 | AB60: =('INPUT|Vols'!AB224+'INPUT|Vols'!AB62)*(1+'INPUT|UR'!$G$75) -> 0 | AC60: =('INPUT|Vols'!AC224+'INPUT|Vols'!AC62)*(1+'INPUT|UR'!$G$75) -> 0 | AD60: =('INPUT|Vols'!AD224+'INPUT|Vols'!AD62)*(1+'INPUT|UR'!$G$75) -> 0 | AE60: =('INPUT|Vols'!AE224+'INPUT|Vols'!AE62)*(1+'INPUT|UR'!$G$75) -> 0 | AF60: =('INPUT|Vols'!AF224+'INPUT|Vols'!AF62)*(1+'INPUT|UR'!$G$75) -> 0 | AG60: =('INPUT|Vols'!AG224+'INPUT|Vols'!AG62)*(1+'INPUT|UR'!$G$75) -> 0 | AH60: =('INPUT|Vols'!AH224+'INPUT|Vols'!AH62)*(1+'INPUT|UR'!$G$75) -> 0 | AI60: =('INPUT|Vols'!AI224+'INPUT|Vols'!AI62)*(1+'INPUT|UR'!$G$75) -> 0 | AJ60: =('INPUT|Vols'!AJ224+'INPUT|Vols'!AJ62)*(1+'INPUT|UR'!$G$75) -> 0 | AK60: =('INPUT|Vols'!AK224+'INPUT|Vols'!AK62)*(1+'INPUT|UR'!$G$75) -> 0 | AL60: =('INPUT|Vols'!AL224+'INPUT|Vols'!AL62)*(1+'INPUT|UR'!$G$75) -> 0
C62: ='INPUT|Vols'!C13 -> Shipper 5
C63: Annual capacity | D63: peak kWh/day | G63: =('INPUT|Vols'!G227+'INPUT|Vols'!G65)*(1+'INPUT|UR'!$G$75) -> 0 | AA63: =('INPUT|Vols'!AA227+'INPUT|Vols'!AA65)*(1+'INPUT|UR'!$G$75) -> 0 | AB63: =('INPUT|Vols'!AB227+'INPUT|Vols'!AB65)*(1+'INPUT|UR'!$G$75) -> 0 | AC63: =('INPUT|Vols'!AC227+'INPUT|Vols'!AC65)*(1+'INPUT|UR'!$G$75) -> 0 | AD63: =('INPUT|Vols'!AD227+'INPUT|Vols'!AD65)*(1+'INPUT|UR'!$G$75) -> 0 | AE63: =('INPUT|Vols'!AE227+'INPUT|Vols'!AE65)*(1+'INPUT|UR'!$G$75) -> 0 | AF63: =('INPUT|Vols'!AF227+'INPUT|Vols'!AF65)*(1+'INPUT|UR'!$G$75) -> 0 | AG63: =('INPUT|Vols'!AG227+'INPUT|Vols'!AG65)*(1+'INPUT|UR'!$G$75) -> 0 | AH63: =('INPUT|Vols'!AH227+'INPUT|Vols'!AH65)*(1+'INPUT|UR'!$G$75) -> 0 | AI63: =('INPUT|Vols'!AI227+'INPUT|Vols'!AI65)*(1+'INPUT|UR'!$G$75) -> 0 | AJ63: =('INPUT|Vols'!AJ227+'INPUT|Vols'!AJ65)*(1+'INPUT|UR'!$G$75) -> 0 | AK63: =('INPUT|Vols'!AK227+'INPUT|Vols'!AK65)*(1+'INPUT|UR'!$G$75) -> 0 | AL63: =('INPUT|Vols'!AL227+'INPUT|Vols'!AL65)*(1+'INPUT|UR'!$G$75) -> 0
C64: Quarterly capacity | D64: peak kWh/day | I64: =('INPUT|Vols'!I228+'INPUT|Vols'!I66)*(1+'INPUT|UR'!$G$75) -> 0 | J64: =('INPUT|Vols'!J228+'INPUT|Vols'!J66)*(1+'INPUT|UR'!$G$75) -> 0 | K64: =('INPUT|Vols'!K228+'INPUT|Vols'!K66)*(1+'INPUT|UR'!$G$75) -> 0 | L64: =('INPUT|Vols'!L228+'INPUT|Vols'!L66)*(1+'INPUT|UR'!$G$75) -> 0 | AA64: =('INPUT|Vols'!AA228+'INPUT|Vols'!AA66)*(1+'INPUT|UR'!$G$75) -> 0 | AB64: =('INPUT|Vols'!AB228+'INPUT|Vols'!AB66)*(1+'INPUT|UR'!$G$75) -> 0 | AC64: =('INPUT|Vols'!AC228+'INPUT|Vols'!AC66)*(1+'INPUT|UR'!$G$75) -> 0 | AD64: =('INPUT|Vols'!AD228+'INPUT|Vols'!AD66)*(1+'INPUT|UR'!$G$75) -> 0 | AE64: =('INPUT|Vols'!AE228+'INPUT|Vols'!AE66)*(1+'INPUT|UR'!$G$75) -> 0 | AF64: =('INPUT|Vols'!AF228+'INPUT|Vols'!AF66)*(1+'INPUT|UR'!$G$75) -> 0 | AG64: =('INPUT|Vols'!AG228+'INPUT|Vols'!AG66)*(1+'INPUT|UR'!$G$75) -> 0 | AH64: =('INPUT|Vols'!AH228+'INPUT|Vols'!AH66)*(1+'INPUT|UR'!$G$75) -> 0 | AI64: =('INPUT|Vols'!AI228+'INPUT|Vols'!AI66)*(1+'INPUT|UR'!$G$75) -> 0 | AJ64: =('INPUT|Vols'!AJ228+'INPUT|Vols'!AJ66)*(1+'INPUT|UR'!$G$75) -> 0 | AK64: =('INPUT|Vols'!AK228+'INPUT|Vols'!AK66)*(1+'INPUT|UR'!$G$75) -> 0 | AL64: =('INPUT|Vols'!AL228+'INPUT|Vols'!AL66)*(1+'INPUT|UR'!$G$75) -> 0
C65: Monthly capacity | D65: peak kWh/day | N65: =('INPUT|Vols'!N229+'INPUT|Vols'!N67)*(1+'INPUT|UR'!$G$75) -> 0 | O65: =('INPUT|Vols'!O229+'INPUT|Vols'!O67)*(1+'INPUT|UR'!$G$75) -> 0 | P65: =('INPUT|Vols'!P229+'INPUT|Vols'!P67)*(1+'INPUT|UR'!$G$75) -> 0 | Q65: =('INPUT|Vols'!Q229+'INPUT|Vols'!Q67)*(1+'INPUT|UR'!$G$75) -> 0 | R65: =('INPUT|Vols'!R229+'INPUT|Vols'!R67)*(1+'INPUT|UR'!$G$75) -> 0 | S65: =('INPUT|Vols'!S229+'INPUT|Vols'!S67)*(1+'INPUT|UR'!$G$75) -> 0 | T65: =('INPUT|Vols'!T229+'INPUT|Vols'!T67)*(1+'INPUT|UR'!$G$75) -> 0 | U65: =('INPUT|Vols'!U229+'INPUT|Vols'!U67)*(1+'INPUT|UR'!$G$75) -> 0 | V65: =('INPUT|Vols'!V229+'INPUT|Vols'!V67)*(1+'INPUT|UR'!$G$75) -> 0 | W65: =('INPUT|Vols'!W229+'INPUT|Vols'!W67)*(1+'INPUT|UR'!$G$75) -> 0 | X65: =('INPUT|Vols'!X229+'INPUT|Vols'!X67)*(1+'INPUT|UR'!$G$75) -> 0 | Y65: =('INPUT|Vols'!Y229+'INPUT|Vols'!Y67)*(1+'INPUT|UR'!$G$75) -> 0 | AA65: =('INPUT|Vols'!AA229+'INPUT|Vols'!AA67)*(1+'INPUT|UR'!$G$75) -> 0 | AB65: =('INPUT|Vols'!AB229+'INPUT|Vols'!AB67)*(1+'INPUT|UR'!$G$75) -> 0 | AC65: =('INPUT|Vols'!AC229+'INPUT|Vols'!AC67)*(1+'INPUT|UR'!$G$75) -> 0 | AD65: =('INPUT|Vols'!AD229+'INPUT|Vols'!AD67)*(1+'INPUT|UR'!$G$75) -> 0 | AE65: =('INPUT|Vols'!AE229+'INPUT|Vols'!AE67)*(1+'INPUT|UR'!$G$75) -> 0 | AF65: =('INPUT|Vols'!AF229+'INPUT|Vols'!AF67)*(1+'INPUT|UR'!$G$75) -> 0 | AG65: =('INPUT|Vols'!AG229+'INPUT|Vols'!AG67)*(1+'INPUT|UR'!$G$75) -> 0 | AH65: =('INPUT|Vols'!AH229+'INPUT|Vols'!AH67)*(1+'INPUT|UR'!$G$75) -> 0 | AI65: =('INPUT|Vols'!AI229+'INPUT|Vols'!AI67)*(1+'INPUT|UR'!$G$75) -> 0 | AJ65: =('INPUT|Vols'!AJ229+'INPUT|Vols'!AJ67)*(1+'INPUT|UR'!$G$75) -> 0 | AK65: =('INPUT|Vols'!AK229+'INPUT|Vols'!AK67)*(1+'INPUT|UR'!$G$75) -> 0 | AL65: =('INPUT|Vols'!AL229+'INPUT|Vols'!AL67)*(1+'INPUT|UR'!$G$75) -> 0
C66: Daily capacity | D66: peak kWh/day | N66: =('INPUT|Vols'!N230+'INPUT|Vols'!N68)*(1+'INPUT|UR'!$G$75) -> 0 | O66: =('INPUT|Vols'!O230+'INPUT|Vols'!O68)*(1+'INPUT|UR'!$G$75) -> 0 | P66: =('INPUT|Vols'!P230+'INPUT|Vols'!P68)*(1+'INPUT|UR'!$G$75) -> 0 | Q66: =('INPUT|Vols'!Q230+'INPUT|Vols'!Q68)*(1+'INPUT|UR'!$G$75) -> 0 | R66: =('INPUT|Vols'!R230+'INPUT|Vols'!R68)*(1+'INPUT|UR'!$G$75) -> 0 | S66: =('INPUT|Vols'!S230+'INPUT|Vols'!S68)*(1+'INPUT|UR'!$G$75) -> 0 | T66: =('INPUT|Vols'!T230+'INPUT|Vols'!T68)*(1+'INPUT|UR'!$G$75) -> 0 | U66: =('INPUT|Vols'!U230+'INPUT|Vols'!U68)*(1+'INPUT|UR'!$G$75) -> 0 | V66: =('INPUT|Vols'!V230+'INPUT|Vols'!V68)*(1+'INPUT|UR'!$G$75) -> 0 | W66: =('INPUT|Vols'!W230+'INPUT|Vols'!W68)*(1+'INPUT|UR'!$G$75) -> 0 | X66: =('INPUT|Vols'!X230+'INPUT|Vols'!X68)*(1+'INPUT|UR'!$G$75) -> 0 | Y66: =('INPUT|Vols'!Y230+'INPUT|Vols'!Y68)*(1+'INPUT|UR'!$G$75) -> 0 | AA66: =('INPUT|Vols'!AA230+'INPUT|Vols'!AA68)*(1+'INPUT|UR'!$G$75) -> 0 | AB66: =('INPUT|Vols'!AB230+'INPUT|Vols'!AB68)*(1+'INPUT|UR'!$G$75) -> 0 | AC66: =('INPUT|Vols'!AC230+'INPUT|Vols'!AC68)*(1+'INPUT|UR'!$G$75) -> 0 | AD66: =('INPUT|Vols'!AD230+'INPUT|Vols'!AD68)*(1+'INPUT|UR'!$G$75) -> 0 | AE66: =('INPUT|Vols'!AE230+'INPUT|Vols'!AE68)*(1+'INPUT|UR'!$G$75) -> 0 | AF66: =('INPUT|Vols'!AF230+'INPUT|Vols'!AF68)*(1+'INPUT|UR'!$G$75) -> 0 | AG66: =('INPUT|Vols'!AG230+'INPUT|Vols'!AG68)*(1+'INPUT|UR'!$G$75) -> 0 | AH66: =('INPUT|Vols'!AH230+'INPUT|Vols'!AH68)*(1+'INPUT|UR'!$G$75) -> 0 | AI66: =('INPUT|Vols'!AI230+'INPUT|Vols'!AI68)*(1+'INPUT|UR'!$G$75) -> 0 | AJ66: =('INPUT|Vols'!AJ230+'INPUT|Vols'!AJ68)*(1+'INPUT|UR'!$G$75) -> 0 | AK66: =('INPUT|Vols'!AK230+'INPUT|Vols'!AK68)*(1+'INPUT|UR'!$G$75) -> 0 | AL66: =('INPUT|Vols'!AL230+'INPUT|Vols'!AL68)*(1+'INPUT|UR'!$G$75) -> 0
C67: Within-day capacity | D67: peak kWh/day | N67: =('INPUT|Vols'!N231+'INPUT|Vols'!N69)*(1+'INPUT|UR'!$G$75) -> 0 | O67: =('INPUT|Vols'!O231+'INPUT|Vols'!O69)*(1+'INPUT|UR'!$G$75) -> 0 | P67: =('INPUT|Vols'!P231+'INPUT|Vols'!P69)*(1+'INPUT|UR'!$G$75) -> 0 | Q67: =('INPUT|Vols'!Q231+'INPUT|Vols'!Q69)*(1+'INPUT|UR'!$G$75) -> 0 | R67: =('INPUT|Vols'!R231+'INPUT|Vols'!R69)*(1+'INPUT|UR'!$G$75) -> 0 | S67: =('INPUT|Vols'!S231+'INPUT|Vols'!S69)*(1+'INPUT|UR'!$G$75) -> 0 | T67: =('INPUT|Vols'!T231+'INPUT|Vols'!T69)*(1+'INPUT|UR'!$G$75) -> 0 | U67: =('INPUT|Vols'!U231+'INPUT|Vols'!U69)*(1+'INPUT|UR'!$G$75) -> 0 | V67: =('INPUT|Vols'!V231+'INPUT|Vols'!V69)*(1+'INPUT|UR'!$G$75) -> 0 | W67: =('INPUT|Vols'!W231+'INPUT|Vols'!W69)*(1+'INPUT|UR'!$G$75) -> 0 | X67: =('INPUT|Vols'!X231+'INPUT|Vols'!X69)*(1+'INPUT|UR'!$G$75) -> 0 | Y67: =('INPUT|Vols'!Y231+'INPUT|Vols'!Y69)*(1+'INPUT|UR'!$G$75) -> 0 | AA67: =('INPUT|Vols'!AA231+'INPUT|Vols'!AA69)*(1+'INPUT|UR'!$G$75) -> 0 | AB67: =('INPUT|Vols'!AB231+'INPUT|Vols'!AB69)*(1+'INPUT|UR'!$G$75) -> 0 | AC67: =('INPUT|Vols'!AC231+'INPUT|Vols'!AC69)*(1+'INPUT|UR'!$G$75) -> 0 | AD67: =('INPUT|Vols'!AD231+'INPUT|Vols'!AD69)*(1+'INPUT|UR'!$G$75) -> 0 | AE67: =('INPUT|Vols'!AE231+'INPUT|Vols'!AE69)*(1+'INPUT|UR'!$G$75) -> 0 | AF67: =('INPUT|Vols'!AF231+'INPUT|Vols'!AF69)*(1+'INPUT|UR'!$G$75) -> 0 | AG67: =('INPUT|Vols'!AG231+'INPUT|Vols'!AG69)*(1+'INPUT|UR'!$G$75) -> 0 | AH67: =('INPUT|Vols'!AH231+'INPUT|Vols'!AH69)*(1+'INPUT|UR'!$G$75) -> 0 | AI67: =('INPUT|Vols'!AI231+'INPUT|Vols'!AI69)*(1+'INPUT|UR'!$G$75) -> 0 | AJ67: =('INPUT|Vols'!AJ231+'INPUT|Vols'!AJ69)*(1+'INPUT|UR'!$G$75) -> 0 | AK67: =('INPUT|Vols'!AK231+'INPUT|Vols'!AK69)*(1+'INPUT|UR'!$G$75) -> 0 | AL67: =('INPUT|Vols'!AL231+'INPUT|Vols'!AL69)*(1+'INPUT|UR'!$G$75) -> 0
C68: Actual interruptible capacity | D68: peak kWh/day | N68: =('INPUT|Vols'!N232+'INPUT|Vols'!N70)*(1+'INPUT|UR'!$G$75) -> 0 | O68: =('INPUT|Vols'!O232+'INPUT|Vols'!O70)*(1+'INPUT|UR'!$G$75) -> 0 | P68: =('INPUT|Vols'!P232+'INPUT|Vols'!P70)*(1+'INPUT|UR'!$G$75) -> 0 | Q68: =('INPUT|Vols'!Q232+'INPUT|Vols'!Q70)*(1+'INPUT|UR'!$G$75) -> 0 | R68: =('INPUT|Vols'!R232+'INPUT|Vols'!R70)*(1+'INPUT|UR'!$G$75) -> 0 | S68: =('INPUT|Vols'!S232+'INPUT|Vols'!S70)*(1+'INPUT|UR'!$G$75) -> 0 | T68: =('INPUT|Vols'!T232+'INPUT|Vols'!T70)*(1+'INPUT|UR'!$G$75) -> 0 | U68: =('INPUT|Vols'!U232+'INPUT|Vols'!U70)*(1+'INPUT|UR'!$G$75) -> 0 | V68: =('INPUT|Vols'!V232+'INPUT|Vols'!V70)*(1+'INPUT|UR'!$G$75) -> 0 | W68: =('INPUT|Vols'!W232+'INPUT|Vols'!W70)*(1+'INPUT|UR'!$G$75) -> 0 | X68: =('INPUT|Vols'!X232+'INPUT|Vols'!X70)*(1+'INPUT|UR'!$G$75) -> 0 | Y68: =('INPUT|Vols'!Y232+'INPUT|Vols'!Y70)*(1+'INPUT|UR'!$G$75) -> 0 | AA68: =('INPUT|Vols'!AA232+'INPUT|Vols'!AA70)*(1+'INPUT|UR'!$G$75) -> 0 | AB68: =('INPUT|Vols'!AB232+'INPUT|Vols'!AB70)*(1+'INPUT|UR'!$G$75) -> 0 | AC68: =('INPUT|Vols'!AC232+'INPUT|Vols'!AC70)*(1+'INPUT|UR'!$G$75) -> 0 | AD68: =('INPUT|Vols'!AD232+'INPUT|Vols'!AD70)*(1+'INPUT|UR'!$G$75) -> 0 | AE68: =('INPUT|Vols'!AE232+'INPUT|Vols'!AE70)*(1+'INPUT|UR'!$G$75) -> 0 | AF68: =('INPUT|Vols'!AF232+'INPUT|Vols'!AF70)*(1+'INPUT|UR'!$G$75) -> 0 | AG68: =('INPUT|Vols'!AG232+'INPUT|Vols'!AG70)*(1+'INPUT|UR'!$G$75) -> 0 | AH68: =('INPUT|Vols'!AH232+'INPUT|Vols'!AH70)*(1+'INPUT|UR'!$G$75) -> 0 | AI68: =('INPUT|Vols'!AI232+'INPUT|Vols'!AI70)*(1+'INPUT|UR'!$G$75) -> 0 | AJ68: =('INPUT|Vols'!AJ232+'INPUT|Vols'!AJ70)*(1+'INPUT|UR'!$G$75) -> 0 | AK68: =('INPUT|Vols'!AK232+'INPUT|Vols'!AK70)*(1+'INPUT|UR'!$G$75) -> 0 | AL68: =('INPUT|Vols'!AL232+'INPUT|Vols'!AL70)*(1+'INPUT|UR'!$G$75) -> 0
C70: ='INPUT|Vols'!C14 -> Shipper 6
C71: Annual capacity | D71: peak kWh/day | G71: =('INPUT|Vols'!G235+'INPUT|Vols'!G73)*(1+'INPUT|UR'!$G$75) -> 0 | AA71: =('INPUT|Vols'!AA235+'INPUT|Vols'!AA73)*(1+'INPUT|UR'!$G$75) -> 0 | AB71: =('INPUT|Vols'!AB235+'INPUT|Vols'!AB73)*(1+'INPUT|UR'!$G$75) -> 0 | AC71: =('INPUT|Vols'!AC235+'INPUT|Vols'!AC73)*(1+'INPUT|UR'!$G$75) -> 0 | AD71: =('INPUT|Vols'!AD235+'INPUT|Vols'!AD73)*(1+'INPUT|UR'!$G$75) -> 0 | AE71: =('INPUT|Vols'!AE235+'INPUT|Vols'!AE73)*(1+'INPUT|UR'!$G$75) -> 0 | AF71: =('INPUT|Vols'!AF235+'INPUT|Vols'!AF73)*(1+'INPUT|UR'!$G$75) -> 0 | AG71: =('INPUT|Vols'!AG235+'INPUT|Vols'!AG73)*(1+'INPUT|UR'!$G$75) -> 0 | AH71: =('INPUT|Vols'!AH235+'INPUT|Vols'!AH73)*(1+'INPUT|UR'!$G$75) -> 0 | AI71: =('INPUT|Vols'!AI235+'INPUT|Vols'!AI73)*(1+'INPUT|UR'!$G$75) -> 0 | AJ71: =('INPUT|Vols'!AJ235+'INPUT|Vols'!AJ73)*(1+'INPUT|UR'!$G$75) -> 0 | AK71: =('INPUT|Vols'!AK235+'INPUT|Vols'!AK73)*(1+'INPUT|UR'!$G$75) -> 0 | AL71: =('INPUT|Vols'!AL235+'INPUT|Vols'!AL73)*(1+'INPUT|UR'!$G$75) -> 0
C72: Quarterly capacity | D72: peak kWh/day | I72: =('INPUT|Vols'!I236+'INPUT|Vols'!I74)*(1+'INPUT|UR'!$G$75) -> 0 | J72: =('INPUT|Vols'!J236+'INPUT|Vols'!J74)*(1+'INPUT|UR'!$G$75) -> 0 | K72: =('INPUT|Vols'!K236+'INPUT|Vols'!K74)*(1+'INPUT|UR'!$G$75) -> 0 | L72: =('INPUT|Vols'!L236+'INPUT|Vols'!L74)*(1+'INPUT|UR'!$G$75) -> 0 | AA72: =('INPUT|Vols'!AA236+'INPUT|Vols'!AA74)*(1+'INPUT|UR'!$G$75) -> 0 | AB72: =('INPUT|Vols'!AB236+'INPUT|Vols'!AB74)*(1+'INPUT|UR'!$G$75) -> 0 | AC72: =('INPUT|Vols'!AC236+'INPUT|Vols'!AC74)*(1+'INPUT|UR'!$G$75) -> 0 | AD72: =('INPUT|Vols'!AD236+'INPUT|Vols'!AD74)*(1+'INPUT|UR'!$G$75) -> 0 | AE72: =('INPUT|Vols'!AE236+'INPUT|Vols'!AE74)*(1+'INPUT|UR'!$G$75) -> 0 | AF72: =('INPUT|Vols'!AF236+'INPUT|Vols'!AF74)*(1+'INPUT|UR'!$G$75) -> 0 | AG72: =('INPUT|Vols'!AG236+'INPUT|Vols'!AG74)*(1+'INPUT|UR'!$G$75) -> 0 | AH72: =('INPUT|Vols'!AH236+'INPUT|Vols'!AH74)*(1+'INPUT|UR'!$G$75) -> 0 | AI72: =('INPUT|Vols'!AI236+'INPUT|Vols'!AI74)*(1+'INPUT|UR'!$G$75) -> 0 | AJ72: =('INPUT|Vols'!AJ236+'INPUT|Vols'!AJ74)*(1+'INPUT|UR'!$G$75) -> 0 | AK72: =('INPUT|Vols'!AK236+'INPUT|Vols'!AK74)*(1+'INPUT|UR'!$G$75) -> 0 | AL72: =('INPUT|Vols'!AL236+'INPUT|Vols'!AL74)*(1+'INPUT|UR'!$G$75) -> 0
C73: Monthly capacity | D73: peak kWh/day | N73: =('INPUT|Vols'!N237+'INPUT|Vols'!N75)*(1+'INPUT|UR'!$G$75) -> 0 | O73: =('INPUT|Vols'!O237+'INPUT|Vols'!O75)*(1+'INPUT|UR'!$G$75) -> 0 | P73: =('INPUT|Vols'!P237+'INPUT|Vols'!P75)*(1+'INPUT|UR'!$G$75) -> 0 | Q73: =('INPUT|Vols'!Q237+'INPUT|Vols'!Q75)*(1+'INPUT|UR'!$G$75) -> 0 | R73: =('INPUT|Vols'!R237+'INPUT|Vols'!R75)*(1+'INPUT|UR'!$G$75) -> 0 | S73: =('INPUT|Vols'!S237+'INPUT|Vols'!S75)*(1+'INPUT|UR'!$G$75) -> 0 | T73: =('INPUT|Vols'!T237+'INPUT|Vols'!T75)*(1+'INPUT|UR'!$G$75) -> 0 | U73: =('INPUT|Vols'!U237+'INPUT|Vols'!U75)*(1+'INPUT|UR'!$G$75) -> 0 | V73: =('INPUT|Vols'!V237+'INPUT|Vols'!V75)*(1+'INPUT|UR'!$G$75) -> 0 | W73: =('INPUT|Vols'!W237+'INPUT|Vols'!W75)*(1+'INPUT|UR'!$G$75) -> 0 | X73: =('INPUT|Vols'!X237+'INPUT|Vols'!X75)*(1+'INPUT|UR'!$G$75) -> 0 | Y73: =('INPUT|Vols'!Y237+'INPUT|Vols'!Y75)*(1+'INPUT|UR'!$G$75) -> 0 | AA73: =('INPUT|Vols'!AA237+'INPUT|Vols'!AA75)*(1+'INPUT|UR'!$G$75) -> 0 | AB73: =('INPUT|Vols'!AB237+'INPUT|Vols'!AB75)*(1+'INPUT|UR'!$G$75) -> 0 | AC73: =('INPUT|Vols'!AC237+'INPUT|Vols'!AC75)*(1+'INPUT|UR'!$G$75) -> 0 | AD73: =('INPUT|Vols'!AD237+'INPUT|Vols'!AD75)*(1+'INPUT|UR'!$G$75) -> 0 | AE73: =('INPUT|Vols'!AE237+'INPUT|Vols'!AE75)*(1+'INPUT|UR'!$G$75) -> 0 | AF73: =('INPUT|Vols'!AF237+'INPUT|Vols'!AF75)*(1+'INPUT|UR'!$G$75) -> 0 | AG73: =('INPUT|Vols'!AG237+'INPUT|Vols'!AG75)*(1+'INPUT|UR'!$G$75) -> 0 | AH73: =('INPUT|Vols'!AH237+'INPUT|Vols'!AH75)*(1+'INPUT|UR'!$G$75) -> 0 | AI73: =('INPUT|Vols'!AI237+'INPUT|Vols'!AI75)*(1+'INPUT|UR'!$G$75) -> 0 | AJ73: =('INPUT|Vols'!AJ237+'INPUT|Vols'!AJ75)*(1+'INPUT|UR'!$G$75) -> 0 | AK73: =('INPUT|Vols'!AK237+'INPUT|Vols'!AK75)*(1+'INPUT|UR'!$G$75) -> 0 | AL73: =('INPUT|Vols'!AL237+'INPUT|Vols'!AL75)*(1+'INPUT|UR'!$G$75) -> 0
C74: Daily capacity | D74: peak kWh/day | N74: =('INPUT|Vols'!N238+'INPUT|Vols'!N76)*(1+'INPUT|UR'!$G$75) -> 0 | O74: =('INPUT|Vols'!O238+'INPUT|Vols'!O76)*(1+'INPUT|UR'!$G$75) -> 0 | P74: =('INPUT|Vols'!P238+'INPUT|Vols'!P76)*(1+'INPUT|UR'!$G$75) -> 0 | Q74: =('INPUT|Vols'!Q238+'INPUT|Vols'!Q76)*(1+'INPUT|UR'!$G$75) -> 0 | R74: =('INPUT|Vols'!R238+'INPUT|Vols'!R76)*(1+'INPUT|UR'!$G$75) -> 0 | S74: =('INPUT|Vols'!S238+'INPUT|Vols'!S76)*(1+'INPUT|UR'!$G$75) -> 0 | T74: =('INPUT|Vols'!T238+'INPUT|Vols'!T76)*(1+'INPUT|UR'!$G$75) -> 0 | U74: =('INPUT|Vols'!U238+'INPUT|Vols'!U76)*(1+'INPUT|UR'!$G$75) -> 0 | V74: =('INPUT|Vols'!V238+'INPUT|Vols'!V76)*(1+'INPUT|UR'!$G$75) -> 0 | W74: =('INPUT|Vols'!W238+'INPUT|Vols'!W76)*(1+'INPUT|UR'!$G$75) -> 0 | X74: =('INPUT|Vols'!X238+'INPUT|Vols'!X76)*(1+'INPUT|UR'!$G$75) -> 0 | Y74: =('INPUT|Vols'!Y238+'INPUT|Vols'!Y76)*(1+'INPUT|UR'!$G$75) -> 0 | AA74: =('INPUT|Vols'!AA238+'INPUT|Vols'!AA76)*(1+'INPUT|UR'!$G$75) -> 0 | AB74: =('INPUT|Vols'!AB238+'INPUT|Vols'!AB76)*(1+'INPUT|UR'!$G$75) -> 0 | AC74: =('INPUT|Vols'!AC238+'INPUT|Vols'!AC76)*(1+'INPUT|UR'!$G$75) -> 0 | AD74: =('INPUT|Vols'!AD238+'INPUT|Vols'!AD76)*(1+'INPUT|UR'!$G$75) -> 0 | AE74: =('INPUT|Vols'!AE238+'INPUT|Vols'!AE76)*(1+'INPUT|UR'!$G$75) -> 0 | AF74: =('INPUT|Vols'!AF238+'INPUT|Vols'!AF76)*(1+'INPUT|UR'!$G$75) -> 0 | AG74: =('INPUT|Vols'!AG238+'INPUT|Vols'!AG76)*(1+'INPUT|UR'!$G$75) -> 0 | AH74: =('INPUT|Vols'!AH238+'INPUT|Vols'!AH76)*(1+'INPUT|UR'!$G$75) -> 0 | AI74: =('INPUT|Vols'!AI238+'INPUT|Vols'!AI76)*(1+'INPUT|UR'!$G$75) -> 0 | AJ74: =('INPUT|Vols'!AJ238+'INPUT|Vols'!AJ76)*(1+'INPUT|UR'!$G$75) -> 0 | AK74: =('INPUT|Vols'!AK238+'INPUT|Vols'!AK76)*(1+'INPUT|UR'!$G$75) -> 0 | AL74: =('INPUT|Vols'!AL238+'INPUT|Vols'!AL76)*(1+'INPUT|UR'!$G$75) -> 0
C75: Within-day capacity | D75: peak kWh/day | N75: =('INPUT|Vols'!N239+'INPUT|Vols'!N77)*(1+'INPUT|UR'!$G$75) -> 0 | O75: =('INPUT|Vols'!O239+'INPUT|Vols'!O77)*(1+'INPUT|UR'!$G$75) -> 0 | P75: =('INPUT|Vols'!P239+'INPUT|Vols'!P77)*(1+'INPUT|UR'!$G$75) -> 0 | Q75: =('INPUT|Vols'!Q239+'INPUT|Vols'!Q77)*(1+'INPUT|UR'!$G$75) -> 0 | R75: =('INPUT|Vols'!R239+'INPUT|Vols'!R77)*(1+'INPUT|UR'!$G$75) -> 0 | S75: =('INPUT|Vols'!S239+'INPUT|Vols'!S77)*(1+'INPUT|UR'!$G$75) -> 0 | T75: =('INPUT|Vols'!T239+'INPUT|Vols'!T77)*(1+'INPUT|UR'!$G$75) -> 0 | U75: =('INPUT|Vols'!U239+'INPUT|Vols'!U77)*(1+'INPUT|UR'!$G$75) -> 0 | V75: =('INPUT|Vols'!V239+'INPUT|Vols'!V77)*(1+'INPUT|UR'!$G$75) -> 0 | W75: =('INPUT|Vols'!W239+'INPUT|Vols'!W77)*(1+'INPUT|UR'!$G$75) -> 0 | X75: =('INPUT|Vols'!X239+'INPUT|Vols'!X77)*(1+'INPUT|UR'!$G$75) -> 0 | Y75: =('INPUT|Vols'!Y239+'INPUT|Vols'!Y77)*(1+'INPUT|UR'!$G$75) -> 0 | AA75: =('INPUT|Vols'!AA239+'INPUT|Vols'!AA77)*(1+'INPUT|UR'!$G$75) -> 0 | AB75: =('INPUT|Vols'!AB239+'INPUT|Vols'!AB77)*(1+'INPUT|UR'!$G$75) -> 0 | AC75: =('INPUT|Vols'!AC239+'INPUT|Vols'!AC77)*(1+'INPUT|UR'!$G$75) -> 0 | AD75: =('INPUT|Vols'!AD239+'INPUT|Vols'!AD77)*(1+'INPUT|UR'!$G$75) -> 0 | AE75: =('INPUT|Vols'!AE239+'INPUT|Vols'!AE77)*(1+'INPUT|UR'!$G$75) -> 0 | AF75: =('INPUT|Vols'!AF239+'INPUT|Vols'!AF77)*(1+'INPUT|UR'!$G$75) -> 0 | AG75: =('INPUT|Vols'!AG239+'INPUT|Vols'!AG77)*(1+'INPUT|UR'!$G$75) -> 0 | AH75: =('INPUT|Vols'!AH239+'INPUT|Vols'!AH77)*(1+'INPUT|UR'!$G$75) -> 0 | AI75: =('INPUT|Vols'!AI239+'INPUT|Vols'!AI77)*(1+'INPUT|UR'!$G$75) -> 0 | AJ75: =('INPUT|Vols'!AJ239+'INPUT|Vols'!AJ77)*(1+'INPUT|UR'!$G$75) -> 0 | AK75: =('INPUT|Vols'!AK239+'INPUT|Vols'!AK77)*(1+'INPUT|UR'!$G$75) -> 0 | AL75: =('INPUT|Vols'!AL239+'INPUT|Vols'!AL77)*(1+'INPUT|UR'!$G$75) -> 0
C76: Actual interruptible capacity | D76: peak kWh/day | N76: =('INPUT|Vols'!N240+'INPUT|Vols'!N78)*(1+'INPUT|UR'!$G$75) -> 0 | O76: =('INPUT|Vols'!O240+'INPUT|Vols'!O78)*(1+'INPUT|UR'!$G$75) -> 0 | P76: =('INPUT|Vols'!P240+'INPUT|Vols'!P78)*(1+'INPUT|UR'!$G$75) -> 0 | Q76: =('INPUT|Vols'!Q240+'INPUT|Vols'!Q78)*(1+'INPUT|UR'!$G$75) -> 0 | R76: =('INPUT|Vols'!R240+'INPUT|Vols'!R78)*(1+'INPUT|UR'!$G$75) -> 0 | S76: =('INPUT|Vols'!S240+'INPUT|Vols'!S78)*(1+'INPUT|UR'!$G$75) -> 0 | T76: =('INPUT|Vols'!T240+'INPUT|Vols'!T78)*(1+'INPUT|UR'!$G$75) -> 0 | U76: =('INPUT|Vols'!U240+'INPUT|Vols'!U78)*(1+'INPUT|UR'!$G$75) -> 0 | V76: =('INPUT|Vols'!V240+'INPUT|Vols'!V78)*(1+'INPUT|UR'!$G$75) -> 0 | W76: =('INPUT|Vols'!W240+'INPUT|Vols'!W78)*(1+'INPUT|UR'!$G$75) -> 0 | X76: =('INPUT|Vols'!X240+'INPUT|Vols'!X78)*(1+'INPUT|UR'!$G$75) -> 0 | Y76: =('INPUT|Vols'!Y240+'INPUT|Vols'!Y78)*(1+'INPUT|UR'!$G$75) -> 0 | AA76: =('INPUT|Vols'!AA240+'INPUT|Vols'!AA78)*(1+'INPUT|UR'!$G$75) -> 0 | AB76: =('INPUT|Vols'!AB240+'INPUT|Vols'!AB78)*(1+'INPUT|UR'!$G$75) -> 0 | AC76: =('INPUT|Vols'!AC240+'INPUT|Vols'!AC78)*(1+'INPUT|UR'!$G$75) -> 0 | AD76: =('INPUT|Vols'!AD240+'INPUT|Vols'!AD78)*(1+'INPUT|UR'!$G$75) -> 0 | AE76: =('INPUT|Vols'!AE240+'INPUT|Vols'!AE78)*(1+'INPUT|UR'!$G$75) -> 0 | AF76: =('INPUT|Vols'!AF240+'INPUT|Vols'!AF78)*(1+'INPUT|UR'!$G$75) -> 0 | AG76: =('INPUT|Vols'!AG240+'INPUT|Vols'!AG78)*(1+'INPUT|UR'!$G$75) -> 0 | AH76: =('INPUT|Vols'!AH240+'INPUT|Vols'!AH78)*(1+'INPUT|UR'!$G$75) -> 0 | AI76: =('INPUT|Vols'!AI240+'INPUT|Vols'!AI78)*(1+'INPUT|UR'!$G$75) -> 0 | AJ76: =('INPUT|Vols'!AJ240+'INPUT|Vols'!AJ78)*(1+'INPUT|UR'!$G$75) -> 0 | AK76: =('INPUT|Vols'!AK240+'INPUT|Vols'!AK78)*(1+'INPUT|UR'!$G$75) -> 0 | AL76: =('INPUT|Vols'!AL240+'INPUT|Vols'!AL78)*(1+'INPUT|UR'!$G$75) -> 0
C78: ='INPUT|Vols'!C15 -> Shipper 7
C79: Annual capacity | D79: peak kWh/day | G79: =('INPUT|Vols'!G243+'INPUT|Vols'!G81)*(1+'INPUT|UR'!$G$75) -> 0 | AA79: =('INPUT|Vols'!AA243+'INPUT|Vols'!AA81)*(1+'INPUT|UR'!$G$75) -> 0 | AB79: =('INPUT|Vols'!AB243+'INPUT|Vols'!AB81)*(1+'INPUT|UR'!$G$75) -> 0 | AC79: =('INPUT|Vols'!AC243+'INPUT|Vols'!AC81)*(1+'INPUT|UR'!$G$75) -> 0 | AD79: =('INPUT|Vols'!AD243+'INPUT|Vols'!AD81)*(1+'INPUT|UR'!$G$75) -> 0 | AE79: =('INPUT|Vols'!AE243+'INPUT|Vols'!AE81)*(1+'INPUT|UR'!$G$75) -> 0 | AF79: =('INPUT|Vols'!AF243+'INPUT|Vols'!AF81)*(1+'INPUT|UR'!$G$75) -> 0 | AG79: =('INPUT|Vols'!AG243+'INPUT|Vols'!AG81)*(1+'INPUT|UR'!$G$75) -> 0 | AH79: =('INPUT|Vols'!AH243+'INPUT|Vols'!AH81)*(1+'INPUT|UR'!$G$75) -> 0 | AI79: =('INPUT|Vols'!AI243+'INPUT|Vols'!AI81)*(1+'INPUT|UR'!$G$75) -> 0 | AJ79: =('INPUT|Vols'!AJ243+'INPUT|Vols'!AJ81)*(1+'INPUT|UR'!$G$75) -> 0 | AK79: =('INPUT|Vols'!AK243+'INPUT|Vols'!AK81)*(1+'INPUT|UR'!$G$75) -> 0 | AL79: =('INPUT|Vols'!AL243+'INPUT|Vols'!AL81)*(1+'INPUT|UR'!$G$75) -> 0
C80: Quarterly capacity | D80: peak kWh/day | I80: =('INPUT|Vols'!I244+'INPUT|Vols'!I82)*(1+'INPUT|UR'!$G$75) -> 0 | J80: =('INPUT|Vols'!J244+'INPUT|Vols'!J82)*(1+'INPUT|UR'!$G$75) -> 0 | K80: =('INPUT|Vols'!K244+'INPUT|Vols'!K82)*(1+'INPUT|UR'!$G$75) -> 0 | L80: =('INPUT|Vols'!L244+'INPUT|Vols'!L82)*(1+'INPUT|UR'!$G$75) -> 0 | AA80: =('INPUT|Vols'!AA244+'INPUT|Vols'!AA82)*(1+'INPUT|UR'!$G$75) -> 0 | AB80: =('INPUT|Vols'!AB244+'INPUT|Vols'!AB82)*(1+'INPUT|UR'!$G$75) -> 0 | AC80: =('INPUT|Vols'!AC244+'INPUT|Vols'!AC82)*(1+'INPUT|UR'!$G$75) -> 0 | AD80: =('INPUT|Vols'!AD244+'INPUT|Vols'!AD82)*(1+'INPUT|UR'!$G$75) -> 0 | AE80: =('INPUT|Vols'!AE244+'INPUT|Vols'!AE82)*(1+'INPUT|UR'!$G$75) -> 0 | AF80: =('INPUT|Vols'!AF244+'INPUT|Vols'!AF82)*(1+'INPUT|UR'!$G$75) -> 0 | AG80: =('INPUT|Vols'!AG244+'INPUT|Vols'!AG82)*(1+'INPUT|UR'!$G$75) -> 0 | AH80: =('INPUT|Vols'!AH244+'INPUT|Vols'!AH82)*(1+'INPUT|UR'!$G$75) -> 0 | AI80: =('INPUT|Vols'!AI244+'INPUT|Vols'!AI82)*(1+'INPUT|UR'!$G$75) -> 0 | AJ80: =('INPUT|Vols'!AJ244+'INPUT|Vols'!AJ82)*(1+'INPUT|UR'!$G$75) -> 0 | AK80: =('INPUT|Vols'!AK244+'INPUT|Vols'!AK82)*(1+'INPUT|UR'!$G$75) -> 0 | AL80: =('INPUT|Vols'!AL244+'INPUT|Vols'!AL82)*(1+'INPUT|UR'!$G$75) -> 0
C81: Monthly capacity | D81: peak kWh/day | N81: =('INPUT|Vols'!N245+'INPUT|Vols'!N83)*(1+'INPUT|UR'!$G$75) -> 0 | O81: =('INPUT|Vols'!O245+'INPUT|Vols'!O83)*(1+'INPUT|UR'!$G$75) -> 0 | P81: =('INPUT|Vols'!P245+'INPUT|Vols'!P83)*(1+'INPUT|UR'!$G$75) -> 0 | Q81: =('INPUT|Vols'!Q245+'INPUT|Vols'!Q83)*(1+'INPUT|UR'!$G$75) -> 0 | R81: =('INPUT|Vols'!R245+'INPUT|Vols'!R83)*(1+'INPUT|UR'!$G$75) -> 0 | S81: =('INPUT|Vols'!S245+'INPUT|Vols'!S83)*(1+'INPUT|UR'!$G$75) -> 0 | T81: =('INPUT|Vols'!T245+'INPUT|Vols'!T83)*(1+'INPUT|UR'!$G$75) -> 0 | U81: =('INPUT|Vols'!U245+'INPUT|Vols'!U83)*(1+'INPUT|UR'!$G$75) -> 0 | V81: =('INPUT|Vols'!V245+'INPUT|Vols'!V83)*(1+'INPUT|UR'!$G$75) -> 0 | W81: =('INPUT|Vols'!W245+'INPUT|Vols'!W83)*(1+'INPUT|UR'!$G$75) -> 0 | X81: =('INPUT|Vols'!X245+'INPUT|Vols'!X83)*(1+'INPUT|UR'!$G$75) -> 0 | Y81: =('INPUT|Vols'!Y245+'INPUT|Vols'!Y83)*(1+'INPUT|UR'!$G$75) -> 0 | AA81: =('INPUT|Vols'!AA245+'INPUT|Vols'!AA83)*(1+'INPUT|UR'!$G$75) -> 0 | AB81: =('INPUT|Vols'!AB245+'INPUT|Vols'!AB83)*(1+'INPUT|UR'!$G$75) -> 0 | AC81: =('INPUT|Vols'!AC245+'INPUT|Vols'!AC83)*(1+'INPUT|UR'!$G$75) -> 0 | AD81: =('INPUT|Vols'!AD245+'INPUT|Vols'!AD83)*(1+'INPUT|UR'!$G$75) -> 0 | AE81: =('INPUT|Vols'!AE245+'INPUT|Vols'!AE83)*(1+'INPUT|UR'!$G$75) -> 0 | AF81: =('INPUT|Vols'!AF245+'INPUT|Vols'!AF83)*(1+'INPUT|UR'!$G$75) -> 0 | AG81: =('INPUT|Vols'!AG245+'INPUT|Vols'!AG83)*(1+'INPUT|UR'!$G$75) -> 0 | AH81: =('INPUT|Vols'!AH245+'INPUT|Vols'!AH83)*(1+'INPUT|UR'!$G$75) -> 0 | AI81: =('INPUT|Vols'!AI245+'INPUT|Vols'!AI83)*(1+'INPUT|UR'!$G$75) -> 0 | AJ81: =('INPUT|Vols'!AJ245+'INPUT|Vols'!AJ83)*(1+'INPUT|UR'!$G$75) -> 0 | AK81: =('INPUT|Vols'!AK245+'INPUT|Vols'!AK83)*(1+'INPUT|UR'!$G$75) -> 0 | AL81: =('INPUT|Vols'!AL245+'INPUT|Vols'!AL83)*(1+'INPUT|UR'!$G$75) -> 0
C82: Daily capacity | D82: peak kWh/day | N82: =('INPUT|Vols'!N246+'INPUT|Vols'!N84)*(1+'INPUT|UR'!$G$75) -> 0 | O82: =('INPUT|Vols'!O246+'INPUT|Vols'!O84)*(1+'INPUT|UR'!$G$75) -> 0 | P82: =('INPUT|Vols'!P246+'INPUT|Vols'!P84)*(1+'INPUT|UR'!$G$75) -> 0 | Q82: =('INPUT|Vols'!Q246+'INPUT|Vols'!Q84)*(1+'INPUT|UR'!$G$75) -> 0 | R82: =('INPUT|Vols'!R246+'INPUT|Vols'!R84)*(1+'INPUT|UR'!$G$75) -> 0 | S82: =('INPUT|Vols'!S246+'INPUT|Vols'!S84)*(1+'INPUT|UR'!$G$75) -> 0 | T82: =('INPUT|Vols'!T246+'INPUT|Vols'!T84)*(1+'INPUT|UR'!$G$75) -> 0 | U82: =('INPUT|Vols'!U246+'INPUT|Vols'!U84)*(1+'INPUT|UR'!$G$75) -> 0 | V82: =('INPUT|Vols'!V246+'INPUT|Vols'!V84)*(1+'INPUT|UR'!$G$75) -> 0 | W82: =('INPUT|Vols'!W246+'INPUT|Vols'!W84)*(1+'INPUT|UR'!$G$75) -> 0 | X82: =('INPUT|Vols'!X246+'INPUT|Vols'!X84)*(1+'INPUT|UR'!$G$75) -> 0 | Y82: =('INPUT|Vols'!Y246+'INPUT|Vols'!Y84)*(1+'INPUT|UR'!$G$75) -> 0 | AA82: =('INPUT|Vols'!AA246+'INPUT|Vols'!AA84)*(1+'INPUT|UR'!$G$75) -> 0 | AB82: =('INPUT|Vols'!AB246+'INPUT|Vols'!AB84)*(1+'INPUT|UR'!$G$75) -> 0 | AC82: =('INPUT|Vols'!AC246+'INPUT|Vols'!AC84)*(1+'INPUT|UR'!$G$75) -> 0 | AD82: =('INPUT|Vols'!AD246+'INPUT|Vols'!AD84)*(1+'INPUT|UR'!$G$75) -> 0 | AE82: =('INPUT|Vols'!AE246+'INPUT|Vols'!AE84)*(1+'INPUT|UR'!$G$75) -> 0 | AF82: =('INPUT|Vols'!AF246+'INPUT|Vols'!AF84)*(1+'INPUT|UR'!$G$75) -> 0 | AG82: =('INPUT|Vols'!AG246+'INPUT|Vols'!AG84)*(1+'INPUT|UR'!$G$75) -> 0 | AH82: =('INPUT|Vols'!AH246+'INPUT|Vols'!AH84)*(1+'INPUT|UR'!$G$75) -> 0 | AI82: =('INPUT|Vols'!AI246+'INPUT|Vols'!AI84)*(1+'INPUT|UR'!$G$75) -> 0 | AJ82: =('INPUT|Vols'!AJ246+'INPUT|Vols'!AJ84)*(1+'INPUT|UR'!$G$75) -> 0 | AK82: =('INPUT|Vols'!AK246+'INPUT|Vols'!AK84)*(1+'INPUT|UR'!$G$75) -> 0 | AL82: =('INPUT|Vols'!AL246+'INPUT|Vols'!AL84)*(1+'INPUT|UR'!$G$75) -> 0
C83: Within-day capacity | D83: peak kWh/day | N83: =('INPUT|Vols'!N247+'INPUT|Vols'!N85)*(1+'INPUT|UR'!$G$75) -> 0 | O83: =('INPUT|Vols'!O247+'INPUT|Vols'!O85)*(1+'INPUT|UR'!$G$75) -> 0 | P83: =('INPUT|Vols'!P247+'INPUT|Vols'!P85)*(1+'INPUT|UR'!$G$75) -> 0 | Q83: =('INPUT|Vols'!Q247+'INPUT|Vols'!Q85)*(1+'INPUT|UR'!$G$75) -> 0 | R83: =('INPUT|Vols'!R247+'INPUT|Vols'!R85)*(1+'INPUT|UR'!$G$75) -> 0 | S83: =('INPUT|Vols'!S247+'INPUT|Vols'!S85)*(1+'INPUT|UR'!$G$75) -> 0 | T83: =('INPUT|Vols'!T247+'INPUT|Vols'!T85)*(1+'INPUT|UR'!$G$75) -> 0 | U83: =('INPUT|Vols'!U247+'INPUT|Vols'!U85)*(1+'INPUT|UR'!$G$75) -> 0 | V83: =('INPUT|Vols'!V247+'INPUT|Vols'!V85)*(1+'INPUT|UR'!$G$75) -> 0 | W83: =('INPUT|Vols'!W247+'INPUT|Vols'!W85)*(1+'INPUT|UR'!$G$75) -> 0 | X83: =('INPUT|Vols'!X247+'INPUT|Vols'!X85)*(1+'INPUT|UR'!$G$75) -> 0 | Y83: =('INPUT|Vols'!Y247+'INPUT|Vols'!Y85)*(1+'INPUT|UR'!$G$75) -> 0 | AA83: =('INPUT|Vols'!AA247+'INPUT|Vols'!AA85)*(1+'INPUT|UR'!$G$75) -> 0 | AB83: =('INPUT|Vols'!AB247+'INPUT|Vols'!AB85)*(1+'INPUT|UR'!$G$75) -> 0 | AC83: =('INPUT|Vols'!AC247+'INPUT|Vols'!AC85)*(1+'INPUT|UR'!$G$75) -> 0 | AD83: =('INPUT|Vols'!AD247+'INPUT|Vols'!AD85)*(1+'INPUT|UR'!$G$75) -> 0 | AE83: =('INPUT|Vols'!AE247+'INPUT|Vols'!AE85)*(1+'INPUT|UR'!$G$75) -> 0 | AF83: =('INPUT|Vols'!AF247+'INPUT|Vols'!AF85)*(1+'INPUT|UR'!$G$75) -> 0 | AG83: =('INPUT|Vols'!AG247+'INPUT|Vols'!AG85)*(1+'INPUT|UR'!$G$75) -> 0 | AH83: =('INPUT|Vols'!AH247+'INPUT|Vols'!AH85)*(1+'INPUT|UR'!$G$75) -> 0 | AI83: =('INPUT|Vols'!AI247+'INPUT|Vols'!AI85)*(1+'INPUT|UR'!$G$75) -> 0 | AJ83: =('INPUT|Vols'!AJ247+'INPUT|Vols'!AJ85)*(1+'INPUT|UR'!$G$75) -> 0 | AK83: =('INPUT|Vols'!AK247+'INPUT|Vols'!AK85)*(1+'INPUT|UR'!$G$75) -> 0 | AL83: =('INPUT|Vols'!AL247+'INPUT|Vols'!AL85)*(1+'INPUT|UR'!$G$75) -> 0
C84: Actual interruptible capacity | D84: peak kWh/day | N84: =('INPUT|Vols'!N248+'INPUT|Vols'!N86)*(1+'INPUT|UR'!$G$75) -> 0 | O84: =('INPUT|Vols'!O248+'INPUT|Vols'!O86)*(1+'INPUT|UR'!$G$75) -> 0 | P84: =('INPUT|Vols'!P248+'INPUT|Vols'!P86)*(1+'INPUT|UR'!$G$75) -> 0 | Q84: =('INPUT|Vols'!Q248+'INPUT|Vols'!Q86)*(1+'INPUT|UR'!$G$75) -> 0 | R84: =('INPUT|Vols'!R248+'INPUT|Vols'!R86)*(1+'INPUT|UR'!$G$75) -> 0 | S84: =('INPUT|Vols'!S248+'INPUT|Vols'!S86)*(1+'INPUT|UR'!$G$75) -> 0 | T84: =('INPUT|Vols'!T248+'INPUT|Vols'!T86)*(1+'INPUT|UR'!$G$75) -> 0 | U84: =('INPUT|Vols'!U248+'INPUT|Vols'!U86)*(1+'INPUT|UR'!$G$75) -> 0 | V84: =('INPUT|Vols'!V248+'INPUT|Vols'!V86)*(1+'INPUT|UR'!$G$75) -> 0 | W84: =('INPUT|Vols'!W248+'INPUT|Vols'!W86)*(1+'INPUT|UR'!$G$75) -> 0 | X84: =('INPUT|Vols'!X248+'INPUT|Vols'!X86)*(1+'INPUT|UR'!$G$75) -> 0 | Y84: =('INPUT|Vols'!Y248+'INPUT|Vols'!Y86)*(1+'INPUT|UR'!$G$75) -> 0 | AA84: =('INPUT|Vols'!AA248+'INPUT|Vols'!AA86)*(1+'INPUT|UR'!$G$75) -> 0 | AB84: =('INPUT|Vols'!AB248+'INPUT|Vols'!AB86)*(1+'INPUT|UR'!$G$75) -> 0 | AC84: =('INPUT|Vols'!AC248+'INPUT|Vols'!AC86)*(1+'INPUT|UR'!$G$75) -> 0 | AD84: =('INPUT|Vols'!AD248+'INPUT|Vols'!AD86)*(1+'INPUT|UR'!$G$75) -> 0 | AE84: =('INPUT|Vols'!AE248+'INPUT|Vols'!AE86)*(1+'INPUT|UR'!$G$75) -> 0 | AF84: =('INPUT|Vols'!AF248+'INPUT|Vols'!AF86)*(1+'INPUT|UR'!$G$75) -> 0 | AG84: =('INPUT|Vols'!AG248+'INPUT|Vols'!AG86)*(1+'INPUT|UR'!$G$75) -> 0 | AH84: =('INPUT|Vols'!AH248+'INPUT|Vols'!AH86)*(1+'INPUT|UR'!$G$75) -> 0 | AI84: =('INPUT|Vols'!AI248+'INPUT|Vols'!AI86)*(1+'INPUT|UR'!$G$75) -> 0 | AJ84: =('INPUT|Vols'!AJ248+'INPUT|Vols'!AJ86)*(1+'INPUT|UR'!$G$75) -> 0 | AK84: =('INPUT|Vols'!AK248+'INPUT|Vols'!AK86)*(1+'INPUT|UR'!$G$75) -> 0 | AL84: =('INPUT|Vols'!AL248+'INPUT|Vols'!AL86)*(1+'INPUT|UR'!$G$75) -> 0
C86: ='INPUT|Vols'!C16 -> Shipper 8
C87: Annual capacity | D87: peak kWh/day | G87: =('INPUT|Vols'!G251+'INPUT|Vols'!G89)*(1+'INPUT|UR'!$G$75) -> 0 | AA87: =('INPUT|Vols'!AA251+'INPUT|Vols'!AA89)*(1+'INPUT|UR'!$G$75) -> 0 | AB87: =('INPUT|Vols'!AB251+'INPUT|Vols'!AB89)*(1+'INPUT|UR'!$G$75) -> 0 | AC87: =('INPUT|Vols'!AC251+'INPUT|Vols'!AC89)*(1+'INPUT|UR'!$G$75) -> 0 | AD87: =('INPUT|Vols'!AD251+'INPUT|Vols'!AD89)*(1+'INPUT|UR'!$G$75) -> 0 | AE87: =('INPUT|Vols'!AE251+'INPUT|Vols'!AE89)*(1+'INPUT|UR'!$G$75) -> 0 | AF87: =('INPUT|Vols'!AF251+'INPUT|Vols'!AF89)*(1+'INPUT|UR'!$G$75) -> 0 | AG87: =('INPUT|Vols'!AG251+'INPUT|Vols'!AG89)*(1+'INPUT|UR'!$G$75) -> 0 | AH87: =('INPUT|Vols'!AH251+'INPUT|Vols'!AH89)*(1+'INPUT|UR'!$G$75) -> 0 | AI87: =('INPUT|Vols'!AI251+'INPUT|Vols'!AI89)*(1+'INPUT|UR'!$G$75) -> 0 | AJ87: =('INPUT|Vols'!AJ251+'INPUT|Vols'!AJ89)*(1+'INPUT|UR'!$G$75) -> 0 | AK87: =('INPUT|Vols'!AK251+'INPUT|Vols'!AK89)*(1+'INPUT|UR'!$G$75) -> 0 | AL87: =('INPUT|Vols'!AL251+'INPUT|Vols'!AL89)*(1+'INPUT|UR'!$G$75) -> 0
C88: Quarterly capacity | D88: peak kWh/day | I88: =('INPUT|Vols'!I252+'INPUT|Vols'!I90)*(1+'INPUT|UR'!$G$75) -> 0 | J88: =('INPUT|Vols'!J252+'INPUT|Vols'!J90)*(1+'INPUT|UR'!$G$75) -> 0 | K88: =('INPUT|Vols'!K252+'INPUT|Vols'!K90)*(1+'INPUT|UR'!$G$75) -> 0 | L88: =('INPUT|Vols'!L252+'INPUT|Vols'!L90)*(1+'INPUT|UR'!$G$75) -> 0 | AA88: =('INPUT|Vols'!AA252+'INPUT|Vols'!AA90)*(1+'INPUT|UR'!$G$75) -> 0 | AB88: =('INPUT|Vols'!AB252+'INPUT|Vols'!AB90)*(1+'INPUT|UR'!$G$75) -> 0 | AC88: =('INPUT|Vols'!AC252+'INPUT|Vols'!AC90)*(1+'INPUT|UR'!$G$75) -> 0 | AD88: =('INPUT|Vols'!AD252+'INPUT|Vols'!AD90)*(1+'INPUT|UR'!$G$75) -> 0 | AE88: =('INPUT|Vols'!AE252+'INPUT|Vols'!AE90)*(1+'INPUT|UR'!$G$75) -> 0 | AF88: =('INPUT|Vols'!AF252+'INPUT|Vols'!AF90)*(1+'INPUT|UR'!$G$75) -> 0 | AG88: =('INPUT|Vols'!AG252+'INPUT|Vols'!AG90)*(1+'INPUT|UR'!$G$75) -> 0 | AH88: =('INPUT|Vols'!AH252+'INPUT|Vols'!AH90)*(1+'INPUT|UR'!$G$75) -> 0 | AI88: =('INPUT|Vols'!AI252+'INPUT|Vols'!AI90)*(1+'INPUT|UR'!$G$75) -> 0 | AJ88: =('INPUT|Vols'!AJ252+'INPUT|Vols'!AJ90)*(1+'INPUT|UR'!$G$75) -> 0 | AK88: =('INPUT|Vols'!AK252+'INPUT|Vols'!AK90)*(1+'INPUT|UR'!$G$75) -> 0 | AL88: =('INPUT|Vols'!AL252+'INPUT|Vols'!AL90)*(1+'INPUT|UR'!$G$75) -> 0
C89: Monthly capacity | D89: peak kWh/day | N89: =('INPUT|Vols'!N253+'INPUT|Vols'!N91)*(1+'INPUT|UR'!$G$75) -> 0 | O89: =('INPUT|Vols'!O253+'INPUT|Vols'!O91)*(1+'INPUT|UR'!$G$75) -> 0 | P89: =('INPUT|Vols'!P253+'INPUT|Vols'!P91)*(1+'INPUT|UR'!$G$75) -> 0 | Q89: =('INPUT|Vols'!Q253+'INPUT|Vols'!Q91)*(1+'INPUT|UR'!$G$75) -> 0 | R89: =('INPUT|Vols'!R253+'INPUT|Vols'!R91)*(1+'INPUT|UR'!$G$75) -> 0 | S89: =('INPUT|Vols'!S253+'INPUT|Vols'!S91)*(1+'INPUT|UR'!$G$75) -> 0 | T89: =('INPUT|Vols'!T253+'INPUT|Vols'!T91)*(1+'INPUT|UR'!$G$75) -> 0 | U89: =('INPUT|Vols'!U253+'INPUT|Vols'!U91)*(1+'INPUT|UR'!$G$75) -> 0 | V89: =('INPUT|Vols'!V253+'INPUT|Vols'!V91)*(1+'INPUT|UR'!$G$75) -> 0 | W89: =('INPUT|Vols'!W253+'INPUT|Vols'!W91)*(1+'INPUT|UR'!$G$75) -> 0 | X89: =('INPUT|Vols'!X253+'INPUT|Vols'!X91)*(1+'INPUT|UR'!$G$75) -> 0 | Y89: =('INPUT|Vols'!Y253+'INPUT|Vols'!Y91)*(1+'INPUT|UR'!$G$75) -> 0 | AA89: =('INPUT|Vols'!AA253+'INPUT|Vols'!AA91)*(1+'INPUT|UR'!$G$75) -> 0 | AB89: =('INPUT|Vols'!AB253+'INPUT|Vols'!AB91)*(1+'INPUT|UR'!$G$75) -> 0 | AC89: =('INPUT|Vols'!AC253+'INPUT|Vols'!AC91)*(1+'INPUT|UR'!$G$75) -> 0 | AD89: =('INPUT|Vols'!AD253+'INPUT|Vols'!AD91)*(1+'INPUT|UR'!$G$75) -> 0 | AE89: =('INPUT|Vols'!AE253+'INPUT|Vols'!AE91)*(1+'INPUT|UR'!$G$75) -> 0 | AF89: =('INPUT|Vols'!AF253+'INPUT|Vols'!AF91)*(1+'INPUT|UR'!$G$75) -> 0 | AG89: =('INPUT|Vols'!AG253+'INPUT|Vols'!AG91)*(1+'INPUT|UR'!$G$75) -> 0 | AH89: =('INPUT|Vols'!AH253+'INPUT|Vols'!AH91)*(1+'INPUT|UR'!$G$75) -> 0 | AI89: =('INPUT|Vols'!AI253+'INPUT|Vols'!AI91)*(1+'INPUT|UR'!$G$75) -> 0 | AJ89: =('INPUT|Vols'!AJ253+'INPUT|Vols'!AJ91)*(1+'INPUT|UR'!$G$75) -> 0 | AK89: =('INPUT|Vols'!AK253+'INPUT|Vols'!AK91)*(1+'INPUT|UR'!$G$75) -> 0 | AL89: =('INPUT|Vols'!AL253+'INPUT|Vols'!AL91)*(1+'INPUT|UR'!$G$75) -> 0
C90: Daily capacity | D90: peak kWh/day | N90: =('INPUT|Vols'!N254+'INPUT|Vols'!N92)*(1+'INPUT|UR'!$G$75) -> 0 | O90: =('INPUT|Vols'!O254+'INPUT|Vols'!O92)*(1+'INPUT|UR'!$G$75) -> 0 | P90: =('INPUT|Vols'!P254+'INPUT|Vols'!P92)*(1+'INPUT|UR'!$G$75) -> 0 | Q90: =('INPUT|Vols'!Q254+'INPUT|Vols'!Q92)*(1+'INPUT|UR'!$G$75) -> 0 | R90: =('INPUT|Vols'!R254+'INPUT|Vols'!R92)*(1+'INPUT|UR'!$G$75) -> 0 | S90: =('INPUT|Vols'!S254+'INPUT|Vols'!S92)*(1+'INPUT|UR'!$G$75) -> 0 | T90: =('INPUT|Vols'!T254+'INPUT|Vols'!T92)*(1+'INPUT|UR'!$G$75) -> 0 | U90: =('INPUT|Vols'!U254+'INPUT|Vols'!U92)*(1+'INPUT|UR'!$G$75) -> 0 | V90: =('INPUT|Vols'!V254+'INPUT|Vols'!V92)*(1+'INPUT|UR'!$G$75) -> 0 | W90: =('INPUT|Vols'!W254+'INPUT|Vols'!W92)*(1+'INPUT|UR'!$G$75) -> 0 | X90: =('INPUT|Vols'!X254+'INPUT|Vols'!X92)*(1+'INPUT|UR'!$G$75) -> 0 | Y90: =('INPUT|Vols'!Y254+'INPUT|Vols'!Y92)*(1+'INPUT|UR'!$G$75) -> 0 | AA90: =('INPUT|Vols'!AA254+'INPUT|Vols'!AA92)*(1+'INPUT|UR'!$G$75) -> 0 | AB90: =('INPUT|Vols'!AB254+'INPUT|Vols'!AB92)*(1+'INPUT|UR'!$G$75) -> 0 | AC90: =('INPUT|Vols'!AC254+'INPUT|Vols'!AC92)*(1+'INPUT|UR'!$G$75) -> 0 | AD90: =('INPUT|Vols'!AD254+'INPUT|Vols'!AD92)*(1+'INPUT|UR'!$G$75) -> 0 | AE90: =('INPUT|Vols'!AE254+'INPUT|Vols'!AE92)*(1+'INPUT|UR'!$G$75) -> 0 | AF90: =('INPUT|Vols'!AF254+'INPUT|Vols'!AF92)*(1+'INPUT|UR'!$G$75) -> 0 | AG90: =('INPUT|Vols'!AG254+'INPUT|Vols'!AG92)*(1+'INPUT|UR'!$G$75) -> 0 | AH90: =('INPUT|Vols'!AH254+'INPUT|Vols'!AH92)*(1+'INPUT|UR'!$G$75) -> 0 | AI90: =('INPUT|Vols'!AI254+'INPUT|Vols'!AI92)*(1+'INPUT|UR'!$G$75) -> 0 | AJ90: =('INPUT|Vols'!AJ254+'INPUT|Vols'!AJ92)*(1+'INPUT|UR'!$G$75) -> 0 | AK90: =('INPUT|Vols'!AK254+'INPUT|Vols'!AK92)*(1+'INPUT|UR'!$G$75) -> 0 | AL90: =('INPUT|Vols'!AL254+'INPUT|Vols'!AL92)*(1+'INPUT|UR'!$G$75) -> 0
C91: Within-day capacity | D91: peak kWh/day | N91: =('INPUT|Vols'!N255+'INPUT|Vols'!N93)*(1+'INPUT|UR'!$G$75) -> 0 | O91: =('INPUT|Vols'!O255+'INPUT|Vols'!O93)*(1+'INPUT|UR'!$G$75) -> 0 | P91: =('INPUT|Vols'!P255+'INPUT|Vols'!P93)*(1+'INPUT|UR'!$G$75) -> 0 | Q91: =('INPUT|Vols'!Q255+'INPUT|Vols'!Q93)*(1+'INPUT|UR'!$G$75) -> 0 | R91: =('INPUT|Vols'!R255+'INPUT|Vols'!R93)*(1+'INPUT|UR'!$G$75) -> 0 | S91: =('INPUT|Vols'!S255+'INPUT|Vols'!S93)*(1+'INPUT|UR'!$G$75) -> 0 | T91: =('INPUT|Vols'!T255+'INPUT|Vols'!T93)*(1+'INPUT|UR'!$G$75) -> 0 | U91: =('INPUT|Vols'!U255+'INPUT|Vols'!U93)*(1+'INPUT|UR'!$G$75) -> 0 | V91: =('INPUT|Vols'!V255+'INPUT|Vols'!V93)*(1+'INPUT|UR'!$G$75) -> 0 | W91: =('INPUT|Vols'!W255+'INPUT|Vols'!W93)*(1+'INPUT|UR'!$G$75) -> 0 | X91: =('INPUT|Vols'!X255+'INPUT|Vols'!X93)*(1+'INPUT|UR'!$G$75) -> 0 | Y91: =('INPUT|Vols'!Y255+'INPUT|Vols'!Y93)*(1+'INPUT|UR'!$G$75) -> 0 | AA91: =('INPUT|Vols'!AA255+'INPUT|Vols'!AA93)*(1+'INPUT|UR'!$G$75) -> 0 | AB91: =('INPUT|Vols'!AB255+'INPUT|Vols'!AB93)*(1+'INPUT|UR'!$G$75) -> 0 | AC91: =('INPUT|Vols'!AC255+'INPUT|Vols'!AC93)*(1+'INPUT|UR'!$G$75) -> 0 | AD91: =('INPUT|Vols'!AD255+'INPUT|Vols'!AD93)*(1+'INPUT|UR'!$G$75) -> 0 | AE91: =('INPUT|Vols'!AE255+'INPUT|Vols'!AE93)*(1+'INPUT|UR'!$G$75) -> 0 | AF91: =('INPUT|Vols'!AF255+'INPUT|Vols'!AF93)*(1+'INPUT|UR'!$G$75) -> 0 | AG91: =('INPUT|Vols'!AG255+'INPUT|Vols'!AG93)*(1+'INPUT|UR'!$G$75) -> 0 | AH91: =('INPUT|Vols'!AH255+'INPUT|Vols'!AH93)*(1+'INPUT|UR'!$G$75) -> 0 | AI91: =('INPUT|Vols'!AI255+'INPUT|Vols'!AI93)*(1+'INPUT|UR'!$G$75) -> 0 | AJ91: =('INPUT|Vols'!AJ255+'INPUT|Vols'!AJ93)*(1+'INPUT|UR'!$G$75) -> 0 | AK91: =('INPUT|Vols'!AK255+'INPUT|Vols'!AK93)*(1+'INPUT|UR'!$G$75) -> 0 | AL91: =('INPUT|Vols'!AL255+'INPUT|Vols'!AL93)*(1+'INPUT|UR'!$G$75) -> 0
C92: Actual interruptible capacity | D92: peak kWh/day | N92: =('INPUT|Vols'!N256+'INPUT|Vols'!N94)*(1+'INPUT|UR'!$G$75) -> 0 | O92: =('INPUT|Vols'!O256+'INPUT|Vols'!O94)*(1+'INPUT|UR'!$G$75) -> 0 | P92: =('INPUT|Vols'!P256+'INPUT|Vols'!P94)*(1+'INPUT|UR'!$G$75) -> 0 | Q92: =('INPUT|Vols'!Q256+'INPUT|Vols'!Q94)*(1+'INPUT|UR'!$G$75) -> 0 | R92: =('INPUT|Vols'!R256+'INPUT|Vols'!R94)*(1+'INPUT|UR'!$G$75) -> 0 | S92: =('INPUT|Vols'!S256+'INPUT|Vols'!S94)*(1+'INPUT|UR'!$G$75) -> 0 | T92: =('INPUT|Vols'!T256+'INPUT|Vols'!T94)*(1+'INPUT|UR'!$G$75) -> 0 | U92: =('INPUT|Vols'!U256+'INPUT|Vols'!U94)*(1+'INPUT|UR'!$G$75) -> 0 | V92: =('INPUT|Vols'!V256+'INPUT|Vols'!V94)*(1+'INPUT|UR'!$G$75) -> 0 | W92: =('INPUT|Vols'!W256+'INPUT|Vols'!W94)*(1+'INPUT|UR'!$G$75) -> 0 | X92: =('INPUT|Vols'!X256+'INPUT|Vols'!X94)*(1+'INPUT|UR'!$G$75) -> 0 | Y92: =('INPUT|Vols'!Y256+'INPUT|Vols'!Y94)*(1+'INPUT|UR'!$G$75) -> 0 | AA92: =('INPUT|Vols'!AA256+'INPUT|Vols'!AA94)*(1+'INPUT|UR'!$G$75) -> 0 | AB92: =('INPUT|Vols'!AB256+'INPUT|Vols'!AB94)*(1+'INPUT|UR'!$G$75) -> 0 | AC92: =('INPUT|Vols'!AC256+'INPUT|Vols'!AC94)*(1+'INPUT|UR'!$G$75) -> 0 | AD92: =('INPUT|Vols'!AD256+'INPUT|Vols'!AD94)*(1+'INPUT|UR'!$G$75) -> 0 | AE92: =('INPUT|Vols'!AE256+'INPUT|Vols'!AE94)*(1+'INPUT|UR'!$G$75) -> 0 | AF92: =('INPUT|Vols'!AF256+'INPUT|Vols'!AF94)*(1+'INPUT|UR'!$G$75) -> 0 | AG92: =('INPUT|Vols'!AG256+'INPUT|Vols'!AG94)*(1+'INPUT|UR'!$G$75) -> 0 | AH92: =('INPUT|Vols'!AH256+'INPUT|Vols'!AH94)*(1+'INPUT|UR'!$G$75) -> 0 | AI92: =('INPUT|Vols'!AI256+'INPUT|Vols'!AI94)*(1+'INPUT|UR'!$G$75) -> 0 | AJ92: =('INPUT|Vols'!AJ256+'INPUT|Vols'!AJ94)*(1+'INPUT|UR'!$G$75) -> 0 | AK92: =('INPUT|Vols'!AK256+'INPUT|Vols'!AK94)*(1+'INPUT|UR'!$G$75) -> 0 | AL92: =('INPUT|Vols'!AL256+'INPUT|Vols'!AL94)*(1+'INPUT|UR'!$G$75) -> 0
C94: ='INPUT|Vols'!C17 -> Shipper 9
C95: Annual capacity | D95: peak kWh/day | G95: =('INPUT|Vols'!G259+'INPUT|Vols'!G97)*(1+'INPUT|UR'!$G$75) -> 0 | AA95: =('INPUT|Vols'!AA259+'INPUT|Vols'!AA97)*(1+'INPUT|UR'!$G$75) -> 0 | AB95: =('INPUT|Vols'!AB259+'INPUT|Vols'!AB97)*(1+'INPUT|UR'!$G$75) -> 0 | AC95: =('INPUT|Vols'!AC259+'INPUT|Vols'!AC97)*(1+'INPUT|UR'!$G$75) -> 0 | AD95: =('INPUT|Vols'!AD259+'INPUT|Vols'!AD97)*(1+'INPUT|UR'!$G$75) -> 0 | AE95: =('INPUT|Vols'!AE259+'INPUT|Vols'!AE97)*(1+'INPUT|UR'!$G$75) -> 0 | AF95: =('INPUT|Vols'!AF259+'INPUT|Vols'!AF97)*(1+'INPUT|UR'!$G$75) -> 0 | AG95: =('INPUT|Vols'!AG259+'INPUT|Vols'!AG97)*(1+'INPUT|UR'!$G$75) -> 0 | AH95: =('INPUT|Vols'!AH259+'INPUT|Vols'!AH97)*(1+'INPUT|UR'!$G$75) -> 0 | AI95: =('INPUT|Vols'!AI259+'INPUT|Vols'!AI97)*(1+'INPUT|UR'!$G$75) -> 0 | AJ95: =('INPUT|Vols'!AJ259+'INPUT|Vols'!AJ97)*(1+'INPUT|UR'!$G$75) -> 0 | AK95: =('INPUT|Vols'!AK259+'INPUT|Vols'!AK97)*(1+'INPUT|UR'!$G$75) -> 0 | AL95: =('INPUT|Vols'!AL259+'INPUT|Vols'!AL97)*(1+'INPUT|UR'!$G$75) -> 0
C96: Quarterly capacity | D96: peak kWh/day | I96: =('INPUT|Vols'!I260+'INPUT|Vols'!I98)*(1+'INPUT|UR'!$G$75) -> 0 | J96: =('INPUT|Vols'!J260+'INPUT|Vols'!J98)*(1+'INPUT|UR'!$G$75) -> 0 | K96: =('INPUT|Vols'!K260+'INPUT|Vols'!K98)*(1+'INPUT|UR'!$G$75) -> 0 | L96: =('INPUT|Vols'!L260+'INPUT|Vols'!L98)*(1+'INPUT|UR'!$G$75) -> 0 | AA96: =('INPUT|Vols'!AA260+'INPUT|Vols'!AA98)*(1+'INPUT|UR'!$G$75) -> 0 | AB96: =('INPUT|Vols'!AB260+'INPUT|Vols'!AB98)*(1+'INPUT|UR'!$G$75) -> 0 | AC96: =('INPUT|Vols'!AC260+'INPUT|Vols'!AC98)*(1+'INPUT|UR'!$G$75) -> 0 | AD96: =('INPUT|Vols'!AD260+'INPUT|Vols'!AD98)*(1+'INPUT|UR'!$G$75) -> 0 | AE96: =('INPUT|Vols'!AE260+'INPUT|Vols'!AE98)*(1+'INPUT|UR'!$G$75) -> 0 | AF96: =('INPUT|Vols'!AF260+'INPUT|Vols'!AF98)*(1+'INPUT|UR'!$G$75) -> 0 | AG96: =('INPUT|Vols'!AG260+'INPUT|Vols'!AG98)*(1+'INPUT|UR'!$G$75) -> 0 | AH96: =('INPUT|Vols'!AH260+'INPUT|Vols'!AH98)*(1+'INPUT|UR'!$G$75) -> 0 | AI96: =('INPUT|Vols'!AI260+'INPUT|Vols'!AI98)*(1+'INPUT|UR'!$G$75) -> 0 | AJ96: =('INPUT|Vols'!AJ260+'INPUT|Vols'!AJ98)*(1+'INPUT|UR'!$G$75) -> 0 | AK96: =('INPUT|Vols'!AK260+'INPUT|Vols'!AK98)*(1+'INPUT|UR'!$G$75) -> 0 | AL96: =('INPUT|Vols'!AL260+'INPUT|Vols'!AL98)*(1+'INPUT|UR'!$G$75) -> 0
C97: Monthly capacity | D97: peak kWh/day | N97: =('INPUT|Vols'!N261+'INPUT|Vols'!N99)*(1+'INPUT|UR'!$G$75) -> 0 | O97: =('INPUT|Vols'!O261+'INPUT|Vols'!O99)*(1+'INPUT|UR'!$G$75) -> 0 | P97: =('INPUT|Vols'!P261+'INPUT|Vols'!P99)*(1+'INPUT|UR'!$G$75) -> 0 | Q97: =('INPUT|Vols'!Q261+'INPUT|Vols'!Q99)*(1+'INPUT|UR'!$G$75) -> 0 | R97: =('INPUT|Vols'!R261+'INPUT|Vols'!R99)*(1+'INPUT|UR'!$G$75) -> 0 | S97: =('INPUT|Vols'!S261+'INPUT|Vols'!S99)*(1+'INPUT|UR'!$G$75) -> 0 | T97: =('INPUT|Vols'!T261+'INPUT|Vols'!T99)*(1+'INPUT|UR'!$G$75) -> 0 | U97: =('INPUT|Vols'!U261+'INPUT|Vols'!U99)*(1+'INPUT|UR'!$G$75) -> 0 | V97: =('INPUT|Vols'!V261+'INPUT|Vols'!V99)*(1+'INPUT|UR'!$G$75) -> 0 | W97: =('INPUT|Vols'!W261+'INPUT|Vols'!W99)*(1+'INPUT|UR'!$G$75) -> 0 | X97: =('INPUT|Vols'!X261+'INPUT|Vols'!X99)*(1+'INPUT|UR'!$G$75) -> 0 | Y97: =('INPUT|Vols'!Y261+'INPUT|Vols'!Y99)*(1+'INPUT|UR'!$G$75) -> 0 | AA97: =('INPUT|Vols'!AA261+'INPUT|Vols'!AA99)*(1+'INPUT|UR'!$G$75) -> 0 | AB97: =('INPUT|Vols'!AB261+'INPUT|Vols'!AB99)*(1+'INPUT|UR'!$G$75) -> 0 | AC97: =('INPUT|Vols'!AC261+'INPUT|Vols'!AC99)*(1+'INPUT|UR'!$G$75) -> 0 | AD97: =('INPUT|Vols'!AD261+'INPUT|Vols'!AD99)*(1+'INPUT|UR'!$G$75) -> 0 | AE97: =('INPUT|Vols'!AE261+'INPUT|Vols'!AE99)*(1+'INPUT|UR'!$G$75) -> 0 | AF97: =('INPUT|Vols'!AF261+'INPUT|Vols'!AF99)*(1+'INPUT|UR'!$G$75) -> 0 | AG97: =('INPUT|Vols'!AG261+'INPUT|Vols'!AG99)*(1+'INPUT|UR'!$G$75) -> 0 | AH97: =('INPUT|Vols'!AH261+'INPUT|Vols'!AH99)*(1+'INPUT|UR'!$G$75) -> 0 | AI97: =('INPUT|Vols'!AI261+'INPUT|Vols'!AI99)*(1+'INPUT|UR'!$G$75) -> 0 | AJ97: =('INPUT|Vols'!AJ261+'INPUT|Vols'!AJ99)*(1+'INPUT|UR'!$G$75) -> 0 | AK97: =('INPUT|Vols'!AK261+'INPUT|Vols'!AK99)*(1+'INPUT|UR'!$G$75) -> 0 | AL97: =('INPUT|Vols'!AL261+'INPUT|Vols'!AL99)*(1+'INPUT|UR'!$G$75) -> 0
C98: Daily capacity | D98: peak kWh/day | N98: =('INPUT|Vols'!N262+'INPUT|Vols'!N100)*(1+'INPUT|UR'!$G$75) -> 0 | O98: =('INPUT|Vols'!O262+'INPUT|Vols'!O100)*(1+'INPUT|UR'!$G$75) -> 0 | P98: =('INPUT|Vols'!P262+'INPUT|Vols'!P100)*(1+'INPUT|UR'!$G$75) -> 0 | Q98: =('INPUT|Vols'!Q262+'INPUT|Vols'!Q100)*(1+'INPUT|UR'!$G$75) -> 0 | R98: =('INPUT|Vols'!R262+'INPUT|Vols'!R100)*(1+'INPUT|UR'!$G$75) -> 0 | S98: =('INPUT|Vols'!S262+'INPUT|Vols'!S100)*(1+'INPUT|UR'!$G$75) -> 0 | T98: =('INPUT|Vols'!T262+'INPUT|Vols'!T100)*(1+'INPUT|UR'!$G$75) -> 0 | U98: =('INPUT|Vols'!U262+'INPUT|Vols'!U100)*(1+'INPUT|UR'!$G$75) -> 0 | V98: =('INPUT|Vols'!V262+'INPUT|Vols'!V100)*(1+'INPUT|UR'!$G$75) -> 0 | W98: =('INPUT|Vols'!W262+'INPUT|Vols'!W100)*(1+'INPUT|UR'!$G$75) -> 0 | X98: =('INPUT|Vols'!X262+'INPUT|Vols'!X100)*(1+'INPUT|UR'!$G$75) -> 0 | Y98: =('INPUT|Vols'!Y262+'INPUT|Vols'!Y100)*(1+'INPUT|UR'!$G$75) -> 0 | AA98: =('INPUT|Vols'!AA262+'INPUT|Vols'!AA100)*(1+'INPUT|UR'!$G$75) -> 0 | AB98: =('INPUT|Vols'!AB262+'INPUT|Vols'!AB100)*(1+'INPUT|UR'!$G$75) -> 0 | AC98: =('INPUT|Vols'!AC262+'INPUT|Vols'!AC100)*(1+'INPUT|UR'!$G$75) -> 0 | AD98: =('INPUT|Vols'!AD262+'INPUT|Vols'!AD100)*(1+'INPUT|UR'!$G$75) -> 0 | AE98: =('INPUT|Vols'!AE262+'INPUT|Vols'!AE100)*(1+'INPUT|UR'!$G$75) -> 0 | AF98: =('INPUT|Vols'!AF262+'INPUT|Vols'!AF100)*(1+'INPUT|UR'!$G$75) -> 0 | AG98: =('INPUT|Vols'!AG262+'INPUT|Vols'!AG100)*(1+'INPUT|UR'!$G$75) -> 0 | AH98: =('INPUT|Vols'!AH262+'INPUT|Vols'!AH100)*(1+'INPUT|UR'!$G$75) -> 0 | AI98: =('INPUT|Vols'!AI262+'INPUT|Vols'!AI100)*(1+'INPUT|UR'!$G$75) -> 0 | AJ98: =('INPUT|Vols'!AJ262+'INPUT|Vols'!AJ100)*(1+'INPUT|UR'!$G$75) -> 0 | AK98: =('INPUT|Vols'!AK262+'INPUT|Vols'!AK100)*(1+'INPUT|UR'!$G$75) -> 0 | AL98: =('INPUT|Vols'!AL262+'INPUT|Vols'!AL100)*(1+'INPUT|UR'!$G$75) -> 0
C99: Within-day capacity | D99: peak kWh/day | N99: =('INPUT|Vols'!N263+'INPUT|Vols'!N101)*(1+'INPUT|UR'!$G$75) -> 0 | O99: =('INPUT|Vols'!O263+'INPUT|Vols'!O101)*(1+'INPUT|UR'!$G$75) -> 0 | P99: =('INPUT|Vols'!P263+'INPUT|Vols'!P101)*(1+'INPUT|UR'!$G$75) -> 0 | Q99: =('INPUT|Vols'!Q263+'INPUT|Vols'!Q101)*(1+'INPUT|UR'!$G$75) -> 0 | R99: =('INPUT|Vols'!R263+'INPUT|Vols'!R101)*(1+'INPUT|UR'!$G$75) -> 0 | S99: =('INPUT|Vols'!S263+'INPUT|Vols'!S101)*(1+'INPUT|UR'!$G$75) -> 0 | T99: =('INPUT|Vols'!T263+'INPUT|Vols'!T101)*(1+'INPUT|UR'!$G$75) -> 0 | U99: =('INPUT|Vols'!U263+'INPUT|Vols'!U101)*(1+'INPUT|UR'!$G$75) -> 0 | V99: =('INPUT|Vols'!V263+'INPUT|Vols'!V101)*(1+'INPUT|UR'!$G$75) -> 0 | W99: =('INPUT|Vols'!W263+'INPUT|Vols'!W101)*(1+'INPUT|UR'!$G$75) -> 0 | X99: =('INPUT|Vols'!X263+'INPUT|Vols'!X101)*(1+'INPUT|UR'!$G$75) -> 0 | Y99: =('INPUT|Vols'!Y263+'INPUT|Vols'!Y101)*(1+'INPUT|UR'!$G$75) -> 0 | AA99: =('INPUT|Vols'!AA263+'INPUT|Vols'!AA101)*(1+'INPUT|UR'!$G$75) -> 0 | AB99: =('INPUT|Vols'!AB263+'INPUT|Vols'!AB101)*(1+'INPUT|UR'!$G$75) -> 0 | AC99: =('INPUT|Vols'!AC263+'INPUT|Vols'!AC101)*(1+'INPUT|UR'!$G$75) -> 0 | AD99: =('INPUT|Vols'!AD263+'INPUT|Vols'!AD101)*(1+'INPUT|UR'!$G$75) -> 0 | AE99: =('INPUT|Vols'!AE263+'INPUT|Vols'!AE101)*(1+'INPUT|UR'!$G$75) -> 0 | AF99: =('INPUT|Vols'!AF263+'INPUT|Vols'!AF101)*(1+'INPUT|UR'!$G$75) -> 0 | AG99: =('INPUT|Vols'!AG263+'INPUT|Vols'!AG101)*(1+'INPUT|UR'!$G$75) -> 0 | AH99: =('INPUT|Vols'!AH263+'INPUT|Vols'!AH101)*(1+'INPUT|UR'!$G$75) -> 0 | AI99: =('INPUT|Vols'!AI263+'INPUT|Vols'!AI101)*(1+'INPUT|UR'!$G$75) -> 0 | AJ99: =('INPUT|Vols'!AJ263+'INPUT|Vols'!AJ101)*(1+'INPUT|UR'!$G$75) -> 0 | AK99: =('INPUT|Vols'!AK263+'INPUT|Vols'!AK101)*(1+'INPUT|UR'!$G$75) -> 0 | AL99: =('INPUT|Vols'!AL263+'INPUT|Vols'!AL101)*(1+'INPUT|UR'!$G$75) -> 0
C100: Actual interruptible capacity | D100: peak kWh/day | N100: =('INPUT|Vols'!N264+'INPUT|Vols'!N102)*(1+'INPUT|UR'!$G$75) -> 0 | O100: =('INPUT|Vols'!O264+'INPUT|Vols'!O102)*(1+'INPUT|UR'!$G$75) -> 0 | P100: =('INPUT|Vols'!P264+'INPUT|Vols'!P102)*(1+'INPUT|UR'!$G$75) -> 0 | Q100: =('INPUT|Vols'!Q264+'INPUT|Vols'!Q102)*(1+'INPUT|UR'!$G$75) -> 0 | R100: =('INPUT|Vols'!R264+'INPUT|Vols'!R102)*(1+'INPUT|UR'!$G$75) -> 0 | S100: =('INPUT|Vols'!S264+'INPUT|Vols'!S102)*(1+'INPUT|UR'!$G$75) -> 0 | T100: =('INPUT|Vols'!T264+'INPUT|Vols'!T102)*(1+'INPUT|UR'!$G$75) -> 0 | U100: =('INPUT|Vols'!U264+'INPUT|Vols'!U102)*(1+'INPUT|UR'!$G$75) -> 0 | V100: =('INPUT|Vols'!V264+'INPUT|Vols'!V102)*(1+'INPUT|UR'!$G$75) -> 0 | W100: =('INPUT|Vols'!W264+'INPUT|Vols'!W102)*(1+'INPUT|UR'!$G$75) -> 0 | X100: =('INPUT|Vols'!X264+'INPUT|Vols'!X102)*(1+'INPUT|UR'!$G$75) -> 0 | Y100: =('INPUT|Vols'!Y264+'INPUT|Vols'!Y102)*(1+'INPUT|UR'!$G$75) -> 0 | AA100: =('INPUT|Vols'!AA264+'INPUT|Vols'!AA102)*(1+'INPUT|UR'!$G$75) -> 0 | AB100: =('INPUT|Vols'!AB264+'INPUT|Vols'!AB102)*(1+'INPUT|UR'!$G$75) -> 0 | AC100: =('INPUT|Vols'!AC264+'INPUT|Vols'!AC102)*(1+'INPUT|UR'!$G$75) -> 0 | AD100: =('INPUT|Vols'!AD264+'INPUT|Vols'!AD102)*(1+'INPUT|UR'!$G$75) -> 0 | AE100: =('INPUT|Vols'!AE264+'INPUT|Vols'!AE102)*(1+'INPUT|UR'!$G$75) -> 0 | AF100: =('INPUT|Vols'!AF264+'INPUT|Vols'!AF102)*(1+'INPUT|UR'!$G$75) -> 0 | AG100: =('INPUT|Vols'!AG264+'INPUT|Vols'!AG102)*(1+'INPUT|UR'!$G$75) -> 0 | AH100: =('INPUT|Vols'!AH264+'INPUT|Vols'!AH102)*(1+'INPUT|UR'!$G$75) -> 0 | AI100: =('INPUT|Vols'!AI264+'INPUT|Vols'!AI102)*(1+'INPUT|UR'!$G$75) -> 0 | AJ100: =('INPUT|Vols'!AJ264+'INPUT|Vols'!AJ102)*(1+'INPUT|UR'!$G$75) -> 0 | AK100: =('INPUT|Vols'!AK264+'INPUT|Vols'!AK102)*(1+'INPUT|UR'!$G$75) -> 0 | AL100: =('INPUT|Vols'!AL264+'INPUT|Vols'!AL102)*(1+'INPUT|UR'!$G$75) -> 0
C102: ='INPUT|Vols'!C18 -> Shipper 10
C103: Annual capacity | D103: peak kWh/day | G103: =('INPUT|Vols'!G267+'INPUT|Vols'!G105)*(1+'INPUT|UR'!$G$75) -> 0 | AA103: =('INPUT|Vols'!AA267+'INPUT|Vols'!AA105)*(1+'INPUT|UR'!$G$75) -> 0 | AB103: =('INPUT|Vols'!AB267+'INPUT|Vols'!AB105)*(1+'INPUT|UR'!$G$75) -> 0 | AC103: =('INPUT|Vols'!AC267+'INPUT|Vols'!AC105)*(1+'INPUT|UR'!$G$75) -> 0 | AD103: =('INPUT|Vols'!AD267+'INPUT|Vols'!AD105)*(1+'INPUT|UR'!$G$75) -> 0 | AE103: =('INPUT|Vols'!AE267+'INPUT|Vols'!AE105)*(1+'INPUT|UR'!$G$75) -> 0 | AF103: =('INPUT|Vols'!AF267+'INPUT|Vols'!AF105)*(1+'INPUT|UR'!$G$75) -> 0 | AG103: =('INPUT|Vols'!AG267+'INPUT|Vols'!AG105)*(1+'INPUT|UR'!$G$75) -> 0 | AH103: =('INPUT|Vols'!AH267+'INPUT|Vols'!AH105)*(1+'INPUT|UR'!$G$75) -> 0 | AI103: =('INPUT|Vols'!AI267+'INPUT|Vols'!AI105)*(1+'INPUT|UR'!$G$75) -> 0 | AJ103: =('INPUT|Vols'!AJ267+'INPUT|Vols'!AJ105)*(1+'INPUT|UR'!$G$75) -> 0 | AK103: =('INPUT|Vols'!AK267+'INPUT|Vols'!AK105)*(1+'INPUT|UR'!$G$75) -> 0 | AL103: =('INPUT|Vols'!AL267+'INPUT|Vols'!AL105)*(1+'INPUT|UR'!$G$75) -> 0
C104: Quarterly capacity | D104: peak kWh/day | I104: =('INPUT|Vols'!I268+'INPUT|Vols'!I106)*(1+'INPUT|UR'!$G$75) -> 0 | J104: =('INPUT|Vols'!J268+'INPUT|Vols'!J106)*(1+'INPUT|UR'!$G$75) -> 0 | K104: =('INPUT|Vols'!K268+'INPUT|Vols'!K106)*(1+'INPUT|UR'!$G$75) -> 0 | L104: =('INPUT|Vols'!L268+'INPUT|Vols'!L106)*(1+'INPUT|UR'!$G$75) -> 0 | AA104: =('INPUT|Vols'!AA268+'INPUT|Vols'!AA106)*(1+'INPUT|UR'!$G$75) -> 0 | AB104: =('INPUT|Vols'!AB268+'INPUT|Vols'!AB106)*(1+'INPUT|UR'!$G$75) -> 0 | AC104: =('INPUT|Vols'!AC268+'INPUT|Vols'!AC106)*(1+'INPUT|UR'!$G$75) -> 0 | AD104: =('INPUT|Vols'!AD268+'INPUT|Vols'!AD106)*(1+'INPUT|UR'!$G$75) -> 0 | AE104: =('INPUT|Vols'!AE268+'INPUT|Vols'!AE106)*(1+'INPUT|UR'!$G$75) -> 0 | AF104: =('INPUT|Vols'!AF268+'INPUT|Vols'!AF106)*(1+'INPUT|UR'!$G$75) -> 0 | AG104: =('INPUT|Vols'!AG268+'INPUT|Vols'!AG106)*(1+'INPUT|UR'!$G$75) -> 0 | AH104: =('INPUT|Vols'!AH268+'INPUT|Vols'!AH106)*(1+'INPUT|UR'!$G$75) -> 0 | AI104: =('INPUT|Vols'!AI268+'INPUT|Vols'!AI106)*(1+'INPUT|UR'!$G$75) -> 0 | AJ104: =('INPUT|Vols'!AJ268+'INPUT|Vols'!AJ106)*(1+'INPUT|UR'!$G$75) -> 0 | AK104: =('INPUT|Vols'!AK268+'INPUT|Vols'!AK106)*(1+'INPUT|UR'!$G$75) -> 0 | AL104: =('INPUT|Vols'!AL268+'INPUT|Vols'!AL106)*(1+'INPUT|UR'!$G$75) -> 0
C105: Monthly capacity | D105: peak kWh/day | N105: =('INPUT|Vols'!N269+'INPUT|Vols'!N107)*(1+'INPUT|UR'!$G$75) -> 0 | O105: =('INPUT|Vols'!O269+'INPUT|Vols'!O107)*(1+'INPUT|UR'!$G$75) -> 0 | P105: =('INPUT|Vols'!P269+'INPUT|Vols'!P107)*(1+'INPUT|UR'!$G$75) -> 0 | Q105: =('INPUT|Vols'!Q269+'INPUT|Vols'!Q107)*(1+'INPUT|UR'!$G$75) -> 0 | R105: =('INPUT|Vols'!R269+'INPUT|Vols'!R107)*(1+'INPUT|UR'!$G$75) -> 0 | S105: =('INPUT|Vols'!S269+'INPUT|Vols'!S107)*(1+'INPUT|UR'!$G$75) -> 0 | T105: =('INPUT|Vols'!T269+'INPUT|Vols'!T107)*(1+'INPUT|UR'!$G$75) -> 0 | U105: =('INPUT|Vols'!U269+'INPUT|Vols'!U107)*(1+'INPUT|UR'!$G$75) -> 0 | V105: =('INPUT|Vols'!V269+'INPUT|Vols'!V107)*(1+'INPUT|UR'!$G$75) -> 0 | W105: =('INPUT|Vols'!W269+'INPUT|Vols'!W107)*(1+'INPUT|UR'!$G$75) -> 0 | X105: =('INPUT|Vols'!X269+'INPUT|Vols'!X107)*(1+'INPUT|UR'!$G$75) -> 0 | Y105: =('INPUT|Vols'!Y269+'INPUT|Vols'!Y107)*(1+'INPUT|UR'!$G$75) -> 0 | AA105: =('INPUT|Vols'!AA269+'INPUT|Vols'!AA107)*(1+'INPUT|UR'!$G$75) -> 0 | AB105: =('INPUT|Vols'!AB269+'INPUT|Vols'!AB107)*(1+'INPUT|UR'!$G$75) -> 0 | AC105: =('INPUT|Vols'!AC269+'INPUT|Vols'!AC107)*(1+'INPUT|UR'!$G$75) -> 0 | AD105: =('INPUT|Vols'!AD269+'INPUT|Vols'!AD107)*(1+'INPUT|UR'!$G$75) -> 0 | AE105: =('INPUT|Vols'!AE269+'INPUT|Vols'!AE107)*(1+'INPUT|UR'!$G$75) -> 0 | AF105: =('INPUT|Vols'!AF269+'INPUT|Vols'!AF107)*(1+'INPUT|UR'!$G$75) -> 0 | AG105: =('INPUT|Vols'!AG269+'INPUT|Vols'!AG107)*(1+'INPUT|UR'!$G$75) -> 0 | AH105: =('INPUT|Vols'!AH269+'INPUT|Vols'!AH107)*(1+'INPUT|UR'!$G$75) -> 0 | AI105: =('INPUT|Vols'!AI269+'INPUT|Vols'!AI107)*(1+'INPUT|UR'!$G$75) -> 0 | AJ105: =('INPUT|Vols'!AJ269+'INPUT|Vols'!AJ107)*(1+'INPUT|UR'!$G$75) -> 0 | AK105: =('INPUT|Vols'!AK269+'INPUT|Vols'!AK107)*(1+'INPUT|UR'!$G$75) -> 0 | AL105: =('INPUT|Vols'!AL269+'INPUT|Vols'!AL107)*(1+'INPUT|UR'!$G$75) -> 0
C106: Daily capacity | D106: peak kWh/day | N106: =('INPUT|Vols'!N270+'INPUT|Vols'!N108)*(1+'INPUT|UR'!$G$75) -> 0 | O106: =('INPUT|Vols'!O270+'INPUT|Vols'!O108)*(1+'INPUT|UR'!$G$75) -> 0 | P106: =('INPUT|Vols'!P270+'INPUT|Vols'!P108)*(1+'INPUT|UR'!$G$75) -> 0 | Q106: =('INPUT|Vols'!Q270+'INPUT|Vols'!Q108)*(1+'INPUT|UR'!$G$75) -> 0 | R106: =('INPUT|Vols'!R270+'INPUT|Vols'!R108)*(1+'INPUT|UR'!$G$75) -> 0 | S106: =('INPUT|Vols'!S270+'INPUT|Vols'!S108)*(1+'INPUT|UR'!$G$75) -> 0 | T106: =('INPUT|Vols'!T270+'INPUT|Vols'!T108)*(1+'INPUT|UR'!$G$75) -> 0 | U106: =('INPUT|Vols'!U270+'INPUT|Vols'!U108)*(1+'INPUT|UR'!$G$75) -> 0 | V106: =('INPUT|Vols'!V270+'INPUT|Vols'!V108)*(1+'INPUT|UR'!$G$75) -> 0 | W106: =('INPUT|Vols'!W270+'INPUT|Vols'!W108)*(1+'INPUT|UR'!$G$75) -> 0 | X106: =('INPUT|Vols'!X270+'INPUT|Vols'!X108)*(1+'INPUT|UR'!$G$75) -> 0 | Y106: =('INPUT|Vols'!Y270+'INPUT|Vols'!Y108)*(1+'INPUT|UR'!$G$75) -> 0 | AA106: =('INPUT|Vols'!AA270+'INPUT|Vols'!AA108)*(1+'INPUT|UR'!$G$75) -> 0 | AB106: =('INPUT|Vols'!AB270+'INPUT|Vols'!AB108)*(1+'INPUT|UR'!$G$75) -> 0 | AC106: =('INPUT|Vols'!AC270+'INPUT|Vols'!AC108)*(1+'INPUT|UR'!$G$75) -> 0 | AD106: =('INPUT|Vols'!AD270+'INPUT|Vols'!AD108)*(1+'INPUT|UR'!$G$75) -> 0 | AE106: =('INPUT|Vols'!AE270+'INPUT|Vols'!AE108)*(1+'INPUT|UR'!$G$75) -> 0 | AF106: =('INPUT|Vols'!AF270+'INPUT|Vols'!AF108)*(1+'INPUT|UR'!$G$75) -> 0 | AG106: =('INPUT|Vols'!AG270+'INPUT|Vols'!AG108)*(1+'INPUT|UR'!$G$75) -> 0 | AH106: =('INPUT|Vols'!AH270+'INPUT|Vols'!AH108)*(1+'INPUT|UR'!$G$75) -> 0 | AI106: =('INPUT|Vols'!AI270+'INPUT|Vols'!AI108)*(1+'INPUT|UR'!$G$75) -> 0 | AJ106: =('INPUT|Vols'!AJ270+'INPUT|Vols'!AJ108)*(1+'INPUT|UR'!$G$75) -> 0 | AK106: =('INPUT|Vols'!AK270+'INPUT|Vols'!AK108)*(1+'INPUT|UR'!$G$75) -> 0 | AL106: =('INPUT|Vols'!AL270+'INPUT|Vols'!AL108)*(1+'INPUT|UR'!$G$75) -> 0
C107: Within-day capacity | D107: peak kWh/day | N107: =('INPUT|Vols'!N271+'INPUT|Vols'!N109)*(1+'INPUT|UR'!$G$75) -> 0 | O107: =('INPUT|Vols'!O271+'INPUT|Vols'!O109)*(1+'INPUT|UR'!$G$75) -> 0 | P107: =('INPUT|Vols'!P271+'INPUT|Vols'!P109)*(1+'INPUT|UR'!$G$75) -> 0 | Q107: =('INPUT|Vols'!Q271+'INPUT|Vols'!Q109)*(1+'INPUT|UR'!$G$75) -> 0 | R107: =('INPUT|Vols'!R271+'INPUT|Vols'!R109)*(1+'INPUT|UR'!$G$75) -> 0 | S107: =('INPUT|Vols'!S271+'INPUT|Vols'!S109)*(1+'INPUT|UR'!$G$75) -> 0 | T107: =('INPUT|Vols'!T271+'INPUT|Vols'!T109)*(1+'INPUT|UR'!$G$75) -> 0 | U107: =('INPUT|Vols'!U271+'INPUT|Vols'!U109)*(1+'INPUT|UR'!$G$75) -> 0 | V107: =('INPUT|Vols'!V271+'INPUT|Vols'!V109)*(1+'INPUT|UR'!$G$75) -> 0 | W107: =('INPUT|Vols'!W271+'INPUT|Vols'!W109)*(1+'INPUT|UR'!$G$75) -> 0 | X107: =('INPUT|Vols'!X271+'INPUT|Vols'!X109)*(1+'INPUT|UR'!$G$75) -> 0 | Y107: =('INPUT|Vols'!Y271+'INPUT|Vols'!Y109)*(1+'INPUT|UR'!$G$75) -> 0 | AA107: =('INPUT|Vols'!AA271+'INPUT|Vols'!AA109)*(1+'INPUT|UR'!$G$75) -> 0 | AB107: =('INPUT|Vols'!AB271+'INPUT|Vols'!AB109)*(1+'INPUT|UR'!$G$75) -> 0 | AC107: =('INPUT|Vols'!AC271+'INPUT|Vols'!AC109)*(1+'INPUT|UR'!$G$75) -> 0 | AD107: =('INPUT|Vols'!AD271+'INPUT|Vols'!AD109)*(1+'INPUT|UR'!$G$75) -> 0 | AE107: =('INPUT|Vols'!AE271+'INPUT|Vols'!AE109)*(1+'INPUT|UR'!$G$75) -> 0 | AF107: =('INPUT|Vols'!AF271+'INPUT|Vols'!AF109)*(1+'INPUT|UR'!$G$75) -> 0 | AG107: =('INPUT|Vols'!AG271+'INPUT|Vols'!AG109)*(1+'INPUT|UR'!$G$75) -> 0 | AH107: =('INPUT|Vols'!AH271+'INPUT|Vols'!AH109)*(1+'INPUT|UR'!$G$75) -> 0 | AI107: =('INPUT|Vols'!AI271+'INPUT|Vols'!AI109)*(1+'INPUT|UR'!$G$75) -> 0 | AJ107: =('INPUT|Vols'!AJ271+'INPUT|Vols'!AJ109)*(1+'INPUT|UR'!$G$75) -> 0 | AK107: =('INPUT|Vols'!AK271+'INPUT|Vols'!AK109)*(1+'INPUT|UR'!$G$75) -> 0 | AL107: =('INPUT|Vols'!AL271+'INPUT|Vols'!AL109)*(1+'INPUT|UR'!$G$75) -> 0
C108: Actual interruptible capacity | D108: peak kWh/day | N108: =('INPUT|Vols'!N272+'INPUT|Vols'!N110)*(1+'INPUT|UR'!$G$75) -> 0 | O108: =('INPUT|Vols'!O272+'INPUT|Vols'!O110)*(1+'INPUT|UR'!$G$75) -> 0 | P108: =('INPUT|Vols'!P272+'INPUT|Vols'!P110)*(1+'INPUT|UR'!$G$75) -> 0 | Q108: =('INPUT|Vols'!Q272+'INPUT|Vols'!Q110)*(1+'INPUT|UR'!$G$75) -> 0 | R108: =('INPUT|Vols'!R272+'INPUT|Vols'!R110)*(1+'INPUT|UR'!$G$75) -> 0 | S108: =('INPUT|Vols'!S272+'INPUT|Vols'!S110)*(1+'INPUT|UR'!$G$75) -> 0 | T108: =('INPUT|Vols'!T272+'INPUT|Vols'!T110)*(1+'INPUT|UR'!$G$75) -> 0 | U108: =('INPUT|Vols'!U272+'INPUT|Vols'!U110)*(1+'INPUT|UR'!$G$75) -> 0 | V108: =('INPUT|Vols'!V272+'INPUT|Vols'!V110)*(1+'INPUT|UR'!$G$75) -> 0 | W108: =('INPUT|Vols'!W272+'INPUT|Vols'!W110)*(1+'INPUT|UR'!$G$75) -> 0 | X108: =('INPUT|Vols'!X272+'INPUT|Vols'!X110)*(1+'INPUT|UR'!$G$75) -> 0 | Y108: =('INPUT|Vols'!Y272+'INPUT|Vols'!Y110)*(1+'INPUT|UR'!$G$75) -> 0 | AA108: =('INPUT|Vols'!AA272+'INPUT|Vols'!AA110)*(1+'INPUT|UR'!$G$75) -> 0 | AB108: =('INPUT|Vols'!AB272+'INPUT|Vols'!AB110)*(1+'INPUT|UR'!$G$75) -> 0 | AC108: =('INPUT|Vols'!AC272+'INPUT|Vols'!AC110)*(1+'INPUT|UR'!$G$75) -> 0 | AD108: =('INPUT|Vols'!AD272+'INPUT|Vols'!AD110)*(1+'INPUT|UR'!$G$75) -> 0 | AE108: =('INPUT|Vols'!AE272+'INPUT|Vols'!AE110)*(1+'INPUT|UR'!$G$75) -> 0 | AF108: =('INPUT|Vols'!AF272+'INPUT|Vols'!AF110)*(1+'INPUT|UR'!$G$75) -> 0 | AG108: =('INPUT|Vols'!AG272+'INPUT|Vols'!AG110)*(1+'INPUT|UR'!$G$75) -> 0 | AH108: =('INPUT|Vols'!AH272+'INPUT|Vols'!AH110)*(1+'INPUT|UR'!$G$75) -> 0 | AI108: =('INPUT|Vols'!AI272+'INPUT|Vols'!AI110)*(1+'INPUT|UR'!$G$75) -> 0 | AJ108: =('INPUT|Vols'!AJ272+'INPUT|Vols'!AJ110)*(1+'INPUT|UR'!$G$75) -> 0 | AK108: =('INPUT|Vols'!AK272+'INPUT|Vols'!AK110)*(1+'INPUT|UR'!$G$75) -> 0 | AL108: =('INPUT|Vols'!AL272+'INPUT|Vols'!AL110)*(1+'INPUT|UR'!$G$75) -> 0
C110: ='INPUT|Vols'!C19 -> Shipper 11
C111: Annual capacity | D111: peak kWh/day | G111: =('INPUT|Vols'!G275+'INPUT|Vols'!G113)*(1+'INPUT|UR'!$G$75) -> 0 | AA111: =('INPUT|Vols'!AA275+'INPUT|Vols'!AA113)*(1+'INPUT|UR'!$G$75) -> 0 | AB111: =('INPUT|Vols'!AB275+'INPUT|Vols'!AB113)*(1+'INPUT|UR'!$G$75) -> 0 | AC111: =('INPUT|Vols'!AC275+'INPUT|Vols'!AC113)*(1+'INPUT|UR'!$G$75) -> 0 | AD111: =('INPUT|Vols'!AD275+'INPUT|Vols'!AD113)*(1+'INPUT|UR'!$G$75) -> 0 | AE111: =('INPUT|Vols'!AE275+'INPUT|Vols'!AE113)*(1+'INPUT|UR'!$G$75) -> 0 | AF111: =('INPUT|Vols'!AF275+'INPUT|Vols'!AF113)*(1+'INPUT|UR'!$G$75) -> 0 | AG111: =('INPUT|Vols'!AG275+'INPUT|Vols'!AG113)*(1+'INPUT|UR'!$G$75) -> 0 | AH111: =('INPUT|Vols'!AH275+'INPUT|Vols'!AH113)*(1+'INPUT|UR'!$G$75) -> 0 | AI111: =('INPUT|Vols'!AI275+'INPUT|Vols'!AI113)*(1+'INPUT|UR'!$G$75) -> 0 | AJ111: =('INPUT|Vols'!AJ275+'INPUT|Vols'!AJ113)*(1+'INPUT|UR'!$G$75) -> 0 | AK111: =('INPUT|Vols'!AK275+'INPUT|Vols'!AK113)*(1+'INPUT|UR'!$G$75) -> 0 | AL111: =('INPUT|Vols'!AL275+'INPUT|Vols'!AL113)*(1+'INPUT|UR'!$G$75) -> 0
C112: Quarterly capacity | D112: peak kWh/day | I112: =('INPUT|Vols'!I276+'INPUT|Vols'!I114)*(1+'INPUT|UR'!$G$75) -> 0 | J112: =('INPUT|Vols'!J276+'INPUT|Vols'!J114)*(1+'INPUT|UR'!$G$75) -> 0 | K112: =('INPUT|Vols'!K276+'INPUT|Vols'!K114)*(1+'INPUT|UR'!$G$75) -> 0 | L112: =('INPUT|Vols'!L276+'INPUT|Vols'!L114)*(1+'INPUT|UR'!$G$75) -> 0 | AA112: =('INPUT|Vols'!AA276+'INPUT|Vols'!AA114)*(1+'INPUT|UR'!$G$75) -> 0 | AB112: =('INPUT|Vols'!AB276+'INPUT|Vols'!AB114)*(1+'INPUT|UR'!$G$75) -> 0 | AC112: =('INPUT|Vols'!AC276+'INPUT|Vols'!AC114)*(1+'INPUT|UR'!$G$75) -> 0 | AD112: =('INPUT|Vols'!AD276+'INPUT|Vols'!AD114)*(1+'INPUT|UR'!$G$75) -> 0 | AE112: =('INPUT|Vols'!AE276+'INPUT|Vols'!AE114)*(1+'INPUT|UR'!$G$75) -> 0 | AF112: =('INPUT|Vols'!AF276+'INPUT|Vols'!AF114)*(1+'INPUT|UR'!$G$75) -> 0 | AG112: =('INPUT|Vols'!AG276+'INPUT|Vols'!AG114)*(1+'INPUT|UR'!$G$75) -> 0 | AH112: =('INPUT|Vols'!AH276+'INPUT|Vols'!AH114)*(1+'INPUT|UR'!$G$75) -> 0 | AI112: =('INPUT|Vols'!AI276+'INPUT|Vols'!AI114)*(1+'INPUT|UR'!$G$75) -> 0 | AJ112: =('INPUT|Vols'!AJ276+'INPUT|Vols'!AJ114)*(1+'INPUT|UR'!$G$75) -> 0 | AK112: =('INPUT|Vols'!AK276+'INPUT|Vols'!AK114)*(1+'INPUT|UR'!$G$75) -> 0 | AL112: =('INPUT|Vols'!AL276+'INPUT|Vols'!AL114)*(1+'INPUT|UR'!$G$75) -> 0
C113: Monthly capacity | D113: peak kWh/day | N113: =('INPUT|Vols'!N277+'INPUT|Vols'!N115)*(1+'INPUT|UR'!$G$75) -> 0 | O113: =('INPUT|Vols'!O277+'INPUT|Vols'!O115)*(1+'INPUT|UR'!$G$75) -> 0 | P113: =('INPUT|Vols'!P277+'INPUT|Vols'!P115)*(1+'INPUT|UR'!$G$75) -> 0 | Q113: =('INPUT|Vols'!Q277+'INPUT|Vols'!Q115)*(1+'INPUT|UR'!$G$75) -> 0 | R113: =('INPUT|Vols'!R277+'INPUT|Vols'!R115)*(1+'INPUT|UR'!$G$75) -> 0 | S113: =('INPUT|Vols'!S277+'INPUT|Vols'!S115)*(1+'INPUT|UR'!$G$75) -> 0 | T113: =('INPUT|Vols'!T277+'INPUT|Vols'!T115)*(1+'INPUT|UR'!$G$75) -> 0 | U113: =('INPUT|Vols'!U277+'INPUT|Vols'!U115)*(1+'INPUT|UR'!$G$75) -> 0 | V113: =('INPUT|Vols'!V277+'INPUT|Vols'!V115)*(1+'INPUT|UR'!$G$75) -> 0 | W113: =('INPUT|Vols'!W277+'INPUT|Vols'!W115)*(1+'INPUT|UR'!$G$75) -> 0 | X113: =('INPUT|Vols'!X277+'INPUT|Vols'!X115)*(1+'INPUT|UR'!$G$75) -> 0 | Y113: =('INPUT|Vols'!Y277+'INPUT|Vols'!Y115)*(1+'INPUT|UR'!$G$75) -> 0 | AA113: =('INPUT|Vols'!AA277+'INPUT|Vols'!AA115)*(1+'INPUT|UR'!$G$75) -> 0 | AB113: =('INPUT|Vols'!AB277+'INPUT|Vols'!AB115)*(1+'INPUT|UR'!$G$75) -> 0 | AC113: =('INPUT|Vols'!AC277+'INPUT|Vols'!AC115)*(1+'INPUT|UR'!$G$75) -> 0 | AD113: =('INPUT|Vols'!AD277+'INPUT|Vols'!AD115)*(1+'INPUT|UR'!$G$75) -> 0 | AE113: =('INPUT|Vols'!AE277+'INPUT|Vols'!AE115)*(1+'INPUT|UR'!$G$75) -> 0 | AF113: =('INPUT|Vols'!AF277+'INPUT|Vols'!AF115)*(1+'INPUT|UR'!$G$75) -> 0 | AG113: =('INPUT|Vols'!AG277+'INPUT|Vols'!AG115)*(1+'INPUT|UR'!$G$75) -> 0 | AH113: =('INPUT|Vols'!AH277+'INPUT|Vols'!AH115)*(1+'INPUT|UR'!$G$75) -> 0 | AI113: =('INPUT|Vols'!AI277+'INPUT|Vols'!AI115)*(1+'INPUT|UR'!$G$75) -> 0 | AJ113: =('INPUT|Vols'!AJ277+'INPUT|Vols'!AJ115)*(1+'INPUT|UR'!$G$75) -> 0 | AK113: =('INPUT|Vols'!AK277+'INPUT|Vols'!AK115)*(1+'INPUT|UR'!$G$75) -> 0 | AL113: =('INPUT|Vols'!AL277+'INPUT|Vols'!AL115)*(1+'INPUT|UR'!$G$75) -> 0
C114: Daily capacity | D114: peak kWh/day | N114: =('INPUT|Vols'!N278+'INPUT|Vols'!N116)*(1+'INPUT|UR'!$G$75) -> 0 | O114: =('INPUT|Vols'!O278+'INPUT|Vols'!O116)*(1+'INPUT|UR'!$G$75) -> 0 | P114: =('INPUT|Vols'!P278+'INPUT|Vols'!P116)*(1+'INPUT|UR'!$G$75) -> 0 | Q114: =('INPUT|Vols'!Q278+'INPUT|Vols'!Q116)*(1+'INPUT|UR'!$G$75) -> 0 | R114: =('INPUT|Vols'!R278+'INPUT|Vols'!R116)*(1+'INPUT|UR'!$G$75) -> 0 | S114: =('INPUT|Vols'!S278+'INPUT|Vols'!S116)*(1+'INPUT|UR'!$G$75) -> 0 | T114: =('INPUT|Vols'!T278+'INPUT|Vols'!T116)*(1+'INPUT|UR'!$G$75) -> 0 | U114: =('INPUT|Vols'!U278+'INPUT|Vols'!U116)*(1+'INPUT|UR'!$G$75) -> 0 | V114: =('INPUT|Vols'!V278+'INPUT|Vols'!V116)*(1+'INPUT|UR'!$G$75) -> 0 | W114: =('INPUT|Vols'!W278+'INPUT|Vols'!W116)*(1+'INPUT|UR'!$G$75) -> 0 | X114: =('INPUT|Vols'!X278+'INPUT|Vols'!X116)*(1+'INPUT|UR'!$G$75) -> 0 | Y114: =('INPUT|Vols'!Y278+'INPUT|Vols'!Y116)*(1+'INPUT|UR'!$G$75) -> 0 | AA114: =('INPUT|Vols'!AA278+'INPUT|Vols'!AA116)*(1+'INPUT|UR'!$G$75) -> 0 | AB114: =('INPUT|Vols'!AB278+'INPUT|Vols'!AB116)*(1+'INPUT|UR'!$G$75) -> 0 | AC114: =('INPUT|Vols'!AC278+'INPUT|Vols'!AC116)*(1+'INPUT|UR'!$G$75) -> 0 | AD114: =('INPUT|Vols'!AD278+'INPUT|Vols'!AD116)*(1+'INPUT|UR'!$G$75) -> 0 | AE114: =('INPUT|Vols'!AE278+'INPUT|Vols'!AE116)*(1+'INPUT|UR'!$G$75) -> 0 | AF114: =('INPUT|Vols'!AF278+'INPUT|Vols'!AF116)*(1+'INPUT|UR'!$G$75) -> 0 | AG114: =('INPUT|Vols'!AG278+'INPUT|Vols'!AG116)*(1+'INPUT|UR'!$G$75) -> 0 | AH114: =('INPUT|Vols'!AH278+'INPUT|Vols'!AH116)*(1+'INPUT|UR'!$G$75) -> 0 | AI114: =('INPUT|Vols'!AI278+'INPUT|Vols'!AI116)*(1+'INPUT|UR'!$G$75) -> 0 | AJ114: =('INPUT|Vols'!AJ278+'INPUT|Vols'!AJ116)*(1+'INPUT|UR'!$G$75) -> 0 | AK114: =('INPUT|Vols'!AK278+'INPUT|Vols'!AK116)*(1+'INPUT|UR'!$G$75) -> 0 | AL114: =('INPUT|Vols'!AL278+'INPUT|Vols'!AL116)*(1+'INPUT|UR'!$G$75) -> 0
C115: Within-day capacity | D115: peak kWh/day | N115: =('INPUT|Vols'!N279+'INPUT|Vols'!N117)*(1+'INPUT|UR'!$G$75) -> 0 | O115: =('INPUT|Vols'!O279+'INPUT|Vols'!O117)*(1+'INPUT|UR'!$G$75) -> 0 | P115: =('INPUT|Vols'!P279+'INPUT|Vols'!P117)*(1+'INPUT|UR'!$G$75) -> 0 | Q115: =('INPUT|Vols'!Q279+'INPUT|Vols'!Q117)*(1+'INPUT|UR'!$G$75) -> 0 | R115: =('INPUT|Vols'!R279+'INPUT|Vols'!R117)*(1+'INPUT|UR'!$G$75) -> 0 | S115: =('INPUT|Vols'!S279+'INPUT|Vols'!S117)*(1+'INPUT|UR'!$G$75) -> 0 | T115: =('INPUT|Vols'!T279+'INPUT|Vols'!T117)*(1+'INPUT|UR'!$G$75) -> 0 | U115: =('INPUT|Vols'!U279+'INPUT|Vols'!U117)*(1+'INPUT|UR'!$G$75) -> 0 | V115: =('INPUT|Vols'!V279+'INPUT|Vols'!V117)*(1+'INPUT|UR'!$G$75) -> 0 | W115: =('INPUT|Vols'!W279+'INPUT|Vols'!W117)*(1+'INPUT|UR'!$G$75) -> 0 | X115: =('INPUT|Vols'!X279+'INPUT|Vols'!X117)*(1+'INPUT|UR'!$G$75) -> 0 | Y115: =('INPUT|Vols'!Y279+'INPUT|Vols'!Y117)*(1+'INPUT|UR'!$G$75) -> 0 | AA115: =('INPUT|Vols'!AA279+'INPUT|Vols'!AA117)*(1+'INPUT|UR'!$G$75) -> 0 | AB115: =('INPUT|Vols'!AB279+'INPUT|Vols'!AB117)*(1+'INPUT|UR'!$G$75) -> 0 | AC115: =('INPUT|Vols'!AC279+'INPUT|Vols'!AC117)*(1+'INPUT|UR'!$G$75) -> 0 | AD115: =('INPUT|Vols'!AD279+'INPUT|Vols'!AD117)*(1+'INPUT|UR'!$G$75) -> 0 | AE115: =('INPUT|Vols'!AE279+'INPUT|Vols'!AE117)*(1+'INPUT|UR'!$G$75) -> 0 | AF115: =('INPUT|Vols'!AF279+'INPUT|Vols'!AF117)*(1+'INPUT|UR'!$G$75) -> 0 | AG115: =('INPUT|Vols'!AG279+'INPUT|Vols'!AG117)*(1+'INPUT|UR'!$G$75) -> 0 | AH115: =('INPUT|Vols'!AH279+'INPUT|Vols'!AH117)*(1+'INPUT|UR'!$G$75) -> 0 | AI115: =('INPUT|Vols'!AI279+'INPUT|Vols'!AI117)*(1+'INPUT|UR'!$G$75) -> 0 | AJ115: =('INPUT|Vols'!AJ279+'INPUT|Vols'!AJ117)*(1+'INPUT|UR'!$G$75) -> 0 | AK115: =('INPUT|Vols'!AK279+'INPUT|Vols'!AK117)*(1+'INPUT|UR'!$G$75) -> 0 | AL115: =('INPUT|Vols'!AL279+'INPUT|Vols'!AL117)*(1+'INPUT|UR'!$G$75) -> 0
C116: Actual interruptible capacity | D116: peak kWh/day | N116: =('INPUT|Vols'!N280+'INPUT|Vols'!N118)*(1+'INPUT|UR'!$G$75) -> 0 | O116: =('INPUT|Vols'!O280+'INPUT|Vols'!O118)*(1+'INPUT|UR'!$G$75) -> 0 | P116: =('INPUT|Vols'!P280+'INPUT|Vols'!P118)*(1+'INPUT|UR'!$G$75) -> 0 | Q116: =('INPUT|Vols'!Q280+'INPUT|Vols'!Q118)*(1+'INPUT|UR'!$G$75) -> 0 | R116: =('INPUT|Vols'!R280+'INPUT|Vols'!R118)*(1+'INPUT|UR'!$G$75) -> 0 | S116: =('INPUT|Vols'!S280+'INPUT|Vols'!S118)*(1+'INPUT|UR'!$G$75) -> 0 | T116: =('INPUT|Vols'!T280+'INPUT|Vols'!T118)*(1+'INPUT|UR'!$G$75) -> 0 | U116: =('INPUT|Vols'!U280+'INPUT|Vols'!U118)*(1+'INPUT|UR'!$G$75) -> 0 | V116: =('INPUT|Vols'!V280+'INPUT|Vols'!V118)*(1+'INPUT|UR'!$G$75) -> 0 | W116: =('INPUT|Vols'!W280+'INPUT|Vols'!W118)*(1+'INPUT|UR'!$G$75) -> 0 | X116: =('INPUT|Vols'!X280+'INPUT|Vols'!X118)*(1+'INPUT|UR'!$G$75) -> 0 | Y116: =('INPUT|Vols'!Y280+'INPUT|Vols'!Y118)*(1+'INPUT|UR'!$G$75) -> 0 | AA116: =('INPUT|Vols'!AA280+'INPUT|Vols'!AA118)*(1+'INPUT|UR'!$G$75) -> 0 | AB116: =('INPUT|Vols'!AB280+'INPUT|Vols'!AB118)*(1+'INPUT|UR'!$G$75) -> 0 | AC116: =('INPUT|Vols'!AC280+'INPUT|Vols'!AC118)*(1+'INPUT|UR'!$G$75) -> 0 | AD116: =('INPUT|Vols'!AD280+'INPUT|Vols'!AD118)*(1+'INPUT|UR'!$G$75) -> 0 | AE116: =('INPUT|Vols'!AE280+'INPUT|Vols'!AE118)*(1+'INPUT|UR'!$G$75) -> 0 | AF116: =('INPUT|Vols'!AF280+'INPUT|Vols'!AF118)*(1+'INPUT|UR'!$G$75) -> 0 | AG116: =('INPUT|Vols'!AG280+'INPUT|Vols'!AG118)*(1+'INPUT|UR'!$G$75) -> 0 | AH116: =('INPUT|Vols'!AH280+'INPUT|Vols'!AH118)*(1+'INPUT|UR'!$G$75) -> 0 | AI116: =('INPUT|Vols'!AI280+'INPUT|Vols'!AI118)*(1+'INPUT|UR'!$G$75) -> 0 | AJ116: =('INPUT|Vols'!AJ280+'INPUT|Vols'!AJ118)*(1+'INPUT|UR'!$G$75) -> 0 | AK116: =('INPUT|Vols'!AK280+'INPUT|Vols'!AK118)*(1+'INPUT|UR'!$G$75) -> 0 | AL116: =('INPUT|Vols'!AL280+'INPUT|Vols'!AL118)*(1+'INPUT|UR'!$G$75) -> 0
C118: ='INPUT|Vols'!C20 -> Shipper 12
C119: Annual capacity | D119: peak kWh/day | G119: =('INPUT|Vols'!G283+'INPUT|Vols'!G121)*(1+'INPUT|UR'!$G$75) -> 0 | AA119: ='INPUT|Vols'!AA283+'INPUT|Vols'!AA121 -> 0 | AB119: ='INPUT|Vols'!AB283+'INPUT|Vols'!AB121 -> 0 | AC119: ='INPUT|Vols'!AC283+'INPUT|Vols'!AC121 -> 0 | AD119: ='INPUT|Vols'!AD283+'INPUT|Vols'!AD121 -> 0 | AE119: ='INPUT|Vols'!AE283+'INPUT|Vols'!AE121 -> 0 | AF119: ='INPUT|Vols'!AF283+'INPUT|Vols'!AF121 -> 0 | AG119: ='INPUT|Vols'!AG283+'INPUT|Vols'!AG121 -> 0 | AH119: ='INPUT|Vols'!AH283+'INPUT|Vols'!AH121 -> 0 | AI119: ='INPUT|Vols'!AI283+'INPUT|Vols'!AI121 -> 0 | AJ119: ='INPUT|Vols'!AJ283+'INPUT|Vols'!AJ121 -> 0 | AK119: ='INPUT|Vols'!AK283+'INPUT|Vols'!AK121 -> 0 | AL119: ='INPUT|Vols'!AL283+'INPUT|Vols'!AL121 -> 0
C120: Quarterly capacity | D120: peak kWh/day | I120: =('INPUT|Vols'!I284+'INPUT|Vols'!I122)*(1+'INPUT|UR'!$G$75) -> 0 | J120: =('INPUT|Vols'!J284+'INPUT|Vols'!J122)*(1+'INPUT|UR'!$G$75) -> 0 | K120: =('INPUT|Vols'!K284+'INPUT|Vols'!K122)*(1+'INPUT|UR'!$G$75) -> 0 | L120: =('INPUT|Vols'!L284+'INPUT|Vols'!L122)*(1+'INPUT|UR'!$G$75) -> 0 | AA120: ='INPUT|Vols'!AA284+'INPUT|Vols'!AA122 -> 0 | AB120: ='INPUT|Vols'!AB284+'INPUT|Vols'!AB122 -> 0 | AC120: ='INPUT|Vols'!AC284+'INPUT|Vols'!AC122 -> 0 | AD120: ='INPUT|Vols'!AD284+'INPUT|Vols'!AD122 -> 0 | AE120: ='INPUT|Vols'!AE284+'INPUT|Vols'!AE122 -> 0 | AF120: ='INPUT|Vols'!AF284+'INPUT|Vols'!AF122 -> 0 | AG120: ='INPUT|Vols'!AG284+'INPUT|Vols'!AG122 -> 0 | AH120: ='INPUT|Vols'!AH284+'INPUT|Vols'!AH122 -> 0 | AI120: ='INPUT|Vols'!AI284+'INPUT|Vols'!AI122 -> 0 | AJ120: ='INPUT|Vols'!AJ284+'INPUT|Vols'!AJ122 -> 0 | AK120: ='INPUT|Vols'!AK284+'INPUT|Vols'!AK122 -> 0 | AL120: ='INPUT|Vols'!AL284+'INPUT|Vols'!AL122 -> 0
C121: Monthly capacity | D121: peak kWh/day | N121: =('INPUT|Vols'!N285+'INPUT|Vols'!N123)*(1+'INPUT|UR'!$G$75) -> 0 | O121: =('INPUT|Vols'!O285+'INPUT|Vols'!O123)*(1+'INPUT|UR'!$G$75) -> 0 | P121: =('INPUT|Vols'!P285+'INPUT|Vols'!P123)*(1+'INPUT|UR'!$G$75) -> 0 | Q121: =('INPUT|Vols'!Q285+'INPUT|Vols'!Q123)*(1+'INPUT|UR'!$G$75) -> 0 | R121: =('INPUT|Vols'!R285+'INPUT|Vols'!R123)*(1+'INPUT|UR'!$G$75) -> 0 | S121: =('INPUT|Vols'!S285+'INPUT|Vols'!S123)*(1+'INPUT|UR'!$G$75) -> 0 | T121: =('INPUT|Vols'!T285+'INPUT|Vols'!T123)*(1+'INPUT|UR'!$G$75) -> 0 | U121: =('INPUT|Vols'!U285+'INPUT|Vols'!U123)*(1+'INPUT|UR'!$G$75) -> 0 | V121: =('INPUT|Vols'!V285+'INPUT|Vols'!V123)*(1+'INPUT|UR'!$G$75) -> 0 | W121: =('INPUT|Vols'!W285+'INPUT|Vols'!W123)*(1+'INPUT|UR'!$G$75) -> 0 | X121: =('INPUT|Vols'!X285+'INPUT|Vols'!X123)*(1+'INPUT|UR'!$G$75) -> 0 | Y121: =('INPUT|Vols'!Y285+'INPUT|Vols'!Y123)*(1+'INPUT|UR'!$G$75) -> 0 | AA121: ='INPUT|Vols'!AA285+'INPUT|Vols'!AA123 -> 0 | AB121: ='INPUT|Vols'!AB285+'INPUT|Vols'!AB123 -> 0 | AC121: ='INPUT|Vols'!AC285+'INPUT|Vols'!AC123 -> 0 | AD121: ='INPUT|Vols'!AD285+'INPUT|Vols'!AD123 -> 0 | AE121: ='INPUT|Vols'!AE285+'INPUT|Vols'!AE123 -> 0 | AF121: ='INPUT|Vols'!AF285+'INPUT|Vols'!AF123 -> 0 | AG121: ='INPUT|Vols'!AG285+'INPUT|Vols'!AG123 -> 0 | AH121: ='INPUT|Vols'!AH285+'INPUT|Vols'!AH123 -> 0 | AI121: ='INPUT|Vols'!AI285+'INPUT|Vols'!AI123 -> 0 | AJ121: ='INPUT|Vols'!AJ285+'INPUT|Vols'!AJ123 -> 0 | AK121: ='INPUT|Vols'!AK285+'INPUT|Vols'!AK123 -> 0 | AL121: ='INPUT|Vols'!AL285+'INPUT|Vols'!AL123 -> 0
C122: Daily capacity | D122: peak kWh/day | N122: =('INPUT|Vols'!N286+'INPUT|Vols'!N124)*(1+'INPUT|UR'!$G$75) -> 0 | O122: =('INPUT|Vols'!O286+'INPUT|Vols'!O124)*(1+'INPUT|UR'!$G$75) -> 0 | P122: =('INPUT|Vols'!P286+'INPUT|Vols'!P124)*(1+'INPUT|UR'!$G$75) -> 0 | Q122: =('INPUT|Vols'!Q286+'INPUT|Vols'!Q124)*(1+'INPUT|UR'!$G$75) -> 0 | R122: =('INPUT|Vols'!R286+'INPUT|Vols'!R124)*(1+'INPUT|UR'!$G$75) -> 0 | S122: =('INPUT|Vols'!S286+'INPUT|Vols'!S124)*(1+'INPUT|UR'!$G$75) -> 0 | T122: =('INPUT|Vols'!T286+'INPUT|Vols'!T124)*(1+'INPUT|UR'!$G$75) -> 0 | U122: =('INPUT|Vols'!U286+'INPUT|Vols'!U124)*(1+'INPUT|UR'!$G$75) -> 0 | V122: =('INPUT|Vols'!V286+'INPUT|Vols'!V124)*(1+'INPUT|UR'!$G$75) -> 0 | W122: =('INPUT|Vols'!W286+'INPUT|Vols'!W124)*(1+'INPUT|UR'!$G$75) -> 0 | X122: =('INPUT|Vols'!X286+'INPUT|Vols'!X124)*(1+'INPUT|UR'!$G$75) -> 0 | Y122: =('INPUT|Vols'!Y286+'INPUT|Vols'!Y124)*(1+'INPUT|UR'!$G$75) -> 0 | AA122: ='INPUT|Vols'!AA286+'INPUT|Vols'!AA124 -> 0 | AB122: ='INPUT|Vols'!AB286+'INPUT|Vols'!AB124 -> 0 | AC122: ='INPUT|Vols'!AC286+'INPUT|Vols'!AC124 -> 0 | AD122: ='INPUT|Vols'!AD286+'INPUT|Vols'!AD124 -> 0 | AE122: ='INPUT|Vols'!AE286+'INPUT|Vols'!AE124 -> 0 | AF122: ='INPUT|Vols'!AF286+'INPUT|Vols'!AF124 -> 0 | AG122: ='INPUT|Vols'!AG286+'INPUT|Vols'!AG124 -> 0 | AH122: ='INPUT|Vols'!AH286+'INPUT|Vols'!AH124 -> 0 | AI122: ='INPUT|Vols'!AI286+'INPUT|Vols'!AI124 -> 0 | AJ122: ='INPUT|Vols'!AJ286+'INPUT|Vols'!AJ124 -> 0 | AK122: ='INPUT|Vols'!AK286+'INPUT|Vols'!AK124 -> 0 | AL122: ='INPUT|Vols'!AL286+'INPUT|Vols'!AL124 -> 0
C123: Within-day capacity | D123: peak kWh/day | N123: =('INPUT|Vols'!N287+'INPUT|Vols'!N125)*(1+'INPUT|UR'!$G$75) -> 0 | O123: =('INPUT|Vols'!O287+'INPUT|Vols'!O125)*(1+'INPUT|UR'!$G$75) -> 0 | P123: =('INPUT|Vols'!P287+'INPUT|Vols'!P125)*(1+'INPUT|UR'!$G$75) -> 0 | Q123: =('INPUT|Vols'!Q287+'INPUT|Vols'!Q125)*(1+'INPUT|UR'!$G$75) -> 0 | R123: =('INPUT|Vols'!R287+'INPUT|Vols'!R125)*(1+'INPUT|UR'!$G$75) -> 0 | S123: =('INPUT|Vols'!S287+'INPUT|Vols'!S125)*(1+'INPUT|UR'!$G$75) -> 0 | T123: =('INPUT|Vols'!T287+'INPUT|Vols'!T125)*(1+'INPUT|UR'!$G$75) -> 0 | U123: =('INPUT|Vols'!U287+'INPUT|Vols'!U125)*(1+'INPUT|UR'!$G$75) -> 0 | V123: =('INPUT|Vols'!V287+'INPUT|Vols'!V125)*(1+'INPUT|UR'!$G$75) -> 0 | W123: =('INPUT|Vols'!W287+'INPUT|Vols'!W125)*(1+'INPUT|UR'!$G$75) -> 0 | X123: =('INPUT|Vols'!X287+'INPUT|Vols'!X125)*(1+'INPUT|UR'!$G$75) -> 0 | Y123: =('INPUT|Vols'!Y287+'INPUT|Vols'!Y125)*(1+'INPUT|UR'!$G$75) -> 0 | AA123: ='INPUT|Vols'!AA287+'INPUT|Vols'!AA125 -> 0 | AB123: ='INPUT|Vols'!AB287+'INPUT|Vols'!AB125 -> 0 | AC123: ='INPUT|Vols'!AC287+'INPUT|Vols'!AC125 -> 0 | AD123: ='INPUT|Vols'!AD287+'INPUT|Vols'!AD125 -> 0 | AE123: ='INPUT|Vols'!AE287+'INPUT|Vols'!AE125 -> 0 | AF123: ='INPUT|Vols'!AF287+'INPUT|Vols'!AF125 -> 0 | AG123: ='INPUT|Vols'!AG287+'INPUT|Vols'!AG125 -> 0 | AH123: ='INPUT|Vols'!AH287+'INPUT|Vols'!AH125 -> 0 | AI123: ='INPUT|Vols'!AI287+'INPUT|Vols'!AI125 -> 0 | AJ123: ='INPUT|Vols'!AJ287+'INPUT|Vols'!AJ125 -> 0 | AK123: ='INPUT|Vols'!AK287+'INPUT|Vols'!AK125 -> 0 | AL123: ='INPUT|Vols'!AL287+'INPUT|Vols'!AL125 -> 0
C124: Actual interruptible capacity | D124: peak kWh/day | N124: =('INPUT|Vols'!N288+'INPUT|Vols'!N126)*(1+'INPUT|UR'!$G$75) -> 0 | O124: =('INPUT|Vols'!O288+'INPUT|Vols'!O126)*(1+'INPUT|UR'!$G$75) -> 0 | P124: =('INPUT|Vols'!P288+'INPUT|Vols'!P126)*(1+'INPUT|UR'!$G$75) -> 0 | Q124: =('INPUT|Vols'!Q288+'INPUT|Vols'!Q126)*(1+'INPUT|UR'!$G$75) -> 0 | R124: =('INPUT|Vols'!R288+'INPUT|Vols'!R126)*(1+'INPUT|UR'!$G$75) -> 0 | S124: =('INPUT|Vols'!S288+'INPUT|Vols'!S126)*(1+'INPUT|UR'!$G$75) -> 0 | T124: =('INPUT|Vols'!T288+'INPUT|Vols'!T126)*(1+'INPUT|UR'!$G$75) -> 0 | U124: =('INPUT|Vols'!U288+'INPUT|Vols'!U126)*(1+'INPUT|UR'!$G$75) -> 0 | V124: =('INPUT|Vols'!V288+'INPUT|Vols'!V126)*(1+'INPUT|UR'!$G$75) -> 0 | W124: =('INPUT|Vols'!W288+'INPUT|Vols'!W126)*(1+'INPUT|UR'!$G$75) -> 0 | X124: =('INPUT|Vols'!X288+'INPUT|Vols'!X126)*(1+'INPUT|UR'!$G$75) -> 0 | Y124: =('INPUT|Vols'!Y288+'INPUT|Vols'!Y126)*(1+'INPUT|UR'!$G$75) -> 0 | AA124: ='INPUT|Vols'!AA288+'INPUT|Vols'!AA126 -> 0 | AB124: ='INPUT|Vols'!AB288+'INPUT|Vols'!AB126 -> 0 | AC124: ='INPUT|Vols'!AC288+'INPUT|Vols'!AC126 -> 0 | AD124: ='INPUT|Vols'!AD288+'INPUT|Vols'!AD126 -> 0 | AE124: ='INPUT|Vols'!AE288+'INPUT|Vols'!AE126 -> 0 | AF124: ='INPUT|Vols'!AF288+'INPUT|Vols'!AF126 -> 0 | AG124: ='INPUT|Vols'!AG288+'INPUT|Vols'!AG126 -> 0 | AH124: ='INPUT|Vols'!AH288+'INPUT|Vols'!AH126 -> 0 | AI124: ='INPUT|Vols'!AI288+'INPUT|Vols'!AI126 -> 0 | AJ124: ='INPUT|Vols'!AJ288+'INPUT|Vols'!AJ126 -> 0 | AK124: ='INPUT|Vols'!AK288+'INPUT|Vols'!AK126 -> 0 | AL124: ='INPUT|Vols'!AL288+'INPUT|Vols'!AL126 -> 0
C126: ='INPUT|Vols'!C21 -> Shipper 13
C127: Annual capacity | D127: peak kWh/day | G127: =('INPUT|Vols'!G291+'INPUT|Vols'!G129)*(1+'INPUT|UR'!$G$75) -> 0 | AA127: ='INPUT|Vols'!AA291+'INPUT|Vols'!AA129 -> 0 | AB127: ='INPUT|Vols'!AB291+'INPUT|Vols'!AB129 -> 0 | AC127: ='INPUT|Vols'!AC291+'INPUT|Vols'!AC129 -> 0 | AD127: ='INPUT|Vols'!AD291+'INPUT|Vols'!AD129 -> 0 | AE127: ='INPUT|Vols'!AE291+'INPUT|Vols'!AE129 -> 0 | AF127: ='INPUT|Vols'!AF291+'INPUT|Vols'!AF129 -> 0 | AG127: ='INPUT|Vols'!AG291+'INPUT|Vols'!AG129 -> 0 | AH127: ='INPUT|Vols'!AH291+'INPUT|Vols'!AH129 -> 0 | AI127: ='INPUT|Vols'!AI291+'INPUT|Vols'!AI129 -> 0 | AJ127: ='INPUT|Vols'!AJ291+'INPUT|Vols'!AJ129 -> 0 | AK127: ='INPUT|Vols'!AK291+'INPUT|Vols'!AK129 -> 0 | AL127: ='INPUT|Vols'!AL291+'INPUT|Vols'!AL129 -> 0
C128: Quarterly capacity | D128: peak kWh/day | I128: =('INPUT|Vols'!I292+'INPUT|Vols'!I130)*(1+'INPUT|UR'!$G$75) -> 0 | J128: =('INPUT|Vols'!J292+'INPUT|Vols'!J130)*(1+'INPUT|UR'!$G$75) -> 0 | K128: =('INPUT|Vols'!K292+'INPUT|Vols'!K130)*(1+'INPUT|UR'!$G$75) -> 0 | L128: =('INPUT|Vols'!L292+'INPUT|Vols'!L130)*(1+'INPUT|UR'!$G$75) -> 0 | AA128: ='INPUT|Vols'!AA292+'INPUT|Vols'!AA130 -> 0 | AB128: ='INPUT|Vols'!AB292+'INPUT|Vols'!AB130 -> 0 | AC128: ='INPUT|Vols'!AC292+'INPUT|Vols'!AC130 -> 0 | AD128: ='INPUT|Vols'!AD292+'INPUT|Vols'!AD130 -> 0 | AE128: ='INPUT|Vols'!AE292+'INPUT|Vols'!AE130 -> 0 | AF128: ='INPUT|Vols'!AF292+'INPUT|Vols'!AF130 -> 0 | AG128: ='INPUT|Vols'!AG292+'INPUT|Vols'!AG130 -> 0 | AH128: ='INPUT|Vols'!AH292+'INPUT|Vols'!AH130 -> 0 | AI128: ='INPUT|Vols'!AI292+'INPUT|Vols'!AI130 -> 0 | AJ128: ='INPUT|Vols'!AJ292+'INPUT|Vols'!AJ130 -> 0 | AK128: ='INPUT|Vols'!AK292+'INPUT|Vols'!AK130 -> 0 | AL128: ='INPUT|Vols'!AL292+'INPUT|Vols'!AL130 -> 0
C129: Monthly capacity | D129: peak kWh/day | N129: =('INPUT|Vols'!N293+'INPUT|Vols'!N131)*(1+'INPUT|UR'!$G$75) -> 0 | O129: =('INPUT|Vols'!O293+'INPUT|Vols'!O131)*(1+'INPUT|UR'!$G$75) -> 0 | P129: =('INPUT|Vols'!P293+'INPUT|Vols'!P131)*(1+'INPUT|UR'!$G$75) -> 0 | Q129: =('INPUT|Vols'!Q293+'INPUT|Vols'!Q131)*(1+'INPUT|UR'!$G$75) -> 0 | R129: =('INPUT|Vols'!R293+'INPUT|Vols'!R131)*(1+'INPUT|UR'!$G$75) -> 0 | S129: =('INPUT|Vols'!S293+'INPUT|Vols'!S131)*(1+'INPUT|UR'!$G$75) -> 0 | T129: =('INPUT|Vols'!T293+'INPUT|Vols'!T131)*(1+'INPUT|UR'!$G$75) -> 0 | U129: =('INPUT|Vols'!U293+'INPUT|Vols'!U131)*(1+'INPUT|UR'!$G$75) -> 0 | V129: =('INPUT|Vols'!V293+'INPUT|Vols'!V131)*(1+'INPUT|UR'!$G$75) -> 0 | W129: =('INPUT|Vols'!W293+'INPUT|Vols'!W131)*(1+'INPUT|UR'!$G$75) -> 0 | X129: =('INPUT|Vols'!X293+'INPUT|Vols'!X131)*(1+'INPUT|UR'!$G$75) -> 0 | Y129: =('INPUT|Vols'!Y293+'INPUT|Vols'!Y131)*(1+'INPUT|UR'!$G$75) -> 0 | AA129: ='INPUT|Vols'!AA293+'INPUT|Vols'!AA131 -> 0 | AB129: ='INPUT|Vols'!AB293+'INPUT|Vols'!AB131 -> 0 | AC129: ='INPUT|Vols'!AC293+'INPUT|Vols'!AC131 -> 0 | AD129: ='INPUT|Vols'!AD293+'INPUT|Vols'!AD131 -> 0 | AE129: ='INPUT|Vols'!AE293+'INPUT|Vols'!AE131 -> 0 | AF129: ='INPUT|Vols'!AF293+'INPUT|Vols'!AF131 -> 0 | AG129: ='INPUT|Vols'!AG293+'INPUT|Vols'!AG131 -> 0 | AH129: ='INPUT|Vols'!AH293+'INPUT|Vols'!AH131 -> 0 | AI129: ='INPUT|Vols'!AI293+'INPUT|Vols'!AI131 -> 0 | AJ129: ='INPUT|Vols'!AJ293+'INPUT|Vols'!AJ131 -> 0 | AK129: ='INPUT|Vols'!AK293+'INPUT|Vols'!AK131 -> 0 | AL129: ='INPUT|Vols'!AL293+'INPUT|Vols'!AL131 -> 0
C130: Daily capacity | D130: peak kWh/day | N130: =('INPUT|Vols'!N294+'INPUT|Vols'!N132)*(1+'INPUT|UR'!$G$75) -> 0 | O130: =('INPUT|Vols'!O294+'INPUT|Vols'!O132)*(1+'INPUT|UR'!$G$75) -> 0 | P130: =('INPUT|Vols'!P294+'INPUT|Vols'!P132)*(1+'INPUT|UR'!$G$75) -> 0 | Q130: =('INPUT|Vols'!Q294+'INPUT|Vols'!Q132)*(1+'INPUT|UR'!$G$75) -> 0 | R130: =('INPUT|Vols'!R294+'INPUT|Vols'!R132)*(1+'INPUT|UR'!$G$75) -> 0 | S130: =('INPUT|Vols'!S294+'INPUT|Vols'!S132)*(1+'INPUT|UR'!$G$75) -> 0 | T130: =('INPUT|Vols'!T294+'INPUT|Vols'!T132)*(1+'INPUT|UR'!$G$75) -> 0 | U130: =('INPUT|Vols'!U294+'INPUT|Vols'!U132)*(1+'INPUT|UR'!$G$75) -> 0 | V130: =('INPUT|Vols'!V294+'INPUT|Vols'!V132)*(1+'INPUT|UR'!$G$75) -> 0 | W130: =('INPUT|Vols'!W294+'INPUT|Vols'!W132)*(1+'INPUT|UR'!$G$75) -> 0 | X130: =('INPUT|Vols'!X294+'INPUT|Vols'!X132)*(1+'INPUT|UR'!$G$75) -> 0 | Y130: =('INPUT|Vols'!Y294+'INPUT|Vols'!Y132)*(1+'INPUT|UR'!$G$75) -> 0 | AA130: ='INPUT|Vols'!AA294+'INPUT|Vols'!AA132 -> 0 | AB130: ='INPUT|Vols'!AB294+'INPUT|Vols'!AB132 -> 0 | AC130: ='INPUT|Vols'!AC294+'INPUT|Vols'!AC132 -> 0 | AD130: ='INPUT|Vols'!AD294+'INPUT|Vols'!AD132 -> 0 | AE130: ='INPUT|Vols'!AE294+'INPUT|Vols'!AE132 -> 0 | AF130: ='INPUT|Vols'!AF294+'INPUT|Vols'!AF132 -> 0 | AG130: ='INPUT|Vols'!AG294+'INPUT|Vols'!AG132 -> 0 | AH130: ='INPUT|Vols'!AH294+'INPUT|Vols'!AH132 -> 0 | AI130: ='INPUT|Vols'!AI294+'INPUT|Vols'!AI132 -> 0 | AJ130: ='INPUT|Vols'!AJ294+'INPUT|Vols'!AJ132 -> 0 | AK130: ='INPUT|Vols'!AK294+'INPUT|Vols'!AK132 -> 0 | AL130: ='INPUT|Vols'!AL294+'INPUT|Vols'!AL132 -> 0
C131: Within-day capacity | D131: peak kWh/day | N131: =('INPUT|Vols'!N295+'INPUT|Vols'!N133)*(1+'INPUT|UR'!$G$75) -> 0 | O131: =('INPUT|Vols'!O295+'INPUT|Vols'!O133)*(1+'INPUT|UR'!$G$75) -> 0 | P131: =('INPUT|Vols'!P295+'INPUT|Vols'!P133)*(1+'INPUT|UR'!$G$75) -> 0 | Q131: =('INPUT|Vols'!Q295+'INPUT|Vols'!Q133)*(1+'INPUT|UR'!$G$75) -> 0 | R131: =('INPUT|Vols'!R295+'INPUT|Vols'!R133)*(1+'INPUT|UR'!$G$75) -> 0 | S131: =('INPUT|Vols'!S295+'INPUT|Vols'!S133)*(1+'INPUT|UR'!$G$75) -> 0 | T131: =('INPUT|Vols'!T295+'INPUT|Vols'!T133)*(1+'INPUT|UR'!$G$75) -> 0 | U131: =('INPUT|Vols'!U295+'INPUT|Vols'!U133)*(1+'INPUT|UR'!$G$75) -> 0 | V131: =('INPUT|Vols'!V295+'INPUT|Vols'!V133)*(1+'INPUT|UR'!$G$75) -> 0 | W131: =('INPUT|Vols'!W295+'INPUT|Vols'!W133)*(1+'INPUT|UR'!$G$75) -> 0 | X131: =('INPUT|Vols'!X295+'INPUT|Vols'!X133)*(1+'INPUT|UR'!$G$75) -> 0 | Y131: =('INPUT|Vols'!Y295+'INPUT|Vols'!Y133)*(1+'INPUT|UR'!$G$75) -> 0 | AA131: ='INPUT|Vols'!AA295+'INPUT|Vols'!AA133 -> 0 | AB131: ='INPUT|Vols'!AB295+'INPUT|Vols'!AB133 -> 0 | AC131: ='INPUT|Vols'!AC295+'INPUT|Vols'!AC133 -> 0 | AD131: ='INPUT|Vols'!AD295+'INPUT|Vols'!AD133 -> 0 | AE131: ='INPUT|Vols'!AE295+'INPUT|Vols'!AE133 -> 0 | AF131: ='INPUT|Vols'!AF295+'INPUT|Vols'!AF133 -> 0 | AG131: ='INPUT|Vols'!AG295+'INPUT|Vols'!AG133 -> 0 | AH131: ='INPUT|Vols'!AH295+'INPUT|Vols'!AH133 -> 0 | AI131: ='INPUT|Vols'!AI295+'INPUT|Vols'!AI133 -> 0 | AJ131: ='INPUT|Vols'!AJ295+'INPUT|Vols'!AJ133 -> 0 | AK131: ='INPUT|Vols'!AK295+'INPUT|Vols'!AK133 -> 0 | AL131: ='INPUT|Vols'!AL295+'INPUT|Vols'!AL133 -> 0
C132: Actual interruptible capacity | D132: peak kWh/day | N132: =('INPUT|Vols'!N296+'INPUT|Vols'!N134)*(1+'INPUT|UR'!$G$75) -> 0 | O132: =('INPUT|Vols'!O296+'INPUT|Vols'!O134)*(1+'INPUT|UR'!$G$75) -> 0 | P132: =('INPUT|Vols'!P296+'INPUT|Vols'!P134)*(1+'INPUT|UR'!$G$75) -> 0 | Q132: =('INPUT|Vols'!Q296+'INPUT|Vols'!Q134)*(1+'INPUT|UR'!$G$75) -> 0 | R132: =('INPUT|Vols'!R296+'INPUT|Vols'!R134)*(1+'INPUT|UR'!$G$75) -> 0 | S132: =('INPUT|Vols'!S296+'INPUT|Vols'!S134)*(1+'INPUT|UR'!$G$75) -> 0 | T132: =('INPUT|Vols'!T296+'INPUT|Vols'!T134)*(1+'INPUT|UR'!$G$75) -> 0 | U132: =('INPUT|Vols'!U296+'INPUT|Vols'!U134)*(1+'INPUT|UR'!$G$75) -> 0 | V132: =('INPUT|Vols'!V296+'INPUT|Vols'!V134)*(1+'INPUT|UR'!$G$75) -> 0 | W132: =('INPUT|Vols'!W296+'INPUT|Vols'!W134)*(1+'INPUT|UR'!$G$75) -> 0 | X132: =('INPUT|Vols'!X296+'INPUT|Vols'!X134)*(1+'INPUT|UR'!$G$75) -> 0 | Y132: =('INPUT|Vols'!Y296+'INPUT|Vols'!Y134)*(1+'INPUT|UR'!$G$75) -> 0 | AA132: ='INPUT|Vols'!AA296+'INPUT|Vols'!AA134 -> 0 | AB132: ='INPUT|Vols'!AB296+'INPUT|Vols'!AB134 -> 0 | AC132: ='INPUT|Vols'!AC296+'INPUT|Vols'!AC134 -> 0 | AD132: ='INPUT|Vols'!AD296+'INPUT|Vols'!AD134 -> 0 | AE132: ='INPUT|Vols'!AE296+'INPUT|Vols'!AE134 -> 0 | AF132: ='INPUT|Vols'!AF296+'INPUT|Vols'!AF134 -> 0 | AG132: ='INPUT|Vols'!AG296+'INPUT|Vols'!AG134 -> 0 | AH132: ='INPUT|Vols'!AH296+'INPUT|Vols'!AH134 -> 0 | AI132: ='INPUT|Vols'!AI296+'INPUT|Vols'!AI134 -> 0 | AJ132: ='INPUT|Vols'!AJ296+'INPUT|Vols'!AJ134 -> 0 | AK132: ='INPUT|Vols'!AK296+'INPUT|Vols'!AK134 -> 0 | AL132: ='INPUT|Vols'!AL296+'INPUT|Vols'!AL134 -> 0
C134: ='INPUT|Vols'!C22 -> Shipper 14
C135: Annual capacity | D135: peak kWh/day | G135: =('INPUT|Vols'!G299+'INPUT|Vols'!G137)*(1+'INPUT|UR'!$G$75) -> 0 | AA135: ='INPUT|Vols'!AA299+'INPUT|Vols'!AA137 -> 0 | AB135: ='INPUT|Vols'!AB299+'INPUT|Vols'!AB137 -> 0 | AC135: ='INPUT|Vols'!AC299+'INPUT|Vols'!AC137 -> 0 | AD135: ='INPUT|Vols'!AD299+'INPUT|Vols'!AD137 -> 0 | AE135: ='INPUT|Vols'!AE299+'INPUT|Vols'!AE137 -> 0 | AF135: ='INPUT|Vols'!AF299+'INPUT|Vols'!AF137 -> 0 | AG135: ='INPUT|Vols'!AG299+'INPUT|Vols'!AG137 -> 0 | AH135: ='INPUT|Vols'!AH299+'INPUT|Vols'!AH137 -> 0 | AI135: ='INPUT|Vols'!AI299+'INPUT|Vols'!AI137 -> 0 | AJ135: ='INPUT|Vols'!AJ299+'INPUT|Vols'!AJ137 -> 0 | AK135: ='INPUT|Vols'!AK299+'INPUT|Vols'!AK137 -> 0 | AL135: ='INPUT|Vols'!AL299+'INPUT|Vols'!AL137 -> 0
C136: Quarterly capacity | D136: peak kWh/day | I136: =('INPUT|Vols'!I300+'INPUT|Vols'!I138)*(1+'INPUT|UR'!$G$75) -> 0 | J136: =('INPUT|Vols'!J300+'INPUT|Vols'!J138)*(1+'INPUT|UR'!$G$75) -> 0 | K136: =('INPUT|Vols'!K300+'INPUT|Vols'!K138)*(1+'INPUT|UR'!$G$75) -> 0 | L136: =('INPUT|Vols'!L300+'INPUT|Vols'!L138)*(1+'INPUT|UR'!$G$75) -> 0 | AA136: ='INPUT|Vols'!AA300+'INPUT|Vols'!AA138 -> 0 | AB136: ='INPUT|Vols'!AB300+'INPUT|Vols'!AB138 -> 0 | AC136: ='INPUT|Vols'!AC300+'INPUT|Vols'!AC138 -> 0 | AD136: ='INPUT|Vols'!AD300+'INPUT|Vols'!AD138 -> 0 | AE136: ='INPUT|Vols'!AE300+'INPUT|Vols'!AE138 -> 0 | AF136: ='INPUT|Vols'!AF300+'INPUT|Vols'!AF138 -> 0 | AG136: ='INPUT|Vols'!AG300+'INPUT|Vols'!AG138 -> 0 | AH136: ='INPUT|Vols'!AH300+'INPUT|Vols'!AH138 -> 0 | AI136: ='INPUT|Vols'!AI300+'INPUT|Vols'!AI138 -> 0 | AJ136: ='INPUT|Vols'!AJ300+'INPUT|Vols'!AJ138 -> 0 | AK136: ='INPUT|Vols'!AK300+'INPUT|Vols'!AK138 -> 0 | AL136: ='INPUT|Vols'!AL300+'INPUT|Vols'!AL138 -> 0
C137: Monthly capacity | D137: peak kWh/day | N137: =('INPUT|Vols'!N301+'INPUT|Vols'!N139)*(1+'INPUT|UR'!$G$75) -> 0 | O137: =('INPUT|Vols'!O301+'INPUT|Vols'!O139)*(1+'INPUT|UR'!$G$75) -> 0 | P137: =('INPUT|Vols'!P301+'INPUT|Vols'!P139)*(1+'INPUT|UR'!$G$75) -> 0 | Q137: =('INPUT|Vols'!Q301+'INPUT|Vols'!Q139)*(1+'INPUT|UR'!$G$75) -> 0 | R137: =('INPUT|Vols'!R301+'INPUT|Vols'!R139)*(1+'INPUT|UR'!$G$75) -> 0 | S137: =('INPUT|Vols'!S301+'INPUT|Vols'!S139)*(1+'INPUT|UR'!$G$75) -> 0 | T137: =('INPUT|Vols'!T301+'INPUT|Vols'!T139)*(1+'INPUT|UR'!$G$75) -> 0 | U137: =('INPUT|Vols'!U301+'INPUT|Vols'!U139)*(1+'INPUT|UR'!$G$75) -> 0 | V137: =('INPUT|Vols'!V301+'INPUT|Vols'!V139)*(1+'INPUT|UR'!$G$75) -> 0 | W137: =('INPUT|Vols'!W301+'INPUT|Vols'!W139)*(1+'INPUT|UR'!$G$75) -> 0 | X137: =('INPUT|Vols'!X301+'INPUT|Vols'!X139)*(1+'INPUT|UR'!$G$75) -> 0 | Y137: =('INPUT|Vols'!Y301+'INPUT|Vols'!Y139)*(1+'INPUT|UR'!$G$75) -> 0 | AA137: ='INPUT|Vols'!AA301+'INPUT|Vols'!AA139 -> 0 | AB137: ='INPUT|Vols'!AB301+'INPUT|Vols'!AB139 -> 0 | AC137: ='INPUT|Vols'!AC301+'INPUT|Vols'!AC139 -> 0 | AD137: ='INPUT|Vols'!AD301+'INPUT|Vols'!AD139 -> 0 | AE137: ='INPUT|Vols'!AE301+'INPUT|Vols'!AE139 -> 0 | AF137: ='INPUT|Vols'!AF301+'INPUT|Vols'!AF139 -> 0 | AG137: ='INPUT|Vols'!AG301+'INPUT|Vols'!AG139 -> 0 | AH137: ='INPUT|Vols'!AH301+'INPUT|Vols'!AH139 -> 0 | AI137: ='INPUT|Vols'!AI301+'INPUT|Vols'!AI139 -> 0 | AJ137: ='INPUT|Vols'!AJ301+'INPUT|Vols'!AJ139 -> 0 | AK137: ='INPUT|Vols'!AK301+'INPUT|Vols'!AK139 -> 0 | AL137: ='INPUT|Vols'!AL301+'INPUT|Vols'!AL139 -> 0
C138: Daily capacity | D138: peak kWh/day | N138: =('INPUT|Vols'!N302+'INPUT|Vols'!N140)*(1+'INPUT|UR'!$G$75) -> 0 | O138: =('INPUT|Vols'!O302+'INPUT|Vols'!O140)*(1+'INPUT|UR'!$G$75) -> 0 | P138: =('INPUT|Vols'!P302+'INPUT|Vols'!P140)*(1+'INPUT|UR'!$G$75) -> 0 | Q138: =('INPUT|Vols'!Q302+'INPUT|Vols'!Q140)*(1+'INPUT|UR'!$G$75) -> 0 | R138: =('INPUT|Vols'!R302+'INPUT|Vols'!R140)*(1+'INPUT|UR'!$G$75) -> 0 | S138: =('INPUT|Vols'!S302+'INPUT|Vols'!S140)*(1+'INPUT|UR'!$G$75) -> 0 | T138: =('INPUT|Vols'!T302+'INPUT|Vols'!T140)*(1+'INPUT|UR'!$G$75) -> 0 | U138: =('INPUT|Vols'!U302+'INPUT|Vols'!U140)*(1+'INPUT|UR'!$G$75) -> 0 | V138: =('INPUT|Vols'!V302+'INPUT|Vols'!V140)*(1+'INPUT|UR'!$G$75) -> 0 | W138: =('INPUT|Vols'!W302+'INPUT|Vols'!W140)*(1+'INPUT|UR'!$G$75) -> 0 | X138: =('INPUT|Vols'!X302+'INPUT|Vols'!X140)*(1+'INPUT|UR'!$G$75) -> 0 | Y138: =('INPUT|Vols'!Y302+'INPUT|Vols'!Y140)*(1+'INPUT|UR'!$G$75) -> 0 | AA138: ='INPUT|Vols'!AA302+'INPUT|Vols'!AA140 -> 0 | AB138: ='INPUT|Vols'!AB302+'INPUT|Vols'!AB140 -> 0 | AC138: ='INPUT|Vols'!AC302+'INPUT|Vols'!AC140 -> 0 | AD138: ='INPUT|Vols'!AD302+'INPUT|Vols'!AD140 -> 0 | AE138: ='INPUT|Vols'!AE302+'INPUT|Vols'!AE140 -> 0 | AF138: ='INPUT|Vols'!AF302+'INPUT|Vols'!AF140 -> 0 | AG138: ='INPUT|Vols'!AG302+'INPUT|Vols'!AG140 -> 0 | AH138: ='INPUT|Vols'!AH302+'INPUT|Vols'!AH140 -> 0 | AI138: ='INPUT|Vols'!AI302+'INPUT|Vols'!AI140 -> 0 | AJ138: ='INPUT|Vols'!AJ302+'INPUT|Vols'!AJ140 -> 0 | AK138: ='INPUT|Vols'!AK302+'INPUT|Vols'!AK140 -> 0 | AL138: ='INPUT|Vols'!AL302+'INPUT|Vols'!AL140 -> 0
C139: Within-day capacity | D139: peak kWh/day | N139: =('INPUT|Vols'!N303+'INPUT|Vols'!N141)*(1+'INPUT|UR'!$G$75) -> 0 | O139: =('INPUT|Vols'!O303+'INPUT|Vols'!O141)*(1+'INPUT|UR'!$G$75) -> 0 | P139: =('INPUT|Vols'!P303+'INPUT|Vols'!P141)*(1+'INPUT|UR'!$G$75) -> 0 | Q139: =('INPUT|Vols'!Q303+'INPUT|Vols'!Q141)*(1+'INPUT|UR'!$G$75) -> 0 | R139: =('INPUT|Vols'!R303+'INPUT|Vols'!R141)*(1+'INPUT|UR'!$G$75) -> 0 | S139: =('INPUT|Vols'!S303+'INPUT|Vols'!S141)*(1+'INPUT|UR'!$G$75) -> 0 | T139: =('INPUT|Vols'!T303+'INPUT|Vols'!T141)*(1+'INPUT|UR'!$G$75) -> 0 | U139: =('INPUT|Vols'!U303+'INPUT|Vols'!U141)*(1+'INPUT|UR'!$G$75) -> 0 | V139: =('INPUT|Vols'!V303+'INPUT|Vols'!V141)*(1+'INPUT|UR'!$G$75) -> 0 | W139: =('INPUT|Vols'!W303+'INPUT|Vols'!W141)*(1+'INPUT|UR'!$G$75) -> 0 | X139: =('INPUT|Vols'!X303+'INPUT|Vols'!X141)*(1+'INPUT|UR'!$G$75) -> 0 | Y139: =('INPUT|Vols'!Y303+'INPUT|Vols'!Y141)*(1+'INPUT|UR'!$G$75) -> 0 | AA139: ='INPUT|Vols'!AA303+'INPUT|Vols'!AA141 -> 0 | AB139: ='INPUT|Vols'!AB303+'INPUT|Vols'!AB141 -> 0 | AC139: ='INPUT|Vols'!AC303+'INPUT|Vols'!AC141 -> 0 | AD139: ='INPUT|Vols'!AD303+'INPUT|Vols'!AD141 -> 0 | AE139: ='INPUT|Vols'!AE303+'INPUT|Vols'!AE141 -> 0 | AF139: ='INPUT|Vols'!AF303+'INPUT|Vols'!AF141 -> 0 | AG139: ='INPUT|Vols'!AG303+'INPUT|Vols'!AG141 -> 0 | AH139: ='INPUT|Vols'!AH303+'INPUT|Vols'!AH141 -> 0 | AI139: ='INPUT|Vols'!AI303+'INPUT|Vols'!AI141 -> 0 | AJ139: ='INPUT|Vols'!AJ303+'INPUT|Vols'!AJ141 -> 0 | AK139: ='INPUT|Vols'!AK303+'INPUT|Vols'!AK141 -> 0 | AL139: ='INPUT|Vols'!AL303+'INPUT|Vols'!AL141 -> 0
C140: Actual interruptible capacity | D140: peak kWh/day | N140: =('INPUT|Vols'!N304+'INPUT|Vols'!N142)*(1+'INPUT|UR'!$G$75) -> 0 | O140: =('INPUT|Vols'!O304+'INPUT|Vols'!O142)*(1+'INPUT|UR'!$G$75) -> 0 | P140: =('INPUT|Vols'!P304+'INPUT|Vols'!P142)*(1+'INPUT|UR'!$G$75) -> 0 | Q140: =('INPUT|Vols'!Q304+'INPUT|Vols'!Q142)*(1+'INPUT|UR'!$G$75) -> 0 | R140: =('INPUT|Vols'!R304+'INPUT|Vols'!R142)*(1+'INPUT|UR'!$G$75) -> 0 | S140: =('INPUT|Vols'!S304+'INPUT|Vols'!S142)*(1+'INPUT|UR'!$G$75) -> 0 | T140: =('INPUT|Vols'!T304+'INPUT|Vols'!T142)*(1+'INPUT|UR'!$G$75) -> 0 | U140: =('INPUT|Vols'!U304+'INPUT|Vols'!U142)*(1+'INPUT|UR'!$G$75) -> 0 | V140: =('INPUT|Vols'!V304+'INPUT|Vols'!V142)*(1+'INPUT|UR'!$G$75) -> 0 | W140: =('INPUT|Vols'!W304+'INPUT|Vols'!W142)*(1+'INPUT|UR'!$G$75) -> 0 | X140: =('INPUT|Vols'!X304+'INPUT|Vols'!X142)*(1+'INPUT|UR'!$G$75) -> 0 | Y140: =('INPUT|Vols'!Y304+'INPUT|Vols'!Y142)*(1+'INPUT|UR'!$G$75) -> 0 | AA140: ='INPUT|Vols'!AA304+'INPUT|Vols'!AA142 -> 0 | AB140: ='INPUT|Vols'!AB304+'INPUT|Vols'!AB142 -> 0 | AC140: ='INPUT|Vols'!AC304+'INPUT|Vols'!AC142 -> 0 | AD140: ='INPUT|Vols'!AD304+'INPUT|Vols'!AD142 -> 0 | AE140: ='INPUT|Vols'!AE304+'INPUT|Vols'!AE142 -> 0 | AF140: ='INPUT|Vols'!AF304+'INPUT|Vols'!AF142 -> 0 | AG140: ='INPUT|Vols'!AG304+'INPUT|Vols'!AG142 -> 0 | AH140: ='INPUT|Vols'!AH304+'INPUT|Vols'!AH142 -> 0 | AI140: ='INPUT|Vols'!AI304+'INPUT|Vols'!AI142 -> 0 | AJ140: ='INPUT|Vols'!AJ304+'INPUT|Vols'!AJ142 -> 0 | AK140: ='INPUT|Vols'!AK304+'INPUT|Vols'!AK142 -> 0 | AL140: ='INPUT|Vols'!AL304+'INPUT|Vols'!AL142 -> 0
C142: ='INPUT|Vols'!C23 -> Shipper 15
C143: Annual capacity | D143: peak kWh/day | G143: =('INPUT|Vols'!G307+'INPUT|Vols'!G145)*(1+'INPUT|UR'!$G$75) -> 0 | AA143: ='INPUT|Vols'!AA307+'INPUT|Vols'!AA145 -> 0 | AB143: ='INPUT|Vols'!AB307+'INPUT|Vols'!AB145 -> 0 | AC143: ='INPUT|Vols'!AC307+'INPUT|Vols'!AC145 -> 0 | AD143: ='INPUT|Vols'!AD307+'INPUT|Vols'!AD145 -> 0 | AE143: ='INPUT|Vols'!AE307+'INPUT|Vols'!AE145 -> 0 | AF143: ='INPUT|Vols'!AF307+'INPUT|Vols'!AF145 -> 0 | AG143: ='INPUT|Vols'!AG307+'INPUT|Vols'!AG145 -> 0 | AH143: ='INPUT|Vols'!AH307+'INPUT|Vols'!AH145 -> 0 | AI143: ='INPUT|Vols'!AI307+'INPUT|Vols'!AI145 -> 0 | AJ143: ='INPUT|Vols'!AJ307+'INPUT|Vols'!AJ145 -> 0 | AK143: ='INPUT|Vols'!AK307+'INPUT|Vols'!AK145 -> 0 | AL143: ='INPUT|Vols'!AL307+'INPUT|Vols'!AL145 -> 0
C144: Quarterly capacity | D144: peak kWh/day | I144: =('INPUT|Vols'!I308+'INPUT|Vols'!I146)*(1+'INPUT|UR'!$G$75) -> 0 | J144: =('INPUT|Vols'!J308+'INPUT|Vols'!J146)*(1+'INPUT|UR'!$G$75) -> 0 | K144: =('INPUT|Vols'!K308+'INPUT|Vols'!K146)*(1+'INPUT|UR'!$G$75) -> 0 | L144: =('INPUT|Vols'!L308+'INPUT|Vols'!L146)*(1+'INPUT|UR'!$G$75) -> 0 | AA144: ='INPUT|Vols'!AA308+'INPUT|Vols'!AA146 -> 0 | AB144: ='INPUT|Vols'!AB308+'INPUT|Vols'!AB146 -> 0 | AC144: ='INPUT|Vols'!AC308+'INPUT|Vols'!AC146 -> 0 | AD144: ='INPUT|Vols'!AD308+'INPUT|Vols'!AD146 -> 0 | AE144: ='INPUT|Vols'!AE308+'INPUT|Vols'!AE146 -> 0 | AF144: ='INPUT|Vols'!AF308+'INPUT|Vols'!AF146 -> 0 | AG144: ='INPUT|Vols'!AG308+'INPUT|Vols'!AG146 -> 0 | AH144: ='INPUT|Vols'!AH308+'INPUT|Vols'!AH146 -> 0 | AI144: ='INPUT|Vols'!AI308+'INPUT|Vols'!AI146 -> 0 | AJ144: ='INPUT|Vols'!AJ308+'INPUT|Vols'!AJ146 -> 0 | AK144: ='INPUT|Vols'!AK308+'INPUT|Vols'!AK146 -> 0 | AL144: ='INPUT|Vols'!AL308+'INPUT|Vols'!AL146 -> 0
C145: Monthly capacity | D145: peak kWh/day | N145: =('INPUT|Vols'!N309+'INPUT|Vols'!N147)*(1+'INPUT|UR'!$G$75) -> 0 | O145: =('INPUT|Vols'!O309+'INPUT|Vols'!O147)*(1+'INPUT|UR'!$G$75) -> 0 | P145: =('INPUT|Vols'!P309+'INPUT|Vols'!P147)*(1+'INPUT|UR'!$G$75) -> 0 | Q145: =('INPUT|Vols'!Q309+'INPUT|Vols'!Q147)*(1+'INPUT|UR'!$G$75) -> 0 | R145: =('INPUT|Vols'!R309+'INPUT|Vols'!R147)*(1+'INPUT|UR'!$G$75) -> 0 | S145: =('INPUT|Vols'!S309+'INPUT|Vols'!S147)*(1+'INPUT|UR'!$G$75) -> 0 | T145: =('INPUT|Vols'!T309+'INPUT|Vols'!T147)*(1+'INPUT|UR'!$G$75) -> 0 | U145: =('INPUT|Vols'!U309+'INPUT|Vols'!U147)*(1+'INPUT|UR'!$G$75) -> 0 | V145: =('INPUT|Vols'!V309+'INPUT|Vols'!V147)*(1+'INPUT|UR'!$G$75) -> 0 | W145: =('INPUT|Vols'!W309+'INPUT|Vols'!W147)*(1+'INPUT|UR'!$G$75) -> 0 | X145: =('INPUT|Vols'!X309+'INPUT|Vols'!X147)*(1+'INPUT|UR'!$G$75) -> 0 | Y145: =('INPUT|Vols'!Y309+'INPUT|Vols'!Y147)*(1+'INPUT|UR'!$G$75) -> 0 | AA145: ='INPUT|Vols'!AA309+'INPUT|Vols'!AA147 -> 0 | AB145: ='INPUT|Vols'!AB309+'INPUT|Vols'!AB147 -> 0 | AC145: ='INPUT|Vols'!AC309+'INPUT|Vols'!AC147 -> 0 | AD145: ='INPUT|Vols'!AD309+'INPUT|Vols'!AD147 -> 0 | AE145: ='INPUT|Vols'!AE309+'INPUT|Vols'!AE147 -> 0 | AF145: ='INPUT|Vols'!AF309+'INPUT|Vols'!AF147 -> 0 | AG145: ='INPUT|Vols'!AG309+'INPUT|Vols'!AG147 -> 0 | AH145: ='INPUT|Vols'!AH309+'INPUT|Vols'!AH147 -> 0 | AI145: ='INPUT|Vols'!AI309+'INPUT|Vols'!AI147 -> 0 | AJ145: ='INPUT|Vols'!AJ309+'INPUT|Vols'!AJ147 -> 0 | AK145: ='INPUT|Vols'!AK309+'INPUT|Vols'!AK147 -> 0 | AL145: ='INPUT|Vols'!AL309+'INPUT|Vols'!AL147 -> 0
C146: Daily capacity | D146: peak kWh/day | N146: =('INPUT|Vols'!N310+'INPUT|Vols'!N148)*(1+'INPUT|UR'!$G$75) -> 0 | O146: =('INPUT|Vols'!O310+'INPUT|Vols'!O148)*(1+'INPUT|UR'!$G$75) -> 0 | P146: =('INPUT|Vols'!P310+'INPUT|Vols'!P148)*(1+'INPUT|UR'!$G$75) -> 0 | Q146: =('INPUT|Vols'!Q310+'INPUT|Vols'!Q148)*(1+'INPUT|UR'!$G$75) -> 0 | R146: =('INPUT|Vols'!R310+'INPUT|Vols'!R148)*(1+'INPUT|UR'!$G$75) -> 0 | S146: =('INPUT|Vols'!S310+'INPUT|Vols'!S148)*(1+'INPUT|UR'!$G$75) -> 0 | T146: =('INPUT|Vols'!T310+'INPUT|Vols'!T148)*(1+'INPUT|UR'!$G$75) -> 0 | U146: =('INPUT|Vols'!U310+'INPUT|Vols'!U148)*(1+'INPUT|UR'!$G$75) -> 0 | V146: =('INPUT|Vols'!V310+'INPUT|Vols'!V148)*(1+'INPUT|UR'!$G$75) -> 0 | W146: =('INPUT|Vols'!W310+'INPUT|Vols'!W148)*(1+'INPUT|UR'!$G$75) -> 0 | X146: =('INPUT|Vols'!X310+'INPUT|Vols'!X148)*(1+'INPUT|UR'!$G$75) -> 0 | Y146: =('INPUT|Vols'!Y310+'INPUT|Vols'!Y148)*(1+'INPUT|UR'!$G$75) -> 0 | AA146: ='INPUT|Vols'!AA310+'INPUT|Vols'!AA148 -> 0 | AB146: ='INPUT|Vols'!AB310+'INPUT|Vols'!AB148 -> 0 | AC146: ='INPUT|Vols'!AC310+'INPUT|Vols'!AC148 -> 0 | AD146: ='INPUT|Vols'!AD310+'INPUT|Vols'!AD148 -> 0 | AE146: ='INPUT|Vols'!AE310+'INPUT|Vols'!AE148 -> 0 | AF146: ='INPUT|Vols'!AF310+'INPUT|Vols'!AF148 -> 0 | AG146: ='INPUT|Vols'!AG310+'INPUT|Vols'!AG148 -> 0 | AH146: ='INPUT|Vols'!AH310+'INPUT|Vols'!AH148 -> 0 | AI146: ='INPUT|Vols'!AI310+'INPUT|Vols'!AI148 -> 0 | AJ146: ='INPUT|Vols'!AJ310+'INPUT|Vols'!AJ148 -> 0 | AK146: ='INPUT|Vols'!AK310+'INPUT|Vols'!AK148 -> 0 | AL146: ='INPUT|Vols'!AL310+'INPUT|Vols'!AL148 -> 0
C147: Within-day capacity | D147: peak kWh/day | N147: =('INPUT|Vols'!N311+'INPUT|Vols'!N149)*(1+'INPUT|UR'!$G$75) -> 0 | O147: =('INPUT|Vols'!O311+'INPUT|Vols'!O149)*(1+'INPUT|UR'!$G$75) -> 0 | P147: =('INPUT|Vols'!P311+'INPUT|Vols'!P149)*(1+'INPUT|UR'!$G$75) -> 0 | Q147: =('INPUT|Vols'!Q311+'INPUT|Vols'!Q149)*(1+'INPUT|UR'!$G$75) -> 0 | R147: =('INPUT|Vols'!R311+'INPUT|Vols'!R149)*(1+'INPUT|UR'!$G$75) -> 0 | S147: =('INPUT|Vols'!S311+'INPUT|Vols'!S149)*(1+'INPUT|UR'!$G$75) -> 0 | T147: =('INPUT|Vols'!T311+'INPUT|Vols'!T149)*(1+'INPUT|UR'!$G$75) -> 0 | U147: =('INPUT|Vols'!U311+'INPUT|Vols'!U149)*(1+'INPUT|UR'!$G$75) -> 0 | V147: =('INPUT|Vols'!V311+'INPUT|Vols'!V149)*(1+'INPUT|UR'!$G$75) -> 0 | W147: =('INPUT|Vols'!W311+'INPUT|Vols'!W149)*(1+'INPUT|UR'!$G$75) -> 0 | X147: =('INPUT|Vols'!X311+'INPUT|Vols'!X149)*(1+'INPUT|UR'!$G$75) -> 0 | Y147: =('INPUT|Vols'!Y311+'INPUT|Vols'!Y149)*(1+'INPUT|UR'!$G$75) -> 0 | AA147: ='INPUT|Vols'!AA311+'INPUT|Vols'!AA149 -> 0 | AB147: ='INPUT|Vols'!AB311+'INPUT|Vols'!AB149 -> 0 | AC147: ='INPUT|Vols'!AC311+'INPUT|Vols'!AC149 -> 0 | AD147: ='INPUT|Vols'!AD311+'INPUT|Vols'!AD149 -> 0 | AE147: ='INPUT|Vols'!AE311+'INPUT|Vols'!AE149 -> 0 | AF147: ='INPUT|Vols'!AF311+'INPUT|Vols'!AF149 -> 0 | AG147: ='INPUT|Vols'!AG311+'INPUT|Vols'!AG149 -> 0 | AH147: ='INPUT|Vols'!AH311+'INPUT|Vols'!AH149 -> 0 | AI147: ='INPUT|Vols'!AI311+'INPUT|Vols'!AI149 -> 0 | AJ147: ='INPUT|Vols'!AJ311+'INPUT|Vols'!AJ149 -> 0 | AK147: ='INPUT|Vols'!AK311+'INPUT|Vols'!AK149 -> 0 | AL147: ='INPUT|Vols'!AL311+'INPUT|Vols'!AL149 -> 0
C148: Actual interruptible capacity | D148: peak kWh/day | N148: =('INPUT|Vols'!N312+'INPUT|Vols'!N150)*(1+'INPUT|UR'!$G$75) -> 0 | O148: =('INPUT|Vols'!O312+'INPUT|Vols'!O150)*(1+'INPUT|UR'!$G$75) -> 0 | P148: =('INPUT|Vols'!P312+'INPUT|Vols'!P150)*(1+'INPUT|UR'!$G$75) -> 0 | Q148: =('INPUT|Vols'!Q312+'INPUT|Vols'!Q150)*(1+'INPUT|UR'!$G$75) -> 0 | R148: =('INPUT|Vols'!R312+'INPUT|Vols'!R150)*(1+'INPUT|UR'!$G$75) -> 0 | S148: =('INPUT|Vols'!S312+'INPUT|Vols'!S150)*(1+'INPUT|UR'!$G$75) -> 0 | T148: =('INPUT|Vols'!T312+'INPUT|Vols'!T150)*(1+'INPUT|UR'!$G$75) -> 0 | U148: =('INPUT|Vols'!U312+'INPUT|Vols'!U150)*(1+'INPUT|UR'!$G$75) -> 0 | V148: =('INPUT|Vols'!V312+'INPUT|Vols'!V150)*(1+'INPUT|UR'!$G$75) -> 0 | W148: =('INPUT|Vols'!W312+'INPUT|Vols'!W150)*(1+'INPUT|UR'!$G$75) -> 0 | X148: =('INPUT|Vols'!X312+'INPUT|Vols'!X150)*(1+'INPUT|UR'!$G$75) -> 0 | Y148: =('INPUT|Vols'!Y312+'INPUT|Vols'!Y150)*(1+'INPUT|UR'!$G$75) -> 0 | AA148: ='INPUT|Vols'!AA312+'INPUT|Vols'!AA150 -> 0 | AB148: ='INPUT|Vols'!AB312+'INPUT|Vols'!AB150 -> 0 | AC148: ='INPUT|Vols'!AC312+'INPUT|Vols'!AC150 -> 0 | AD148: ='INPUT|Vols'!AD312+'INPUT|Vols'!AD150 -> 0 | AE148: ='INPUT|Vols'!AE312+'INPUT|Vols'!AE150 -> 0 | AF148: ='INPUT|Vols'!AF312+'INPUT|Vols'!AF150 -> 0 | AG148: ='INPUT|Vols'!AG312+'INPUT|Vols'!AG150 -> 0 | AH148: ='INPUT|Vols'!AH312+'INPUT|Vols'!AH150 -> 0 | AI148: ='INPUT|Vols'!AI312+'INPUT|Vols'!AI150 -> 0 | AJ148: ='INPUT|Vols'!AJ312+'INPUT|Vols'!AJ150 -> 0 | AK148: ='INPUT|Vols'!AK312+'INPUT|Vols'!AK150 -> 0 | AL148: ='INPUT|Vols'!AL312+'INPUT|Vols'!AL150 -> 0
C150: ='INPUT|Vols'!C24 -> Shipper 16
C151: Annual capacity | D151: peak kWh/day | G151: =('INPUT|Vols'!G315+'INPUT|Vols'!G153)*(1+'INPUT|UR'!$G$75) -> 0 | AA151: ='INPUT|Vols'!AA315+'INPUT|Vols'!AA153 -> 0 | AB151: ='INPUT|Vols'!AB315+'INPUT|Vols'!AB153 -> 0 | AC151: ='INPUT|Vols'!AC315+'INPUT|Vols'!AC153 -> 0 | AD151: ='INPUT|Vols'!AD315+'INPUT|Vols'!AD153 -> 0 | AE151: ='INPUT|Vols'!AE315+'INPUT|Vols'!AE153 -> 0 | AF151: ='INPUT|Vols'!AF315+'INPUT|Vols'!AF153 -> 0 | AG151: ='INPUT|Vols'!AG315+'INPUT|Vols'!AG153 -> 0 | AH151: ='INPUT|Vols'!AH315+'INPUT|Vols'!AH153 -> 0 | AI151: ='INPUT|Vols'!AI315+'INPUT|Vols'!AI153 -> 0 | AJ151: ='INPUT|Vols'!AJ315+'INPUT|Vols'!AJ153 -> 0 | AK151: ='INPUT|Vols'!AK315+'INPUT|Vols'!AK153 -> 0 | AL151: ='INPUT|Vols'!AL315+'INPUT|Vols'!AL153 -> 0
C152: Quarterly capacity | D152: peak kWh/day | I152: =('INPUT|Vols'!I316+'INPUT|Vols'!I154)*(1+'INPUT|UR'!$G$75) -> 0 | J152: =('INPUT|Vols'!J316+'INPUT|Vols'!J154)*(1+'INPUT|UR'!$G$75) -> 0 | K152: =('INPUT|Vols'!K316+'INPUT|Vols'!K154)*(1+'INPUT|UR'!$G$75) -> 0 | L152: =('INPUT|Vols'!L316+'INPUT|Vols'!L154)*(1+'INPUT|UR'!$G$75) -> 0 | AA152: ='INPUT|Vols'!AA316+'INPUT|Vols'!AA154 -> 0 | AB152: ='INPUT|Vols'!AB316+'INPUT|Vols'!AB154 -> 0 | AC152: ='INPUT|Vols'!AC316+'INPUT|Vols'!AC154 -> 0 | AD152: ='INPUT|Vols'!AD316+'INPUT|Vols'!AD154 -> 0 | AE152: ='INPUT|Vols'!AE316+'INPUT|Vols'!AE154 -> 0 | AF152: ='INPUT|Vols'!AF316+'INPUT|Vols'!AF154 -> 0 | AG152: ='INPUT|Vols'!AG316+'INPUT|Vols'!AG154 -> 0 | AH152: ='INPUT|Vols'!AH316+'INPUT|Vols'!AH154 -> 0 | AI152: ='INPUT|Vols'!AI316+'INPUT|Vols'!AI154 -> 0 | AJ152: ='INPUT|Vols'!AJ316+'INPUT|Vols'!AJ154 -> 0 | AK152: ='INPUT|Vols'!AK316+'INPUT|Vols'!AK154 -> 0 | AL152: ='INPUT|Vols'!AL316+'INPUT|Vols'!AL154 -> 0
C153: Monthly capacity | D153: peak kWh/day | N153: =('INPUT|Vols'!N317+'INPUT|Vols'!N155)*(1+'INPUT|UR'!$G$75) -> 0 | O153: =('INPUT|Vols'!O317+'INPUT|Vols'!O155)*(1+'INPUT|UR'!$G$75) -> 0 | P153: =('INPUT|Vols'!P317+'INPUT|Vols'!P155)*(1+'INPUT|UR'!$G$75) -> 0 | Q153: =('INPUT|Vols'!Q317+'INPUT|Vols'!Q155)*(1+'INPUT|UR'!$G$75) -> 0 | R153: =('INPUT|Vols'!R317+'INPUT|Vols'!R155)*(1+'INPUT|UR'!$G$75) -> 0 | S153: =('INPUT|Vols'!S317+'INPUT|Vols'!S155)*(1+'INPUT|UR'!$G$75) -> 0 | T153: =('INPUT|Vols'!T317+'INPUT|Vols'!T155)*(1+'INPUT|UR'!$G$75) -> 0 | U153: =('INPUT|Vols'!U317+'INPUT|Vols'!U155)*(1+'INPUT|UR'!$G$75) -> 0 | V153: =('INPUT|Vols'!V317+'INPUT|Vols'!V155)*(1+'INPUT|UR'!$G$75) -> 0 | W153: =('INPUT|Vols'!W317+'INPUT|Vols'!W155)*(1+'INPUT|UR'!$G$75) -> 0 | X153: =('INPUT|Vols'!X317+'INPUT|Vols'!X155)*(1+'INPUT|UR'!$G$75) -> 0 | Y153: =('INPUT|Vols'!Y317+'INPUT|Vols'!Y155)*(1+'INPUT|UR'!$G$75) -> 0 | AA153: ='INPUT|Vols'!AA317+'INPUT|Vols'!AA155 -> 0 | AB153: ='INPUT|Vols'!AB317+'INPUT|Vols'!AB155 -> 0 | AC153: ='INPUT|Vols'!AC317+'INPUT|Vols'!AC155 -> 0 | AD153: ='INPUT|Vols'!AD317+'INPUT|Vols'!AD155 -> 0 | AE153: ='INPUT|Vols'!AE317+'INPUT|Vols'!AE155 -> 0 | AF153: ='INPUT|Vols'!AF317+'INPUT|Vols'!AF155 -> 0 | AG153: ='INPUT|Vols'!AG317+'INPUT|Vols'!AG155 -> 0 | AH153: ='INPUT|Vols'!AH317+'INPUT|Vols'!AH155 -> 0 | AI153: ='INPUT|Vols'!AI317+'INPUT|Vols'!AI155 -> 0 | AJ153: ='INPUT|Vols'!AJ317+'INPUT|Vols'!AJ155 -> 0 | AK153: ='INPUT|Vols'!AK317+'INPUT|Vols'!AK155 -> 0 | AL153: ='INPUT|Vols'!AL317+'INPUT|Vols'!AL155 -> 0
C154: Daily capacity | D154: peak kWh/day | N154: =('INPUT|Vols'!N318+'INPUT|Vols'!N156)*(1+'INPUT|UR'!$G$75) -> 0 | O154: =('INPUT|Vols'!O318+'INPUT|Vols'!O156)*(1+'INPUT|UR'!$G$75) -> 0 | P154: =('INPUT|Vols'!P318+'INPUT|Vols'!P156)*(1+'INPUT|UR'!$G$75) -> 0 | Q154: =('INPUT|Vols'!Q318+'INPUT|Vols'!Q156)*(1+'INPUT|UR'!$G$75) -> 0 | R154: =('INPUT|Vols'!R318+'INPUT|Vols'!R156)*(1+'INPUT|UR'!$G$75) -> 0 | S154: =('INPUT|Vols'!S318+'INPUT|Vols'!S156)*(1+'INPUT|UR'!$G$75) -> 0 | T154: =('INPUT|Vols'!T318+'INPUT|Vols'!T156)*(1+'INPUT|UR'!$G$75) -> 0 | U154: =('INPUT|Vols'!U318+'INPUT|Vols'!U156)*(1+'INPUT|UR'!$G$75) -> 0 | V154: =('INPUT|Vols'!V318+'INPUT|Vols'!V156)*(1+'INPUT|UR'!$G$75) -> 0 | W154: =('INPUT|Vols'!W318+'INPUT|Vols'!W156)*(1+'INPUT|UR'!$G$75) -> 0 | X154: =('INPUT|Vols'!X318+'INPUT|Vols'!X156)*(1+'INPUT|UR'!$G$75) -> 0 | Y154: =('INPUT|Vols'!Y318+'INPUT|Vols'!Y156)*(1+'INPUT|UR'!$G$75) -> 0 | AA154: ='INPUT|Vols'!AA318+'INPUT|Vols'!AA156 -> 0 | AB154: ='INPUT|Vols'!AB318+'INPUT|Vols'!AB156 -> 0 | AC154: ='INPUT|Vols'!AC318+'INPUT|Vols'!AC156 -> 0 | AD154: ='INPUT|Vols'!AD318+'INPUT|Vols'!AD156 -> 0 | AE154: ='INPUT|Vols'!AE318+'INPUT|Vols'!AE156 -> 0 | AF154: ='INPUT|Vols'!AF318+'INPUT|Vols'!AF156 -> 0 | AG154: ='INPUT|Vols'!AG318+'INPUT|Vols'!AG156 -> 0 | AH154: ='INPUT|Vols'!AH318+'INPUT|Vols'!AH156 -> 0 | AI154: ='INPUT|Vols'!AI318+'INPUT|Vols'!AI156 -> 0 | AJ154: ='INPUT|Vols'!AJ318+'INPUT|Vols'!AJ156 -> 0 | AK154: ='INPUT|Vols'!AK318+'INPUT|Vols'!AK156 -> 0 | AL154: ='INPUT|Vols'!AL318+'INPUT|Vols'!AL156 -> 0
C155: Within-day capacity | D155: peak kWh/day | N155: =('INPUT|Vols'!N319+'INPUT|Vols'!N157)*(1+'INPUT|UR'!$G$75) -> 0 | O155: =('INPUT|Vols'!O319+'INPUT|Vols'!O157)*(1+'INPUT|UR'!$G$75) -> 0 | P155: =('INPUT|Vols'!P319+'INPUT|Vols'!P157)*(1+'INPUT|UR'!$G$75) -> 0 | Q155: =('INPUT|Vols'!Q319+'INPUT|Vols'!Q157)*(1+'INPUT|UR'!$G$75) -> 0 | R155: =('INPUT|Vols'!R319+'INPUT|Vols'!R157)*(1+'INPUT|UR'!$G$75) -> 0 | S155: =('INPUT|Vols'!S319+'INPUT|Vols'!S157)*(1+'INPUT|UR'!$G$75) -> 0 | T155: =('INPUT|Vols'!T319+'INPUT|Vols'!T157)*(1+'INPUT|UR'!$G$75) -> 0 | U155: =('INPUT|Vols'!U319+'INPUT|Vols'!U157)*(1+'INPUT|UR'!$G$75) -> 0 | V155: =('INPUT|Vols'!V319+'INPUT|Vols'!V157)*(1+'INPUT|UR'!$G$75) -> 0 | W155: =('INPUT|Vols'!W319+'INPUT|Vols'!W157)*(1+'INPUT|UR'!$G$75) -> 0 | X155: =('INPUT|Vols'!X319+'INPUT|Vols'!X157)*(1+'INPUT|UR'!$G$75) -> 0 | Y155: =('INPUT|Vols'!Y319+'INPUT|Vols'!Y157)*(1+'INPUT|UR'!$G$75) -> 0 | AA155: ='INPUT|Vols'!AA319+'INPUT|Vols'!AA157 -> 0 | AB155: ='INPUT|Vols'!AB319+'INPUT|Vols'!AB157 -> 0 | AC155: ='INPUT|Vols'!AC319+'INPUT|Vols'!AC157 -> 0 | AD155: ='INPUT|Vols'!AD319+'INPUT|Vols'!AD157 -> 0 | AE155: ='INPUT|Vols'!AE319+'INPUT|Vols'!AE157 -> 0 | AF155: ='INPUT|Vols'!AF319+'INPUT|Vols'!AF157 -> 0 | AG155: ='INPUT|Vols'!AG319+'INPUT|Vols'!AG157 -> 0 | AH155: ='INPUT|Vols'!AH319+'INPUT|Vols'!AH157 -> 0 | AI155: ='INPUT|Vols'!AI319+'INPUT|Vols'!AI157 -> 0 | AJ155: ='INPUT|Vols'!AJ319+'INPUT|Vols'!AJ157 -> 0 | AK155: ='INPUT|Vols'!AK319+'INPUT|Vols'!AK157 -> 0 | AL155: ='INPUT|Vols'!AL319+'INPUT|Vols'!AL157 -> 0
C156: Actual interruptible capacity | D156: peak kWh/day | N156: =('INPUT|Vols'!N320+'INPUT|Vols'!N158)*(1+'INPUT|UR'!$G$75) -> 0 | O156: =('INPUT|Vols'!O320+'INPUT|Vols'!O158)*(1+'INPUT|UR'!$G$75) -> 0 | P156: =('INPUT|Vols'!P320+'INPUT|Vols'!P158)*(1+'INPUT|UR'!$G$75) -> 0 | Q156: =('INPUT|Vols'!Q320+'INPUT|Vols'!Q158)*(1+'INPUT|UR'!$G$75) -> 0 | R156: =('INPUT|Vols'!R320+'INPUT|Vols'!R158)*(1+'INPUT|UR'!$G$75) -> 0 | S156: =('INPUT|Vols'!S320+'INPUT|Vols'!S158)*(1+'INPUT|UR'!$G$75) -> 0 | T156: =('INPUT|Vols'!T320+'INPUT|Vols'!T158)*(1+'INPUT|UR'!$G$75) -> 0 | U156: =('INPUT|Vols'!U320+'INPUT|Vols'!U158)*(1+'INPUT|UR'!$G$75) -> 0 | V156: =('INPUT|Vols'!V320+'INPUT|Vols'!V158)*(1+'INPUT|UR'!$G$75) -> 0 | W156: =('INPUT|Vols'!W320+'INPUT|Vols'!W158)*(1+'INPUT|UR'!$G$75) -> 0 | X156: =('INPUT|Vols'!X320+'INPUT|Vols'!X158)*(1+'INPUT|UR'!$G$75) -> 0 | Y156: =('INPUT|Vols'!Y320+'INPUT|Vols'!Y158)*(1+'INPUT|UR'!$G$75) -> 0 | AA156: ='INPUT|Vols'!AA320+'INPUT|Vols'!AA158 -> 0 | AB156: ='INPUT|Vols'!AB320+'INPUT|Vols'!AB158 -> 0 | AC156: ='INPUT|Vols'!AC320+'INPUT|Vols'!AC158 -> 0 | AD156: ='INPUT|Vols'!AD320+'INPUT|Vols'!AD158 -> 0 | AE156: ='INPUT|Vols'!AE320+'INPUT|Vols'!AE158 -> 0 | AF156: ='INPUT|Vols'!AF320+'INPUT|Vols'!AF158 -> 0 | AG156: ='INPUT|Vols'!AG320+'INPUT|Vols'!AG158 -> 0 | AH156: ='INPUT|Vols'!AH320+'INPUT|Vols'!AH158 -> 0 | AI156: ='INPUT|Vols'!AI320+'INPUT|Vols'!AI158 -> 0 | AJ156: ='INPUT|Vols'!AJ320+'INPUT|Vols'!AJ158 -> 0 | AK156: ='INPUT|Vols'!AK320+'INPUT|Vols'!AK158 -> 0 | AL156: ='INPUT|Vols'!AL320+'INPUT|Vols'!AL158 -> 0
C158: ='INPUT|Vols'!C25 -> Shipper 17
C159: Annual capacity | D159: peak kWh/day | G159: =('INPUT|Vols'!G323+'INPUT|Vols'!G161)*(1+'INPUT|UR'!$G$75) -> 0 | AA159: ='INPUT|Vols'!AA323+'INPUT|Vols'!AA161 -> 0 | AB159: ='INPUT|Vols'!AB323+'INPUT|Vols'!AB161 -> 0 | AC159: ='INPUT|Vols'!AC323+'INPUT|Vols'!AC161 -> 0 | AD159: ='INPUT|Vols'!AD323+'INPUT|Vols'!AD161 -> 0 | AE159: ='INPUT|Vols'!AE323+'INPUT|Vols'!AE161 -> 0 | AF159: ='INPUT|Vols'!AF323+'INPUT|Vols'!AF161 -> 0 | AG159: ='INPUT|Vols'!AG323+'INPUT|Vols'!AG161 -> 0 | AH159: ='INPUT|Vols'!AH323+'INPUT|Vols'!AH161 -> 0 | AI159: ='INPUT|Vols'!AI323+'INPUT|Vols'!AI161 -> 0 | AJ159: ='INPUT|Vols'!AJ323+'INPUT|Vols'!AJ161 -> 0 | AK159: ='INPUT|Vols'!AK323+'INPUT|Vols'!AK161 -> 0 | AL159: ='INPUT|Vols'!AL323+'INPUT|Vols'!AL161 -> 0
C160: Quarterly capacity | D160: peak kWh/day | I160: =('INPUT|Vols'!I324+'INPUT|Vols'!I162)*(1+'INPUT|UR'!$G$75) -> 0 | J160: =('INPUT|Vols'!J324+'INPUT|Vols'!J162)*(1+'INPUT|UR'!$G$75) -> 0 | K160: =('INPUT|Vols'!K324+'INPUT|Vols'!K162)*(1+'INPUT|UR'!$G$75) -> 0 | L160: =('INPUT|Vols'!L324+'INPUT|Vols'!L162)*(1+'INPUT|UR'!$G$75) -> 0 | AA160: ='INPUT|Vols'!AA324+'INPUT|Vols'!AA162 -> 0 | AB160: ='INPUT|Vols'!AB324+'INPUT|Vols'!AB162 -> 0 | AC160: ='INPUT|Vols'!AC324+'INPUT|Vols'!AC162 -> 0 | AD160: ='INPUT|Vols'!AD324+'INPUT|Vols'!AD162 -> 0 | AE160: ='INPUT|Vols'!AE324+'INPUT|Vols'!AE162 -> 0 | AF160: ='INPUT|Vols'!AF324+'INPUT|Vols'!AF162 -> 0 | AG160: ='INPUT|Vols'!AG324+'INPUT|Vols'!AG162 -> 0 | AH160: ='INPUT|Vols'!AH324+'INPUT|Vols'!AH162 -> 0 | AI160: ='INPUT|Vols'!AI324+'INPUT|Vols'!AI162 -> 0 | AJ160: ='INPUT|Vols'!AJ324+'INPUT|Vols'!AJ162 -> 0 | AK160: ='INPUT|Vols'!AK324+'INPUT|Vols'!AK162 -> 0 | AL160: ='INPUT|Vols'!AL324+'INPUT|Vols'!AL162 -> 0
C161: Monthly capacity | D161: peak kWh/day | N161: =('INPUT|Vols'!N325+'INPUT|Vols'!N163)*(1+'INPUT|UR'!$G$75) -> 0 | O161: =('INPUT|Vols'!O325+'INPUT|Vols'!O163)*(1+'INPUT|UR'!$G$75) -> 0 | P161: =('INPUT|Vols'!P325+'INPUT|Vols'!P163)*(1+'INPUT|UR'!$G$75) -> 0 | Q161: =('INPUT|Vols'!Q325+'INPUT|Vols'!Q163)*(1+'INPUT|UR'!$G$75) -> 0 | R161: =('INPUT|Vols'!R325+'INPUT|Vols'!R163)*(1+'INPUT|UR'!$G$75) -> 0 | S161: =('INPUT|Vols'!S325+'INPUT|Vols'!S163)*(1+'INPUT|UR'!$G$75) -> 0 | T161: =('INPUT|Vols'!T325+'INPUT|Vols'!T163)*(1+'INPUT|UR'!$G$75) -> 0 | U161: =('INPUT|Vols'!U325+'INPUT|Vols'!U163)*(1+'INPUT|UR'!$G$75) -> 0 | V161: =('INPUT|Vols'!V325+'INPUT|Vols'!V163)*(1+'INPUT|UR'!$G$75) -> 0 | W161: =('INPUT|Vols'!W325+'INPUT|Vols'!W163)*(1+'INPUT|UR'!$G$75) -> 0 | X161: =('INPUT|Vols'!X325+'INPUT|Vols'!X163)*(1+'INPUT|UR'!$G$75) -> 0 | Y161: =('INPUT|Vols'!Y325+'INPUT|Vols'!Y163)*(1+'INPUT|UR'!$G$75) -> 0 | AA161: ='INPUT|Vols'!AA325+'INPUT|Vols'!AA163 -> 0 | AB161: ='INPUT|Vols'!AB325+'INPUT|Vols'!AB163 -> 0 | AC161: ='INPUT|Vols'!AC325+'INPUT|Vols'!AC163 -> 0 | AD161: ='INPUT|Vols'!AD325+'INPUT|Vols'!AD163 -> 0 | AE161: ='INPUT|Vols'!AE325+'INPUT|Vols'!AE163 -> 0 | AF161: ='INPUT|Vols'!AF325+'INPUT|Vols'!AF163 -> 0 | AG161: ='INPUT|Vols'!AG325+'INPUT|Vols'!AG163 -> 0 | AH161: ='INPUT|Vols'!AH325+'INPUT|Vols'!AH163 -> 0 | AI161: ='INPUT|Vols'!AI325+'INPUT|Vols'!AI163 -> 0 | AJ161: ='INPUT|Vols'!AJ325+'INPUT|Vols'!AJ163 -> 0 | AK161: ='INPUT|Vols'!AK325+'INPUT|Vols'!AK163 -> 0 | AL161: ='INPUT|Vols'!AL325+'INPUT|Vols'!AL163 -> 0
C162: Daily capacity | D162: peak kWh/day | N162: =('INPUT|Vols'!N326+'INPUT|Vols'!N164)*(1+'INPUT|UR'!$G$75) -> 0 | O162: =('INPUT|Vols'!O326+'INPUT|Vols'!O164)*(1+'INPUT|UR'!$G$75) -> 0 | P162: =('INPUT|Vols'!P326+'INPUT|Vols'!P164)*(1+'INPUT|UR'!$G$75) -> 0 | Q162: =('INPUT|Vols'!Q326+'INPUT|Vols'!Q164)*(1+'INPUT|UR'!$G$75) -> 0 | R162: =('INPUT|Vols'!R326+'INPUT|Vols'!R164)*(1+'INPUT|UR'!$G$75) -> 0 | S162: =('INPUT|Vols'!S326+'INPUT|Vols'!S164)*(1+'INPUT|UR'!$G$75) -> 0 | T162: =('INPUT|Vols'!T326+'INPUT|Vols'!T164)*(1+'INPUT|UR'!$G$75) -> 0 | U162: =('INPUT|Vols'!U326+'INPUT|Vols'!U164)*(1+'INPUT|UR'!$G$75) -> 0 | V162: =('INPUT|Vols'!V326+'INPUT|Vols'!V164)*(1+'INPUT|UR'!$G$75) -> 0 | W162: =('INPUT|Vols'!W326+'INPUT|Vols'!W164)*(1+'INPUT|UR'!$G$75) -> 0 | X162: =('INPUT|Vols'!X326+'INPUT|Vols'!X164)*(1+'INPUT|UR'!$G$75) -> 0 | Y162: =('INPUT|Vols'!Y326+'INPUT|Vols'!Y164)*(1+'INPUT|UR'!$G$75) -> 0 | AA162: ='INPUT|Vols'!AA326+'INPUT|Vols'!AA164 -> 0 | AB162: ='INPUT|Vols'!AB326+'INPUT|Vols'!AB164 -> 0 | AC162: ='INPUT|Vols'!AC326+'INPUT|Vols'!AC164 -> 0 | AD162: ='INPUT|Vols'!AD326+'INPUT|Vols'!AD164 -> 0 | AE162: ='INPUT|Vols'!AE326+'INPUT|Vols'!AE164 -> 0 | AF162: ='INPUT|Vols'!AF326+'INPUT|Vols'!AF164 -> 0 | AG162: ='INPUT|Vols'!AG326+'INPUT|Vols'!AG164 -> 0 | AH162: ='INPUT|Vols'!AH326+'INPUT|Vols'!AH164 -> 0 | AI162: ='INPUT|Vols'!AI326+'INPUT|Vols'!AI164 -> 0 | AJ162: ='INPUT|Vols'!AJ326+'INPUT|Vols'!AJ164 -> 0 | AK162: ='INPUT|Vols'!AK326+'INPUT|Vols'!AK164 -> 0 | AL162: ='INPUT|Vols'!AL326+'INPUT|Vols'!AL164 -> 0
C163: Within-day capacity | D163: peak kWh/day | N163: =('INPUT|Vols'!N327+'INPUT|Vols'!N165)*(1+'INPUT|UR'!$G$75) -> 0 | O163: =('INPUT|Vols'!O327+'INPUT|Vols'!O165)*(1+'INPUT|UR'!$G$75) -> 0 | P163: =('INPUT|Vols'!P327+'INPUT|Vols'!P165)*(1+'INPUT|UR'!$G$75) -> 0 | Q163: =('INPUT|Vols'!Q327+'INPUT|Vols'!Q165)*(1+'INPUT|UR'!$G$75) -> 0 | R163: =('INPUT|Vols'!R327+'INPUT|Vols'!R165)*(1+'INPUT|UR'!$G$75) -> 0 | S163: =('INPUT|Vols'!S327+'INPUT|Vols'!S165)*(1+'INPUT|UR'!$G$75) -> 0 | T163: =('INPUT|Vols'!T327+'INPUT|Vols'!T165)*(1+'INPUT|UR'!$G$75) -> 0 | U163: =('INPUT|Vols'!U327+'INPUT|Vols'!U165)*(1+'INPUT|UR'!$G$75) -> 0 | V163: =('INPUT|Vols'!V327+'INPUT|Vols'!V165)*(1+'INPUT|UR'!$G$75) -> 0 | W163: =('INPUT|Vols'!W327+'INPUT|Vols'!W165)*(1+'INPUT|UR'!$G$75) -> 0 | X163: =('INPUT|Vols'!X327+'INPUT|Vols'!X165)*(1+'INPUT|UR'!$G$75) -> 0 | Y163: =('INPUT|Vols'!Y327+'INPUT|Vols'!Y165)*(1+'INPUT|UR'!$G$75) -> 0 | AA163: ='INPUT|Vols'!AA327+'INPUT|Vols'!AA165 -> 0 | AB163: ='INPUT|Vols'!AB327+'INPUT|Vols'!AB165 -> 0 | AC163: ='INPUT|Vols'!AC327+'INPUT|Vols'!AC165 -> 0 | AD163: ='INPUT|Vols'!AD327+'INPUT|Vols'!AD165 -> 0 | AE163: ='INPUT|Vols'!AE327+'INPUT|Vols'!AE165 -> 0 | AF163: ='INPUT|Vols'!AF327+'INPUT|Vols'!AF165 -> 0 | AG163: ='INPUT|Vols'!AG327+'INPUT|Vols'!AG165 -> 0 | AH163: ='INPUT|Vols'!AH327+'INPUT|Vols'!AH165 -> 0 | AI163: ='INPUT|Vols'!AI327+'INPUT|Vols'!AI165 -> 0 | AJ163: ='INPUT|Vols'!AJ327+'INPUT|Vols'!AJ165 -> 0 | AK163: ='INPUT|Vols'!AK327+'INPUT|Vols'!AK165 -> 0 | AL163: ='INPUT|Vols'!AL327+'INPUT|Vols'!AL165 -> 0
C164: Actual interruptible capacity | D164: peak kWh/day | N164: =('INPUT|Vols'!N328+'INPUT|Vols'!N166)*(1+'INPUT|UR'!$G$75) -> 0 | O164: =('INPUT|Vols'!O328+'INPUT|Vols'!O166)*(1+'INPUT|UR'!$G$75) -> 0 | P164: =('INPUT|Vols'!P328+'INPUT|Vols'!P166)*(1+'INPUT|UR'!$G$75) -> 0 | Q164: =('INPUT|Vols'!Q328+'INPUT|Vols'!Q166)*(1+'INPUT|UR'!$G$75) -> 0 | R164: =('INPUT|Vols'!R328+'INPUT|Vols'!R166)*(1+'INPUT|UR'!$G$75) -> 0 | S164: =('INPUT|Vols'!S328+'INPUT|Vols'!S166)*(1+'INPUT|UR'!$G$75) -> 0 | T164: =('INPUT|Vols'!T328+'INPUT|Vols'!T166)*(1+'INPUT|UR'!$G$75) -> 0 | U164: =('INPUT|Vols'!U328+'INPUT|Vols'!U166)*(1+'INPUT|UR'!$G$75) -> 0 | V164: =('INPUT|Vols'!V328+'INPUT|Vols'!V166)*(1+'INPUT|UR'!$G$75) -> 0 | W164: =('INPUT|Vols'!W328+'INPUT|Vols'!W166)*(1+'INPUT|UR'!$G$75) -> 0 | X164: =('INPUT|Vols'!X328+'INPUT|Vols'!X166)*(1+'INPUT|UR'!$G$75) -> 0 | Y164: =('INPUT|Vols'!Y328+'INPUT|Vols'!Y166)*(1+'INPUT|UR'!$G$75) -> 0 | AA164: ='INPUT|Vols'!AA328+'INPUT|Vols'!AA166 -> 0 | AB164: ='INPUT|Vols'!AB328+'INPUT|Vols'!AB166 -> 0 | AC164: ='INPUT|Vols'!AC328+'INPUT|Vols'!AC166 -> 0 | AD164: ='INPUT|Vols'!AD328+'INPUT|Vols'!AD166 -> 0 | AE164: ='INPUT|Vols'!AE328+'INPUT|Vols'!AE166 -> 0 | AF164: ='INPUT|Vols'!AF328+'INPUT|Vols'!AF166 -> 0 | AG164: ='INPUT|Vols'!AG328+'INPUT|Vols'!AG166 -> 0 | AH164: ='INPUT|Vols'!AH328+'INPUT|Vols'!AH166 -> 0 | AI164: ='INPUT|Vols'!AI328+'INPUT|Vols'!AI166 -> 0 | AJ164: ='INPUT|Vols'!AJ328+'INPUT|Vols'!AJ166 -> 0 | AK164: ='INPUT|Vols'!AK328+'INPUT|Vols'!AK166 -> 0 | AL164: ='INPUT|Vols'!AL328+'INPUT|Vols'!AL166 -> 0
C166: ='INPUT|Vols'!C26 -> Shipper 18
C167: Annual capacity | D167: peak kWh/day | G167: =('INPUT|Vols'!G331+'INPUT|Vols'!G169)*(1+'INPUT|UR'!$G$75) -> 0 | AA167: ='INPUT|Vols'!AA331+'INPUT|Vols'!AA169 -> 0 | AB167: ='INPUT|Vols'!AB331+'INPUT|Vols'!AB169 -> 0 | AC167: ='INPUT|Vols'!AC331+'INPUT|Vols'!AC169 -> 0 | AD167: ='INPUT|Vols'!AD331+'INPUT|Vols'!AD169 -> 0 | AE167: ='INPUT|Vols'!AE331+'INPUT|Vols'!AE169 -> 0 | AF167: ='INPUT|Vols'!AF331+'INPUT|Vols'!AF169 -> 0 | AG167: ='INPUT|Vols'!AG331+'INPUT|Vols'!AG169 -> 0 | AH167: ='INPUT|Vols'!AH331+'INPUT|Vols'!AH169 -> 0 | AI167: ='INPUT|Vols'!AI331+'INPUT|Vols'!AI169 -> 0 | AJ167: ='INPUT|Vols'!AJ331+'INPUT|Vols'!AJ169 -> 0 | AK167: ='INPUT|Vols'!AK331+'INPUT|Vols'!AK169 -> 0 | AL167: ='INPUT|Vols'!AL331+'INPUT|Vols'!AL169 -> 0
C168: Quarterly capacity | D168: peak kWh/day | I168: =('INPUT|Vols'!I332+'INPUT|Vols'!I170)*(1+'INPUT|UR'!$G$75) -> 0 | J168: =('INPUT|Vols'!J332+'INPUT|Vols'!J170)*(1+'INPUT|UR'!$G$75) -> 0 | K168: =('INPUT|Vols'!K332+'INPUT|Vols'!K170)*(1+'INPUT|UR'!$G$75) -> 0 | L168: =('INPUT|Vols'!L332+'INPUT|Vols'!L170)*(1+'INPUT|UR'!$G$75) -> 0 | AA168: ='INPUT|Vols'!AA332+'INPUT|Vols'!AA170 -> 0 | AB168: ='INPUT|Vols'!AB332+'INPUT|Vols'!AB170 -> 0 | AC168: ='INPUT|Vols'!AC332+'INPUT|Vols'!AC170 -> 0 | AD168: ='INPUT|Vols'!AD332+'INPUT|Vols'!AD170 -> 0 | AE168: ='INPUT|Vols'!AE332+'INPUT|Vols'!AE170 -> 0 | AF168: ='INPUT|Vols'!AF332+'INPUT|Vols'!AF170 -> 0 | AG168: ='INPUT|Vols'!AG332+'INPUT|Vols'!AG170 -> 0 | AH168: ='INPUT|Vols'!AH332+'INPUT|Vols'!AH170 -> 0 | AI168: ='INPUT|Vols'!AI332+'INPUT|Vols'!AI170 -> 0 | AJ168: ='INPUT|Vols'!AJ332+'INPUT|Vols'!AJ170 -> 0 | AK168: ='INPUT|Vols'!AK332+'INPUT|Vols'!AK170 -> 0 | AL168: ='INPUT|Vols'!AL332+'INPUT|Vols'!AL170 -> 0
C169: Monthly capacity | D169: peak kWh/day | N169: =('INPUT|Vols'!N333+'INPUT|Vols'!N171)*(1+'INPUT|UR'!$G$75) -> 0 | O169: =('INPUT|Vols'!O333+'INPUT|Vols'!O171)*(1+'INPUT|UR'!$G$75) -> 0 | P169: =('INPUT|Vols'!P333+'INPUT|Vols'!P171)*(1+'INPUT|UR'!$G$75) -> 0 | Q169: =('INPUT|Vols'!Q333+'INPUT|Vols'!Q171)*(1+'INPUT|UR'!$G$75) -> 0 | R169: =('INPUT|Vols'!R333+'INPUT|Vols'!R171)*(1+'INPUT|UR'!$G$75) -> 0 | S169: =('INPUT|Vols'!S333+'INPUT|Vols'!S171)*(1+'INPUT|UR'!$G$75) -> 0 | T169: =('INPUT|Vols'!T333+'INPUT|Vols'!T171)*(1+'INPUT|UR'!$G$75) -> 0 | U169: =('INPUT|Vols'!U333+'INPUT|Vols'!U171)*(1+'INPUT|UR'!$G$75) -> 0 | V169: =('INPUT|Vols'!V333+'INPUT|Vols'!V171)*(1+'INPUT|UR'!$G$75) -> 0 | W169: =('INPUT|Vols'!W333+'INPUT|Vols'!W171)*(1+'INPUT|UR'!$G$75) -> 0 | X169: =('INPUT|Vols'!X333+'INPUT|Vols'!X171)*(1+'INPUT|UR'!$G$75) -> 0 | Y169: =('INPUT|Vols'!Y333+'INPUT|Vols'!Y171)*(1+'INPUT|UR'!$G$75) -> 0 | AA169: ='INPUT|Vols'!AA333+'INPUT|Vols'!AA171 -> 0 | AB169: ='INPUT|Vols'!AB333+'INPUT|Vols'!AB171 -> 0 | AC169: ='INPUT|Vols'!AC333+'INPUT|Vols'!AC171 -> 0 | AD169: ='INPUT|Vols'!AD333+'INPUT|Vols'!AD171 -> 0 | AE169: ='INPUT|Vols'!AE333+'INPUT|Vols'!AE171 -> 0 | AF169: ='INPUT|Vols'!AF333+'INPUT|Vols'!AF171 -> 0 | AG169: ='INPUT|Vols'!AG333+'INPUT|Vols'!AG171 -> 0 | AH169: ='INPUT|Vols'!AH333+'INPUT|Vols'!AH171 -> 0 | AI169: ='INPUT|Vols'!AI333+'INPUT|Vols'!AI171 -> 0 | AJ169: ='INPUT|Vols'!AJ333+'INPUT|Vols'!AJ171 -> 0 | AK169: ='INPUT|Vols'!AK333+'INPUT|Vols'!AK171 -> 0 | AL169: ='INPUT|Vols'!AL333+'INPUT|Vols'!AL171 -> 0
C170: Daily capacity | D170: peak kWh/day | N170: =('INPUT|Vols'!N334+'INPUT|Vols'!N172)*(1+'INPUT|UR'!$G$75) -> 0 | O170: =('INPUT|Vols'!O334+'INPUT|Vols'!O172)*(1+'INPUT|UR'!$G$75) -> 0 | P170: =('INPUT|Vols'!P334+'INPUT|Vols'!P172)*(1+'INPUT|UR'!$G$75) -> 0 | Q170: =('INPUT|Vols'!Q334+'INPUT|Vols'!Q172)*(1+'INPUT|UR'!$G$75) -> 0 | R170: =('INPUT|Vols'!R334+'INPUT|Vols'!R172)*(1+'INPUT|UR'!$G$75) -> 0 | S170: =('INPUT|Vols'!S334+'INPUT|Vols'!S172)*(1+'INPUT|UR'!$G$75) -> 0 | T170: =('INPUT|Vols'!T334+'INPUT|Vols'!T172)*(1+'INPUT|UR'!$G$75) -> 0 | U170: =('INPUT|Vols'!U334+'INPUT|Vols'!U172)*(1+'INPUT|UR'!$G$75) -> 0 | V170: =('INPUT|Vols'!V334+'INPUT|Vols'!V172)*(1+'INPUT|UR'!$G$75) -> 0 | W170: =('INPUT|Vols'!W334+'INPUT|Vols'!W172)*(1+'INPUT|UR'!$G$75) -> 0 | X170: =('INPUT|Vols'!X334+'INPUT|Vols'!X172)*(1+'INPUT|UR'!$G$75) -> 0 | Y170: =('INPUT|Vols'!Y334+'INPUT|Vols'!Y172)*(1+'INPUT|UR'!$G$75) -> 0 | AA170: ='INPUT|Vols'!AA334+'INPUT|Vols'!AA172 -> 0 | AB170: ='INPUT|Vols'!AB334+'INPUT|Vols'!AB172 -> 0 | AC170: ='INPUT|Vols'!AC334+'INPUT|Vols'!AC172 -> 0 | AD170: ='INPUT|Vols'!AD334+'INPUT|Vols'!AD172 -> 0 | AE170: ='INPUT|Vols'!AE334+'INPUT|Vols'!AE172 -> 0 | AF170: ='INPUT|Vols'!AF334+'INPUT|Vols'!AF172 -> 0 | AG170: ='INPUT|Vols'!AG334+'INPUT|Vols'!AG172 -> 0 | AH170: ='INPUT|Vols'!AH334+'INPUT|Vols'!AH172 -> 0 | AI170: ='INPUT|Vols'!AI334+'INPUT|Vols'!AI172 -> 0 | AJ170: ='INPUT|Vols'!AJ334+'INPUT|Vols'!AJ172 -> 0 | AK170: ='INPUT|Vols'!AK334+'INPUT|Vols'!AK172 -> 0 | AL170: ='INPUT|Vols'!AL334+'INPUT|Vols'!AL172 -> 0
C171: Within-day capacity | D171: peak kWh/day | N171: =('INPUT|Vols'!N335+'INPUT|Vols'!N173)*(1+'INPUT|UR'!$G$75) -> 0 | O171: =('INPUT|Vols'!O335+'INPUT|Vols'!O173)*(1+'INPUT|UR'!$G$75) -> 0 | P171: =('INPUT|Vols'!P335+'INPUT|Vols'!P173)*(1+'INPUT|UR'!$G$75) -> 0 | Q171: =('INPUT|Vols'!Q335+'INPUT|Vols'!Q173)*(1+'INPUT|UR'!$G$75) -> 0 | R171: =('INPUT|Vols'!R335+'INPUT|Vols'!R173)*(1+'INPUT|UR'!$G$75) -> 0 | S171: =('INPUT|Vols'!S335+'INPUT|Vols'!S173)*(1+'INPUT|UR'!$G$75) -> 0 | T171: =('INPUT|Vols'!T335+'INPUT|Vols'!T173)*(1+'INPUT|UR'!$G$75) -> 0 | U171: =('INPUT|Vols'!U335+'INPUT|Vols'!U173)*(1+'INPUT|UR'!$G$75) -> 0 | V171: =('INPUT|Vols'!V335+'INPUT|Vols'!V173)*(1+'INPUT|UR'!$G$75) -> 0 | W171: =('INPUT|Vols'!W335+'INPUT|Vols'!W173)*(1+'INPUT|UR'!$G$75) -> 0 | X171: =('INPUT|Vols'!X335+'INPUT|Vols'!X173)*(1+'INPUT|UR'!$G$75) -> 0 | Y171: =('INPUT|Vols'!Y335+'INPUT|Vols'!Y173)*(1+'INPUT|UR'!$G$75) -> 0 | AA171: ='INPUT|Vols'!AA335+'INPUT|Vols'!AA173 -> 0 | AB171: ='INPUT|Vols'!AB335+'INPUT|Vols'!AB173 -> 0 | AC171: ='INPUT|Vols'!AC335+'INPUT|Vols'!AC173 -> 0 | AD171: ='INPUT|Vols'!AD335+'INPUT|Vols'!AD173 -> 0 | AE171: ='INPUT|Vols'!AE335+'INPUT|Vols'!AE173 -> 0 | AF171: ='INPUT|Vols'!AF335+'INPUT|Vols'!AF173 -> 0 | AG171: ='INPUT|Vols'!AG335+'INPUT|Vols'!AG173 -> 0 | AH171: ='INPUT|Vols'!AH335+'INPUT|Vols'!AH173 -> 0 | AI171: ='INPUT|Vols'!AI335+'INPUT|Vols'!AI173 -> 0 | AJ171: ='INPUT|Vols'!AJ335+'INPUT|Vols'!AJ173 -> 0 | AK171: ='INPUT|Vols'!AK335+'INPUT|Vols'!AK173 -> 0 | AL171: ='INPUT|Vols'!AL335+'INPUT|Vols'!AL173 -> 0
C172: Actual interruptible capacity | D172: peak kWh/day | N172: =('INPUT|Vols'!N336+'INPUT|Vols'!N174)*(1+'INPUT|UR'!$G$75) -> 0 | O172: =('INPUT|Vols'!O336+'INPUT|Vols'!O174)*(1+'INPUT|UR'!$G$75) -> 0 | P172: =('INPUT|Vols'!P336+'INPUT|Vols'!P174)*(1+'INPUT|UR'!$G$75) -> 0 | Q172: =('INPUT|Vols'!Q336+'INPUT|Vols'!Q174)*(1+'INPUT|UR'!$G$75) -> 0 | R172: =('INPUT|Vols'!R336+'INPUT|Vols'!R174)*(1+'INPUT|UR'!$G$75) -> 0 | S172: =('INPUT|Vols'!S336+'INPUT|Vols'!S174)*(1+'INPUT|UR'!$G$75) -> 0 | T172: =('INPUT|Vols'!T336+'INPUT|Vols'!T174)*(1+'INPUT|UR'!$G$75) -> 0 | U172: =('INPUT|Vols'!U336+'INPUT|Vols'!U174)*(1+'INPUT|UR'!$G$75) -> 0 | V172: =('INPUT|Vols'!V336+'INPUT|Vols'!V174)*(1+'INPUT|UR'!$G$75) -> 0 | W172: =('INPUT|Vols'!W336+'INPUT|Vols'!W174)*(1+'INPUT|UR'!$G$75) -> 0 | X172: =('INPUT|Vols'!X336+'INPUT|Vols'!X174)*(1+'INPUT|UR'!$G$75) -> 0 | Y172: =('INPUT|Vols'!Y336+'INPUT|Vols'!Y174)*(1+'INPUT|UR'!$G$75) -> 0 | AA172: ='INPUT|Vols'!AA336+'INPUT|Vols'!AA174 -> 0 | AB172: ='INPUT|Vols'!AB336+'INPUT|Vols'!AB174 -> 0 | AC172: ='INPUT|Vols'!AC336+'INPUT|Vols'!AC174 -> 0 | AD172: ='INPUT|Vols'!AD336+'INPUT|Vols'!AD174 -> 0 | AE172: ='INPUT|Vols'!AE336+'INPUT|Vols'!AE174 -> 0 | AF172: ='INPUT|Vols'!AF336+'INPUT|Vols'!AF174 -> 0 | AG172: ='INPUT|Vols'!AG336+'INPUT|Vols'!AG174 -> 0 | AH172: ='INPUT|Vols'!AH336+'INPUT|Vols'!AH174 -> 0 | AI172: ='INPUT|Vols'!AI336+'INPUT|Vols'!AI174 -> 0 | AJ172: ='INPUT|Vols'!AJ336+'INPUT|Vols'!AJ174 -> 0 | AK172: ='INPUT|Vols'!AK336+'INPUT|Vols'!AK174 -> 0 | AL172: ='INPUT|Vols'!AL336+'INPUT|Vols'!AL174 -> 0
C174: ='INPUT|Vols'!C27 -> Shipper 19
C175: Annual capacity | D175: peak kWh/day | G175: =('INPUT|Vols'!G339+'INPUT|Vols'!G177)*(1+'INPUT|UR'!$G$75) -> 0 | AA175: ='INPUT|Vols'!AA339+'INPUT|Vols'!AA177 -> 0 | AB175: ='INPUT|Vols'!AB339+'INPUT|Vols'!AB177 -> 0 | AC175: ='INPUT|Vols'!AC339+'INPUT|Vols'!AC177 -> 0 | AD175: ='INPUT|Vols'!AD339+'INPUT|Vols'!AD177 -> 0 | AE175: ='INPUT|Vols'!AE339+'INPUT|Vols'!AE177 -> 0 | AF175: ='INPUT|Vols'!AF339+'INPUT|Vols'!AF177 -> 0 | AG175: ='INPUT|Vols'!AG339+'INPUT|Vols'!AG177 -> 0 | AH175: ='INPUT|Vols'!AH339+'INPUT|Vols'!AH177 -> 0 | AI175: ='INPUT|Vols'!AI339+'INPUT|Vols'!AI177 -> 0 | AJ175: ='INPUT|Vols'!AJ339+'INPUT|Vols'!AJ177 -> 0 | AK175: ='INPUT|Vols'!AK339+'INPUT|Vols'!AK177 -> 0 | AL175: ='INPUT|Vols'!AL339+'INPUT|Vols'!AL177 -> 0
C176: Quarterly capacity | D176: peak kWh/day | I176: =('INPUT|Vols'!I340+'INPUT|Vols'!I178)*(1+'INPUT|UR'!$G$75) -> 0 | J176: =('INPUT|Vols'!J340+'INPUT|Vols'!J178)*(1+'INPUT|UR'!$G$75) -> 0 | K176: =('INPUT|Vols'!K340+'INPUT|Vols'!K178)*(1+'INPUT|UR'!$G$75) -> 0 | L176: =('INPUT|Vols'!L340+'INPUT|Vols'!L178)*(1+'INPUT|UR'!$G$75) -> 0 | AA176: ='INPUT|Vols'!AA340+'INPUT|Vols'!AA178 -> 0 | AB176: ='INPUT|Vols'!AB340+'INPUT|Vols'!AB178 -> 0 | AC176: ='INPUT|Vols'!AC340+'INPUT|Vols'!AC178 -> 0 | AD176: ='INPUT|Vols'!AD340+'INPUT|Vols'!AD178 -> 0 | AE176: ='INPUT|Vols'!AE340+'INPUT|Vols'!AE178 -> 0 | AF176: ='INPUT|Vols'!AF340+'INPUT|Vols'!AF178 -> 0 | AG176: ='INPUT|Vols'!AG340+'INPUT|Vols'!AG178 -> 0 | AH176: ='INPUT|Vols'!AH340+'INPUT|Vols'!AH178 -> 0 | AI176: ='INPUT|Vols'!AI340+'INPUT|Vols'!AI178 -> 0 | AJ176: ='INPUT|Vols'!AJ340+'INPUT|Vols'!AJ178 -> 0 | AK176: ='INPUT|Vols'!AK340+'INPUT|Vols'!AK178 -> 0 | AL176: ='INPUT|Vols'!AL340+'INPUT|Vols'!AL178 -> 0
C177: Monthly capacity | D177: peak kWh/day | N177: =('INPUT|Vols'!N341+'INPUT|Vols'!N179)*(1+'INPUT|UR'!$G$75) -> 0 | O177: =('INPUT|Vols'!O341+'INPUT|Vols'!O179)*(1+'INPUT|UR'!$G$75) -> 0 | P177: =('INPUT|Vols'!P341+'INPUT|Vols'!P179)*(1+'INPUT|UR'!$G$75) -> 0 | Q177: =('INPUT|Vols'!Q341+'INPUT|Vols'!Q179)*(1+'INPUT|UR'!$G$75) -> 0 | R177: =('INPUT|Vols'!R341+'INPUT|Vols'!R179)*(1+'INPUT|UR'!$G$75) -> 0 | S177: =('INPUT|Vols'!S341+'INPUT|Vols'!S179)*(1+'INPUT|UR'!$G$75) -> 0 | T177: =('INPUT|Vols'!T341+'INPUT|Vols'!T179)*(1+'INPUT|UR'!$G$75) -> 0 | U177: =('INPUT|Vols'!U341+'INPUT|Vols'!U179)*(1+'INPUT|UR'!$G$75) -> 0 | V177: =('INPUT|Vols'!V341+'INPUT|Vols'!V179)*(1+'INPUT|UR'!$G$75) -> 0 | W177: =('INPUT|Vols'!W341+'INPUT|Vols'!W179)*(1+'INPUT|UR'!$G$75) -> 0 | X177: =('INPUT|Vols'!X341+'INPUT|Vols'!X179)*(1+'INPUT|UR'!$G$75) -> 0 | Y177: =('INPUT|Vols'!Y341+'INPUT|Vols'!Y179)*(1+'INPUT|UR'!$G$75) -> 0 | AA177: ='INPUT|Vols'!AA341+'INPUT|Vols'!AA179 -> 0 | AB177: ='INPUT|Vols'!AB341+'INPUT|Vols'!AB179 -> 0 | AC177: ='INPUT|Vols'!AC341+'INPUT|Vols'!AC179 -> 0 | AD177: ='INPUT|Vols'!AD341+'INPUT|Vols'!AD179 -> 0 | AE177: ='INPUT|Vols'!AE341+'INPUT|Vols'!AE179 -> 0 | AF177: ='INPUT|Vols'!AF341+'INPUT|Vols'!AF179 -> 0 | AG177: ='INPUT|Vols'!AG341+'INPUT|Vols'!AG179 -> 0 | AH177: ='INPUT|Vols'!AH341+'INPUT|Vols'!AH179 -> 0 | AI177: ='INPUT|Vols'!AI341+'INPUT|Vols'!AI179 -> 0 | AJ177: ='INPUT|Vols'!AJ341+'INPUT|Vols'!AJ179 -> 0 | AK177: ='INPUT|Vols'!AK341+'INPUT|Vols'!AK179 -> 0 | AL177: ='INPUT|Vols'!AL341+'INPUT|Vols'!AL179 -> 0
C178: Daily capacity | D178: peak kWh/day | N178: =('INPUT|Vols'!N342+'INPUT|Vols'!N180)*(1+'INPUT|UR'!$G$75) -> 0 | O178: =('INPUT|Vols'!O342+'INPUT|Vols'!O180)*(1+'INPUT|UR'!$G$75) -> 0 | P178: =('INPUT|Vols'!P342+'INPUT|Vols'!P180)*(1+'INPUT|UR'!$G$75) -> 0 | Q178: =('INPUT|Vols'!Q342+'INPUT|Vols'!Q180)*(1+'INPUT|UR'!$G$75) -> 0 | R178: =('INPUT|Vols'!R342+'INPUT|Vols'!R180)*(1+'INPUT|UR'!$G$75) -> 0 | S178: =('INPUT|Vols'!S342+'INPUT|Vols'!S180)*(1+'INPUT|UR'!$G$75) -> 0 | T178: =('INPUT|Vols'!T342+'INPUT|Vols'!T180)*(1+'INPUT|UR'!$G$75) -> 0 | U178: =('INPUT|Vols'!U342+'INPUT|Vols'!U180)*(1+'INPUT|UR'!$G$75) -> 0 | V178: =('INPUT|Vols'!V342+'INPUT|Vols'!V180)*(1+'INPUT|UR'!$G$75) -> 0 | W178: =('INPUT|Vols'!W342+'INPUT|Vols'!W180)*(1+'INPUT|UR'!$G$75) -> 0 | X178: =('INPUT|Vols'!X342+'INPUT|Vols'!X180)*(1+'INPUT|UR'!$G$75) -> 0 | Y178: =('INPUT|Vols'!Y342+'INPUT|Vols'!Y180)*(1+'INPUT|UR'!$G$75) -> 0 | AA178: ='INPUT|Vols'!AA342+'INPUT|Vols'!AA180 -> 0 | AB178: ='INPUT|Vols'!AB342+'INPUT|Vols'!AB180 -> 0 | AC178: ='INPUT|Vols'!AC342+'INPUT|Vols'!AC180 -> 0 | AD178: ='INPUT|Vols'!AD342+'INPUT|Vols'!AD180 -> 0 | AE178: ='INPUT|Vols'!AE342+'INPUT|Vols'!AE180 -> 0 | AF178: ='INPUT|Vols'!AF342+'INPUT|Vols'!AF180 -> 0 | AG178: ='INPUT|Vols'!AG342+'INPUT|Vols'!AG180 -> 0 | AH178: ='INPUT|Vols'!AH342+'INPUT|Vols'!AH180 -> 0 | AI178: ='INPUT|Vols'!AI342+'INPUT|Vols'!AI180 -> 0 | AJ178: ='INPUT|Vols'!AJ342+'INPUT|Vols'!AJ180 -> 0 | AK178: ='INPUT|Vols'!AK342+'INPUT|Vols'!AK180 -> 0 | AL178: ='INPUT|Vols'!AL342+'INPUT|Vols'!AL180 -> 0
C179: Within-day capacity | D179: peak kWh/day | N179: =('INPUT|Vols'!N343+'INPUT|Vols'!N181)*(1+'INPUT|UR'!$G$75) -> 0 | O179: =('INPUT|Vols'!O343+'INPUT|Vols'!O181)*(1+'INPUT|UR'!$G$75) -> 0 | P179: =('INPUT|Vols'!P343+'INPUT|Vols'!P181)*(1+'INPUT|UR'!$G$75) -> 0 | Q179: =('INPUT|Vols'!Q343+'INPUT|Vols'!Q181)*(1+'INPUT|UR'!$G$75) -> 0 | R179: =('INPUT|Vols'!R343+'INPUT|Vols'!R181)*(1+'INPUT|UR'!$G$75) -> 0 | S179: =('INPUT|Vols'!S343+'INPUT|Vols'!S181)*(1+'INPUT|UR'!$G$75) -> 0 | T179: =('INPUT|Vols'!T343+'INPUT|Vols'!T181)*(1+'INPUT|UR'!$G$75) -> 0 | U179: =('INPUT|Vols'!U343+'INPUT|Vols'!U181)*(1+'INPUT|UR'!$G$75) -> 0 | V179: =('INPUT|Vols'!V343+'INPUT|Vols'!V181)*(1+'INPUT|UR'!$G$75) -> 0 | W179: =('INPUT|Vols'!W343+'INPUT|Vols'!W181)*(1+'INPUT|UR'!$G$75) -> 0 | X179: =('INPUT|Vols'!X343+'INPUT|Vols'!X181)*(1+'INPUT|UR'!$G$75) -> 0 | Y179: =('INPUT|Vols'!Y343+'INPUT|Vols'!Y181)*(1+'INPUT|UR'!$G$75) -> 0 | AA179: ='INPUT|Vols'!AA343+'INPUT|Vols'!AA181 -> 0 | AB179: ='INPUT|Vols'!AB343+'INPUT|Vols'!AB181 -> 0 | AC179: ='INPUT|Vols'!AC343+'INPUT|Vols'!AC181 -> 0 | AD179: ='INPUT|Vols'!AD343+'INPUT|Vols'!AD181 -> 0 | AE179: ='INPUT|Vols'!AE343+'INPUT|Vols'!AE181 -> 0 | AF179: ='INPUT|Vols'!AF343+'INPUT|Vols'!AF181 -> 0 | AG179: ='INPUT|Vols'!AG343+'INPUT|Vols'!AG181 -> 0 | AH179: ='INPUT|Vols'!AH343+'INPUT|Vols'!AH181 -> 0 | AI179: ='INPUT|Vols'!AI343+'INPUT|Vols'!AI181 -> 0 | AJ179: ='INPUT|Vols'!AJ343+'INPUT|Vols'!AJ181 -> 0 | AK179: ='INPUT|Vols'!AK343+'INPUT|Vols'!AK181 -> 0 | AL179: ='INPUT|Vols'!AL343+'INPUT|Vols'!AL181 -> 0
C180: Actual interruptible capacity | D180: peak kWh/day | N180: =('INPUT|Vols'!N344+'INPUT|Vols'!N182)*(1+'INPUT|UR'!$G$75) -> 0 | O180: =('INPUT|Vols'!O344+'INPUT|Vols'!O182)*(1+'INPUT|UR'!$G$75) -> 0 | P180: =('INPUT|Vols'!P344+'INPUT|Vols'!P182)*(1+'INPUT|UR'!$G$75) -> 0 | Q180: =('INPUT|Vols'!Q344+'INPUT|Vols'!Q182)*(1+'INPUT|UR'!$G$75) -> 0 | R180: =('INPUT|Vols'!R344+'INPUT|Vols'!R182)*(1+'INPUT|UR'!$G$75) -> 0 | S180: =('INPUT|Vols'!S344+'INPUT|Vols'!S182)*(1+'INPUT|UR'!$G$75) -> 0 | T180: =('INPUT|Vols'!T344+'INPUT|Vols'!T182)*(1+'INPUT|UR'!$G$75) -> 0 | U180: =('INPUT|Vols'!U344+'INPUT|Vols'!U182)*(1+'INPUT|UR'!$G$75) -> 0 | V180: =('INPUT|Vols'!V344+'INPUT|Vols'!V182)*(1+'INPUT|UR'!$G$75) -> 0 | W180: =('INPUT|Vols'!W344+'INPUT|Vols'!W182)*(1+'INPUT|UR'!$G$75) -> 0 | X180: =('INPUT|Vols'!X344+'INPUT|Vols'!X182)*(1+'INPUT|UR'!$G$75) -> 0 | Y180: =('INPUT|Vols'!Y344+'INPUT|Vols'!Y182)*(1+'INPUT|UR'!$G$75) -> 0 | AA180: ='INPUT|Vols'!AA344+'INPUT|Vols'!AA182 -> 0 | AB180: ='INPUT|Vols'!AB344+'INPUT|Vols'!AB182 -> 0 | AC180: ='INPUT|Vols'!AC344+'INPUT|Vols'!AC182 -> 0 | AD180: ='INPUT|Vols'!AD344+'INPUT|Vols'!AD182 -> 0 | AE180: ='INPUT|Vols'!AE344+'INPUT|Vols'!AE182 -> 0 | AF180: ='INPUT|Vols'!AF344+'INPUT|Vols'!AF182 -> 0 | AG180: ='INPUT|Vols'!AG344+'INPUT|Vols'!AG182 -> 0 | AH180: ='INPUT|Vols'!AH344+'INPUT|Vols'!AH182 -> 0 | AI180: ='INPUT|Vols'!AI344+'INPUT|Vols'!AI182 -> 0 | AJ180: ='INPUT|Vols'!AJ344+'INPUT|Vols'!AJ182 -> 0 | AK180: ='INPUT|Vols'!AK344+'INPUT|Vols'!AK182 -> 0 | AL180: ='INPUT|Vols'!AL344+'INPUT|Vols'!AL182 -> 0
C182: ='INPUT|Vols'!C28 -> Shipper 20
C183: Annual capacity | D183: peak kWh/day | G183: =('INPUT|Vols'!G347+'INPUT|Vols'!G185)*(1+'INPUT|UR'!$G$75) -> 0 | AA183: ='INPUT|Vols'!AA347+'INPUT|Vols'!AA185 -> 0 | AB183: ='INPUT|Vols'!AB347+'INPUT|Vols'!AB185 -> 0 | AC183: ='INPUT|Vols'!AC347+'INPUT|Vols'!AC185 -> 0 | AD183: ='INPUT|Vols'!AD347+'INPUT|Vols'!AD185 -> 0 | AE183: ='INPUT|Vols'!AE347+'INPUT|Vols'!AE185 -> 0 | AF183: ='INPUT|Vols'!AF347+'INPUT|Vols'!AF185 -> 0 | AG183: ='INPUT|Vols'!AG347+'INPUT|Vols'!AG185 -> 0 | AH183: ='INPUT|Vols'!AH347+'INPUT|Vols'!AH185 -> 0 | AI183: ='INPUT|Vols'!AI347+'INPUT|Vols'!AI185 -> 0 | AJ183: ='INPUT|Vols'!AJ347+'INPUT|Vols'!AJ185 -> 0 | AK183: ='INPUT|Vols'!AK347+'INPUT|Vols'!AK185 -> 0 | AL183: ='INPUT|Vols'!AL347+'INPUT|Vols'!AL185 -> 0
C184: Quarterly capacity | D184: peak kWh/day | I184: =('INPUT|Vols'!I348+'INPUT|Vols'!I186)*(1+'INPUT|UR'!$G$75) -> 0 | J184: =('INPUT|Vols'!J348+'INPUT|Vols'!J186)*(1+'INPUT|UR'!$G$75) -> 0 | K184: =('INPUT|Vols'!K348+'INPUT|Vols'!K186)*(1+'INPUT|UR'!$G$75) -> 0 | L184: =('INPUT|Vols'!L348+'INPUT|Vols'!L186)*(1+'INPUT|UR'!$G$75) -> 0 | AA184: ='INPUT|Vols'!AA348+'INPUT|Vols'!AA186 -> 0 | AB184: ='INPUT|Vols'!AB348+'INPUT|Vols'!AB186 -> 0 | AC184: ='INPUT|Vols'!AC348+'INPUT|Vols'!AC186 -> 0 | AD184: ='INPUT|Vols'!AD348+'INPUT|Vols'!AD186 -> 0 | AE184: ='INPUT|Vols'!AE348+'INPUT|Vols'!AE186 -> 0 | AF184: ='INPUT|Vols'!AF348+'INPUT|Vols'!AF186 -> 0 | AG184: ='INPUT|Vols'!AG348+'INPUT|Vols'!AG186 -> 0 | AH184: ='INPUT|Vols'!AH348+'INPUT|Vols'!AH186 -> 0 | AI184: ='INPUT|Vols'!AI348+'INPUT|Vols'!AI186 -> 0 | AJ184: ='INPUT|Vols'!AJ348+'INPUT|Vols'!AJ186 -> 0 | AK184: ='INPUT|Vols'!AK348+'INPUT|Vols'!AK186 -> 0 | AL184: ='INPUT|Vols'!AL348+'INPUT|Vols'!AL186 -> 0
C185: Monthly capacity | D185: peak kWh/day | N185: =('INPUT|Vols'!N349+'INPUT|Vols'!N187)*(1+'INPUT|UR'!$G$75) -> 0 | O185: =('INPUT|Vols'!O349+'INPUT|Vols'!O187)*(1+'INPUT|UR'!$G$75) -> 0 | P185: =('INPUT|Vols'!P349+'INPUT|Vols'!P187)*(1+'INPUT|UR'!$G$75) -> 0 | Q185: =('INPUT|Vols'!Q349+'INPUT|Vols'!Q187)*(1+'INPUT|UR'!$G$75) -> 0 | R185: =('INPUT|Vols'!R349+'INPUT|Vols'!R187)*(1+'INPUT|UR'!$G$75) -> 0 | S185: =('INPUT|Vols'!S349+'INPUT|Vols'!S187)*(1+'INPUT|UR'!$G$75) -> 0 | T185: =('INPUT|Vols'!T349+'INPUT|Vols'!T187)*(1+'INPUT|UR'!$G$75) -> 0 | U185: =('INPUT|Vols'!U349+'INPUT|Vols'!U187)*(1+'INPUT|UR'!$G$75) -> 0 | V185: =('INPUT|Vols'!V349+'INPUT|Vols'!V187)*(1+'INPUT|UR'!$G$75) -> 0 | W185: =('INPUT|Vols'!W349+'INPUT|Vols'!W187)*(1+'INPUT|UR'!$G$75) -> 0 | X185: =('INPUT|Vols'!X349+'INPUT|Vols'!X187)*(1+'INPUT|UR'!$G$75) -> 0 | Y185: =('INPUT|Vols'!Y349+'INPUT|Vols'!Y187)*(1+'INPUT|UR'!$G$75) -> 0 | AA185: ='INPUT|Vols'!AA349+'INPUT|Vols'!AA187 -> 0 | AB185: ='INPUT|Vols'!AB349+'INPUT|Vols'!AB187 -> 0 | AC185: ='INPUT|Vols'!AC349+'INPUT|Vols'!AC187 -> 0 | AD185: ='INPUT|Vols'!AD349+'INPUT|Vols'!AD187 -> 0 | AE185: ='INPUT|Vols'!AE349+'INPUT|Vols'!AE187 -> 0 | AF185: ='INPUT|Vols'!AF349+'INPUT|Vols'!AF187 -> 0 | AG185: ='INPUT|Vols'!AG349+'INPUT|Vols'!AG187 -> 0 | AH185: ='INPUT|Vols'!AH349+'INPUT|Vols'!AH187 -> 0 | AI185: ='INPUT|Vols'!AI349+'INPUT|Vols'!AI187 -> 0 | AJ185: ='INPUT|Vols'!AJ349+'INPUT|Vols'!AJ187 -> 0 | AK185: ='INPUT|Vols'!AK349+'INPUT|Vols'!AK187 -> 0 | AL185: ='INPUT|Vols'!AL349+'INPUT|Vols'!AL187 -> 0
C186: Daily capacity | D186: peak kWh/day | N186: =('INPUT|Vols'!N350+'INPUT|Vols'!N188)*(1+'INPUT|UR'!$G$75) -> 0 | O186: =('INPUT|Vols'!O350+'INPUT|Vols'!O188)*(1+'INPUT|UR'!$G$75) -> 0 | P186: =('INPUT|Vols'!P350+'INPUT|Vols'!P188)*(1+'INPUT|UR'!$G$75) -> 0 | Q186: =('INPUT|Vols'!Q350+'INPUT|Vols'!Q188)*(1+'INPUT|UR'!$G$75) -> 0 | R186: =('INPUT|Vols'!R350+'INPUT|Vols'!R188)*(1+'INPUT|UR'!$G$75) -> 0 | S186: =('INPUT|Vols'!S350+'INPUT|Vols'!S188)*(1+'INPUT|UR'!$G$75) -> 0 | T186: =('INPUT|Vols'!T350+'INPUT|Vols'!T188)*(1+'INPUT|UR'!$G$75) -> 0 | U186: =('INPUT|Vols'!U350+'INPUT|Vols'!U188)*(1+'INPUT|UR'!$G$75) -> 0 | V186: =('INPUT|Vols'!V350+'INPUT|Vols'!V188)*(1+'INPUT|UR'!$G$75) -> 0 | W186: =('INPUT|Vols'!W350+'INPUT|Vols'!W188)*(1+'INPUT|UR'!$G$75) -> 0 | X186: =('INPUT|Vols'!X350+'INPUT|Vols'!X188)*(1+'INPUT|UR'!$G$75) -> 0 | Y186: =('INPUT|Vols'!Y350+'INPUT|Vols'!Y188)*(1+'INPUT|UR'!$G$75) -> 0 | AA186: ='INPUT|Vols'!AA350+'INPUT|Vols'!AA188 -> 0 | AB186: ='INPUT|Vols'!AB350+'INPUT|Vols'!AB188 -> 0 | AC186: ='INPUT|Vols'!AC350+'INPUT|Vols'!AC188 -> 0 | AD186: ='INPUT|Vols'!AD350+'INPUT|Vols'!AD188 -> 0 | AE186: ='INPUT|Vols'!AE350+'INPUT|Vols'!AE188 -> 0 | AF186: ='INPUT|Vols'!AF350+'INPUT|Vols'!AF188 -> 0 | AG186: ='INPUT|Vols'!AG350+'INPUT|Vols'!AG188 -> 0 | AH186: ='INPUT|Vols'!AH350+'INPUT|Vols'!AH188 -> 0 | AI186: ='INPUT|Vols'!AI350+'INPUT|Vols'!AI188 -> 0 | AJ186: ='INPUT|Vols'!AJ350+'INPUT|Vols'!AJ188 -> 0 | AK186: ='INPUT|Vols'!AK350+'INPUT|Vols'!AK188 -> 0 | AL186: ='INPUT|Vols'!AL350+'INPUT|Vols'!AL188 -> 0
C187: Within-day capacity | D187: peak kWh/day | N187: =('INPUT|Vols'!N351+'INPUT|Vols'!N189)*(1+'INPUT|UR'!$G$75) -> 0 | O187: =('INPUT|Vols'!O351+'INPUT|Vols'!O189)*(1+'INPUT|UR'!$G$75) -> 0 | P187: =('INPUT|Vols'!P351+'INPUT|Vols'!P189)*(1+'INPUT|UR'!$G$75) -> 0 | Q187: =('INPUT|Vols'!Q351+'INPUT|Vols'!Q189)*(1+'INPUT|UR'!$G$75) -> 0 | R187: =('INPUT|Vols'!R351+'INPUT|Vols'!R189)*(1+'INPUT|UR'!$G$75) -> 0 | S187: =('INPUT|Vols'!S351+'INPUT|Vols'!S189)*(1+'INPUT|UR'!$G$75) -> 0 | T187: =('INPUT|Vols'!T351+'INPUT|Vols'!T189)*(1+'INPUT|UR'!$G$75) -> 0 | U187: =('INPUT|Vols'!U351+'INPUT|Vols'!U189)*(1+'INPUT|UR'!$G$75) -> 0 | V187: =('INPUT|Vols'!V351+'INPUT|Vols'!V189)*(1+'INPUT|UR'!$G$75) -> 0 | W187: =('INPUT|Vols'!W351+'INPUT|Vols'!W189)*(1+'INPUT|UR'!$G$75) -> 0 | X187: =('INPUT|Vols'!X351+'INPUT|Vols'!X189)*(1+'INPUT|UR'!$G$75) -> 0 | Y187: =('INPUT|Vols'!Y351+'INPUT|Vols'!Y189)*(1+'INPUT|UR'!$G$75) -> 0 | AA187: ='INPUT|Vols'!AA351+'INPUT|Vols'!AA189 -> 0 | AB187: ='INPUT|Vols'!AB351+'INPUT|Vols'!AB189 -> 0 | AC187: ='INPUT|Vols'!AC351+'INPUT|Vols'!AC189 -> 0 | AD187: ='INPUT|Vols'!AD351+'INPUT|Vols'!AD189 -> 0 | AE187: ='INPUT|Vols'!AE351+'INPUT|Vols'!AE189 -> 0 | AF187: ='INPUT|Vols'!AF351+'INPUT|Vols'!AF189 -> 0 | AG187: ='INPUT|Vols'!AG351+'INPUT|Vols'!AG189 -> 0 | AH187: ='INPUT|Vols'!AH351+'INPUT|Vols'!AH189 -> 0 | AI187: ='INPUT|Vols'!AI351+'INPUT|Vols'!AI189 -> 0 | AJ187: ='INPUT|Vols'!AJ351+'INPUT|Vols'!AJ189 -> 0 | AK187: ='INPUT|Vols'!AK351+'INPUT|Vols'!AK189 -> 0 | AL187: ='INPUT|Vols'!AL351+'INPUT|Vols'!AL189 -> 0
C188: Actual interruptible capacity | D188: peak kWh/day | N188: =('INPUT|Vols'!N352+'INPUT|Vols'!N190)*(1+'INPUT|UR'!$G$75) -> 0 | O188: =('INPUT|Vols'!O352+'INPUT|Vols'!O190)*(1+'INPUT|UR'!$G$75) -> 0 | P188: =('INPUT|Vols'!P352+'INPUT|Vols'!P190)*(1+'INPUT|UR'!$G$75) -> 0 | Q188: =('INPUT|Vols'!Q352+'INPUT|Vols'!Q190)*(1+'INPUT|UR'!$G$75) -> 0 | R188: =('INPUT|Vols'!R352+'INPUT|Vols'!R190)*(1+'INPUT|UR'!$G$75) -> 0 | S188: =('INPUT|Vols'!S352+'INPUT|Vols'!S190)*(1+'INPUT|UR'!$G$75) -> 0 | T188: =('INPUT|Vols'!T352+'INPUT|Vols'!T190)*(1+'INPUT|UR'!$G$75) -> 0 | U188: =('INPUT|Vols'!U352+'INPUT|Vols'!U190)*(1+'INPUT|UR'!$G$75) -> 0 | V188: =('INPUT|Vols'!V352+'INPUT|Vols'!V190)*(1+'INPUT|UR'!$G$75) -> 0 | W188: =('INPUT|Vols'!W352+'INPUT|Vols'!W190)*(1+'INPUT|UR'!$G$75) -> 0 | X188: =('INPUT|Vols'!X352+'INPUT|Vols'!X190)*(1+'INPUT|UR'!$G$75) -> 0 | Y188: =('INPUT|Vols'!Y352+'INPUT|Vols'!Y190)*(1+'INPUT|UR'!$G$75) -> 0 | AA188: ='INPUT|Vols'!AA352+'INPUT|Vols'!AA190 -> 0 | AB188: ='INPUT|Vols'!AB352+'INPUT|Vols'!AB190 -> 0 | AC188: ='INPUT|Vols'!AC352+'INPUT|Vols'!AC190 -> 0 | AD188: ='INPUT|Vols'!AD352+'INPUT|Vols'!AD190 -> 0 | AE188: ='INPUT|Vols'!AE352+'INPUT|Vols'!AE190 -> 0 | AF188: ='INPUT|Vols'!AF352+'INPUT|Vols'!AF190 -> 0 | AG188: ='INPUT|Vols'!AG352+'INPUT|Vols'!AG190 -> 0 | AH188: ='INPUT|Vols'!AH352+'INPUT|Vols'!AH190 -> 0 | AI188: ='INPUT|Vols'!AI352+'INPUT|Vols'!AI190 -> 0 | AJ188: ='INPUT|Vols'!AJ352+'INPUT|Vols'!AJ190 -> 0 | AK188: ='INPUT|Vols'!AK352+'INPUT|Vols'!AK190 -> 0 | AL188: ='INPUT|Vols'!AL352+'INPUT|Vols'!AL190 -> 0
C190: TOTAL
C191: Annual capacity | D191: peak kWh/day | G191: =G183+G175+G167+G159+G151+G143+G135+G127+G119+G111+G103+G95+G87+G79+G71+G63+G55+G47+G39+G31 -> 63766000 | AA191: =AA183+AA175+AA167+AA159+AA151+AA143+AA135+AA127+AA119+AA111+AA103+AA95+AA87+AA79+AA71+AA63+AA55+AA47+AA39+AA31 -> 5313833.333 | AB191: 5313833.333 | AC191: 5313833.333 | AD191: 5313833.333 | AE191: 5313833.333 | AF191: 5313833.333 | AG191: 5313833.333 | AH191: 5313833.333 | AI191: 5313833.333 | AJ191: 5313833.333 | AK191: 5313833.333 | AL191: 5313833.333
C192: Quarterly capacity | D192: peak kWh/day | I192: =I184+I176+I168+I160+I152+I144+I136+I128+I120+I112+I104+I96+I88+I80+I72+I64+I56+I48+I40+I32 -> 9000000 | J192: 10000000 | K192: 7000000 | L192: 5000000 | AA192: =AA184+AA176+AA168+AA160+AA152+AA144+AA136+AA128+AA120+AA112+AA104+AA96+AA88+AA80+AA72+AA64+AA56+AA48+AA40+AA32 -> 3000000 | AB192: 3000000 | AC192: 3000000 | AD192: 3333333.333 | AE192: 3333333.333 | AF192: 3333333.333 | AG192: 2333333.333 | AH192: 2333333.333 | AI192: 2333333.333 | AJ192: 2333333.333 | AK192: 2333333.333 | AL192: 2333333.333
C193: Monthly capacity | D193: peak kWh/day | N193: =N185+N177+N169+N161+N153+N145+N137+N129+N121+N113+N105+N97+N89+N81+N73+N65+N57+N49+N41+N33 -> 0 | O193: 0 | P193: 0 | Q193: 0 | R193: 0 | S193: 0 | T193: 0 | U193: 0 | V193: 0 | W193: 0 | X193: 0 | Y193: 0 | AA193: =AA185+AA177+AA169+AA161+AA153+AA145+AA137+AA129+AA121+AA113+AA105+AA97+AA89+AA81+AA73+AA65+AA57+AA49+AA41+AA33 -> 0 | AB193: 0 | AC193: 0 | AD193: 0 | AE193: 0 | AF193: 0 | AG193: 0 | AH193: 0 | AI193: 0 | AJ193: 0 | AK193: 0 | AL193: 0
C194: Daily capacity | D194: peak kWh/day | N194: =N186+N178+N170+N162+N154+N146+N138+N130+N122+N114+N106+N98+N90+N82+N74+N66+N58+N50+N42+N34 -> 0 | O194: 0 | P194: 0 | Q194: 0 | R194: 0 | S194: 0 | T194: 0 | U194: 0 | V194: 0 | W194: 0 | X194: 0 | Y194: 0 | AA194: =AA186+AA178+AA170+AA162+AA154+AA146+AA138+AA130+AA122+AA114+AA106+AA98+AA90+AA82+AA74+AA66+AA58+AA50+AA42+AA34 -> 0 | AB194: 0 | AC194: 0 | AD194: 0 | AE194: 0 | AF194: 0 | AG194: 0 | AH194: 0 | AI194: 0 | AJ194: 0 | AK194: 0 | AL194: 0
C195: Within-day capacity | D195: peak kWh/day | N195: =N187+N179+N171+N163+N155+N147+N139+N131+N123+N115+N107+N99+N91+N83+N75+N67+N59+N51+N43+N35 -> 0 | O195: 0 | P195: 0 | Q195: 0 | R195: 0 | S195: 0 | T195: 0 | U195: 0 | V195: 0 | W195: 0 | X195: 0 | Y195: 0 | AA195: =AA187+AA179+AA171+AA163+AA155+AA147+AA139+AA131+AA123+AA115+AA107+AA99+AA91+AA83+AA75+AA67+AA59+AA51+AA43+AA35 -> 0 | AB195: 0 | AC195: 0 | AD195: 0 | AE195: 0 | AF195: 0 | AG195: 0 | AH195: 0 | AI195: 0 | AJ195: 0 | AK195: 0 | AL195: 0
C196: Actual interruptible capacity | D196: peak kWh/day | N196: =N188+N180+N172+N164+N156+N148+N140+N132+N124+N116+N108+N100+N92+N84+N76+N68+N60+N52+N44+N36 -> 0 | O196: 0 | P196: 0 | Q196: 0 | R196: 0 | S196: 0 | T196: 0 | U196: 0 | V196: 0 | W196: 0 | X196: 0 | Y196: 0 | AA196: =AA188+AA180+AA172+AA164+AA156+AA148+AA140+AA132+AA124+AA116+AA108+AA100+AA92+AA84+AA76+AA68+AA60+AA52+AA44+AA36 -> 0 | AB196: 0 | AC196: 0 | AD196: 0 | AE196: 0 | AF196: 0 | AG196: 0 | AH196: 0 | AI196: 0 | AJ196: 0 | AK196: 0 | AL196: 0
B198: Calculation of forecast capacity charge
C200: CALCULATION OF WEIGHTED ENTRY CAPACITY BOOKINGS
C201: Total forecast annual entry capacity bookings | D201: Peak day kWh | G201: ='CALC|Cap'!G191*(1+'INPUT|UR'!G75) -> 63766000
C202: Total forecast quarterly entry capacity bookings | D202: Peak day kWh | I202: ='CALC|Cap'!I192*I18*(1+'INPUT|UR'!G75) -> 2495342.466 | J202: ='CALC|Cap'!J192*J18*(1+'INPUT|UR'!H75) -> 4068493.151 | K202: ='CALC|Cap'!K192*K18*(1+'INPUT|UR'!I75) -> 2399657.534 | L202: ='CALC|Cap'!L192*L18*(1+'INPUT|UR'!J75) -> 1386301.37
C203: Total forecast monthly entry capacity bookings | D203: Peak day kWh | N203: ='CALC|Cap'!N193*N19*(1+'INPUT|UR'!G75) -> 0 | O203: ='CALC|Cap'!O193*O19*(1+'INPUT|UR'!H75) -> 0 | P203: ='CALC|Cap'!P193*P19*(1+'INPUT|UR'!I75) -> 0 | Q203: ='CALC|Cap'!Q193*Q19*(1+'INPUT|UR'!J75) -> 0 | R203: ='CALC|Cap'!R193*R19*(1+'INPUT|UR'!K75) -> 0 | S203: ='CALC|Cap'!S193*S19*(1+'INPUT|UR'!L75) -> 0 | T203: ='CALC|Cap'!T193*T19*(1+'INPUT|UR'!M75) -> 0 | U203: ='CALC|Cap'!U193*U19*(1+'INPUT|UR'!N75) -> 0 | V203: ='CALC|Cap'!V193*V19*(1+'INPUT|UR'!O75) -> 0 | W203: ='CALC|Cap'!W193*W19*(1+'INPUT|UR'!P75) -> 0 | X203: ='CALC|Cap'!X193*X19*(1+'INPUT|UR'!Q75) -> 0 | Y203: ='CALC|Cap'!Y193*Y19*(1+'INPUT|UR'!R75) -> 0
C204: Total forecast weekly entry capacity bookings | D204: Peak day kWh | N204: ='CALC|Cap'!N194*N20*(1+'INPUT|UR'!G76) -> 0 | O204: ='CALC|Cap'!O194*O20*(1+'INPUT|UR'!H76) -> 0 | P204: ='CALC|Cap'!P194*P20*(1+'INPUT|UR'!I76) -> 0 | Q204: ='CALC|Cap'!Q194*Q20*(1+'INPUT|UR'!J76) -> 0 | R204: ='CALC|Cap'!R194*R20*(1+'INPUT|UR'!K76) -> 0 | S204: ='CALC|Cap'!S194*S20*(1+'INPUT|UR'!L76) -> 0 | T204: ='CALC|Cap'!T194*T20*(1+'INPUT|UR'!M76) -> 0 | U204: ='CALC|Cap'!U194*U20*(1+'INPUT|UR'!N76) -> 0 | V204: ='CALC|Cap'!V194*V20*(1+'INPUT|UR'!O76) -> 0 | W204: ='CALC|Cap'!W194*W20*(1+'INPUT|UR'!P76) -> 0 | X204: ='CALC|Cap'!X194*X20*(1+'INPUT|UR'!Q76) -> 0 | Y204: ='CALC|Cap'!Y194*Y20*(1+'INPUT|UR'!R76) -> 0
C205: Total forecast daily entry capacity bookings | D205: Peak day kWh | N205: ='CALC|Cap'!N195*N21*(1+'INPUT|UR'!G77) -> 0 | O205: ='CALC|Cap'!O195*O21*(1+'INPUT|UR'!H77) -> 0 | P205: ='CALC|Cap'!P195*P21*(1+'INPUT|UR'!I77) -> 0 | Q205: ='CALC|Cap'!Q195*Q21*(1+'INPUT|UR'!J77) -> 0 | R205: ='CALC|Cap'!R195*R21*(1+'INPUT|UR'!K77) -> 0 | S205: ='CALC|Cap'!S195*S21*(1+'INPUT|UR'!L77) -> 0 | T205: ='CALC|Cap'!T195*T21*(1+'INPUT|UR'!M77) -> 0 | U205: ='CALC|Cap'!U195*U21*(1+'INPUT|UR'!N77) -> 0 | V205: ='CALC|Cap'!V195*V21*(1+'INPUT|UR'!O77) -> 0 | W205: ='CALC|Cap'!W195*W21*(1+'INPUT|UR'!P77) -> 0 | X205: ='CALC|Cap'!X195*X21*(1+'INPUT|UR'!Q77) -> 0 | Y205: ='CALC|Cap'!Y195*Y21*(1+'INPUT|UR'!R77) -> 0
C206: Total forecast within day entry capacity bookings | D206: Peak day kWh | N206: ='CALC|Cap'!N196*N22*(1+'INPUT|UR'!G78) -> 0 | O206: ='CALC|Cap'!O196*O22*(1+'INPUT|UR'!H78) -> 0 | P206: ='CALC|Cap'!P196*P22*(1+'INPUT|UR'!I78) -> 0 | Q206: ='CALC|Cap'!Q196*Q22*(1+'INPUT|UR'!J78) -> 0 | R206: ='CALC|Cap'!R196*R22*(1+'INPUT|UR'!K78) -> 0 | S206: ='CALC|Cap'!S196*S22*(1+'INPUT|UR'!L78) -> 0 | T206: ='CALC|Cap'!T196*T22*(1+'INPUT|UR'!M78) -> 0 | U206: ='CALC|Cap'!U196*U22*(1+'INPUT|UR'!N78) -> 0 | V206: ='CALC|Cap'!V196*V22*(1+'INPUT|UR'!O78) -> 0 | W206: ='CALC|Cap'!W196*W22*(1+'INPUT|UR'!P78) -> 0 | X206: ='CALC|Cap'!X196*X22*(1+'INPUT|UR'!Q78) -> 0 | Y206: ='CALC|Cap'!Y196*Y22*(1+'INPUT|UR'!R78) -> 0
C207: Total weighted forecast quarterly entry capacity bookings | D207: Peak day kWh | G207: =SUM(I202:L202) -> 10349794.52
C208: Total weighted forecast monthly entry capacity bookings | D208: Peak day kWh | G208: =SUM(N203:Y203) -> 0
C209: Total weighted forecast daily entry capacity bookings | D209: Peak day kWh | G209: =SUM(N204:Y204) -> 0
C210: Total weighted forecast within day entry capacity bookings | D210: Peak day kWh | G210: =SUM(N205:Y205) -> 0
C211: Total weighted forecast interruptible entry capacity bookings | D211: Peak day kWh | G211: =SUM(N206:Y206) -> 0
C212: Total weighted forecast entry capacity bookings | D212: Peak day kWh | G212: =SUM(G201:G211) -> 74115794.52
C213: Total modified forecast entry capacity bookings | D213: Peak day kWh | G213: =G212*(1+'INPUT|UR'!G75) -> 74115794.52
B215: Calculation of weighted exit capacity volumes
C217: CALCULATION OF WEIGHTED EXIT CAPACITY VOLUMES
C218: Total forecast annual exit capacity bookings | D218: Peak day kWh | G218: =SUM('INPUT|Vols'!G381:G458)*(1+'INPUT|UR'!G77) -> 78558703
C219: Total weighted forecast interruptible exit capacity bookings by month | D219: Peak day kWh | N219: =SUM('INPUT|Vols'!I382:I458)*N26*(1+'INPUT|UR'!G77) -> 0 | O219: =SUM('INPUT|Vols'!J382:J458)*O26*(1+'INPUT|UR'!H77) -> 0 | P219: =SUM('INPUT|Vols'!K382:K458)*P26*(1+'INPUT|UR'!I77) -> 0 | Q219: =SUM('INPUT|Vols'!L382:L458)*Q26*(1+'INPUT|UR'!J77) -> 0 | R219: =SUM('INPUT|Vols'!M382:M458)*R26*(1+'INPUT|UR'!K77) -> 0 | S219: =SUM('INPUT|Vols'!N382:N458)*S26*(1+'INPUT|UR'!L77) -> 0 | T219: =SUM('INPUT|Vols'!O382:O458)*T26*(1+'INPUT|UR'!M77) -> 0 | U219: =SUM('INPUT|Vols'!P382:P458)*U26*(1+'INPUT|UR'!N77) -> 0 | V219: =SUM('INPUT|Vols'!Q382:Q458)*V26*(1+'INPUT|UR'!O77) -> 0 | W219: =SUM('INPUT|Vols'!R382:R458)*W26*(1+'INPUT|UR'!P77) -> 0 | X219: =SUM('INPUT|Vols'!S382:S458)*X26*(1+'INPUT|UR'!Q77) -> 0 | Y219: =SUM('INPUT|Vols'!T382:T458)*Y26*(1+'INPUT|UR'!R77) -> 0
C220: Total weighted forecast interruptible exit capacity bookings | D220: Peak day kWh | G220: =SUM(N219:Y219) -> 0
C221: Total weighted forecast exit capacity bookings | D221: Peak day kWh | G221: =SUM(G218:G220) -> 78558703
C222: Total modified forecast exit capacity bookings | D222: Peak day kWh | G222: =G221*(1+'INPUT|UR'!G77) -> 78558703
B224: Calculation of forecast reference capacity price
C226: CALCULATION OF FORECAST CAPACITY REFERENCE PRICE
C227: Total modified forecast capacity bookings | D227: Peak day kWh | G227: =G222+G213 -> 152674497.5
C228: Total capacity forecast required revenue | D228: £ | G228: ='INPUT|UR'!G34*'CALC|Revalloc'!G13 -> 34100145
C229: Forecast reference capacity charge | D229: £/Peak day kWh | G229: =G228/G227 -> 0.2233519386
B231: Calculation of forecast capacity charges by product
C233: FORECAST ROUNDED RESERVE ENTRY CAPACITY CHARGES BY PRODUCT
C234: =C17 -> Annual | D234: £/Peak day kWh | G234: =G17*$G$229 -> 0.2233519386
... 135 more rows

Sheet CALC|Debt
B1: =Title_Model -> Gas Transmission Tariff Model
B2: CALC|Debt
B4: Heading | C4: Item | D4: Unit | E4: Comments | G4: =Gasyear -> 2013/14 | I4: ='CALC|Cap'!N28 -> Oct-13 | J4: ='CALC|Cap'!O28 -> Nov-13 | K4: ='CALC|Cap'!P28 -> Dec-13 | L4: ='CALC|Cap'!Q28 -> Jan-14 | M4: ='CALC|Cap'!R28 -> Feb-14 | N4: ='CALC|Cap'!S28 -> Mar-14 | O4: ='CALC|Cap'!T28 -> Apr-14 | P4: ='CALC|Cap'!U28 -> May-14 | Q4: ='CALC|Cap'!V28 -> Jun-14 | R4: ='CALC|Cap'!W28 -> Jul-14 | S4: ='CALC|Cap'!X28 -> Aug-14 | T4: ='CALC|Cap'!Y28 -> Sep-14
B6: Calculation of non-debt payment by month
C8: NON-DEBT PAYMENT BY MONTH
C9: ='INPUT|UR'!C114 -> Non-Payments to date (incl this month) | D9: £ | I9: ='INPUT|UR'!I114 -> 0 | J9: ='INPUT|UR'!J114 -> 0 | K9: ='INPUT|UR'!K114 -> 0 | L9: ='INPUT|UR'!L114 -> 0 | M9: ='INPUT|UR'!M114 -> 0 | N9: ='INPUT|UR'!N114 -> 0 | O9: ='INPUT|UR'!O114 -> 0 | P9: ='INPUT|UR'!P114 -> 0 | Q9: ='INPUT|UR'!Q114 -> 0 | R9: ='INPUT|UR'!R114 -> 0 | S9: ='INPUT|UR'!S114 -> 0 | T9: ='INPUT|UR'!T114 -> 0
C10: ='INPUT|UR'!C115 -> Debt Payments invoiced (incl interest) | D10: £ | I10: ='INPUT|UR'!I115 -> 0 | J10: ='INPUT|UR'!J115 -> 0 | K10: ='INPUT|UR'!K115 -> 0 | L10: ='INPUT|UR'!L115 -> 0 | M10: ='INPUT|UR'!M115 -> 0 | N10: ='INPUT|UR'!N115 -> 0 | O10: ='INPUT|UR'!O115 -> 0 | P10: ='INPUT|UR'!P115 -> 0 | Q10: ='INPUT|UR'!Q115 -> 0 | R10: ='INPUT|UR'!R115 -> 0 | S10: ='INPUT|UR'!S115 -> 0 | T10: ='INPUT|UR'!T115 -> 0
C11: ='INPUT|UR'!C116 -> Interest on Previous Debt Payments | D11: £ | I11: ='INPUT|UR'!I116 -> 0 | J11: ='INPUT|UR'!J116 -> 0 | K11: ='INPUT|UR'!K116 -> 0 | L11: ='INPUT|UR'!L116 -> 0 | M11: ='INPUT|UR'!M116 -> 0 | N11: ='INPUT|UR'!N116 -> 0 | O11: ='INPUT|UR'!O116 -> 0 | P11: ='INPUT|UR'!P116 -> 0 | Q11: ='INPUT|UR'!Q116 -> 0 | R11: ='INPUT|UR'!R116 -> 0 | S11: ='INPUT|UR'!S116 -> 0 | T11: ='INPUT|UR'!T116 -> 0
C12: ='INPUT|UR'!C117 -> Recoveries to date | D12: £ | I12: ='INPUT|UR'!I117 -> 0 | J12: ='INPUT|UR'!J117 -> 0 | K12: ='INPUT|UR'!K117 -> 0 | L12: ='INPUT|UR'!L117 -> 0 | M12: ='INPUT|UR'!M117 -> 0 | N12: ='INPUT|UR'!N117 -> 0 | O12: ='INPUT|UR'!O117 -> 0 | P12: ='INPUT|UR'!P117 -> 0 | Q12: ='INPUT|UR'!Q117 -> 0 | R12: ='INPUT|UR'!R117 -> 0 | S12: ='INPUT|UR'!S117 -> 0 | T12: ='INPUT|UR'!T117 -> 0
C13: Non-debt payment excluding monthly interest | D13: £ | I13: =I9-I10+I11-I12 -> 0 | J13: =J9-J10+J11-J12 -> 0 | K13: 0 | L13: 0 | M13: 0 | N13: 0 | O13: 0 | P13: 0 | Q13: 0 | R13: 0 | S13: 0 | T13: 0
C14: Monthly interest | D14: £ | I14: =IF(I13=0,0,I12*((1+'INPUT|UR'!$G$111)^(1/12))) -> 0 | J14: =IF(J13=0,0,J12*((1+'INPUT|UR'!$G$111)^(1/12))) -> 0 | K14: =IF(K13=0,0,K12*((1+'INPUT|UR'!$G$111)^(1/12))) -> 0 | L14: =IF(L13=0,0,L12*((1+'INPUT|UR'!$G$111)^(1/12))) -> 0 | M14: =IF(M13=0,0,M12*((1+'INPUT|UR'!$G$111)^(1/12))) -> 0 | N14: =IF(N13=0,0,N12*((1+'INPUT|UR'!$G$111)^(1/12))) -> 0 | O14: =IF(O13=0,0,O12*((1+'INPUT|UR'!$G$111)^(1/12))) -> 0 | P14: =IF(P13=0,0,P12*((1+'INPUT|UR'!$G$111)^(1/12))) -> 0 | Q14: =IF(Q13=0,0,Q12*((1+'INPUT|UR'!$G$111)^(1/12))) -> 0 | R14: =IF(R13=0,0,R12*((1+'INPUT|UR'!$G$111)^(1/12))) -> 0 | S14: =IF(S13=0,0,S12*((1+'INPUT|UR'!$G$111)^(1/12))) -> 0 | T14: =IF(T13=0,0,T12*((1+'INPUT|UR'!$G$111)^(1/12))) -> 0
C15: Non-debt payment including monthly interest | D15: £ | I15: =I14+I13 -> 0 | J15: =J14+J13 -> 0 | K15: 0 | L15: 0 | M15: 0 | N15: 0 | O15: 0 | P15: 0 | Q15: 0 | R15: 0 | S15: 0 | T15: 0
B17: Calculation of debt payment by shipper by month
C19: SHIPPER SHARE OF DEBT PAYMENTS
C20: ='INPUT|UR'!C121 -> Shipper 1 | D20: £ | I20: =IF(I$15>0,I$15*'INPUT|UR'!G165/SUM('INPUT|UR'!$G$165:$G$184),0) -> 0 | J20: =IF(J$15>0,J$15*'CALC|ShipInv'!I924*SUM('CALC|ShipInv'!I$924:I$943),0) -> 0 | K20: =IF(K$15>0,K$15*'CALC|ShipInv'!J924*SUM('CALC|ShipInv'!J$924:J$943),0) -> 0 | L20: =IF(L$15>0,L$15*'CALC|ShipInv'!K924*SUM('CALC|ShipInv'!K$924:K$943),0) -> 0 | M20: =IF(M$15>0,M$15*'CALC|ShipInv'!L924*SUM('CALC|ShipInv'!L$924:L$943),0) -> 0 | N20: =IF(N$15>0,N$15*'CALC|ShipInv'!M924*SUM('CALC|ShipInv'!M$924:M$943),0) -> 0 | O20: =IF(O$15>0,O$15*'CALC|ShipInv'!N924*SUM('CALC|ShipInv'!N$924:N$943),0) -> 0 | P20: =IF(P$15>0,P$15*'CALC|ShipInv'!O924*SUM('CALC|ShipInv'!O$924:O$943),0) -> 0 | Q20: =IF(Q$15>0,Q$15*'CALC|ShipInv'!P924*SUM('CALC|ShipInv'!P$924:P$943),0) -> 0 | R20: =IF(R$15>0,R$15*'CALC|ShipInv'!Q924*SUM('CALC|ShipInv'!Q$924:Q$943),0) -> 0 | S20: =IF(S$15>0,S$15*'CALC|ShipInv'!R924*SUM('CALC|ShipInv'!R$924:R$943),0) -> 0 | T20: =IF(T$15>0,T$15*'CALC|ShipInv'!S924*SUM('CALC|ShipInv'!S$924:S$943),0) -> 0
C21: ='INPUT|UR'!C122 -> Shipper 2 | D21: £ | I21: =IF(I$15>0,I$15*'INPUT|UR'!G166/SUM('INPUT|UR'!$G$165:$G$184),0) -> 0 | J21: =IF(J$15>0,J$15*'CALC|ShipInv'!I925*SUM('CALC|ShipInv'!I$924:I$943),0) -> 0 | K21: =IF(K$15>0,K$15*'CALC|ShipInv'!J925*SUM('CALC|ShipInv'!J$924:J$943),0) -> 0 | L21: =IF(L$15>0,L$15*'CALC|ShipInv'!K925*SUM('CALC|ShipInv'!K$924:K$943),0) -> 0 | M21: =IF(M$15>0,M$15*'CALC|ShipInv'!L925*SUM('CALC|ShipInv'!L$924:L$943),0) -> 0 | N21: =IF(N$15>0,N$15*'CALC|ShipInv'!M925*SUM('CALC|ShipInv'!M$924:M$943),0) -> 0 | O21: =IF(O$15>0,O$15*'CALC|ShipInv'!N925*SUM('CALC|ShipInv'!N$924:N$943),0) -> 0 | P21: =IF(P$15>0,P$15*'CALC|ShipInv'!O925*SUM('CALC|ShipInv'!O$924:O$943),0) -> 0 | Q21: =IF(Q$15>0,Q$15*'CALC|ShipInv'!P925*SUM('CALC|ShipInv'!P$924:P$943),0) -> 0 | R21: =IF(R$15>0,R$15*'CALC|ShipInv'!Q925*SUM('CALC|ShipInv'!Q$924:Q$943),0) -> 0 | S21: =IF(S$15>0,S$15*'CALC|ShipInv'!R925*SUM('CALC|ShipInv'!R$924:R$943),0) -> 0 | T21: =IF(T$15>0,T$15*'CALC|ShipInv'!S925*SUM('CALC|ShipInv'!S$924:S$943),0) -> 0
C22: ='INPUT|UR'!C123 -> Shipper 3 | D22: £ | I22: =IF(I$15>0,I$15*'INPUT|UR'!G167/SUM('INPUT|UR'!$G$165:$G$184),0) -> 0 | J22: =IF(J$15>0,J$15*'CALC|ShipInv'!I926*SUM('CALC|ShipInv'!I$924:I$943),0) -> 0 | K22: =IF(K$15>0,K$15*'CALC|ShipInv'!J926*SUM('CALC|ShipInv'!J$924:J$943),0) -> 0 | L22: =IF(L$15>0,L$15*'CALC|ShipInv'!K926*SUM('CALC|ShipInv'!K$924:K$943),0) -> 0 | M22: =IF(M$15>0,M$15*'CALC|ShipInv'!L926*SUM('CALC|ShipInv'!L$924:L$943),0) -> 0 | N22: =IF(N$15>0,N$15*'CALC|ShipInv'!M926*SUM('CALC|ShipInv'!M$924:M$943),0) -> 0 | O22: =IF(O$15>0,O$15*'CALC|ShipInv'!N926*SUM('CALC|ShipInv'!N$924:N$943),0) -> 0 | P22: =IF(P$15>0,P$15*'CALC|ShipInv'!O926*SUM('CALC|ShipInv'!O$924:O$943),0) -> 0 | Q22: =IF(Q$15>0,Q$15*'CALC|ShipInv'!P926*SUM('CALC|ShipInv'!P$924:P$943),0) -> 0 | R22: =IF(R$15>0,R$15*'CALC|ShipInv'!Q926*SUM('CALC|ShipInv'!Q$924:Q$943),0) -> 0 | S22: =IF(S$15>0,S$15*'CALC|ShipInv'!R926*SUM('CALC|ShipInv'!R$924:R$943),0) -> 0 | T22: =IF(T$15>0,T$15*'CALC|ShipInv'!S926*SUM('CALC|ShipInv'!S$924:S$943),0) -> 0
C23: ='INPUT|UR'!C124 -> Shipper 4 | D23: £ | I23: =IF(I$15>0,I$15*'INPUT|UR'!G168/SUM('INPUT|UR'!$G$165:$G$184),0) -> 0 | J23: =IF(J$15>0,J$15*'CALC|ShipInv'!I927*SUM('CALC|ShipInv'!I$924:I$943),0) -> 0 | K23: =IF(K$15>0,K$15*'CALC|ShipInv'!J927*SUM('CALC|ShipInv'!J$924:J$943),0) -> 0 | L23: =IF(L$15>0,L$15*'CALC|ShipInv'!K927*SUM('CALC|ShipInv'!K$924:K$943),0) -> 0 | M23: =IF(M$15>0,M$15*'CALC|ShipInv'!L927*SUM('CALC|ShipInv'!L$924:L$943),0) -> 0 | N23: =IF(N$15>0,N$15*'CALC|ShipInv'!M927*SUM('CALC|ShipInv'!M$924:M$943),0) -> 0 | O23: =IF(O$15>0,O$15*'CALC|ShipInv'!N927*SUM('CALC|ShipInv'!N$924:N$943),0) -> 0 | P23: =IF(P$15>0,P$15*'CALC|ShipInv'!O927*SUM('CALC|ShipInv'!O$924:O$943),0) -> 0 | Q23: =IF(Q$15>0,Q$15*'CALC|ShipInv'!P927*SUM('CALC|ShipInv'!P$924:P$943),0) -> 0 | R23: =IF(R$15>0,R$15*'CALC|ShipInv'!Q927*SUM('CALC|ShipInv'!Q$924:Q$943),0) -> 0 | S23: =IF(S$15>0,S$15*'CALC|ShipInv'!R927*SUM('CALC|ShipInv'!R$924:R$943),0) -> 0 | T23: =IF(T$15>0,T$15*'CALC|ShipInv'!S927*SUM('CALC|ShipInv'!S$924:S$943),0) -> 0
C24: ='INPUT|UR'!C125 -> Shipper 5 | D24: £ | I24: =IF(I$15>0,I$15*'INPUT|UR'!G169/SUM('INPUT|UR'!$G$165:$G$184),0) -> 0 | J24: =IF(J$15>0,J$15*'CALC|ShipInv'!I928*SUM('CALC|ShipInv'!I$924:I$943),0) -> 0 | K24: =IF(K$15>0,K$15*'CALC|ShipInv'!J928*SUM('CALC|ShipInv'!J$924:J$943),0) -> 0 | L24: =IF(L$15>0,L$15*'CALC|ShipInv'!K928*SUM('CALC|ShipInv'!K$924:K$943),0) -> 0 | M24: =IF(M$15>0,M$15*'CALC|ShipInv'!L928*SUM('CALC|ShipInv'!L$924:L$943),0) -> 0 | N24: =IF(N$15>0,N$15*'CALC|ShipInv'!M928*SUM('CALC|ShipInv'!M$924:M$943),0) -> 0 | O24: =IF(O$15>0,O$15*'CALC|ShipInv'!N928*SUM('CALC|ShipInv'!N$924:N$943),0) -> 0 | P24: =IF(P$15>0,P$15*'CALC|ShipInv'!O928*SUM('CALC|ShipInv'!O$924:O$943),0) -> 0 | Q24: =IF(Q$15>0,Q$15*'CALC|ShipInv'!P928*SUM('CALC|ShipInv'!P$924:P$943),0) -> 0 | R24: =IF(R$15>0,R$15*'CALC|ShipInv'!Q928*SUM('CALC|ShipInv'!Q$924:Q$943),0) -> 0 | S24: =IF(S$15>0,S$15*'CALC|ShipInv'!R928*SUM('CALC|ShipInv'!R$924:R$943),0) -> 0 | T24: =IF(T$15>0,T$15*'CALC|ShipInv'!S928*SUM('CALC|ShipInv'!S$924:S$943),0) -> 0
C25: ='INPUT|UR'!C126 -> Shipper 6 | D25: £ | I25: =IF(I$15>0,I$15*'INPUT|UR'!G170/SUM('INPUT|UR'!$G$165:$G$184),0) -> 0 | J25: =IF(J$15>0,J$15*'CALC|ShipInv'!I929*SUM('CALC|ShipInv'!I$924:I$943),0) -> 0 | K25: =IF(K$15>0,K$15*'CALC|ShipInv'!J929*SUM('CALC|ShipInv'!J$924:J$943),0) -> 0 | L25: =IF(L$15>0,L$15*'CALC|ShipInv'!K929*SUM('CALC|ShipInv'!K$924:K$943),0) -> 0 | M25: =IF(M$15>0,M$15*'CALC|ShipInv'!L929*SUM('CALC|ShipInv'!L$924:L$943),0) -> 0 | N25: =IF(N$15>0,N$15*'CALC|ShipInv'!M929*SUM('CALC|ShipInv'!M$924:M$943),0) -> 0 | O25: =IF(O$15>0,O$15*'CALC|ShipInv'!N929*SUM('CALC|ShipInv'!N$924:N$943),0) -> 0 | P25: =IF(P$15>0,P$15*'CALC|ShipInv'!O929*SUM('CALC|ShipInv'!O$924:O$943),0) -> 0 | Q25: =IF(Q$15>0,Q$15*'CALC|ShipInv'!P929*SUM('CALC|ShipInv'!P$924:P$943),0) -> 0 | R25: =IF(R$15>0,R$15*'CALC|ShipInv'!Q929*SUM('CALC|ShipInv'!Q$924:Q$943),0) -> 0 | S25: =IF(S$15>0,S$15*'CALC|ShipInv'!R929*SUM('CALC|ShipInv'!R$924:R$943),0) -> 0 | T25: =IF(T$15>0,T$15*'CALC|ShipInv'!S929*SUM('CALC|ShipInv'!S$924:S$943),0) -> 0
C26: ='INPUT|UR'!C127 -> Shipper 7 | D26: £ | I26: =IF(I$15>0,I$15*'INPUT|UR'!G171/SUM('INPUT|UR'!$G$165:$G$184),0) -> 0 | J26: =IF(J$15>0,J$15*'CALC|ShipInv'!I930*SUM('CALC|ShipInv'!I$924:I$943),0) -> 0 | K26: =IF(K$15>0,K$15*'CALC|ShipInv'!J930*SUM('CALC|ShipInv'!J$924:J$943),0) -> 0 | L26: =IF(L$15>0,L$15*'CALC|ShipInv'!K930*SUM('CALC|ShipInv'!K$924:K$943),0) -> 0 | M26: =IF(M$15>0,M$15*'CALC|ShipInv'!L930*SUM('CALC|ShipInv'!L$924:L$943),0) -> 0 | N26: =IF(N$15>0,N$15*'CALC|ShipInv'!M930*SUM('CALC|ShipInv'!M$924:M$943),0) -> 0 | O26: =IF(O$15>0,O$15*'CALC|ShipInv'!N930*SUM('CALC|ShipInv'!N$924:N$943),0) -> 0 | P26: =IF(P$15>0,P$15*'CALC|ShipInv'!O930*SUM('CALC|ShipInv'!O$924:O$943),0) -> 0 | Q26: =IF(Q$15>0,Q$15*'CALC|ShipInv'!P930*SUM('CALC|ShipInv'!P$924:P$943),0) -> 0 | R26: =IF(R$15>0,R$15*'CALC|ShipInv'!Q930*SUM('CALC|ShipInv'!Q$924:Q$943),0) -> 0 | S26: =IF(S$15>0,S$15*'CALC|ShipInv'!R930*SUM('CALC|ShipInv'!R$924:R$943),0) -> 0 | T26: =IF(T$15>0,T$15*'CALC|ShipInv'!S930*SUM('CALC|ShipInv'!S$924:S$943),0) -> 0
C27: ='INPUT|UR'!C128 -> Shipper 8 | D27: £ | I27: =IF(I$15>0,I$15*'INPUT|UR'!G172/SUM('INPUT|UR'!$G$165:$G$184),0) -> 0 | J27: =IF(J$15>0,J$15*'CALC|ShipInv'!I931*SUM('CALC|ShipInv'!I$924:I$943),0) -> 0 | K27: =IF(K$15>0,K$15*'CALC|ShipInv'!J931*SUM('CALC|ShipInv'!J$924:J$943),0) -> 0 | L27: =IF(L$15>0,L$15*'CALC|ShipInv'!K931*SUM('CALC|ShipInv'!K$924:K$943),0) -> 0 | M27: =IF(M$15>0,M$15*'CALC|ShipInv'!L931*SUM('CALC|ShipInv'!L$924:L$943),0) -> 0 | N27: =IF(N$15>0,N$15*'CALC|ShipInv'!M931*SUM('CALC|ShipInv'!M$924:M$943),0) -> 0 | O27: =IF(O$15>0,O$15*'CALC|ShipInv'!N931*SUM('CALC|ShipInv'!N$924:N$943),0) -> 0 | P27: =IF(P$15>0,P$15*'CALC|ShipInv'!O931*SUM('CALC|ShipInv'!O$924:O$943),0) -> 0 | Q27: =IF(Q$15>0,Q$15*'CALC|ShipInv'!P931*SUM('CALC|ShipInv'!P$924:P$943),0) -> 0 | R27: =IF(R$15>0,R$15*'CALC|ShipInv'!Q931*SUM('CALC|ShipInv'!Q$924:Q$943),0) -> 0 | S27: =IF(S$15>0,S$15*'CALC|ShipInv'!R931*SUM('CALC|ShipInv'!R$924:R$943),0) -> 0 | T27: =IF(T$15>0,T$15*'CALC|ShipInv'!S931*SUM('CALC|ShipInv'!S$924:S$943),0) -> 0
C28: ='INPUT|UR'!C129 -> Shipper 9 | D28: £ | I28: =IF(I$15>0,I$15*'INPUT|UR'!G173/SUM('INPUT|UR'!$G$165:$G$184),0) -> 0 | J28: =IF(J$15>0,J$15*'CALC|ShipInv'!I932*SUM('CALC|ShipInv'!I$924:I$943),0) -> 0 | K28: =IF(K$15>0,K$15*'CALC|ShipInv'!J932*SUM('CALC|ShipInv'!J$924:J$943),0) -> 0 | L28: =IF(L$15>0,L$15*'CALC|ShipInv'!K932*SUM('CALC|ShipInv'!K$924:K$943),0) -> 0 | M28: =IF(M$15>0,M$15*'CALC|ShipInv'!L932*SUM('CALC|ShipInv'!L$924:L$943),0) -> 0 | N28: =IF(N$15>0,N$15*'CALC|ShipInv'!M932*SUM('CALC|ShipInv'!M$924:M$943),0) -> 0 | O28: =IF(O$15>0,O$15*'CALC|ShipInv'!N932*SUM('CALC|ShipInv'!N$924:N$943),0) -> 0 | P28: =IF(P$15>0,P$15*'CALC|ShipInv'!O932*SUM('CALC|ShipInv'!O$924:O$943),0) -> 0 | Q28: =IF(Q$15>0,Q$15*'CALC|ShipInv'!P932*SUM('CALC|ShipInv'!P$924:P$943),0) -> 0 | R28: =IF(R$15>0,R$15*'CALC|ShipInv'!Q932*SUM('CALC|ShipInv'!Q$924:Q$943),0) -> 0 | S28: =IF(S$15>0,S$15*'CALC|ShipInv'!R932*SUM('CALC|ShipInv'!R$924:R$943),0) -> 0 | T28: =IF(T$15>0,T$15*'CALC|ShipInv'!S932*SUM('CALC|ShipInv'!S$924:S$943),0) -> 0
C29: ='INPUT|UR'!C130 -> Shipper 10 | D29: £ | I29: =IF(I$15>0,I$15*'INPUT|UR'!G174/SUM('INPUT|UR'!$G$165:$G$184),0) -> 0 | J29: =IF(J$15>0,J$15*'CALC|ShipInv'!I933*SUM('CALC|ShipInv'!I$924:I$943),0) -> 0 | K29: =IF(K$15>0,K$15*'CALC|ShipInv'!J933*SUM('CALC|ShipInv'!J$924:J$943),0) -> 0 | L29: =IF(L$15>0,L$15*'CALC|ShipInv'!K933*SUM('CALC|ShipInv'!K$924:K$943),0) -> 0 | M29: =IF(M$15>0,M$15*'CALC|ShipInv'!L933*SUM('CALC|ShipInv'!L$924:L$943),0) -> 0 | N29: =IF(N$15>0,N$15*'CALC|ShipInv'!M933*SUM('CALC|ShipInv'!M$924:M$943),0) -> 0 | O29: =IF(O$15>0,O$15*'CALC|ShipInv'!N933*SUM('CALC|ShipInv'!N$924:N$943),0) -> 0 | P29: =IF(P$15>0,P$15*'CALC|ShipInv'!O933*SUM('CALC|ShipInv'!O$924:O$943),0) -> 0 | Q29: =IF(Q$15>0,Q$15*'CALC|ShipInv'!P933*SUM('CALC|ShipInv'!P$924:P$943),0) -> 0 | R29: =IF(R$15>0,R$15*'CALC|ShipInv'!Q933*SUM('CALC|ShipInv'!Q$924:Q$943),0) -> 0 | S29: =IF(S$15>0,S$15*'CALC|ShipInv'!R933*SUM('CALC|ShipInv'!R$924:R$943),0) -> 0 | T29: =IF(T$15>0,T$15*'CALC|ShipInv'!S933*SUM('CALC|ShipInv'!S$924:S$943),0) -> 0
C30: ='INPUT|UR'!C131 -> Shipper 11 | D30: £ | I30: =IF(I$15>0,I$15*'INPUT|UR'!G175/SUM('INPUT|UR'!$G$165:$G$184),0) -> 0 | J30: =IF(J$15>0,J$15*'CALC|ShipInv'!I934*SUM('CALC|ShipInv'!I$924:I$943),0) -> 0 | K30: =IF(K$15>0,K$15*'CALC|ShipInv'!J934*SUM('CALC|ShipInv'!J$924:J$943),0) -> 0 | L30: =IF(L$15>0,L$15*'CALC|ShipInv'!K934*SUM('CALC|ShipInv'!K$924:K$943),0) -> 0 | M30: =IF(M$15>0,M$15*'CALC|ShipInv'!L934*SUM('CALC|ShipInv'!L$924:L$943),0) -> 0 | N30: =IF(N$15>0,N$15*'CALC|ShipInv'!M934*SUM('CALC|ShipInv'!M$924:M$943),0) -> 0 | O30: =IF(O$15>0,O$15*'CALC|ShipInv'!N934*SUM('CALC|ShipInv'!N$924:N$943),0) -> 0 | P30: =IF(P$15>0,P$15*'CALC|ShipInv'!O934*SUM('CALC|ShipInv'!O$924:O$943),0) -> 0 | Q30: =IF(Q$15>0,Q$15*'CALC|ShipInv'!P934*SUM('CALC|ShipInv'!P$924:P$943),0) -> 0 | R30: =IF(R$15>0,R$15*'CALC|ShipInv'!Q934*SUM('CALC|ShipInv'!Q$924:Q$943),0) -> 0 | S30: =IF(S$15>0,S$15*'CALC|ShipInv'!R934*SUM('CALC|ShipInv'!R$924:R$943),0) -> 0 | T30: =IF(T$15>0,T$15*'CALC|ShipInv'!S934*SUM('CALC|ShipInv'!S$924:S$943),0) -> 0
C31: ='INPUT|UR'!C132 -> Shipper 12 | D31: £ | I31: =IF(I$15>0,I$15*'INPUT|UR'!G176/SUM('INPUT|UR'!$G$165:$G$184),0) -> 0 | J31: =IF(J$15>0,J$15*'CALC|ShipInv'!I935*SUM('CALC|ShipInv'!I$924:I$943),0) -> 0 | K31: =IF(K$15>0,K$15*'CALC|ShipInv'!J935*SUM('CALC|ShipInv'!J$924:J$943),0) -> 0 | L31: =IF(L$15>0,L$15*'CALC|ShipInv'!K935*SUM('CALC|ShipInv'!K$924:K$943),0) -> 0 | M31: =IF(M$15>0,M$15*'CALC|ShipInv'!L935*SUM('CALC|ShipInv'!L$924:L$943),0) -> 0 | N31: =IF(N$15>0,N$15*'CALC|ShipInv'!M935*SUM('CALC|ShipInv'!M$924:M$943),0) -> 0 | O31: =IF(O$15>0,O$15*'CALC|ShipInv'!N935*SUM('CALC|ShipInv'!N$924:N$943),0) -> 0 | P31: =IF(P$15>0,P$15*'CALC|ShipInv'!O935*SUM('CALC|ShipInv'!O$924:O$943),0) -> 0 | Q31: =IF(Q$15>0,Q$15*'CALC|ShipInv'!P935*SUM('CALC|ShipInv'!P$924:P$943),0) -> 0 | R31: =IF(R$15>0,R$15*'CALC|ShipInv'!Q935*SUM('CALC|ShipInv'!Q$924:Q$943),0) -> 0 | S31: =IF(S$15>0,S$15*'CALC|ShipInv'!R935*SUM('CALC|ShipInv'!R$924:R$943),0) -> 0 | T31: =IF(T$15>0,T$15*'CALC|ShipInv'!S935*SUM('CALC|ShipInv'!S$924:S$943),0) -> 0
C32: ='INPUT|UR'!C133 -> Shipper 13 | D32: £ | I32: =IF(I$15>0,I$15*'INPUT|UR'!G177/SUM('INPUT|UR'!$G$165:$G$184),0) -> 0 | J32: =IF(J$15>0,J$15*'CALC|ShipInv'!I936*SUM('CALC|ShipInv'!I$924:I$943),0) -> 0 | K32: =IF(K$15>0,K$15*'CALC|ShipInv'!J936*SUM('CALC|ShipInv'!J$924:J$943),0) -> 0 | L32: =IF(L$15>0,L$15*'CALC|ShipInv'!K936*SUM('CALC|ShipInv'!K$924:K$943),0) -> 0 | M32: =IF(M$15>0,M$15*'CALC|ShipInv'!L936*SUM('CALC|ShipInv'!L$924:L$943),0) -> 0 | N32: =IF(N$15>0,N$15*'CALC|ShipInv'!M936*SUM('CALC|ShipInv'!M$924:M$943),0) -> 0 | O32: =IF(O$15>0,O$15*'CALC|ShipInv'!N936*SUM('CALC|ShipInv'!N$924:N$943),0) -> 0 | P32: =IF(P$15>0,P$15*'CALC|ShipInv'!O936*SUM('CALC|ShipInv'!O$924:O$943),0) -> 0 | Q32: =IF(Q$15>0,Q$15*'CALC|ShipInv'!P936*SUM('CALC|ShipInv'!P$924:P$943),0) -> 0 | R32: =IF(R$15>0,R$15*'CALC|ShipInv'!Q936*SUM('CALC|ShipInv'!Q$924:Q$943),0) -> 0 | S32: =IF(S$15>0,S$15*'CALC|ShipInv'!R936*SUM('CALC|ShipInv'!R$924:R$943),0) -> 0 | T32: =IF(T$15>0,T$15*'CALC|ShipInv'!S936*SUM('CALC|ShipInv'!S$924:S$943),0) -> 0
C33: ='INPUT|UR'!C134 -> Shipper 14 | D33: £ | I33: =IF(I$15>0,I$15*'INPUT|UR'!G178/SUM('INPUT|UR'!$G$165:$G$184),0) -> 0 | J33: =IF(J$15>0,J$15*'CALC|ShipInv'!I937*SUM('CALC|ShipInv'!I$924:I$943),0) -> 0 | K33: =IF(K$15>0,K$15*'CALC|ShipInv'!J937*SUM('CALC|ShipInv'!J$924:J$943),0) -> 0 | L33: =IF(L$15>0,L$15*'CALC|ShipInv'!K937*SUM('CALC|ShipInv'!K$924:K$943),0) -> 0 | M33: =IF(M$15>0,M$15*'CALC|ShipInv'!L937*SUM('CALC|ShipInv'!L$924:L$943),0) -> 0 | N33: =IF(N$15>0,N$15*'CALC|ShipInv'!M937*SUM('CALC|ShipInv'!M$924:M$943),0) -> 0 | O33: =IF(O$15>0,O$15*'CALC|ShipInv'!N937*SUM('CALC|ShipInv'!N$924:N$943),0) -> 0 | P33: =IF(P$15>0,P$15*'CALC|ShipInv'!O937*SUM('CALC|ShipInv'!O$924:O$943),0) -> 0 | Q33: =IF(Q$15>0,Q$15*'CALC|ShipInv'!P937*SUM('CALC|ShipInv'!P$924:P$943),0) -> 0 | R33: =IF(R$15>0,R$15*'CALC|ShipInv'!Q937*SUM('CALC|ShipInv'!Q$924:Q$943),0) -> 0 | S33: =IF(S$15>0,S$15*'CALC|ShipInv'!R937*SUM('CALC|ShipInv'!R$924:R$943),0) -> 0 | T33: =IF(T$15>0,T$15*'CALC|ShipInv'!S937*SUM('CALC|ShipInv'!S$924:S$943),0) -> 0
C34: ='INPUT|UR'!C135 -> Shipper 15 | D34: £ | I34: =IF(I$15>0,I$15*'INPUT|UR'!G179/SUM('INPUT|UR'!$G$165:$G$184),0) -> 0 | J34: =IF(J$15>0,J$15*'CALC|ShipInv'!I938*SUM('CALC|ShipInv'!I$924:I$943),0) -> 0 | K34: =IF(K$15>0,K$15*'CALC|ShipInv'!J938*SUM('CALC|ShipInv'!J$924:J$943),0) -> 0 | L34: =IF(L$15>0,L$15*'CALC|ShipInv'!K938*SUM('CALC|ShipInv'!K$924:K$943),0) -> 0 | M34: =IF(M$15>0,M$15*'CALC|ShipInv'!L938*SUM('CALC|ShipInv'!L$924:L$943),0) -> 0 | N34: =IF(N$15>0,N$15*'CALC|ShipInv'!M938*SUM('CALC|ShipInv'!M$924:M$943),0) -> 0 | O34: =IF(O$15>0,O$15*'CALC|ShipInv'!N938*SUM('CALC|ShipInv'!N$924:N$943),0) -> 0 | P34: =IF(P$15>0,P$15*'CALC|ShipInv'!O938*SUM('CALC|ShipInv'!O$924:O$943),0) -> 0 | Q34: =IF(Q$15>0,Q$15*'CALC|ShipInv'!P938*SUM('CALC|ShipInv'!P$924:P$943),0) -> 0 | R34: =IF(R$15>0,R$15*'CALC|ShipInv'!Q938*SUM('CALC|ShipInv'!Q$924:Q$943),0) -> 0 | S34: =IF(S$15>0,S$15*'CALC|ShipInv'!R938*SUM('CALC|ShipInv'!R$924:R$943),0) -> 0 | T34: =IF(T$15>0,T$15*'CALC|ShipInv'!S938*SUM('CALC|ShipInv'!S$924:S$943),0) -> 0
C35: ='INPUT|UR'!C136 -> Shipper 16 | D35: £ | I35: =IF(I$15>0,I$15*'INPUT|UR'!G180/SUM('INPUT|UR'!$G$165:$G$184),0) -> 0 | J35: =IF(J$15>0,J$15*'CALC|ShipInv'!I939*SUM('CALC|ShipInv'!I$924:I$943),0) -> 0 | K35: =IF(K$15>0,K$15*'CALC|ShipInv'!J939*SUM('CALC|ShipInv'!J$924:J$943),0) -> 0 | L35: =IF(L$15>0,L$15*'CALC|ShipInv'!K939*SUM('CALC|ShipInv'!K$924:K$943),0) -> 0 | M35: =IF(M$15>0,M$15*'CALC|ShipInv'!L939*SUM('CALC|ShipInv'!L$924:L$943),0) -> 0 | N35: =IF(N$15>0,N$15*'CALC|ShipInv'!M939*SUM('CALC|ShipInv'!M$924:M$943),0) -> 0 | O35: =IF(O$15>0,O$15*'CALC|ShipInv'!N939*SUM('CALC|ShipInv'!N$924:N$943),0) -> 0 | P35: =IF(P$15>0,P$15*'CALC|ShipInv'!O939*SUM('CALC|ShipInv'!O$924:O$943),0) -> 0 | Q35: =IF(Q$15>0,Q$15*'CALC|ShipInv'!P939*SUM('CALC|ShipInv'!P$924:P$943),0) -> 0 | R35: =IF(R$15>0,R$15*'CALC|ShipInv'!Q939*SUM('CALC|ShipInv'!Q$924:Q$943),0) -> 0 | S35: =IF(S$15>0,S$15*'CALC|ShipInv'!R939*SUM('CALC|ShipInv'!R$924:R$943),0) -> 0 | T35: =IF(T$15>0,T$15*'CALC|ShipInv'!S939*SUM('CALC|ShipInv'!S$924:S$943),0) -> 0
C36: ='INPUT|UR'!C137 -> Shipper 17 | D36: £ | I36: =IF(I$15>0,I$15*'INPUT|UR'!G181/SUM('INPUT|UR'!$G$165:$G$184),0) -> 0 | J36: =IF(J$15>0,J$15*'CALC|ShipInv'!I940*SUM('CALC|ShipInv'!I$924:I$943),0) -> 0 | K36: =IF(K$15>0,K$15*'CALC|ShipInv'!J940*SUM('CALC|ShipInv'!J$924:J$943),0) -> 0 | L36: =IF(L$15>0,L$15*'CALC|ShipInv'!K940*SUM('CALC|ShipInv'!K$924:K$943),0) -> 0 | M36: =IF(M$15>0,M$15*'CALC|ShipInv'!L940*SUM('CALC|ShipInv'!L$924:L$943),0) -> 0 | N36: =IF(N$15>0,N$15*'CALC|ShipInv'!M940*SUM('CALC|ShipInv'!M$924:M$943),0) -> 0 | O36: =IF(O$15>0,O$15*'CALC|ShipInv'!N940*SUM('CALC|ShipInv'!N$924:N$943),0) -> 0 | P36: =IF(P$15>0,P$15*'CALC|ShipInv'!O940*SUM('CALC|ShipInv'!O$924:O$943),0) -> 0 | Q36: =IF(Q$15>0,Q$15*'CALC|ShipInv'!P940*SUM('CALC|ShipInv'!P$924:P$943),0) -> 0 | R36: =IF(R$15>0,R$15*'CALC|ShipInv'!Q940*SUM('CALC|ShipInv'!Q$924:Q$943),0) -> 0 | S36: =IF(S$15>0,S$15*'CALC|ShipInv'!R940*SUM('CALC|ShipInv'!R$924:R$943),0) -> 0 | T36: =IF(T$15>0,T$15*'CALC|ShipInv'!S940*SUM('CALC|ShipInv'!S$924:S$943),0) -> 0
C37: ='INPUT|UR'!C138 -> Shipper 18 | D37: £ | I37: =IF(I$15>0,I$15*'INPUT|UR'!G182/SUM('INPUT|UR'!$G$165:$G$184),0) -> 0 | J37: =IF(J$15>0,J$15*'CALC|ShipInv'!I941*SUM('CALC|ShipInv'!I$924:I$943),0) -> 0 | K37: =IF(K$15>0,K$15*'CALC|ShipInv'!J941*SUM('CALC|ShipInv'!J$924:J$943),0) -> 0 | L37: =IF(L$15>0,L$15*'CALC|ShipInv'!K941*SUM('CALC|ShipInv'!K$924:K$943),0) -> 0 | M37: =IF(M$15>0,M$15*'CALC|ShipInv'!L941*SUM('CALC|ShipInv'!L$924:L$943),0) -> 0 | N37: =IF(N$15>0,N$15*'CALC|ShipInv'!M941*SUM('CALC|ShipInv'!M$924:M$943),0) -> 0 | O37: =IF(O$15>0,O$15*'CALC|ShipInv'!N941*SUM('CALC|ShipInv'!N$924:N$943),0) -> 0 | P37: =IF(P$15>0,P$15*'CALC|ShipInv'!O941*SUM('CALC|ShipInv'!O$924:O$943),0) -> 0 | Q37: =IF(Q$15>0,Q$15*'CALC|ShipInv'!P941*SUM('CALC|ShipInv'!P$924:P$943),0) -> 0 | R37: =IF(R$15>0,R$15*'CALC|ShipInv'!Q941*SUM('CALC|ShipInv'!Q$924:Q$943),0) -> 0 | S37: =IF(S$15>0,S$15*'CALC|ShipInv'!R941*SUM('CALC|ShipInv'!R$924:R$943),0) -> 0 | T37: =IF(T$15>0,T$15*'CALC|ShipInv'!S941*SUM('CALC|ShipInv'!S$924:S$943),0) -> 0
C38: ='INPUT|UR'!C139 -> Shipper 19 | D38: £ | I38: =IF(I$15>0,I$15*'INPUT|UR'!G183/SUM('INPUT|UR'!$G$165:$G$184),0) -> 0 | J38: =IF(J$15>0,J$15*'CALC|ShipInv'!I942*SUM('CALC|ShipInv'!I$924:I$943),0) -> 0 | K38: =IF(K$15>0,K$15*'CALC|ShipInv'!J942*SUM('CALC|ShipInv'!J$924:J$943),0) -> 0 | L38: =IF(L$15>0,L$15*'CALC|ShipInv'!K942*SUM('CALC|ShipInv'!K$924:K$943),0) -> 0 | M38: =IF(M$15>0,M$15*'CALC|ShipInv'!L942*SUM('CALC|ShipInv'!L$924:L$943),0) -> 0 | N38: =IF(N$15>0,N$15*'CALC|ShipInv'!M942*SUM('CALC|ShipInv'!M$924:M$943),0) -> 0 | O38: =IF(O$15>0,O$15*'CALC|ShipInv'!N942*SUM('CALC|ShipInv'!N$924:N$943),0) -> 0 | P38: =IF(P$15>0,P$15*'CALC|ShipInv'!O942*SUM('CALC|ShipInv'!O$924:O$943),0) -> 0 | Q38: =IF(Q$15>0,Q$15*'CALC|ShipInv'!P942*SUM('CALC|ShipInv'!P$924:P$943),0) -> 0 | R38: =IF(R$15>0,R$15*'CALC|ShipInv'!Q942*SUM('CALC|ShipInv'!Q$924:Q$943),0) -> 0 | S38: =IF(S$15>0,S$15*'CALC|ShipInv'!R942*SUM('CALC|ShipInv'!R$924:R$943),0) -> 0 | T38: =IF(T$15>0,T$15*'CALC|ShipInv'!S942*SUM('CALC|ShipInv'!S$924:S$943),0) -> 0
C39: ='INPUT|UR'!C140 -> Shipper 20 | D39: £ | I39: =IF(I$15>0,I$15*'INPUT|UR'!G184/SUM('INPUT|UR'!$G$165:$G$184),0) -> 0 | J39: =IF(J$15>0,J$15*'CALC|ShipInv'!I943*SUM('CALC|ShipInv'!I$924:I$943),0) -> 0 | K39: =IF(K$15>0,K$15*'CALC|ShipInv'!J943*SUM('CALC|ShipInv'!J$924:J$943),0) -> 0 | L39: =IF(L$15>0,L$15*'CALC|ShipInv'!K943*SUM('CALC|ShipInv'!K$924:K$943),0) -> 0 | M39: =IF(M$15>0,M$15*'CALC|ShipInv'!L943*SUM('CALC|ShipInv'!L$924:L$943),0) -> 0 | N39: =IF(N$15>0,N$15*'CALC|ShipInv'!M943*SUM('CALC|ShipInv'!M$924:M$943),0) -> 0 | O39: =IF(O$15>0,O$15*'CALC|ShipInv'!N943*SUM('CALC|ShipInv'!N$924:N$943),0) -> 0 | P39: =IF(P$15>0,P$15*'CALC|ShipInv'!O943*SUM('CALC|ShipInv'!O$924:O$943),0) -> 0 | Q39: =IF(Q$15>0,Q$15*'CALC|ShipInv'!P943*SUM('CALC|ShipInv'!P$924:P$943),0) -> 0 | R39: =IF(R$15>0,R$15*'CALC|ShipInv'!Q943*SUM('CALC|ShipInv'!Q$924:Q$943),0) -> 0 | S39: =IF(S$15>0,S$15*'CALC|ShipInv'!R943*SUM('CALC|ShipInv'!R$924:R$943),0) -> 0 | T39: =IF(T$15>0,T$15*'CALC|ShipInv'!S943*SUM('CALC|ShipInv'!S$924:S$943),0) -> 0
C41: DEBT PAYMENT CAP BY SHIPPER
C42: =C20 -> Shipper 1 | D42: £ | I42: ='INPUT|UR'!G165*I$12 -> 0 | J42: ='CALC|ShipInv'!J924*I$12 -> 0 | K42: ='CALC|ShipInv'!K924*J$12 -> 0 | L42: ='CALC|ShipInv'!L924*K$12 -> 0 | M42: ='CALC|ShipInv'!M924*L$12 -> 0 | N42: ='CALC|ShipInv'!N924*M$12 -> 0 | O42: ='CALC|ShipInv'!O924*N$12 -> 0 | P42: ='CALC|ShipInv'!P924*O$12 -> 0 | Q42: ='CALC|ShipInv'!Q924*P$12 -> 0 | R42: ='CALC|ShipInv'!R924*Q$12 -> 0 | S42: ='CALC|ShipInv'!S924*R$12 -> 0 | T42: ='CALC|ShipInv'!T924*S$12 -> 0
C43: Shipper 2 | D43: £ | I43: ='INPUT|UR'!G166*I$12 -> 0 | J43: ='CALC|ShipInv'!J925*I$12 -> 0 | K43: ='CALC|ShipInv'!K925*J$12 -> 0 | L43: ='CALC|ShipInv'!L925*K$12 -> 0 | M43: ='CALC|ShipInv'!M925*L$12 -> 0 | N43: ='CALC|ShipInv'!N925*M$12 -> 0 | O43: ='CALC|ShipInv'!O925*N$12 -> 0 | P43: ='CALC|ShipInv'!P925*O$12 -> 0 | Q43: ='CALC|ShipInv'!Q925*P$12 -> 0 | R43: ='CALC|ShipInv'!R925*Q$12 -> 0 | S43: ='CALC|ShipInv'!S925*R$12 -> 0 | T43: ='CALC|ShipInv'!T925*S$12 -> 0
C44: Shipper 3 | D44: £ | I44: ='INPUT|UR'!G167*I$12 -> 0 | J44: ='CALC|ShipInv'!J926*I$12 -> 0 | K44: ='CALC|ShipInv'!K926*J$12 -> 0 | L44: ='CALC|ShipInv'!L926*K$12 -> 0 | M44: ='CALC|ShipInv'!M926*L$12 -> 0 | N44: ='CALC|ShipInv'!N926*M$12 -> 0 | O44: ='CALC|ShipInv'!O926*N$12 -> 0 | P44: ='CALC|ShipInv'!P926*O$12 -> 0 | Q44: ='CALC|ShipInv'!Q926*P$12 -> 0 | R44: ='CALC|ShipInv'!R926*Q$12 -> 0 | S44: ='CALC|ShipInv'!S926*R$12 -> 0 | T44: ='CALC|ShipInv'!T926*S$12 -> 0
C45: Shipper 4 | D45: £ | I45: ='INPUT|UR'!G168*I$12 -> 0 | J45: ='CALC|ShipInv'!J927*I$12 -> 0 | K45: ='CALC|ShipInv'!K927*J$12 -> 0 | L45: ='CALC|ShipInv'!L927*K$12 -> 0 | M45: ='CALC|ShipInv'!M927*L$12 -> 0 | N45: ='CALC|ShipInv'!N927*M$12 -> 0 | O45: ='CALC|ShipInv'!O927*N$12 -> 0 | P45: ='CALC|ShipInv'!P927*O$12 -> 0 | Q45: ='CALC|ShipInv'!Q927*P$12 -> 0 | R45: ='CALC|ShipInv'!R927*Q$12 -> 0 | S45: ='CALC|ShipInv'!S927*R$12 -> 0 | T45: ='CALC|ShipInv'!T927*S$12 -> 0
C46: Shipper 5 | D46: £ | I46: ='INPUT|UR'!G169*I$12 -> 0 | J46: ='CALC|ShipInv'!J928*I$12 -> 0 | K46: ='CALC|ShipInv'!K928*J$12 -> 0 | L46: ='CALC|ShipInv'!L928*K$12 -> 0 | M46: ='CALC|ShipInv'!M928*L$12 -> 0 | N46: ='CALC|ShipInv'!N928*M$12 -> 0 | O46: ='CALC|ShipInv'!O928*N$12 -> 0 | P46: ='CALC|ShipInv'!P928*O$12 -> 0 | Q46: ='CALC|ShipInv'!Q928*P$12 -> 0 | R46: ='CALC|ShipInv'!R928*Q$12 -> 0 | S46: ='CALC|ShipInv'!S928*R$12 -> 0 | T46: ='CALC|ShipInv'!T928*S$12 -> 0
C47: Shipper 6 | D47: £ | I47: ='INPUT|UR'!G170*I$12 -> 0 | J47: ='CALC|ShipInv'!J929*I$12 -> 0 | K47: ='CALC|ShipInv'!K929*J$12 -> 0 | L47: ='CALC|ShipInv'!L929*K$12 -> 0 | M47: ='CALC|ShipInv'!M929*L$12 -> 0 | N47: ='CALC|ShipInv'!N929*M$12 -> 0 | O47: ='CALC|ShipInv'!O929*N$12 -> 0 | P47: ='CALC|ShipInv'!P929*O$12 -> 0 | Q47: ='CALC|ShipInv'!Q929*P$12 -> 0 | R47: ='CALC|ShipInv'!R929*Q$12 -> 0 | S47: ='CALC|ShipInv'!S929*R$12 -> 0 | T47: ='CALC|ShipInv'!T929*S$12 -> 0
C48: Shipper 7 | D48: £ | I48: ='INPUT|UR'!G171*I$12 -> 0 | J48: ='CALC|ShipInv'!J930*I$12 -> 0 | K48: ='CALC|ShipInv'!K930*J$12 -> 0 | L48: ='CALC|ShipInv'!L930*K$12 -> 0 | M48: ='CALC|ShipInv'!M930*L$12 -> 0 | N48: ='CALC|ShipInv'!N930*M$12 -> 0 | O48: ='CALC|ShipInv'!O930*N$12 -> 0 | P48: ='CALC|ShipInv'!P930*O$12 -> 0 | Q48: ='CALC|ShipInv'!Q930*P$12 -> 0 | R48: ='CALC|ShipInv'!R930*Q$12 -> 0 | S48: ='CALC|ShipInv'!S930*R$12 -> 0 | T48: ='CALC|ShipInv'!T930*S$12 -> 0
C49: Shipper 8 | D49: £ | I49: ='INPUT|UR'!G172*I$12 -> 0 | J49: ='CALC|ShipInv'!J931*I$12 -> 0 | K49: ='CALC|ShipInv'!K931*J$12 -> 0 | L49: ='CALC|ShipInv'!L931*K$12 -> 0 | M49: ='CALC|ShipInv'!M931*L$12 -> 0 | N49: ='CALC|ShipInv'!N931*M$12 -> 0 | O49: ='CALC|ShipInv'!O931*N$12 -> 0 | P49: ='CALC|ShipInv'!P931*O$12 -> 0 | Q49: ='CALC|ShipInv'!Q931*P$12 -> 0 | R49: ='CALC|ShipInv'!R931*Q$12 -> 0 | S49: ='CALC|ShipInv'!S931*R$12 -> 0 | T49: ='CALC|ShipInv'!T931*S$12 -> 0
C50: Shipper 9 | D50: £ | I50: ='INPUT|UR'!G173*I$12 -> 0 | J50: ='CALC|ShipInv'!J932*I$12 -> 0 | K50: ='CALC|ShipInv'!K932*J$12 -> 0 | L50: ='CALC|ShipInv'!L932*K$12 -> 0 | M50: ='CALC|ShipInv'!M932*L$12 -> 0 | N50: ='CALC|ShipInv'!N932*M$12 -> 0 | O50: ='CALC|ShipInv'!O932*N$12 -> 0 | P50: ='CALC|ShipInv'!P932*O$12 -> 0 | Q50: ='CALC|ShipInv'!Q932*P$12 -> 0 | R50: ='CALC|ShipInv'!R932*Q$12 -> 0 | S50: ='CALC|ShipInv'!S932*R$12 -> 0 | T50: ='CALC|ShipInv'!T932*S$12 -> 0
C51: Shipper 10 | D51: £ | I51: ='INPUT|UR'!G174*I$12 -> 0 | J51: ='CALC|ShipInv'!J933*I$12 -> 0 | K51: ='CALC|ShipInv'!K933*J$12 -> 0 | L51: ='CALC|ShipInv'!L933*K$12 -> 0 | M51: ='CALC|ShipInv'!M933*L$12 -> 0 | N51: ='CALC|ShipInv'!N933*M$12 -> 0 | O51: ='CALC|ShipInv'!O933*N$12 -> 0 | P51: ='CALC|ShipInv'!P933*O$12 -> 0 | Q51: ='CALC|ShipInv'!Q933*P$12 -> 0 | R51: ='CALC|ShipInv'!R933*Q$12 -> 0 | S51: ='CALC|ShipInv'!S933*R$12 -> 0 | T51: ='CALC|ShipInv'!T933*S$12 -> 0
C52: Shipper 11 | D52: £ | I52: ='INPUT|UR'!G175*I$12 -> 0 | J52: ='CALC|ShipInv'!J934*I$12 -> 0 | K52: ='CALC|ShipInv'!K934*J$12 -> 0 | L52: ='CALC|ShipInv'!L934*K$12 -> 0 | M52: ='CALC|ShipInv'!M934*L$12 -> 0 | N52: ='CALC|ShipInv'!N934*M$12 -> 0 | O52: ='CALC|ShipInv'!O934*N$12 -> 0 | P52: ='CALC|ShipInv'!P934*O$12 -> 0 | Q52: ='CALC|ShipInv'!Q934*P$12 -> 0 | R52: ='CALC|ShipInv'!R934*Q$12 -> 0 | S52: ='CALC|ShipInv'!S934*R$12 -> 0 | T52: ='CALC|ShipInv'!T934*S$12 -> 0
C53: Shipper 12 | D53: £ | I53: ='INPUT|UR'!G176*I$12 -> 0 | J53: ='CALC|ShipInv'!J935*I$12 -> 0 | K53: ='CALC|ShipInv'!K935*J$12 -> 0 | L53: ='CALC|ShipInv'!L935*K$12 -> 0 | M53: ='CALC|ShipInv'!M935*L$12 -> 0 | N53: ='CALC|ShipInv'!N935*M$12 -> 0 | O53: ='CALC|ShipInv'!O935*N$12 -> 0 | P53: ='CALC|ShipInv'!P935*O$12 -> 0 | Q53: ='CALC|ShipInv'!Q935*P$12 -> 0 | R53: ='CALC|ShipInv'!R935*Q$12 -> 0 | S53: ='CALC|ShipInv'!S935*R$12 -> 0 | T53: ='CALC|ShipInv'!T935*S$12 -> 0
C54: Shipper 13 | D54: £ | I54: ='INPUT|UR'!G177*I$12 -> 0 | J54: ='CALC|ShipInv'!J936*I$12 -> 0 | K54: ='CALC|ShipInv'!K936*J$12 -> 0 | L54: ='CALC|ShipInv'!L936*K$12 -> 0 | M54: ='CALC|ShipInv'!M936*L$12 -> 0 | N54: ='CALC|ShipInv'!N936*M$12 -> 0 | O54: ='CALC|ShipInv'!O936*N$12 -> 0 | P54: ='CALC|ShipInv'!P936*O$12 -> 0 | Q54: ='CALC|ShipInv'!Q936*P$12 -> 0 | R54: ='CALC|ShipInv'!R936*Q$12 -> 0 | S54: ='CALC|ShipInv'!S936*R$12 -> 0 | T54: ='CALC|ShipInv'!T936*S$12 -> 0
C55: Shipper 14 | D55: £ | I55: ='INPUT|UR'!G178*I$12 -> 0 | J55: ='CALC|ShipInv'!J937*I$12 -> 0 | K55: ='CALC|ShipInv'!K937*J$12 -> 0 | L55: ='CALC|ShipInv'!L937*K$12 -> 0 | M55: ='CALC|ShipInv'!M937*L$12 -> 0 | N55: ='CALC|ShipInv'!N937*M$12 -> 0 | O55: ='CALC|ShipInv'!O937*N$12 -> 0 | P55: ='CALC|ShipInv'!P937*O$12 -> 0 | Q55: ='CALC|ShipInv'!Q937*P$12 -> 0 | R55: ='CALC|ShipInv'!R937*Q$12 -> 0 | S55: ='CALC|ShipInv'!S937*R$12 -> 0 | T55: ='CALC|ShipInv'!T937*S$12 -> 0
C56: Shipper 15 | D56: £ | I56: ='INPUT|UR'!G179*I$12 -> 0 | J56: ='CALC|ShipInv'!J938*I$12 -> 0 | K56: ='CALC|ShipInv'!K938*J$12 -> 0 | L56: ='CALC|ShipInv'!L938*K$12 -> 0 | M56: ='CALC|ShipInv'!M938*L$12 -> 0 | N56: ='CALC|ShipInv'!N938*M$12 -> 0 | O56: ='CALC|ShipInv'!O938*N$12 -> 0 | P56: ='CALC|ShipInv'!P938*O$12 -> 0 | Q56: ='CALC|ShipInv'!Q938*P$12 -> 0 | R56: ='CALC|ShipInv'!R938*Q$12 -> 0 | S56: ='CALC|ShipInv'!S938*R$12 -> 0 | T56: ='CALC|ShipInv'!T938*S$12 -> 0
C57: Shipper 16 | D57: £ | I57: ='INPUT|UR'!G180*I$12 -> 0 | J57: ='CALC|ShipInv'!J939*I$12 -> 0 | K57: ='CALC|ShipInv'!K939*J$12 -> 0 | L57: ='CALC|ShipInv'!L939*K$12 -> 0 | M57: ='CALC|ShipInv'!M939*L$12 -> 0 | N57: ='CALC|ShipInv'!N939*M$12 -> 0 | O57: ='CALC|ShipInv'!O939*N$12 -> 0 | P57: ='CALC|ShipInv'!P939*O$12 -> 0 | Q57: ='CALC|ShipInv'!Q939*P$12 -> 0 | R57: ='CALC|ShipInv'!R939*Q$12 -> 0 | S57: ='CALC|ShipInv'!S939*R$12 -> 0 | T57: ='CALC|ShipInv'!T939*S$12 -> 0
C58: Shipper 17 | D58: £ | I58: ='INPUT|UR'!G181*I$12 -> 0 | J58: ='CALC|ShipInv'!J940*I$12 -> 0 | K58: ='CALC|ShipInv'!K940*J$12 -> 0 | L58: ='CALC|ShipInv'!L940*K$12 -> 0 | M58: ='CALC|ShipInv'!M940*L$12 -> 0 | N58: ='CALC|ShipInv'!N940*M$12 -> 0 | O58: ='CALC|ShipInv'!O940*N$12 -> 0 | P58: ='CALC|ShipInv'!P940*O$12 -> 0 | Q58: ='CALC|ShipInv'!Q940*P$12 -> 0 | R58: ='CALC|ShipInv'!R940*Q$12 -> 0 | S58: ='CALC|ShipInv'!S940*R$12 -> 0 | T58: ='CALC|ShipInv'!T940*S$12 -> 0
C59: Shipper 18 | D59: £ | I59: ='INPUT|UR'!G182*I$12 -> 0 | J59: ='CALC|ShipInv'!J941*I$12 -> 0 | K59: ='CALC|ShipInv'!K941*J$12 -> 0 | L59: ='CALC|ShipInv'!L941*K$12 -> 0 | M59: ='CALC|ShipInv'!M941*L$12 -> 0 | N59: ='CALC|ShipInv'!N941*M$12 -> 0 | O59: ='CALC|ShipInv'!O941*N$12 -> 0 | P59: ='CALC|ShipInv'!P941*O$12 -> 0 | Q59: ='CALC|ShipInv'!Q941*P$12 -> 0 | R59: ='CALC|ShipInv'!R941*Q$12 -> 0 | S59: ='CALC|ShipInv'!S941*R$12 -> 0 | T59: ='CALC|ShipInv'!T941*S$12 -> 0
C60: Shipper 19 | D60: £ | I60: ='INPUT|UR'!G183*I$12 -> 0 | J60: ='CALC|ShipInv'!J942*I$12 -> 0 | K60: ='CALC|ShipInv'!K942*J$12 -> 0 | L60: ='CALC|ShipInv'!L942*K$12 -> 0 | M60: ='CALC|ShipInv'!M942*L$12 -> 0 | N60: ='CALC|ShipInv'!N942*M$12 -> 0 | O60: ='CALC|ShipInv'!O942*N$12 -> 0 | P60: ='CALC|ShipInv'!P942*O$12 -> 0 | Q60: ='CALC|ShipInv'!Q942*P$12 -> 0 | R60: ='CALC|ShipInv'!R942*Q$12 -> 0 | S60: ='CALC|ShipInv'!S942*R$12 -> 0 | T60: ='CALC|ShipInv'!T942*S$12 -> 0
C61: Shipper 20 | D61: £ | I61: ='INPUT|UR'!G184*I$12 -> 0 | J61: ='CALC|ShipInv'!J943*I$12 -> 0 | K61: ='CALC|ShipInv'!K943*J$12 -> 0 | L61: ='CALC|ShipInv'!L943*K$12 -> 0 | M61: ='CALC|ShipInv'!M943*L$12 -> 0 | N61: ='CALC|ShipInv'!N943*M$12 -> 0 | O61: ='CALC|ShipInv'!O943*N$12 -> 0 | P61: ='CALC|ShipInv'!P943*O$12 -> 0 | Q61: ='CALC|ShipInv'!Q943*P$12 -> 0 | R61: ='CALC|ShipInv'!R943*Q$12 -> 0 | S61: ='CALC|ShipInv'!S943*R$12 -> 0 | T61: ='CALC|ShipInv'!T943*S$12 -> 0
C63: DEBT PAYMENT BY SHIPPER
C64: =C42 -> Shipper 1 | D64: £ | I64: =MIN(I42,I20) -> 0 | J64: 0 | K64: 0 | L64: 0 | M64: 0 | N64: 0 | O64: 0 | P64: 0 | Q64: 0 | R64: 0 | S64: 0 | T64: 0
C65: Shipper 2 | D65: £ | I65: =MIN(I43,I21) -> 0 | J65: 0 | K65: 0 | L65: 0 | M65: 0 | N65: 0 | O65: 0 | P65: 0 | Q65: 0 | R65: 0 | S65: 0 | T65: 0
C66: Shipper 3 | D66: £ | I66: =MIN(I44,I22) -> 0 | J66: 0 | K66: 0 | L66: 0 | M66: 0 | N66: 0 | O66: 0 | P66: 0 | Q66: 0 | R66: 0 | S66: 0 | T66: 0
C67: Shipper 4 | D67: £ | I67: =MIN(I45,I23) -> 0 | J67: 0 | K67: 0 | L67: 0 | M67: 0 | N67: 0 | O67: 0 | P67: 0 | Q67: 0 | R67: 0 | S67: 0 | T67: 0
C68: Shipper 5 | D68: £ | I68: =MIN(I46,I24) -> 0 | J68: 0 | K68: 0 | L68: 0 | M68: 0 | N68: 0 | O68: 0 | P68: 0 | Q68: 0 | R68: 0 | S68: 0 | T68: 0
C69: Shipper 6 | D69: £ | I69: =MIN(I47,I25) -> 0 | J69: 0 | K69: 0 | L69: 0 | M69: 0 | N69: 0 | O69: 0 | P69: 0 | Q69: 0 | R69: 0 | S69: 0 | T69: 0
C70: Shipper 7 | D70: £ | I70: =MIN(I48,I26) -> 0 | J70: 0 | K70: 0 | L70: 0 | M70: 0 | N70: 0 | O70: 0 | P70: 0 | Q70: 0 | R70: 0 | S70: 0 | T70: 0
C71: Shipper 8 | D71: £ | I71: =MIN(I49,I27) -> 0 | J71: 0 | K71: 0 | L71: 0 | M71: 0 | N71: 0 | O71: 0 | P71: 0 | Q71: 0 | R71: 0 | S71: 0 | T71: 0
C72: Shipper 9 | D72: £ | I72: =MIN(I50,I28) -> 0 | J72: 0 | K72: 0 | L72: 0 | M72: 0 | N72: 0 | O72: 0 | P72: 0 | Q72: 0 | R72: 0 | S72: 0 | T72: 0
C73: Shipper 10 | D73: £ | I73: =MIN(I51,I29) -> 0 | J73: 0 | K73: 0 | L73: 0 | M73: 0 | N73: 0 | O73: 0 | P73: 0 | Q73: 0 | R73: 0 | S73: 0 | T73: 0
C74: Shipper 11 | D74: £ | I74: =MIN(I52,I30) -> 0 | J74: 0 | K74: 0 | L74: 0 | M74: 0 | N74: 0 | O74: 0 | P74: 0 | Q74: 0 | R74: 0 | S74: 0 | T74: 0
C75: Shipper 12 | D75: £ | I75: =MIN(I53,I31) -> 0 | J75: 0 | K75: 0 | L75: 0 | M75: 0 | N75: 0 | O75: 0 | P75: 0 | Q75: 0 | R75: 0 | S75: 0 | T75: 0
C76: Shipper 13 | D76: £ | I76: =MIN(I54,I32) -> 0 | J76: 0 | K76: 0 | L76: 0 | M76: 0 | N76: 0 | O76: 0 | P76: 0 | Q76: 0 | R76: 0 | S76: 0 | T76: 0
C77: Shipper 14 | D77: £ | I77: =MIN(I55,I33) -> 0 | J77: 0 | K77: 0 | L77: 0 | M77: 0 | N77: 0 | O77: 0 | P77: 0 | Q77: 0 | R77: 0 | S77: 0 | T77: 0
